Workbook

Sheet Menú
A1: Preparación de la oposición a TCEE
Z50: Víctor Gutiérrez Marcos ©

Sheet Probabilidades
B1: Probabilidades

Sheet Ej. 3
B1: Posibilidades de que te salga un tema que te sepas dependiendo del número de ellos que te sabes | G1: Simulador de sorteo
B2: Temas parte A | C2: 30 | D2: Temas parte B | E2: 30 | G2: Temas parte A | H2: =_xlfn.RANK.EQ(BM9,$BM$9:$BM$53) -> 11 | I2: =_xlfn.CONCAT("3.A.",H2) -> 3.A.11 | J2: =VLOOKUP(I2,ListadoDeTemas1[[Tema]:[Nombre del tema]],2,FALSE) -> Teoría de la producción. Caracterización de la tecnología de la empresa a corto y largo plazo. El conjunto de posibilidades de producción. La función de producción. Rendimientos locales y globales a escala. Elasticidad de sustitución. Producción conjunta.
H3: =_xlfn.RANK.EQ(BM10,$BM$9:$BM$53) -> 14 | I3: =_xlfn.CONCAT("3.A.",H3) -> 3.A.14 | J3: =VLOOKUP(I3,ListadoDeTemas1[[Tema]:[Nombre del tema]],2,FALSE) -> Teoría de juegos. Principales conceptos. Aplicaciones, con especial referencia a las subastas.
C4: Probabilidad total | G4: Temas parte B | H4: =_xlfn.RANK.EQ(BO9,$BO$9:$BO$53) -> 12 | I4: =_xlfn.CONCAT("3.B.",H4) -> 3.B.12 | J4: =VLOOKUP(I4,ListadoDeTemas1[[Tema]:[Nombre del tema]],2,FALSE) -> Mecanismos de ajuste de la balanza de pagos. Especial referencia al enfoque intertemporal de balanza de pagos. Análisis de sostenibilidad del déficit y de la deuda exterior.
C5: =VLOOKUP($E$2,$P$8:$BJ$54,$C$2+2,FALSE) -> 0.79912764 | H5: =_xlfn.RANK.EQ(BO10,$BO$9:$BO$53) -> 4 | I5: =_xlfn.CONCAT("3.B.",H5) -> 3.B.4 | J5: =VLOOKUP(I5,ListadoDeTemas1[[Tema]:[Nombre del tema]],2,FALSE) -> Análisis del crecimiento de la empresa. Métodos de valoración de empresas. Especial referencia a los procesos de fusión, adquisición y alianzas estratégicas.
C6: =IFERROR(_xlfn.IFS(IFERROR(VLOOKUP($E$2,$P$8:$BI$55,$C$2+2,FALSE)<VLOOKUP($E$2+1,$P$8:$BI$55,$C$2+1,FALSE),1=0),"Cambiar un tema de la parte A por un tema de la parte B",VLOOKUP($E$2,$P$8:$BI$55,$C$2+2,FALSE)<VLOOKUP($E$2-1,$P$8:$BI$55,$C$2+3,FALSE),"Cambiar un tema de la parte B por un tema de la parte A"),"") ->  | O6: Probabilidad total
C7: Probabilidad por número de temas | Q7: Temas que te sabes parte A
C8: =VLOOKUP($E$2,$P$58:$BJ$104,$C$2+2,FALSE) -> 0.013318794 | Q8: 0 | R8: 1 | S8: 2 | T8: 3 | U8: 4 | V8: 5 | W8: 6 | X8: 7 | Y8: 8 | Z8: 9 | AA8: 10 | AB8: 11 | AC8: 12 | AD8: 13 | AE8: 14 | AF8: 15 | AG8: 16 | AH8: 17 | AI8: 18 | AJ8: 19 | AK8: 20 | AL8: 21 | AM8: 22 | AN8: 23 | AO8: 24 | AP8: 25 | AQ8: 26 | AR8: 27 | AS8: 28 | AT8: 29 | AU8: 30 | AV8: 31 | AW8: 32 | AX8: 33 | AY8: 34 | AZ8: 35 | BA8: 36 | BB8: 37 | BC8: 38 | BD8: 39 | BE8: 40 | BF8: 41 | BG8: 42 | BH8: 43 | BI8: 44 | BJ8: 45 | BM8: #A | BO8: #B
O9: Temas que te sabes parte B | P9: 0 | Q9: =VLOOKUP($P9,$D$15:$E$60,2,FALSE)*VLOOKUP(Q$8,$B$15:$C$60,2,FALSE) -> 0 | R9: =VLOOKUP($P9,$D$15:$E$60,2,FALSE)*VLOOKUP(R$8,$B$15:$C$60,2,FALSE) -> 0 | S9: 0 | T9: 0 | U9: 0 | V9: 0 | W9: 0 | X9: 0 | Y9: 0 | Z9: 0 | AA9: 0 | AB9: 0 | AC9: 0 | AD9: 0 | AE9: 0 | AF9: 0 | AG9: 0 | AH9: 0 | AI9: 0 | AJ9: 0 | AK9: 0 | AL9: 0 | AM9: 0 | AN9: 0 | AO9: 0 | AP9: 0 | AQ9: 0 | AR9: 0 | AS9: 0 | AT9: 0 | AU9: 0 | AV9: 0 | AW9: 0 | AX9: 0 | AY9: 0 | AZ9: 0 | BA9: 0 | BB9: 0 | BC9: 0 | BD9: 0 | BE9: 0 | BF9: 0 | BG9: 0 | BH9: 0 | BI9: 0 | BJ9: 0 | BL9: 1 | BM9: =RAND() -> 0.6880741517 | BN9: 1 | BO9: =RAND() -> 0.7605232432
C10: Nivel de eficiencia | P10: 1 | Q10: =VLOOKUP($P10,$D$15:$E$60,2,FALSE)*VLOOKUP(Q$8,$B$15:$C$60,2,FALSE) -> 0 | R10: 0.001975308642 | S10: 0.003905723906 | T10: 0.005791245791 | U10: 0.007631874299 | V10: 0.009427609428 | W10: 0.01117845118 | X10: 0.01288439955 | Y10: 0.01454545455 | Z10: 0.01616161616 | AA10: 0.0177328844 | AB10: 0.01925925926 | AC10: 0.02074074074 | AD10: 0.02217732884 | AE10: 0.02356902357 | AF10: 0.02491582492 | AG10: 0.02621773288 | AH10: 0.02747474747 | AI10: 0.02868686869 | AJ10: 0.02985409652 | AK10: 0.03097643098 | AL10: 0.03205387205 | AM10: 0.03308641975 | AN10: 0.03407407407 | AO10: 0.03501683502 | AP10: 0.03591470258 | AQ10: 0.03676767677 | AR10: 0.03757575758 | AS10: 0.03833894501 | AT10: 0.03905723906 | AU10: 0.03973063973 | AV10: 0.04035914703 | AW10: 0.04094276094 | AX10: 0.04148148148 | AY10: 0.04197530864 | AZ10: 0.04242424242 | BA10: 0.04282828283 | BB10: 0.04318742985 | BC10: 0.0435016835 | BD10: 0.04377104377 | BE10: 0.04399551066 | BF10: 0.04417508418 | BG10: 0.04430976431 | BH10: 0.04439955107 | BI10: 0.04444444444 | BJ10: 0.04444444444 | BL10: 2 | BM10: =RAND() -> 0.6653259339 | BN10: 2 | BO10: =RAND() -> 0.9130654795
C11: =C8/MAX(Q59:BJ104) -> 1 | P11: 2 | Q11: 0 | R11: 0.003905723906 | S11: 0.007722681359 | T11: 0.01145087236 | U11: 0.01509029691 | V11: 0.018640955 | W11: 0.02210284665 | X11: 0.02547597184 | Y11: 0.02876033058 | Z11: 0.03195592287 | AA11: 0.0350627487 | AB11: 0.03808080808 | AC11: 0.04101010101 | AD11: 0.04385062749 | AE11: 0.04660238751 | AF11: 0.04926538108 | AG11: 0.0518396082 | AH11: 0.05432506887 | AI11: 0.05672176309 | AJ11: 0.05902969085 | AK11: 0.06124885216 | AL11: 0.06337924702 | AM11: 0.06542087542 | AN11: 0.06737373737 | AO11: 0.06923783287 | AP11: 0.07101316192 | AQ11: 0.07269972452 | AR11: 0.07429752066 | AS11: 0.07580655035 | AT11: 0.07722681359 | AU11: 0.07855831038 | AV11: 0.07980104071 | AW11: 0.08095500459 | AX11: 0.08202020202 | AY11: 0.082996633 | AZ11: 0.08388429752 | BA11: 0.08468319559 | BB11: 0.08539332721 | BC11: 0.08601469238 | BD11: 0.08654729109 | BE11: 0.08699112335 | BF11: 0.08734618916 | BG11: 0.08761248852 | BH11: 0.08779002143 | BI11: 0.08787878788 | BJ11: 0.08787878788 | BL11: 3 | BM11: 0.6788913437 | BN11: 3 | BO11: 0.3222725895
P12: 3 | Q12: 0 | R12: 0.005791245791 | S12: 0.01145087236 | T12: 0.01697887971 | U12: 0.02237526783 | V12: 0.02764003673 | W12: 0.03277318641 | X12: 0.03777471687 | Y12: 0.0426446281 | Z12: 0.04738292011 | AA12: 0.0519895929 | AB12: 0.05646464646 | AC12: 0.06080808081 | AD12: 0.06501989593 | AE12: 0.06910009183 | AF12: 0.0730486685 | AG12: 0.07686562596 | AH12: 0.08055096419 | AI12: 0.0841046832 | AJ12: 0.08752678298 | AK12: 0.09081726354 | AL12: 0.09397612489 | AM12: 0.097003367 | AN12: 0.0998989899 | AO12: 0.1026629936 | AP12: 0.105295378 | AQ12: 0.1077961433 | AR12: 0.1101652893 | AS12: 0.112402816 | AT12: 0.1145087236 | AU12: 0.1164830119 | AV12: 0.1183256811 | AW12: 0.1200367309 | AX12: 0.1216161616 | AY12: 0.1230639731 | AZ12: 0.1243801653 | BA12: 0.1255647383 | BB12: 0.1266176921 | BC12: 0.1275390266 | BD12: 0.128328742 | BE12: 0.1289868381 | BF12: 0.129513315 | BG12: 0.1299081726 | BH12: 0.1301714111 | BI12: 0.1303030303 | BJ12: 0.1303030303 | BL12: 4 | BM12: 0.9904592773 | BN12: 4 | BO12: 0.04049788956
B13: Parte A | D13: Parte B | P13: 4 | Q13: 0 | R13: 0.007631874299 | S13: 0.01509029691 | T13: 0.02237526783 | U13: 0.02948678706 | V13: 0.03642485461 | W13: 0.04318947046 | X13: 0.04978063463 | Y13: 0.05619834711 | Z13: 0.0624426079 | AA13: 0.068513417 | AB13: 0.07441077441 | AC13: 0.08013468013 | AD13: 0.08568513417 | AE13: 0.09106213652 | AF13: 0.09626568717 | AG13: 0.1012957861 | AH13: 0.1061524334 | AI13: 0.110835629 | AJ13: 0.1153453729 | AK13: 0.1196816651 | AL13: 0.1238445057 | AM13: 0.1278338945 | AN13: 0.1316498316 | AO13: 0.1352923171 | AP13: 0.1387613509 | AQ13: 0.142056933 | AR13: 0.1451790634 | AS13: 0.1481277421 | AT13: 0.1509029691 | AU13: 0.1535047444 | AV13: 0.1559330681 | AW13: 0.15818794 | AX13: 0.1602693603 | AY13: 0.1621773288 | AZ13: 0.1639118457 | BA13: 0.1654729109 | BB13: 0.1668605244 | BC13: 0.1680746863 | BD13: 0.1691153964 | BE13: 0.1699826548 | BF13: 0.1706764616 | BG13: 0.1711968167 | BH13: 0.17154372 | BI13: 0.1717171717 | BJ13: 0.1717171717 | BL13: 5 | BM13: 0.2669193366 | BN13: 5 | BO13: 0.1538218931
B14: Temas que sabes | C14: Posibilidades | D14: Temas que sabes | E14: Posibilidades | P14: 5 | Q14: 0 | R14: 0.009427609428 | S14: 0.018640955 | T14: 0.02764003673 | U14: 0.03642485461 | V14: 0.04499540863 | W14: 0.05335169881 | X14: 0.06149372513 | Y14: 0.0694214876 | Z14: 0.07713498623 | AA14: 0.084634221 | AB14: 0.09191919192 | AC14: 0.09898989899 | AD14: 0.1058463422 | AE14: 0.1124885216 | AF14: 0.1189164371 | AG14: 0.1251300888 | AH14: 0.1311294766 | AI14: 0.1369146006 | AJ14: 0.1424854607 | AK14: 0.1478420569 | AL14: 0.1529843893 | AM14: 0.1579124579 | AN14: 0.1626262626 | AO14: 0.1671258035 | AP14: 0.1714110805 | AQ14: 0.1754820937 | AR14: 0.179338843 | AS14: 0.1829813284 | AT14: 0.18640955 | AU14: 0.1896235078 | AV14: 0.1926232017 | AW14: 0.1954086318 | AX14: 0.197979798 | AY14: 0.2003367003 | AZ14: 0.2024793388 | BA14: 0.2044077135 | BB14: 0.2061218243 | BC14: 0.2076216713 | BD14: 0.2089072544 | BE14: 0.2099785736 | BF14: 0.210835629 | BG14: 0.2114784206 | BH14: 0.2119069483 | BI14: 0.2121212121 | BJ14: 0.2121212121 | BL14: 6 | BM14: 0.7134043232 | BN14: 6 | BO14: 0.7696015196
B15: 45 | C15: =(B15/45)+(((45-B15)/45)*(B15/44)) -> 1 | D15: 45 | E15: =(D15/45)+(((45-D15)/45)*(D15/44)) -> 1 | P15: 6 | Q15: 0 | R15: =VLOOKUP($P15,$D$15:$E$60,2,FALSE)*VLOOKUP(R$8,$B$15:$C$60,2,FALSE) -> 0.01117845118 | S15: 0.02210284665 | T15: 0.03277318641 | U15: 0.04318947046 | V15: 0.05335169881 | W15: 0.06325987144 | X15: 0.07291398837 | Y15: 0.08231404959 | Z15: 0.0914600551 | AA15: 0.1003520049 | AB15: 0.108989899 | AC15: 0.1173737374 | AD15: 0.12550352 | AE15: 0.133379247 | AF15: 0.1410009183 | AG15: 0.1483685338 | AH15: 0.1554820937 | AI15: 0.1623415978 | AJ15: 0.1689470462 | AK15: 0.1752984389 | AL15: 0.1813957759 | AM15: 0.1872390572 | AN15: 0.1928282828 | AO15: 0.1981634527 | AP15: 0.2032445669 | AQ15: 0.2080716253 | AR15: 0.2126446281 | AS15: 0.2169635751 | AT15: 0.2210284665 | AU15: 0.2248393021 | AV15: 0.228396082 | AW15: 0.2316988062 | AX15: 0.2347474747 | AY15: 0.2375420875 | AZ15: 0.2400826446 | BA15: 0.242369146 | BB15: 0.2444015917 | BC15: 0.2461799816 | BD15: 0.2477043159 | BE15: 0.2489745944 | BF15: 0.2499908173 | BG15: 0.2507529844 | BH15: 0.2512610958 | BI15: 0.2515151515 | BJ15: 0.2515151515 | BL15: 7 | BM15: 0.7046747124 | BN15: 7 | BO15: 0.4762526862
B16: 44 | C16: =(B16/45)+(((45-B16)/45)*(B16/44)) -> 1 | D16: 44 | E16: 1 | P16: 7 | Q16: 0 | R16: 0.01288439955 | S16: 0.02547597184 | T16: 0.03777471687 | U16: 0.04978063463 | V16: 0.06149372513 | W16: 0.07291398837 | X16: 0.08404142434 | Y16: 0.09487603306 | Z16: 0.1054178145 | AA16: 0.1156667687 | AB16: 0.1256228956 | AC16: 0.1352861953 | AD16: 0.1446566677 | AE16: 0.1537343128 | AF16: 0.1625191307 | AG16: 0.1710111213 | AH16: 0.1792102847 | AI16: 0.1871166208 | AJ16: 0.1947301296 | AK16: 0.2020508111 | AL16: 0.2090786654 | AM16: 0.2158136925 | AN16: 0.2222558923 | AO16: 0.2284052648 | AP16: 0.23426181 | AQ16: 0.239825528 | AR16: 0.2450964187 | AS16: 0.2500744822 | AT16: 0.2547597184 | AU16: 0.2591521273 | AV16: 0.263251709 | AW16: 0.2670584634 | AX16: 0.2705723906 | AY16: 0.2737934905 | AZ16: 0.2767217631 | BA16: 0.2793572084 | BB16: 0.2816998265 | BC16: 0.2837496174 | BD16: 0.285506581 | BE16: 0.2869707173 | BF16: 0.2881420263 | BG16: 0.2890205081 | BH16: 0.2896061626 | BI16: 0.2898989899 | BJ16: 0.2898989899 | BL16: 8 | BM16: 0.9404716599 | BN16: 8 | BO16: 0.3749509245
B17: 43 | C17: 0.998989899 | D17: 43 | E17: 0.998989899 | P17: 8 | Q17: 0 | R17: 0.01454545455 | S17: 0.02876033058 | T17: 0.0426446281 | U17: 0.05619834711 | V17: 0.0694214876 | W17: 0.08231404959 | X17: 0.09487603306 | Y17: 0.107107438 | Z17: 0.1190082645 | AA17: 0.1305785124 | AB17: 0.1418181818 | AC17: 0.1527272727 | AD17: 0.1633057851 | AE17: 0.173553719 | AF17: 0.1834710744 | AG17: 0.1930578512 | AH17: 0.2023140496 | AI17: 0.2112396694 | AJ17: 0.2198347107 | AK17: 0.2280991736 | AL17: 0.2360330579 | AM17: 0.2436363636 | AN17: 0.2509090909 | AO17: 0.2578512397 | AP17: 0.2644628099 | AQ17: 0.2707438017 | AR17: 0.2766942149 | AS17: 0.2823140496 | AT17: 0.2876033058 | AU17: 0.2925619835 | AV17: 0.2971900826 | AW17: 0.3014876033 | AX17: 0.3054545455 | AY17: 0.3090909091 | AZ17: 0.3123966942 | BA17: 0.3153719008 | BB17: 0.3180165289 | BC17: 0.3203305785 | BD17: 0.3223140496 | BE17: 0.3239669421 | BF17: 0.3252892562 | BG17: 0.3262809917 | BH17: 0.3269421488 | BI17: 0.3272727273 | BJ17: 0.3272727273 | BL17: 9 | BM17: 0.5157309403 | BN17: 9 | BO17: 0.7353650777
B18: 42 | C18: 0.996969697 | D18: 42 | E18: 0.996969697 | P18: 9 | Q18: 0 | R18: 0.01616161616 | S18: 0.03195592287 | T18: 0.04738292011 | U18: 0.0624426079 | V18: 0.07713498623 | W18: 0.0914600551 | X18: 0.1054178145 | Y18: 0.1190082645 | Z18: 0.132231405 | AA18: 0.145087236 | AB18: 0.1575757576 | AC18: 0.1696969697 | AD18: 0.1814508724 | AE18: 0.1928374656 | AF18: 0.2038567493 | AG18: 0.2145087236 | AH18: 0.2247933884 | AI18: 0.2347107438 | AJ18: 0.2442607897 | AK18: 0.2534435262 | AL18: 0.2622589532 | AM18: 0.2707070707 | AN18: 0.2787878788 | AO18: 0.2865013774 | AP18: 0.2938475666 | AQ18: 0.3008264463 | AR18: 0.3074380165 | AS18: 0.3136822773 | AT18: 0.3195592287 | AU18: 0.3250688705 | AV18: 0.3302112029 | AW18: 0.3349862259 | AX18: 0.3393939394 | AY18: 0.3434343434 | AZ18: 0.347107438 | BA18: 0.3504132231 | BB18: 0.3533516988 | BC18: 0.355922865 | BD18: 0.3581267218 | BE18: 0.3599632691 | BF18: 0.3614325069 | BG18: 0.3625344353 | BH18: 0.3632690542 | BI18: 0.3636363636 | BJ18: 0.3636363636 | BL18: 10 | BM18: 0.5778903679 | BN18: 10 | BO18: 0.7066252516
B19: 41 | C19: 0.9939393939 | D19: 41 | E19: 0.9939393939 | P19: 10 | Q19: 0 | R19: 0.0177328844 | S19: 0.0350627487 | T19: 0.0519895929 | U19: 0.068513417 | V19: 0.084634221 | W19: 0.1003520049 | X19: 0.1156667687 | Y19: 0.1305785124 | Z19: 0.145087236 | AA19: 0.1591929395 | AB19: 0.1728956229 | AC19: 0.1861952862 | AD19: 0.1990919294 | AE19: 0.2115855525 | AF19: 0.2236761555 | AG19: 0.2353637384 | AH19: 0.2466483012 | AI19: 0.2575298439 | AJ19: 0.2680083665 | AK19: 0.278083869 | AL19: 0.2877563514 | AM19: 0.2970258137 | AN19: 0.3058922559 | AO19: 0.314355678 | AP19: 0.32241608 | AQ19: 0.3300734619 | AR19: 0.3373278237 | AS19: 0.3441791654 | AT19: 0.350627487 | AU19: 0.3566727885 | AV19: 0.3623150699 | AW19: 0.3675543312 | AX19: 0.3723905724 | AY19: 0.3768237935 | AZ19: 0.3808539945 | BA19: 0.3844811754 | BB19: 0.3877053362 | BC19: 0.3905264769 | BD19: 0.3929445975 | BE19: 0.394959698 | BF19: 0.3965717784 | BG19: 0.3977808387 | BH19: 0.3985868789 | BI19: 0.398989899 | BJ19: 0.398989899 | BL19: 11 | BM19: 0.9312861882 | BN19: 11 | BO19: 0.8535331428
B20: 40 | C20: 0.9898989899 | D20: 40 | E20: 0.9898989899 | P20: 11 | Q20: 0 | R20: 0.01925925926 | S20: 0.03808080808 | T20: 0.05646464646 | U20: 0.07441077441 | V20: 0.09191919192 | W20: 0.108989899 | X20: 0.1256228956 | Y20: 0.1418181818 | Z20: 0.1575757576 | AA20: 0.1728956229 | AB20: 0.1877777778 | AC20: 0.2022222222 | AD20: 0.2162289562 | AE20: 0.2297979798 | AF20: 0.2429292929 | AG20: 0.2556228956 | AH20: 0.2678787879 | AI20: 0.2796969697 | AJ20: 0.2910774411 | AK20: 0.302020202 | AL20: 0.3125252525 | AM20: 0.3225925926 | AN20: 0.3322222222 | AO20: 0.3414141414 | AP20: 0.3501683502 | AQ20: 0.3584848485 | AR20: 0.3663636364 | AS20: 0.3738047138 | AT20: 0.3808080808 | AU20: 0.3873737374 | AV20: =VLOOKUP($P20,$D$15:$E$60,2,FALSE)*VLOOKUP(AV$8,$B$15:$C$60,2,FALSE) -> 0.3935016835 | AW20: 0.3991919192 | AX20: 0.4044444444 | AY20: 0.4092592593 | AZ20: 0.4136363636 | BA20: 0.4175757576 | BB20: 0.4210774411 | BC20: 0.4241414141 | BD20: 0.4267676768 | BE20: 0.428956229 | BF20: 0.4307070707 | BG20: 0.432020202 | BH20: 0.4328956229 | BI20: 0.4333333333 | BJ20: 0.4333333333 | BL20: 12 | BM20: 0.343441512 | BN20: 12 | BO20: 0.7647600322
B21: 39 | C21: 0.9848484848 | D21: 39 | E21: 0.9848484848 | P21: 12 | Q21: 0 | R21: 0.02074074074 | S21: 0.04101010101 | T21: 0.06080808081 | U21: 0.08013468013 | V21: 0.09898989899 | W21: 0.1173737374 | X21: 0.1352861953 | Y21: 0.1527272727 | Z21: 0.1696969697 | AA21: 0.1861952862 | AB21: 0.2022222222 | AC21: 0.2177777778 | AD21: 0.2328619529 | AE21: 0.2474747475 | AF21: 0.2616161616 | AG21: 0.2752861953 | AH21: 0.2884848485 | AI21: 0.3012121212 | AJ21: 0.3134680135 | AK21: 0.3252525253 | AL21: 0.3365656566 | AM21: 0.3474074074 | AN21: 0.3577777778 | AO21: 0.3676767677 | AP21: 0.3771043771 | AQ21: 0.3860606061 | AR21: 0.3945454545 | AS21: 0.4025589226 | AT21: 0.4101010101 | AU21: 0.4171717172 | AV21: 0.4237710438 | AW21: 0.4298989899 | AX21: 0.4355555556 | AY21: 0.4407407407 | AZ21: 0.4454545455 | BA21: 0.4496969697 | BB21: 0.4534680135 | BC21: 0.4567676768 | BD21: 0.4595959596 | BE21: 0.461952862 | BF21: 0.4638383838 | BG21: 0.4652525253 | BH21: 0.4661952862 | BI21: 0.4666666667 | BJ21: 0.4666666667 | BL21: 13 | BM21: 0.1024058357 | BN21: 13 | BO21: 0.7066946822
B22: 38 | C22: 0.9787878788 | D22: 38 | E22: 0.9787878788 | P22: 13 | Q22: 0 | R22: 0.02217732884 | S22: 0.04385062749 | T22: 0.06501989593 | U22: 0.08568513417 | V22: 0.1058463422 | W22: 0.12550352 | X22: 0.1446566677 | Y22: 0.1633057851 | Z22: 0.1814508724 | AA22: 0.1990919294 | AB22: 0.2162289562 | AC22: 0.2328619529 | AD22: 0.2489909193 | AE22: 0.2646158555 | AF22: 0.2797367616 | AG22: 0.2943536374 | AH22: 0.308466483 | AI22: 0.3220752984 | AJ22: 0.3351800837 | AK22: 0.3477808387 | AL22: 0.3598775635 | AM22: 0.3714702581 | AN22: 0.3825589226 | AO22: 0.3931435568 | AP22: 0.4032241608 | AQ22: 0.4128007346 | AR22: 0.4218732782 | AS22: 0.4304417917 | AT22: 0.4385062749 | AU22: 0.4460667279 | AV22: 0.4531231507 | AW22: 0.4596755433 | AX22: 0.4657239057 | AY22: 0.4712682379 | AZ22: 0.4763085399 | BA22: 0.4808448118 | BB22: 0.4848770534 | BC22: 0.4884052648 | BD22: 0.491429446 | BE22: 0.493949597 | BF22: 0.4959657178 | BG22: 0.4974778084 | BH22: 0.4984858688 | BI22: 0.498989899 | BJ22: 0.498989899 | BL22: 14 | BM22: 0.2631787844 | BN22: 14 | BO22: 0.3342474236
B23: 37 | C23: 0.9717171717 | D23: 37 | E23: 0.9717171717 | P23: 14 | Q23: 0 | R23: 0.02356902357 | S23: 0.04660238751 | T23: 0.06910009183 | U23: 0.09106213652 | V23: 0.1124885216 | W23: 0.133379247 | X23: 0.1537343128 | Y23: 0.173553719 | Z23: 0.1928374656 | AA23: 0.2115855525 | AB23: 0.2297979798 | AC23: 0.2474747475 | AD23: 0.2646158555 | AE23: 0.2812213039 | AF23: 0.2972910927 | AG23: 0.3128252219 | AH23: 0.3278236915 | AI23: 0.3422865014 | AJ23: 0.3562136517 | AK23: 0.3696051423 | AL23: 0.3824609734 | AM23: 0.3947811448 | AN23: 0.4065656566 | AO23: 0.4178145087 | AP23: 0.4285277013 | AQ23: 0.4387052342 | AR23: 0.4483471074 | AS23: 0.4574533211 | AT23: 0.4660238751 | AU23: 0.4740587695 | AV23: 0.4815580043 | AW23: 0.4885215794 | AX23: 0.4949494949 | AY23: 0.5008417508 | AZ23: 0.5061983471 | BA23: 0.5110192837 | BB23: 0.5153045608 | BC23: 0.5190541781 | BD23: 0.5222681359 | BE23: 0.524946434 | BF23: 0.5270890725 | BG23: 0.5286960514 | BH23: 0.5297673707 | BI23: 0.5303030303 | BJ23: 0.5303030303 | BL23: 15 | BM23: 0.1261246159 | BN23: 15 | BO23: 0.9958089614
B24: 36 | C24: 0.9636363636 | D24: 36 | E24: 0.9636363636 | P24: 15 | Q24: 0 | R24: 0.02491582492 | S24: 0.04926538108 | T24: 0.0730486685 | U24: 0.09626568717 | V24: 0.1189164371 | W24: 0.1410009183 | X24: 0.1625191307 | Y24: 0.1834710744 | Z24: 0.2038567493 | AA24: 0.2236761555 | AB24: 0.2429292929 | AC24: 0.2616161616 | AD24: 0.2797367616 | AE24: 0.2972910927 | AF24: 0.3142791552 | AG24: 0.3307009489 | AH24: 0.3465564738 | AI24: 0.36184573 | AJ24: 0.3765687175 | AK24: 0.3907254362 | AL24: 0.4043158861 | AM24: 0.4173400673 | AN24: 0.4297979798 | AO24: 0.4416896235 | AP24: 0.4530149985 | AQ24: 0.4637741047 | AR24: 0.4739669421 | AS24: 0.4835935109 | AT24: 0.4926538108 | AU24: 0.5011478421 | AV24: 0.5090756045 | AW24: 0.5164370983 | AX24: 0.5232323232 | AY24: 0.5294612795 | AZ24: 0.5351239669 | BA24: 0.5402203857 | BB24: 0.5447505357 | BC24: 0.5487144169 | BD24: 0.5521120294 | BE24: 0.5549433731 | BF24: 0.5572084481 | BG24: 0.5589072544 | BH24: 0.5600397919 | BI24: 0.5606060606 | BJ24: 0.5606060606 | BL24: 16 | BM24: 0.4031786382 | BN24: 16 | BO24: 0.1541500774
B25: 35 | C25: 0.9545454545 | D25: 35 | E25: 0.9545454545 | P25: 16 | Q25: 0 | R25: 0.02621773288 | S25: 0.0518396082 | T25: 0.07686562596 | U25: 0.1012957861 | V25: 0.1251300888 | W25: 0.1483685338 | X25: 0.1710111213 | Y25: 0.1930578512 | Z25: 0.2145087236 | AA25: 0.2353637384 | AB25: 0.2556228956 | AC25: 0.2752861953 | AD25: 0.2943536374 | AE25: 0.3128252219 | AF25: 0.3307009489 | AG25: 0.3479808183 | AH25: 0.3646648301 | AI25: 0.3807529844 | AJ25: 0.3962452811 | AK25: 0.4111417202 | AL25: 0.4254423018 | AM25: 0.4391470258 | AN25: 0.4522558923 | AO25: 0.4647689011 | AP25: 0.4766860524 | AQ25: 0.4880073462 | AR25: 0.4987327824 | AS25: 0.508862361 | AT25: 0.518396082 | AU25: 0.5273339455 | AV25: 0.5356759514 | AW25: 0.5434220998 | AX25: 0.5505723906 | AY25: 0.5571268238 | AZ25: 0.5630853994 | BA25: 0.5684481175 | BB25: 0.5732149781 | BC25: 0.577385981 | BD25: 0.5809611264 | BE25: 0.5839404142 | BF25: 0.5863238445 | BG25: 0.5881114172 | BH25: 0.5893031323 | BI25: 0.5898989899 | BJ25: 0.5898989899 | BL25: 17 | BM25: 0.7371188822 | BN25: 17 | BO25: 0.2298692113
B26: 34 | C26: 0.9444444444 | D26: 34 | E26: 0.9444444444 | P26: 17 | Q26: 0 | R26: 0.02747474747 | S26: 0.05432506887 | T26: 0.08055096419 | U26: 0.1061524334 | V26: 0.1311294766 | W26: 0.1554820937 | X26: 0.1792102847 | Y26: 0.2023140496 | Z26: 0.2247933884 | AA26: 0.2466483012 | AB26: 0.2678787879 | AC26: 0.2884848485 | AD26: 0.308466483 | AE26: 0.3278236915 | AF26: 0.3465564738 | AG26: =VLOOKUP($P26,$D$15:$E$60,2,FALSE)*VLOOKUP(AG$8,$B$15:$C$60,2,FALSE) -> 0.3646648301 | AH26: 0.3821487603 | AI26: 0.3990082645 | AJ26: 0.4152433425 | AK26: 0.4308539945 | AL26: 0.4458402204 | AM26: 0.4602020202 | AN26: 0.4739393939 | AO26: 0.4870523416 | AP26: 0.4995408632 | AQ26: 0.5114049587 | AR26: 0.5226446281 | AS26: 0.5332598714 | AT26: 0.5432506887 | AU26: 0.5526170799 | AV26: 0.561359045 | AW26: 0.569476584 | AX26: 0.576969697 | AY26: 0.5838383838 | AZ26: 0.5900826446 | BA26: 0.5957024793 | BB26: 0.600697888 | BC26: 0.6050688705 | BD26: 0.608815427 | BE26: 0.6119375574 | BF26: 0.6144352617 | BG26: 0.6163085399 | BH26: 0.6175573921 | BI26: 0.6181818182 | BJ26: 0.6181818182 | BL26: 18 | BM26: 0.7970640105 | BN26: 18 | BO26: 0.3282385399
B27: 33 | C27: 0.9333333333 | D27: 33 | E27: 0.9333333333 | P27: 18 | Q27: 0 | R27: 0.02868686869 | S27: 0.05672176309 | T27: 0.0841046832 | U27: 0.110835629 | V27: 0.1369146006 | W27: 0.1623415978 | X27: 0.1871166208 | Y27: 0.2112396694 | Z27: 0.2347107438 | AA27: 0.2575298439 | AB27: 0.2796969697 | AC27: 0.3012121212 | AD27: 0.3220752984 | AE27: 0.3422865014 | AF27: 0.36184573 | AG27: 0.3807529844 | AH27: 0.3990082645 | AI27: 0.4166115702 | AJ27: 0.4335629017 | AK27: 0.449862259 | AL27: 0.4655096419 | AM27: 0.4805050505 | AN27: 0.4948484848 | AO27: 0.5085399449 | AP27: 0.5215794307 | AQ27: 0.5339669421 | AR27: 0.5457024793 | AS27: 0.5567860422 | AT27: 0.5672176309 | AU27: 0.5769972452 | AV27: 0.5861248852 | AW27: 0.594600551 | AX27: 0.6024242424 | AY27: 0.6095959596 | AZ27: 0.6161157025 | BA27: 0.6219834711 | BB27: 0.6271992654 | BC27: 0.6317630854 | BD27: 0.6356749311 | BE27: 0.6389348026 | BF27: 0.6415426997 | BG27: 0.6434986226 | BH27: 0.6448025712 | BI27: 0.6454545455 | BJ27: 0.6454545455 | BL27: 19 | BM27: 0.3716629563 | BN27: 19 | BO27: 0.4986424961
B28: 32 | C28: 0.9212121212 | D28: 32 | E28: 0.9212121212 | P28: 19 | Q28: 0 | R28: 0.02985409652 | S28: 0.05902969085 | T28: 0.08752678298 | U28: 0.1153453729 | V28: 0.1424854607 | W28: 0.1689470462 | X28: 0.1947301296 | Y28: 0.2198347107 | Z28: 0.2442607897 | AA28: 0.2680083665 | AB28: 0.2910774411 | AC28: 0.3134680135 | AD28: 0.3351800837 | AE28: 0.3562136517 | AF28: 0.3765687175 | AG28: 0.3962452811 | AH28: 0.4152433425 | AI28: 0.4335629017 | AJ28: 0.4512039588 | AK28: 0.4681665136 | AL28: 0.4844505663 | AM28: 0.5000561167 | AN28: 0.514983165 | AO28: 0.529231711 | AP28: 0.5428017549 | AQ28: 0.5556932966 | AR28: 0.5679063361 | AS28: 0.5794408734 | AT28: 0.5902969085 | AU28: 0.6004744414 | AV28: 0.6099734721 | AW28: 0.6187940006 | AX28: 0.6269360269 | AY28: 0.6343995511 | AZ28: 0.641184573 | BA28: 0.6472910927 | BB28: 0.6527191103 | BC28: 0.6574686257 | BD28: 0.6615396388 | BE28: 0.6649321498 | BF28: 0.6676461586 | BG28: 0.6696816651 | BH28: 0.6710386695 | BI28: 0.6717171717 | BJ28: 0.6717171717 | BL28: 20 | BM28: 0.5580055412 | BN28: 20 | BO28: 0.439527648
B29: 31 | C29: 0.9080808081 | D29: 31 | E29: 0.9080808081 | P29: 20 | Q29: 0 | R29: 0.03097643098 | S29: 0.06124885216 | T29: 0.09081726354 | U29: 0.1196816651 | V29: 0.1478420569 | W29: 0.1752984389 | X29: 0.2020508111 | Y29: 0.2280991736 | Z29: 0.2534435262 | AA29: 0.278083869 | AB29: 0.302020202 | AC29: 0.3252525253 | AD29: 0.3477808387 | AE29: 0.3696051423 | AF29: 0.3907254362 | AG29: 0.4111417202 | AH29: 0.4308539945 | AI29: 0.449862259 | AJ29: 0.4681665136 | AK29: 0.4857667585 | AL29: 0.5026629936 | AM29: 0.5188552189 | AN29: 0.5343434343 | AO29: 0.54912764 | AP29: 0.5632078359 | AQ29: 0.576584022 | AR29: 0.5892561983 | AS29: 0.6012243649 | AT29: 0.6124885216 | AU29: 0.6230486685 | AV29: 0.6329048056 | AW29: 0.642056933 | AX29: 0.6505050505 | AY29: 0.6582491582 | AZ29: 0.6652892562 | BA29: 0.6716253444 | BB29: 0.6772574227 | BC29: 0.6821854913 | BD29: 0.68640955 | BE29: 0.689929599 | BF29: 0.6927456382 | BG29: 0.6948576676 | BH29: 0.6962656872 | BI29: 0.696969697 | BJ29: 0.696969697 | BL29: 21 | BM29: 0.2885578096 | BN29: 21 | BO29: 0.6522095662
B30: 30 | C30: 0.8939393939 | D30: 30 | E30: 0.8939393939 | P30: 21 | Q30: 0 | R30: 0.03205387205 | S30: 0.06337924702 | T30: 0.09397612489 | U30: 0.1238445057 | V30: 0.1529843893 | W30: 0.1813957759 | X30: 0.2090786654 | Y30: 0.2360330579 | Z30: 0.2622589532 | AA30: 0.2877563514 | AB30: 0.3125252525 | AC30: 0.3365656566 | AD30: 0.3598775635 | AE30: 0.3824609734 | AF30: 0.4043158861 | AG30: 0.4254423018 | AH30: 0.4458402204 | AI30: 0.4655096419 | AJ30: 0.4844505663 | AK30: 0.5026629936 | AL30: 0.5201469238 | AM30: 0.5369023569 | AN30: 0.5529292929 | AO30: 0.5682277319 | AP30: 0.5827976737 | AQ30: 0.5966391185 | AR30: 0.6097520661 | AS30: 0.6221365167 | AT30: 0.6337924702 | AU30: 0.6447199265 | AV30: 0.6549188858 | AW30: 0.664389348 | AX30: 0.6731313131 | AY30: 0.6811447811 | AZ30: 0.6884297521 | BA30: 0.6949862259 | BB30: 0.7008142026 | BC30: 0.7059136823 | BD30: 0.7102846648 | BE30: 0.7139271503 | BF30: 0.7168411387 | BG30: 0.7190266299 | BH30: 0.7204836241 | BI30: 0.7212121212 | BJ30: 0.7212121212 | BL30: 22 | BM30: 0.3769782521 | BN30: 22 | BO30: 0.6227530115
B31: 29 | C31: 0.8787878788 | D31: 29 | E31: 0.8787878788 | P31: 22 | Q31: 0 | R31: 0.03308641975 | S31: 0.06542087542 | T31: 0.097003367 | U31: 0.1278338945 | V31: 0.1579124579 | W31: 0.1872390572 | X31: 0.2158136925 | Y31: 0.2436363636 | Z31: 0.2707070707 | AA31: 0.2970258137 | AB31: 0.3225925926 | AC31: 0.3474074074 | AD31: 0.3714702581 | AE31: 0.3947811448 | AF31: 0.4173400673 | AG31: 0.4391470258 | AH31: 0.4602020202 | AI31: 0.4805050505 | AJ31: 0.5000561167 | AK31: 0.5188552189 | AL31: 0.5369023569 | AM31: 0.5541975309 | AN31: 0.5707407407 | AO31: 0.5865319865 | AP31: 0.6015712682 | AQ31: 0.6158585859 | AR31: 0.6293939394 | AS31: 0.6421773288 | AT31: 0.6542087542 | AU31: 0.6654882155 | AV31: 0.6760157127 | AW31: 0.6857912458 | AX31: 0.6948148148 | AY31: 0.7030864198 | AZ31: 0.7106060606 | BA31: 0.7173737374 | BB31: 0.7233894501 | BC31: 0.7286531987 | BD31: 0.7331649832 | BE31: 0.7369248036 | BF31: 0.7399326599 | BG31: 0.7421885522 | BH31: 0.7436924804 | BI31: 0.7444444444 | BJ31: 0.7444444444 | BL31: 23 | BM31: 0.5112206366 | BN31: 23 | BO31: 0.3164537665
B32: 28 | C32: 0.8626262626 | D32: 28 | E32: 0.8626262626 | P32: 23 | Q32: 0 | R32: =VLOOKUP($P32,$D$15:$E$60,2,FALSE)*VLOOKUP(R$8,$B$15:$C$60,2,FALSE) -> 0.03407407407 | S32: 0.06737373737 | T32: 0.0998989899 | U32: 0.1316498316 | V32: 0.1626262626 | W32: 0.1928282828 | X32: 0.2222558923 | Y32: 0.2509090909 | Z32: 0.2787878788 | AA32: 0.3058922559 | AB32: 0.3322222222 | AC32: 0.3577777778 | AD32: 0.3825589226 | AE32: 0.4065656566 | AF32: 0.4297979798 | AG32: 0.4522558923 | AH32: 0.4739393939 | AI32: 0.4948484848 | AJ32: 0.514983165 | AK32: 0.5343434343 | AL32: 0.5529292929 | AM32: 0.5707407407 | AN32: 0.5877777778 | AO32: 0.604040404 | AP32: 0.6195286195 | AQ32: 0.6342424242 | AR32: 0.6481818182 | AS32: 0.6613468013 | AT32: 0.6737373737 | AU32: 0.6853535354 | AV32: 0.6961952862 | AW32: 0.7062626263 | AX32: 0.7155555556 | AY32: 0.7240740741 | AZ32: 0.7318181818 | BA32: 0.7387878788 | BB32: 0.744983165 | BC32: 0.7504040404 | BD32: 0.7550505051 | BE32: 0.7589225589 | BF32: 0.762020202 | BG32: 0.7643434343 | BH32: 0.7658922559 | BI32: 0.7666666667 | BJ32: 0.7666666667 | BL32: 24 | BM32: 0.4427138979 | BN32: 24 | BO32: 0.7937444576
B33: 27 | C33: 0.8454545455 | D33: 27 | E33: 0.8454545455 | P33: 24 | Q33: 0 | R33: 0.03501683502 | S33: 0.06923783287 | T33: 0.1026629936 | U33: 0.1352923171 | V33: 0.1671258035 | W33: 0.1981634527 | X33: 0.2284052648 | Y33: 0.2578512397 | Z33: 0.2865013774 | AA33: 0.314355678 | AB33: 0.3414141414 | AC33: 0.3676767677 | AD33: 0.3931435568 | AE33: 0.4178145087 | AF33: 0.4416896235 | AG33: 0.4647689011 | AH33: 0.4870523416 | AI33: 0.5085399449 | AJ33: 0.529231711 | AK33: 0.54912764 | AL33: 0.5682277319 | AM33: 0.5865319865 | AN33: 0.604040404 | AO33: 0.6207529844 | AP33: 0.6366697276 | AQ33: 0.6517906336 | AR33: 0.6661157025 | AS33: 0.6796449342 | AT33: 0.6923783287 | AU33: 0.7043158861 | AV33: 0.7154576064 | AW33: 0.7258034894 | AX33: 0.7353535354 | AY33: 0.7441077441 | AZ33: 0.7520661157 | BA33: 0.7592286501 | BB33: 0.7655953474 | BC33: 0.7711662075 | BD33: 0.7759412305 | BE33: 0.7799204163 | BF33: 0.7831037649 | BG33: 0.7854912764 | BH33: 0.7870829507 | BI33: 0.7878787879 | BJ33: 0.7878787879 | BL33: 25 | BM33: 0.639871137 | BN33: 25 | BO33: 0.5694413608
B34: 26 | C34: 0.8272727273 | D34: 26 | E34: 0.8272727273 | P34: 25 | Q34: 0 | R34: 0.03591470258 | S34: 0.07101316192 | T34: 0.105295378 | U34: 0.1387613509 | V34: 0.1714110805 | W34: 0.2032445669 | X34: 0.23426181 | Y34: 0.2644628099 | Z34: 0.2938475666 | AA34: 0.32241608 | AB34: 0.3501683502 | AC34: 0.3771043771 | AD34: 0.4032241608 | AE34: 0.4285277013 | AF34: 0.4530149985 | AG34: 0.4766860524 | AH34: 0.4995408632 | AI34: 0.5215794307 | AJ34: 0.5428017549 | AK34: 0.5632078359 | AL34: 0.5827976737 | AM34: 0.6015712682 | AN34: 0.6195286195 | AO34: 0.6366697276 | AP34: 0.6529945924 | AQ34: 0.668503214 | AR34: 0.6831955923 | AS34: 0.6970717274 | AT34: 0.7101316192 | AU34: 0.7223752678 | AV34: 0.7338026732 | AW34: 0.7444138353 | AX34: 0.7542087542 | AY34: 0.7631874299 | AZ34: 0.7713498623 | BA34: 0.7786960514 | BB34: 0.7852259973 | BC34: 0.7909397 | BD34: 0.7958371595 | BE34: 0.7999183757 | BF34: 0.8031833486 | BG34: 0.8056320784 | BH34: 0.8072645648 | BI34: 0.8080808081 | BJ34: 0.8080808081 | BL34: 26 | BM34: 0.06708996845 | BN34: 26 | BO34: 0.521849415
B35: 25 | C35: 0.8080808081 | D35: 25 | E35: 0.8080808081 | P35: 26 | Q35: 0 | R35: 0.03676767677 | S35: 0.07269972452 | T35: 0.1077961433 | U35: 0.142056933 | V35: 0.1754820937 | W35: 0.2080716253 | X35: 0.239825528 | Y35: 0.2707438017 | Z35: 0.3008264463 | AA35: 0.3300734619 | AB35: 0.3584848485 | AC35: 0.3860606061 | AD35: 0.4128007346 | AE35: 0.4387052342 | AF35: 0.4637741047 | AG35: 0.4880073462 | AH35: 0.5114049587 | AI35: 0.5339669421 | AJ35: 0.5556932966 | AK35: 0.576584022 | AL35: 0.5966391185 | AM35: 0.6158585859 | AN35: 0.6342424242 | AO35: 0.6517906336 | AP35: 0.668503214 | AQ35: 0.6843801653 | AR35: 0.6994214876 | AS35: 0.7136271809 | AT35: 0.7269972452 | AU35: 0.7395316804 | AV35: 0.7512304867 | AW35: 0.7620936639 | AX35: 0.7721212121 | AY35: 0.7813131313 | AZ35: 0.7896694215 | BA35: 0.7971900826 | BB35: 0.8038751148 | BC35: 0.8097245179 | BD35: 0.814738292 | BE35: 0.8189164371 | BF35: 0.8222589532 | BG35: 0.8247658402 | BH35: 0.8264370983 | BI35: 0.8272727273 | BJ35: 0.8272727273 | BL35: 27 | BM35: 0.5108495055 | BN35: 27 | BO35: 0.6301717102
B36: 24 | C36: 0.7878787879 | D36: 24 | E36: 0.7878787879 | P36: 27 | Q36: 0 | R36: 0.03757575758 | S36: 0.07429752066 | T36: 0.1101652893 | U36: 0.1451790634 | V36: 0.179338843 | W36: 0.2126446281 | X36: 0.2450964187 | Y36: 0.2766942149 | Z36: 0.3074380165 | AA36: 0.3373278237 | AB36: 0.3663636364 | AC36: 0.3945454545 | AD36: 0.4218732782 | AE36: 0.4483471074 | AF36: 0.4739669421 | AG36: 0.4987327824 | AH36: 0.5226446281 | AI36: 0.5457024793 | AJ36: 0.5679063361 | AK36: 0.5892561983 | AL36: 0.6097520661 | AM36: 0.6293939394 | AN36: 0.6481818182 | AO36: 0.6661157025 | AP36: 0.6831955923 | AQ36: 0.6994214876 | AR36: 0.7147933884 | AS36: 0.7293112948 | AT36: 0.7429752066 | AU36: 0.755785124 | AV36: 0.7677410468 | AW36: 0.7788429752 | AX36: 0.7890909091 | AY36: 0.7984848485 | AZ36: 0.8070247934 | BA36: 0.8147107438 | BB36: 0.8215426997 | BC36: 0.8275206612 | BD36: 0.8326446281 | BE36: 0.8369146006 | BF36: 0.8403305785 | BG36: 0.842892562 | BH36: 0.844600551 | BI36: 0.8454545455 | BJ36: 0.8454545455 | BL36: 28 | BM36: 0.457297882 | BN36: 28 | BO36: 0.460233273
B37: 23 | C37: 0.7666666667 | D37: 23 | E37: 0.7666666667 | P37: 28 | Q37: 0 | R37: 0.03833894501 | S37: 0.07580655035 | T37: 0.112402816 | U37: 0.1481277421 | V37: 0.1829813284 | W37: 0.2169635751 | X37: 0.2500744822 | Y37: 0.2823140496 | Z37: 0.3136822773 | AA37: 0.3441791654 | AB37: 0.3738047138 | AC37: 0.4025589226 | AD37: 0.4304417917 | AE37: 0.4574533211 | AF37: 0.4835935109 | AG37: 0.508862361 | AH37: 0.5332598714 | AI37: 0.5567860422 | AJ37: 0.5794408734 | AK37: 0.6012243649 | AL37: 0.6221365167 | AM37: 0.6421773288 | AN37: 0.6613468013 | AO37: 0.6796449342 | AP37: 0.6970717274 | AQ37: 0.7136271809 | AR37: 0.7293112948 | AS37: 0.744124069 | AT37: 0.7580655035 | AU37: 0.7711355984 | AV37: =VLOOKUP($P37,$D$15:$E$60,2,FALSE)*VLOOKUP(AV$8,$B$15:$C$60,2,FALSE) -> 0.7833343536 | AW37: 0.7946617692 | AX37: 0.8051178451 | AY37: 0.8147025814 | AZ37: 0.823415978 | BA37: 0.8312580349 | BB37: 0.8382287522 | BC37: 0.8443281298 | BD37: 0.8495561677 | BE37: 0.853912866 | BF37: 0.8573982247 | BG37: 0.8600122436 | BH37: 0.861754923 | BI37: 0.8626262626 | BJ37: 0.8626262626 | BL37: 29 | BM37: 0.5884740591 | BN37: 29 | BO37: 0.2210982239
B38: 22 | C38: 0.7444444444 | D38: 22 | E38: 0.7444444444 | P38: 29 | Q38: 0 | R38: 0.03905723906 | S38: 0.07722681359 | T38: 0.1145087236 | U38: 0.1509029691 | V38: 0.18640955 | W38: 0.2210284665 | X38: 0.2547597184 | Y38: 0.2876033058 | Z38: 0.3195592287 | AA38: 0.350627487 | AB38: 0.3808080808 | AC38: 0.4101010101 | AD38: 0.4385062749 | AE38: 0.4660238751 | AF38: 0.4926538108 | AG38: 0.518396082 | AH38: 0.5432506887 | AI38: 0.5672176309 | AJ38: 0.5902969085 | AK38: 0.6124885216 | AL38: 0.6337924702 | AM38: 0.6542087542 | AN38: 0.6737373737 | AO38: 0.6923783287 | AP38: 0.7101316192 | AQ38: 0.7269972452 | AR38: 0.7429752066 | AS38: 0.7580655035 | AT38: 0.7722681359 | AU38: 0.7855831038 | AV38: 0.7980104071 | AW38: 0.8095500459 | AX38: 0.8202020202 | AY38: 0.82996633 | AZ38: 0.8388429752 | BA38: 0.8468319559 | BB38: 0.8539332721 | BC38: 0.8601469238 | BD38: 0.8654729109 | BE38: 0.8699112335 | BF38: 0.8734618916 | BG38: 0.8761248852 | BH38: 0.8779002143 | BI38: 0.8787878788 | BJ38: 0.8787878788 | BL38: 30 | BM38: 0.9660749264 | BN38: 30 | BO38: 0.4411950541
B39: 21 | C39: 0.7212121212 | D39: 21 | E39: 0.7212121212 | P39: 30 | Q39: 0 | R39: 0.03973063973 | S39: 0.07855831038 | T39: 0.1164830119 | U39: 0.1535047444 | V39: 0.1896235078 | W39: 0.2248393021 | X39: 0.2591521273 | Y39: 0.2925619835 | Z39: 0.3250688705 | AA39: 0.3566727885 | AB39: 0.3873737374 | AC39: 0.4171717172 | AD39: 0.4460667279 | AE39: 0.4740587695 | AF39: 0.5011478421 | AG39: 0.5273339455 | AH39: 0.5526170799 | AI39: 0.5769972452 | AJ39: 0.6004744414 | AK39: 0.6230486685 | AL39: 0.6447199265 | AM39: 0.6654882155 | AN39: 0.6853535354 | AO39: 0.7043158861 | AP39: 0.7223752678 | AQ39: 0.7395316804 | AR39: 0.755785124 | AS39: 0.7711355984 | AT39: 0.7855831038 | AU39: 0.79912764 | AV39: 0.8117692072 | AW39: 0.8235078053 | AX39: 0.8343434343 | AY39: 0.8442760943 | AZ39: 0.8533057851 | BA39: 0.8614325069 | BB39: 0.8686562596 | BC39: 0.8749770432 | BD39: 0.8803948577 | BE39: 0.8849097031 | BF39: 0.8885215794 | BG39: 0.8912304867 | BH39: 0.8930364249 | BI39: 0.8939393939 | BJ39: 0.8939393939 | BL39: 31 | BM39: 0.119709009 | BN39: 31 | BO39: 0.1185344319
B40: 20 | C40: 0.696969697 | D40: 20 | E40: 0.696969697 | P40: 31 | Q40: 0 | R40: 0.04035914703 | S40: 0.07980104071 | T40: 0.1183256811 | U40: 0.1559330681 | V40: 0.1926232017 | W40: 0.228396082 | X40: 0.263251709 | Y40: 0.2971900826 | Z40: 0.3302112029 | AA40: 0.3623150699 | AB40: 0.3935016835 | AC40: 0.4237710438 | AD40: 0.4531231507 | AE40: 0.4815580043 | AF40: 0.5090756045 | AG40: 0.5356759514 | AH40: 0.561359045 | AI40: 0.5861248852 | AJ40: 0.6099734721 | AK40: 0.6329048056 | AL40: 0.6549188858 | AM40: 0.6760157127 | AN40: 0.6961952862 | AO40: 0.7154576064 | AP40: 0.7338026732 | AQ40: 0.7512304867 | AR40: 0.7677410468 | AS40: 0.7833343536 | AT40: 0.7980104071 | AU40: 0.8117692072 | AV40: 0.824610754 | AW40: 0.8365350474 | AX40: 0.8475420875 | AY40: 0.8576318743 | AZ40: 0.8668044077 | BA40: 0.8750596878 | BB40: 0.8823977145 | BC40: 0.8888184879 | BD40: 0.894322008 | BE40: 0.8989082747 | BF40: 0.902577288 | BG40: 0.9053290481 | BH40: 0.9071635547 | BI40: 0.9080808081 | BJ40: 0.9080808081 | BL40: 32 | BM40: 0.9845396729 | BN40: 32 | BO40: 0.7233366052
B41: 19 | C41: 0.6717171717 | D41: 19 | E41: 0.6717171717 | P41: 32 | Q41: 0 | R41: 0.04094276094 | S41: 0.08095500459 | T41: 0.1200367309 | U41: 0.15818794 | V41: 0.1954086318 | W41: 0.2316988062 | X41: 0.2670584634 | Y41: 0.3014876033 | Z41: 0.3349862259 | AA41: 0.3675543312 | AB41: 0.3991919192 | AC41: 0.4298989899 | AD41: 0.4596755433 | AE41: 0.4885215794 | AF41: 0.5164370983 | AG41: 0.5434220998 | AH41: 0.569476584 | AI41: 0.594600551 | AJ41: 0.6187940006 | AK41: 0.642056933 | AL41: 0.664389348 | AM41: 0.6857912458 | AN41: 0.7062626263 | AO41: 0.7258034894 | AP41: 0.7444138353 | AQ41: 0.7620936639 | AR41: 0.7788429752 | AS41: 0.7946617692 | AT41: 0.8095500459 | AU41: 0.8235078053 | AV41: 0.8365350474 | AW41: 0.8486317723 | AX41: 0.8597979798 | AY41: 0.87003367 | AZ41: 0.879338843 | BA41: 0.8877134986 | BB41: 0.895157637 | BC41: 0.901671258 | BD41: 0.9072543618 | BE41: 0.9119069483 | BF41: 0.9156290174 | BG41: 0.9184205693 | BH41: 0.9202816039 | BI41: 0.9212121212 | BJ41: 0.9212121212 | BL41: 33 | BM41: 0.8248363951 | BN41: 33 | BO41: 0.106737452
B42: 18 | C42: 0.6454545455 | D42: 18 | E42: 0.6454545455 | P42: 33 | Q42: 0 | R42: 0.04148148148 | S42: 0.08202020202 | T42: 0.1216161616 | U42: 0.1602693603 | V42: 0.197979798 | W42: 0.2347474747 | X42: 0.2705723906 | Y42: 0.3054545455 | Z42: 0.3393939394 | AA42: 0.3723905724 | AB42: 0.4044444444 | AC42: 0.4355555556 | AD42: 0.4657239057 | AE42: 0.4949494949 | AF42: 0.5232323232 | AG42: 0.5505723906 | AH42: 0.576969697 | AI42: 0.6024242424 | AJ42: 0.6269360269 | AK42: 0.6505050505 | AL42: 0.6731313131 | AM42: 0.6948148148 | AN42: 0.7155555556 | AO42: 0.7353535354 | AP42: 0.7542087542 | AQ42: 0.7721212121 | AR42: 0.7890909091 | AS42: 0.8051178451 | AT42: 0.8202020202 | AU42: 0.8343434343 | AV42: 0.8475420875 | AW42: 0.8597979798 | AX42: 0.8711111111 | AY42: 0.8814814815 | AZ42: 0.8909090909 | BA42: 0.8993939394 | BB42: 0.9069360269 | BC42: 0.9135353535 | BD42: 0.9191919192 | BE42: 0.9239057239 | BF42: 0.9276767677 | BG42: 0.9305050505 | BH42: 0.9323905724 | BI42: 0.9333333333 | BJ42: 0.9333333333 | BL42: 34 | BM42: 0.2762760872 | BN42: 34 | BO42: 0.6635092445
B43: 17 | C43: 0.6181818182 | D43: 17 | E43: 0.6181818182 | P43: 34 | Q43: 0 | R43: 0.04197530864 | S43: 0.082996633 | T43: 0.1230639731 | U43: 0.1621773288 | V43: 0.2003367003 | W43: 0.2375420875 | X43: 0.2737934905 | Y43: 0.3090909091 | Z43: 0.3434343434 | AA43: 0.3768237935 | AB43: 0.4092592593 | AC43: 0.4407407407 | AD43: 0.4712682379 | AE43: 0.5008417508 | AF43: 0.5294612795 | AG43: =VLOOKUP($P43,$D$15:$E$60,2,FALSE)*VLOOKUP(AG$8,$B$15:$C$60,2,FALSE) -> 0.5571268238 | AH43: 0.5838383838 | AI43: 0.6095959596 | AJ43: 0.6343995511 | AK43: 0.6582491582 | AL43: 0.6811447811 | AM43: 0.7030864198 | AN43: 0.7240740741 | AO43: 0.7441077441 | AP43: 0.7631874299 | AQ43: 0.7813131313 | AR43: 0.7984848485 | AS43: 0.8147025814 | AT43: 0.82996633 | AU43: 0.8442760943 | AV43: 0.8576318743 | AW43: 0.87003367 | AX43: 0.8814814815 | AY43: 0.8919753086 | AZ43: 0.9015151515 | BA43: 0.9101010101 | BB43: 0.9177328844 | BC43: 0.9244107744 | BD43: 0.9301346801 | BE43: 0.9349046016 | BF43: 0.9387205387 | BG43: 0.9415824916 | BH43: 0.9434904602 | BI43: 0.9444444444 | BJ43: 0.9444444444 | BL43: 35 | BM43: 0.2253223487 | BN43: 35 | BO43: 0.203735261
B44: 16 | C44: 0.5898989899 | D44: 16 | E44: 0.5898989899 | P44: 35 | Q44: 0 | R44: 0.04242424242 | S44: 0.08388429752 | T44: 0.1243801653 | U44: 0.1639118457 | V44: 0.2024793388 | W44: 0.2400826446 | X44: 0.2767217631 | Y44: 0.3123966942 | Z44: 0.347107438 | AA44: 0.3808539945 | AB44: 0.4136363636 | AC44: 0.4454545455 | AD44: 0.4763085399 | AE44: 0.5061983471 | AF44: 0.5351239669 | AG44: 0.5630853994 | AH44: 0.5900826446 | AI44: 0.6161157025 | AJ44: 0.641184573 | AK44: 0.6652892562 | AL44: 0.6884297521 | AM44: 0.7106060606 | AN44: 0.7318181818 | AO44: 0.7520661157 | AP44: 0.7713498623 | AQ44: 0.7896694215 | AR44: 0.8070247934 | AS44: 0.823415978 | AT44: 0.8388429752 | AU44: 0.8533057851 | AV44: 0.8668044077 | AW44: 0.879338843 | AX44: 0.8909090909 | AY44: 0.9015151515 | AZ44: 0.9111570248 | BA44: 0.9198347107 | BB44: 0.9275482094 | BC44: 0.9342975207 | BD44: 0.9400826446 | BE44: 0.9449035813 | BF44: 0.9487603306 | BG44: 0.9516528926 | BH44: 0.9535812672 | BI44: 0.9545454545 | BJ44: 0.9545454545 | BL44: 36 | BM44: 0.6866348034 | BN44: 36 | BO44: 0.2778482469
B45: 15 | C45: 0.5606060606 | D45: 15 | E45: 0.5606060606 | P45: 36 | Q45: 0 | R45: 0.04282828283 | S45: 0.08468319559 | T45: 0.1255647383 | U45: 0.1654729109 | V45: 0.2044077135 | W45: 0.242369146 | X45: 0.2793572084 | Y45: 0.3153719008 | Z45: 0.3504132231 | AA45: 0.3844811754 | AB45: 0.4175757576 | AC45: 0.4496969697 | AD45: 0.4808448118 | AE45: 0.5110192837 | AF45: 0.5402203857 | AG45: 0.5684481175 | AH45: 0.5957024793 | AI45: 0.6219834711 | AJ45: 0.6472910927 | AK45: 0.6716253444 | AL45: 0.6949862259 | AM45: 0.7173737374 | AN45: 0.7387878788 | AO45: 0.7592286501 | AP45: 0.7786960514 | AQ45: 0.7971900826 | AR45: 0.8147107438 | AS45: 0.8312580349 | AT45: 0.8468319559 | AU45: 0.8614325069 | AV45: 0.8750596878 | AW45: 0.8877134986 | AX45: 0.8993939394 | AY45: 0.9101010101 | AZ45: 0.9198347107 | BA45: 0.9285950413 | BB45: 0.9363820018 | BC45: 0.9431955923 | BD45: 0.9490358127 | BE45: 0.953902663 | BF45: 0.9577961433 | BG45: 0.9607162534 | BH45: 0.9626629936 | BI45: 0.9636363636 | BJ45: 0.9636363636 | BL45: 37 | BM45: 0.3983927378 | BN45: 37 | BO45: 0.4072935647
B46: 14 | C46: 0.5303030303 | D46: 14 | E46: 0.5303030303 | P46: 37 | Q46: 0 | R46: 0.04318742985 | S46: 0.08539332721 | T46: 0.1266176921 | U46: 0.1668605244 | V46: 0.2061218243 | W46: 0.2444015917 | X46: 0.2816998265 | Y46: 0.3180165289 | Z46: 0.3533516988 | AA46: 0.3877053362 | AB46: 0.4210774411 | AC46: 0.4534680135 | AD46: 0.4848770534 | AE46: 0.5153045608 | AF46: 0.5447505357 | AG46: 0.5732149781 | AH46: 0.600697888 | AI46: 0.6271992654 | AJ46: 0.6527191103 | AK46: 0.6772574227 | AL46: 0.7008142026 | AM46: 0.7233894501 | AN46: 0.744983165 | AO46: 0.7655953474 | AP46: 0.7852259973 | AQ46: 0.8038751148 | AR46: 0.8215426997 | AS46: 0.8382287522 | AT46: 0.8539332721 | AU46: 0.8686562596 | AV46: 0.8823977145 | AW46: 0.895157637 | AX46: 0.9069360269 | AY46: 0.9177328844 | AZ46: 0.9275482094 | BA46: 0.9363820018 | BB46: 0.9442342618 | BC46: 0.9511049893 | BD46: 0.9569941843 | BE46: 0.9619018468 | BF46: 0.9658279767 | BG46: 0.9687725742 | BH46: 0.9707356392 | BI46: 0.9717171717 | BJ46: 0.9717171717 | BL46: 38 | BM46: 0.04152167561 | BN46: 38 | BO46: 0.9719527387
B47: 13 | C47: 0.498989899 | D47: 13 | E47: 0.498989899 | P47: 38 | Q47: 0 | R47: 0.0435016835 | S47: 0.08601469238 | T47: 0.1275390266 | U47: 0.1680746863 | V47: 0.2076216713 | W47: 0.2461799816 | X47: 0.2837496174 | Y47: 0.3203305785 | Z47: 0.355922865 | AA47: 0.3905264769 | AB47: 0.4241414141 | AC47: 0.4567676768 | AD47: 0.4884052648 | AE47: 0.5190541781 | AF47: 0.5487144169 | AG47: 0.577385981 | AH47: 0.6050688705 | AI47: 0.6317630854 | AJ47: 0.6574686257 | AK47: 0.6821854913 | AL47: 0.7059136823 | AM47: 0.7286531987 | AN47: 0.7504040404 | AO47: 0.7711662075 | AP47: 0.7909397 | AQ47: 0.8097245179 | AR47: 0.8275206612 | AS47: 0.8443281298 | AT47: 0.8601469238 | AU47: 0.8749770432 | AV47: 0.8888184879 | AW47: 0.901671258 | AX47: 0.9135353535 | AY47: 0.9244107744 | AZ47: 0.9342975207 | BA47: 0.9431955923 | BB47: 0.9511049893 | BC47: 0.9580257117 | BD47: 0.9639577594 | BE47: 0.9689011325 | BF47: 0.972855831 | BG47: 0.9758218549 | BH47: 0.9777992042 | BI47: 0.9787878788 | BJ47: 0.9787878788 | BL47: 39 | BM47: 0.4386616509 | BN47: 39 | BO47: 0.6767929031
B48: 12 | C48: 0.4666666667 | D48: 12 | E48: 0.4666666667 | P48: 39 | Q48: 0 | R48: 0.04377104377 | S48: 0.08654729109 | T48: 0.128328742 | U48: 0.1691153964 | V48: 0.2089072544 | W48: 0.2477043159 | X48: 0.285506581 | Y48: 0.3223140496 | Z48: 0.3581267218 | AA48: 0.3929445975 | AB48: 0.4267676768 | AC48: 0.4595959596 | AD48: 0.491429446 | AE48: 0.5222681359 | AF48: 0.5521120294 | AG48: 0.5809611264 | AH48: 0.608815427 | AI48: 0.6356749311 | AJ48: 0.6615396388 | AK48: 0.68640955 | AL48: 0.7102846648 | AM48: 0.7331649832 | AN48: 0.7550505051 | AO48: 0.7759412305 | AP48: 0.7958371595 | AQ48: 0.814738292 | AR48: 0.8326446281 | AS48: 0.8495561677 | AT48: 0.8654729109 | AU48: 0.8803948577 | AV48: 0.894322008 | AW48: 0.9072543618 | AX48: 0.9191919192 | AY48: 0.9301346801 | AZ48: 0.9400826446 | BA48: 0.9490358127 | BB48: 0.9569941843 | BC48: 0.9639577594 | BD48: 0.9699265381 | BE48: 0.9749005204 | BF48: 0.9788797062 | BG48: 0.9818640955 | BH48: 0.9838536884 | BI48: 0.9848484848 | BJ48: 0.9848484848 | BL48: 40 | BM48: 0.4914161655 | BN48: 40 | BO48: 0.9409915839
B49: 11 | C49: 0.4333333333 | D49: 11 | E49: 0.4333333333 | P49: 40 | Q49: 0 | R49: =VLOOKUP($P49,$D$15:$E$60,2,FALSE)*VLOOKUP(R$8,$B$15:$C$60,2,FALSE) -> 0.04399551066 | S49: 0.08699112335 | T49: 0.1289868381 | U49: 0.1699826548 | V49: 0.2099785736 | W49: 0.2489745944 | X49: 0.2869707173 | Y49: 0.3239669421 | Z49: 0.3599632691 | AA49: 0.394959698 | AB49: 0.428956229 | AC49: 0.461952862 | AD49: 0.493949597 | AE49: 0.524946434 | AF49: 0.5549433731 | AG49: 0.5839404142 | AH49: 0.6119375574 | AI49: 0.6389348026 | AJ49: 0.6649321498 | AK49: 0.689929599 | AL49: 0.7139271503 | AM49: 0.7369248036 | AN49: 0.7589225589 | AO49: 0.7799204163 | AP49: 0.7999183757 | AQ49: 0.8189164371 | AR49: 0.8369146006 | AS49: 0.853912866 | AT49: 0.8699112335 | AU49: 0.8849097031 | AV49: 0.8989082747 | AW49: 0.9119069483 | AX49: 0.9239057239 | AY49: 0.9349046016 | AZ49: 0.9449035813 | BA49: 0.953902663 | BB49: 0.9619018468 | BC49: 0.9689011325 | BD49: 0.9749005204 | BE49: 0.9799000102 | BF49: 0.9838996021 | BG49: 0.986899296 | BH49: 0.9888990919 | BI49: 0.9898989899 | BJ49: 0.9898989899 | BL49: 41 | BM49: 0.2311041849 | BN49: 41 | BO49: 0.1321220761
B50: 10 | C50: 0.398989899 | D50: 10 | E50: 0.398989899 | P50: 41 | Q50: 0 | R50: 0.04417508418 | S50: 0.08734618916 | T50: 0.129513315 | U50: 0.1706764616 | V50: 0.210835629 | W50: 0.2499908173 | X50: 0.2881420263 | Y50: 0.3252892562 | Z50: 0.3614325069 | AA50: 0.3965717784 | AB50: 0.4307070707 | AC50: 0.4638383838 | AD50: 0.4959657178 | AE50: 0.5270890725 | AF50: 0.5572084481 | AG50: 0.5863238445 | AH50: 0.6144352617 | AI50: 0.6415426997 | AJ50: 0.6676461586 | AK50: 0.6927456382 | AL50: 0.7168411387 | AM50: 0.7399326599 | AN50: 0.762020202 | AO50: 0.7831037649 | AP50: 0.8031833486 | AQ50: 0.8222589532 | AR50: 0.8403305785 | AS50: 0.8573982247 | AT50: 0.8734618916 | AU50: 0.8885215794 | AV50: 0.902577288 | AW50: 0.9156290174 | AX50: 0.9276767677 | AY50: 0.9387205387 | AZ50: 0.9487603306 | BA50: 0.9577961433 | BB50: 0.9658279767 | BC50: 0.972855831 | BD50: 0.9788797062 | BE50: 0.9838996021 | BF50: 0.9879155188 | BG50: 0.9909274564 | BH50: 0.9929354148 | BI50: 0.9939393939 | BJ50: 0.9939393939 | BL50: 42 | BM50: 0.4943205703 | BN50: 42 | BO50: 0.8390602546
B51: 9 | C51: 0.3636363636 | D51: 9 | E51: 0.3636363636 | P51: 42 | Q51: 0 | R51: 0.04430976431 | S51: 0.08761248852 | T51: 0.1299081726 | U51: 0.1711968167 | V51: 0.2114784206 | W51: 0.2507529844 | X51: 0.2890205081 | Y51: 0.3262809917 | Z51: 0.3625344353 | AA51: 0.3977808387 | AB51: 0.432020202 | AC51: 0.4652525253 | AD51: 0.4974778084 | AE51: 0.5286960514 | AF51: 0.5589072544 | AG51: 0.5881114172 | AH51: 0.6163085399 | AI51: 0.6434986226 | AJ51: 0.6696816651 | AK51: 0.6948576676 | AL51: 0.7190266299 | AM51: 0.7421885522 | AN51: 0.7643434343 | AO51: 0.7854912764 | AP51: 0.8056320784 | AQ51: 0.8247658402 | AR51: 0.842892562 | AS51: 0.8600122436 | AT51: 0.8761248852 | AU51: 0.8912304867 | AV51: 0.9053290481 | AW51: 0.9184205693 | AX51: 0.9305050505 | AY51: 0.9415824916 | AZ51: 0.9516528926 | BA51: 0.9607162534 | BB51: 0.9687725742 | BC51: 0.9758218549 | BD51: 0.9818640955 | BE51: 0.986899296 | BF51: 0.9909274564 | BG51: 0.9939485767 | BH51: 0.9959626569 | BI51: 0.996969697 | BJ51: 0.996969697 | BL51: 43 | BM51: 0.5397985559 | BN51: 43 | BO51: 0.8161294438
B52: 8 | C52: 0.3272727273 | D52: 8 | E52: 0.3272727273 | P52: 43 | Q52: 0 | R52: 0.04439955107 | S52: 0.08779002143 | T52: 0.1301714111 | U52: 0.17154372 | V52: 0.2119069483 | W52: 0.2512610958 | X52: 0.2896061626 | Y52: 0.3269421488 | Z52: 0.3632690542 | AA52: 0.3985868789 | AB52: 0.4328956229 | AC52: 0.4661952862 | AD52: 0.4984858688 | AE52: 0.5297673707 | AF52: 0.5600397919 | AG52: 0.5893031323 | AH52: 0.6175573921 | AI52: 0.6448025712 | AJ52: 0.6710386695 | AK52: 0.6962656872 | AL52: 0.7204836241 | AM52: 0.7436924804 | AN52: 0.7658922559 | AO52: 0.7870829507 | AP52: 0.8072645648 | AQ52: 0.8264370983 | AR52: 0.844600551 | AS52: 0.861754923 | AT52: 0.8779002143 | AU52: 0.8930364249 | AV52: 0.9071635547 | AW52: 0.9202816039 | AX52: 0.9323905724 | AY52: 0.9434904602 | AZ52: 0.9535812672 | BA52: 0.9626629936 | BB52: 0.9707356392 | BC52: 0.9777992042 | BD52: 0.9838536884 | BE52: 0.9888990919 | BF52: 0.9929354148 | BG52: 0.9959626569 | BH52: 0.9979808183 | BI52: 0.998989899 | BJ52: 0.998989899 | BL52: 44 | BM52: 0.4607151426 | BN52: 44 | BO52: 0.1831960491
B53: 7 | C53: 0.2898989899 | D53: 7 | E53: 0.2898989899 | P53: 44 | Q53: 0 | R53: 0.04444444444 | S53: 0.08787878788 | T53: 0.1303030303 | U53: 0.1717171717 | V53: 0.2121212121 | W53: 0.2515151515 | X53: 0.2898989899 | Y53: 0.3272727273 | Z53: 0.3636363636 | AA53: 0.398989899 | AB53: 0.4333333333 | AC53: 0.4666666667 | AD53: 0.498989899 | AE53: 0.5303030303 | AF53: 0.5606060606 | AG53: 0.5898989899 | AH53: 0.6181818182 | AI53: 0.6454545455 | AJ53: 0.6717171717 | AK53: 0.696969697 | AL53: 0.7212121212 | AM53: 0.7444444444 | AN53: 0.7666666667 | AO53: 0.7878787879 | AP53: 0.8080808081 | AQ53: 0.8272727273 | AR53: 0.8454545455 | AS53: 0.8626262626 | AT53: 0.8787878788 | AU53: 0.8939393939 | AV53: 0.9080808081 | AW53: 0.9212121212 | AX53: 0.9333333333 | AY53: 0.9444444444 | AZ53: 0.9545454545 | BA53: 0.9636363636 | BB53: 0.9717171717 | BC53: 0.9787878788 | BD53: 0.9848484848 | BE53: 0.9898989899 | BF53: 0.9939393939 | BG53: 0.996969697 | BH53: 0.998989899 | BI53: 1 | BJ53: 1 | BL53: 45 | BM53: 0.5073545626 | BN53: 45 | BO53: 0.7697399454
B54: 6 | C54: 0.2515151515 | D54: 6 | E54: 0.2515151515 | P54: 45 | Q54: 0 | R54: 0.04444444444 | S54: 0.08787878788 | T54: 0.1303030303 | U54: 0.1717171717 | V54: 0.2121212121 | W54: 0.2515151515 | X54: 0.2898989899 | Y54: 0.3272727273 | Z54: 0.3636363636 | AA54: 0.398989899 | AB54: 0.4333333333 | AC54: 0.4666666667 | AD54: 0.498989899 | AE54: 0.5303030303 | AF54: 0.5606060606 | AG54: 0.5898989899 | AH54: 0.6181818182 | AI54: 0.6454545455 | AJ54: 0.6717171717 | AK54: 0.696969697 | AL54: 0.7212121212 | AM54: 0.7444444444 | AN54: 0.7666666667 | AO54: 0.7878787879 | AP54: 0.8080808081 | AQ54: 0.8272727273 | AR54: 0.8454545455 | AS54: 0.8626262626 | AT54: 0.8787878788 | AU54: 0.8939393939 | AV54: =VLOOKUP($P54,$D$15:$E$60,2,FALSE)*VLOOKUP(AV$8,$B$15:$C$60,2,FALSE) -> 0.9080808081 | AW54: 0.9212121212 | AX54: 0.9333333333 | AY54: 0.9444444444 | AZ54: 0.9545454545 | BA54: 0.9636363636 | BB54: 0.9717171717 | BC54: 0.9787878788 | BD54: 0.9848484848 | BE54: 0.9898989899 | BF54: 0.9939393939 | BG54: 0.996969697 | BH54: 0.998989899 | BI54: 1 | BJ54: 1
B55: 5 | C55: 0.2121212121 | D55: 5 | E55: 0.2121212121
B56: 4 | C56: 0.1717171717 | D56: 4 | E56: 0.1717171717 | P56: Probabilidad de aprobar por tema estudiado
B57: 3 | C57: 0.1303030303 | D57: 3 | E57: 0.1303030303 | Q57: Temas que te sabes parte A
B58: 2 | C58: 0.08787878788 | D58: 2 | E58: 0.08787878788 | Q58: 0 | R58: 1 | S58: 2 | T58: 3 | U58: 4 | V58: 5 | W58: 6 | X58: 7 | Y58: 8 | Z58: 9 | AA58: 10 | AB58: 11 | AC58: 12 | AD58: 13 | AE58: 14 | AF58: 15 | AG58: 16 | AH58: 17 | AI58: 18 | AJ58: 19 | AK58: 20 | AL58: 21 | AM58: 22 | AN58: 23 | AO58: 24 | AP58: 25 | AQ58: 26 | AR58: 27 | AS58: 28 | AT58: 29 | AU58: 30 | AV58: 31 | AW58: 32 | AX58: 33 | AY58: 34 | AZ58: 35 | BA58: 36 | BB58: 37 | BC58: 38 | BD58: 39 | BE58: 40 | BF58: 41 | BG58: 42 | BH58: 43 | BI58: 44 | BJ58: 45
B59: 1 | C59: 0.04444444444 | D59: 1 | E59: 0.04444444444 | O59: Temas que te sabes parte B | P59: 0 | Q59: =IFERROR((VLOOKUP($P59,$D$15:$E$60,2,FALSE)*VLOOKUP(Q$8,$B$15:$C$60,2,FALSE))/($P59+Q$58),0) -> 0 | R59: =IFERROR((VLOOKUP($P59,$D$15:$E$60,2,FALSE)*VLOOKUP(R$8,$B$15:$C$60,2,FALSE))/($P59+R$58),0) -> 0 | S59: 0 | T59: 0 | U59: 0 | V59: 0 | W59: 0 | X59: 0 | Y59: 0 | Z59: 0 | AA59: 0 | AB59: 0 | AC59: 0 | AD59: 0 | AE59: 0 | AF59: 0 | AG59: 0 | AH59: 0 | AI59: 0 | AJ59: 0 | AK59: 0 | AL59: 0 | AM59: 0 | AN59: 0 | AO59: 0 | AP59: 0 | AQ59: 0 | AR59: 0 | AS59: 0 | AT59: 0 | AU59: 0 | AV59: 0 | AW59: 0 | AX59: 0 | AY59: 0 | AZ59: 0 | BA59: 0 | BB59: 0 | BC59: 0 | BD59: 0 | BE59: 0 | BF59: 0 | BG59: 0 | BH59: 0 | BI59: 0 | BJ59: 0
B60: 0 | C60: 0 | D60: 0 | E60: 0 | P60: 1 | Q60: =IFERROR((VLOOKUP($P60,$D$15:$E$60,2,FALSE)*VLOOKUP(Q$8,$B$15:$C$60,2,FALSE))/($P60+Q$58),0) -> 0 | R60: 0.000987654321 | S60: 0.001301907969 | T60: 0.001447811448 | U60: 0.00152637486 | V60: 0.001571268238 | W60: 0.001596921597 | X60: 0.001610549944 | Y60: 0.001616161616 | Z60: 0.001616161616 | AA60: 0.0016120804 | AB60: 0.001604938272 | AC60: 0.001595441595 | AD60: 0.001584094917 | AE60: 0.001571268238 | AF60: 0.001557239057 | AG60: 0.001542219581 | AH60: 0.00152637486 | AI60: 0.001509835194 | AJ60: 0.001492704826 | AK60: 0.001475068142 | AL60: 0.001456994184 | AM60: 0.001438539989 | AN60: 0.001419753086 | AO60: 0.001400673401 | AP60: 0.001381334715 | AQ60: 0.001361765806 | AR60: 0.001341991342 | AS60: 0.001322032586 | AT60: 0.001301907969 | AU60: 0.00128163354 | AV60: 0.001261223345 | AW60: 0.001240689726 | AX60: 0.001220043573 | AY60: 0.001199294533 | AZ60: 0.001178451178 | BA60: 0.001157521158 | BB60: 0.001136511312 | BC60: 0.001115427782 | BD60: 0.001094276094 | BE60: 0.001073061236 | BF60: 0.001051787718 | BG60: 0.001030459635 | BH60: 0.001009080706 | BI60: 0.000987654321 | BJ60: 0.0009661835749
P61: 2 | Q61: 0 | R61: 0.001301907969 | S61: 0.00193067034 | T61: 0.002290174472 | U61: 0.002515049485 | V61: 0.002662993572 | W61: 0.002762855831 | X61: 0.002830663538 | Y61: 0.002876033058 | Z61: 0.002905083897 | AA61: 0.002921895725 | AB61: 0.002929292929 | AC61: 0.002929292929 | AD61: 0.002923375166 | AE61: 0.002912649219 | AF61: 0.002897963593 | AG61: 0.002879978234 | AH61: 0.002859214151 | AI61: 0.002836088154 | AJ61: 0.002810937659 | AK61: 0.002784038734 | AL61: 0.002755619435 | AM61: 0.002725869809 | AN61: 0.002694949495 | AO61: 0.002662993572 | AP61: 0.002630117108 | AQ61: 0.002596418733 | AR61: 0.002561983471 | AS61: 0.002526885012 | AT61: 0.002491187535 | AU61: 0.002454947199 | AV61: 0.002418213355 | AW61: 0.002381029547 | AX61: 0.002343434343 | AY61: 0.002305462028 | AZ61: 0.002267143176 | BA61: 0.002228505147 | BB61: 0.002189572493 | BC61: 0.002150367309 | BD61: 0.002110909539 | BE61: 0.002071217223 | BF61: 0.002031306725 | BG61: 0.001991192921 | BH61: 0.001950889365 | BI61: 0.001910408432 | BJ61: 0.001869761444
P62: 3 | Q62: 0 | R62: 0.001447811448 | S62: 0.002290174472 | T62: 0.002829813284 | U62: 0.003196466833 | V62: 0.003455004591 | W62: 0.003641465157 | X62: 0.003777471687 | Y62: 0.003876784373 | Z62: 0.003948576676 | AA62: 0.003999199454 | AB62: 0.004033189033 | AC62: 0.004053872054 | AD62: 0.004063743496 | AE62: 0.004064711284 | AF62: 0.004058259361 | AG62: 0.004045559261 | AH62: 0.004027548209 | AI62: 0.004004984914 | AJ62: 0.003978490136 | AK62: 0.003948576676 | AL62: 0.00391567187 | AM62: 0.00388013468 | AN62: 0.003842268842 | AO62: 0.003802333095 | AP62: 0.003760549215 | AQ62: 0.003717108388 | AR62: 0.003672176309 | AS62: 0.003625897292 | AT62: 0.003578397612 | AU62: 0.003529788241 | AV62: 0.00348016709 | AW62: 0.003429620884 | AX62: 0.003378226712 | AY62: 0.003326053326 | AZ62: 0.003273162244 | BA62: 0.003219608674 | BB62: 0.003165442302 | BC62: 0.003110707967 | BD62: 0.003055446237 | BE62: 0.002999693909 | BF62: 0.002943484431 | BG62: 0.002886848281 | BH62: 0.002829813284 | BI62: 0.0027724049 | BJ62: 0.002714646465
P63: 4 | Q63: 0 | R63: 0.00152637486 | S63: 0.002515049485 | T63: 0.003196466833 | U63: 0.003685848383 | V63: 0.004047206067 | W63: 0.004318947046 | X63: 0.004525512239 | Y63: 0.004683195592 | Z63: 0.004803277531 | AA63: 0.0048938155 | AB63: 0.004960718294 | AC63: 0.005008417508 | AD63: 0.00504030201 | AE63: 0.005059007584 | AF63: 0.005066615114 | AG63: 0.005064789307 | AH63: 0.005054877782 | AI63: 0.005037983137 | AJ63: 0.005015016214 | AK63: 0.004986736047 | AL63: 0.004953780227 | AM63: 0.00491668825 | AN63: 0.004875919691 | AO63: 0.004831868468 | AP63: 0.004784874168 | AQ63: 0.004735231099 | AR63: 0.004683195592 | AS63: 0.00462899194 | AT63: 0.004572817245 | AU63: 0.004514845424 | AV63: 0.004455230516 | AW63: 0.004394109445 | AX63: 0.004331604332 | AY63: 0.004267824443 | AZ63: 0.004202867839 | BA63: 0.004136822773 | BB63: 0.004069768889 | BC63: 0.004001778244 | BD63: 0.003932916195 | BE63: 0.003863242155 | BF63: 0.003792810257 | BG63: 0.003721669927 | BH63: 0.003649866384 | BI63: 0.003577441077 | BJ63: 0.003504432076
P64: 5 | Q64: 0 | R64: 0.001571268238 | S64: 0.002662993572 | T64: 0.003455004591 | U64: 0.004047206067 | V64: 0.004499540863 | W64: 0.004850154437 | X64: 0.005124477094 | Y64: 0.005340114431 | Z64: 0.005509641873 | AA64: 0.0056422814 | AB64: 0.005744949495 | AC64: 0.005822935235 | AD64: 0.005880352345 | AE64: 0.005920448504 | AF64: 0.005945821855 | AG64: 0.005958575656 | AH64: 0.005960430754 | AI64: 0.00595280872 | AJ64: 0.005936894194 | AK64: 0.005913682277 | AL64: 0.005884014975 | AM64: 0.005848609552 | AN64: 0.005808080808 | AO64: 0.005762958741 | AP64: 0.005713702683 | AQ64: 0.005660712699 | AR64: 0.005604338843 | AS64: 0.00554488874 | AT64: 0.005482633825 | AU64: 0.005417814509 | AV64: 0.005350644492 | AW64: 0.005281314372 | AX64: 0.005209994684 | AY64: 0.00513683847 | AZ64: 0.005061983471 | BA64: 0.004985553988 | BB64: 0.004907662483 | BC64: 0.004828410959 | BD64: 0.004747892145 | BE64: 0.004666190525 | BF64: 0.00458338324 | BG64: 0.004499540863 | BH64: 0.004414728089 | BI64: 0.004329004329 | BJ64: 0.004242424242
P65: 6 | Q65: 0 | R65: =IFERROR((VLOOKUP($P65,$D$15:$E$60,2,FALSE)*VLOOKUP(R$8,$B$15:$C$60,2,FALSE))/($P65+R$58),0) -> 0.001596921597 | S65: 0.002762855831 | T65: 0.003641465157 | U65: 0.004318947046 | V65: 0.004850154437 | W65: 0.005271655953 | X65: 0.005608768336 | Y65: 0.00587957497 | Z65: 0.006097337006 | AA65: 0.006272000306 | AB65: 0.006411170529 | AC65: 0.006520763187 | AD65: 0.006605448424 | AE65: 0.006668962351 | AF65: 0.006714329442 | AG65: 0.006744024265 | AH65: 0.006760091029 | AI65: 0.006764233242 | AJ65: 0.006757881849 | AK65: 0.006742247651 | AL65: 0.006718362072 | AM65: 0.006687109187 | AN65: 0.006649251132 | AO65: 0.006605448424 | AP65: 0.006556276351 | AQ65: 0.006502238292 | AR65: 0.006443776609 | AS65: 0.006381281622 | AT65: 0.006315099042 | AU65: 0.00624553617 | AV65: 0.006172867082 | AW65: 0.006097337006 | AX65: 0.006019166019 | AY65: 0.005938552189 | AZ65: 0.005855674259 | BA65: 0.005770693953 | BB65: 0.005683757946 | BC65: 0.005594999583 | BD65: 0.005504540353 | BE65: 0.005412491183 | BF65: 0.005318953559 | BG65: 0.005224020508 | BH65: 0.005127777465 | BI65: 0.00503030303 | BJ65: 0.004931669638
P66: 7 | Q66: 0 | R66: 0.001610549944 | S66: 0.002830663538 | T66: 0.003777471687 | U66: 0.004525512239 | V66: 0.005124477094 | W66: 0.005608768336 | X66: 0.006002958882 | Y66: 0.006325068871 | Z66: 0.006588613407 | AA66: 0.00680392757 | AB66: 0.006979049757 | AC66: 0.007120326068 | AD66: 0.007232833384 | AE66: 0.007320681563 | AF66: 0.007387233214 | AG66: 0.007435266144 | AH66: 0.007467095194 | AI66: 0.00748466483 | AJ66: 0.007489620368 | AK66: 0.007483363376 | AL66: 0.007467095194 | AM66: 0.007441851465 | AN66: 0.007408529742 | AO66: 0.007367911767 | AP66: 0.007320681563 | AQ66: 0.007267440243 | AR66: 0.007208718198 | AS66: 0.007144985206 | AT66: 0.007076658844 | AU66: 0.00700411155 | AV66: 0.006927676553 | AW66: 0.006847652908 | AX66: 0.006764309764 | AY66: 0.006677890011 | AZ66: 0.006588613407 | BA66: 0.006496679266 | BB66: 0.006402268785 | BC66: 0.006305547053 | BD66: 0.006206664804 | BE66: 0.006105759942 | BF66: 0.006002958882 | BG66: 0.005898377717 | BH66: 0.005792123253 | BI66: 0.00568429392 | BJ66: 0.005574980575
P67: 8 | Q67: 0 | R67: 0.001616161616 | S67: 0.002876033058 | T67: 0.003876784373 | U67: 0.004683195592 | V67: 0.005340114431 | W67: 0.00587957497 | X67: 0.006325068871 | Y67: 0.006694214876 | Z67: 0.007000486145 | AA67: 0.0072543618 | AB67: 0.007464114833 | AC67: 0.007636363636 | AD67: 0.007776465958 | AE67: 0.007888805409 | AF67: 0.007977003234 | AG67: 0.008044077135 | AH67: 0.008092561983 | AI67: 0.00812460267 | AJ67: 0.008142026324 | AK67: 0.008146399055 | AL67: 0.00813907096 | AM67: 0.008121212121 | AN67: 0.008093841642 | AO67: 0.00805785124 | AP67: 0.008014024543 | AQ67: 0.00796305299 | AR67: 0.007905548996 | AS67: 0.007842056933 | AT67: 0.007773062319 | AU67: 0.007698999565 | AV67: 0.007620258529 | AW67: 0.007537190083 | AX67: 0.007450110865 | AY67: 0.007359307359 | AZ67: 0.0072650394 | BA67: 0.007167543201 | BB67: 0.007067033976 | BC67: 0.006963708229 | BD67: 0.006857745736 | BE67: 0.006749311295 | BF67: 0.006638556249 | BG67: 0.006525619835 | BH67: 0.006410630368 | BI67: 0.006293706294 | BJ67: 0.006174957118
P68: 9 | Q68: 0 | R68: 0.001616161616 | S68: 0.002905083897 | T68: 0.003948576676 | U68: 0.004803277531 | V68: 0.005509641873 | W68: 0.006097337006 | X68: 0.006588613407 | Y68: 0.007000486145 | Z68: 0.007346189164 | AA68: 0.007636170316 | AB68: 0.007878787879 | AC68: 0.008080808081 | AD68: 0.008247766925 | AE68: 0.008384237633 | AF68: 0.008494031221 | AG68: 0.008580348944 | AH68: 0.008645899555 | AI68: 0.008692990511 | AJ68: 0.008723599633 | AK68: 0.008739431937 | AL68: 0.008741965106 | AM68: 0.008732486152 | AN68: 0.008712121212 | AO68: 0.008681859922 | AP68: 0.008642575487 | AQ68: 0.008595041322 | AR68: 0.008539944904 | AS68: 0.008477899387 | AT68: 0.008409453386 | AU68: 0.008335099244 | AV68: 0.008255280073 | AW68: 0.008170395754 | AX68: 0.008080808081 | AY68: 0.007986845196 | AZ68: 0.007888805409 | BA68: 0.007786960514 | BB68: 0.00768155867 | BC68: 0.007572826915 | BD68: 0.00746097337 | BE68: 0.007346189164 | BF68: 0.007228650138 | BG68: 0.007108518338 | BH68: 0.00698594335 | BI68: 0.006861063465 | BJ68: 0.006734006734
P69: 10 | Q69: 0 | R69: 0.0016120804 | S69: 0.002921895725 | T69: 0.003999199454 | U69: 0.0048938155 | V69: 0.0056422814 | W69: 0.006272000306 | X69: 0.00680392757 | Y69: 0.0072543618 | Z69: 0.007636170316 | AA69: 0.007959646975 | AB69: 0.0082331249 | AC69: 0.0084634221 | AD69: 0.008656170843 | AE69: 0.008816064687 | AF69: 0.00894704622 | AG69: 0.009052451477 | AH69: 0.009135122266 | AI69: 0.009197494425 | AJ69: 0.00924166781 | AK69: 0.0092694623 | AL69: 0.009282462948 | AM69: 0.009282056678 | AN69: 0.0092694623 | AO69: 0.009245755235 | AP69: 0.009211888 | AQ69: 0.009168707275 | AR69: 0.009116968208 | AS69: 0.009057346458 | AT69: 0.008990448384 | AU69: 0.008916819712 | AV69: 0.008836952924 | AW69: 0.0087512936 | AX69: 0.00866024587 | AY69: 0.008564177125 | AZ69: 0.0084634221 | BA69: 0.008358286422 | BB69: 0.008249049706 | BC69: 0.008135968269 | BD69: 0.0080192775 | BE69: 0.00789919396 | BF69: 0.007775917223 | BG69: 0.007649631513 | BH69: 0.007520507149 | BI69: 0.007388701833 | BJ69: 0.0072543618
P70: 11 | Q70: 0 | R70: 0.001604938272 | S70: 0.002929292929 | T70: 0.004033189033 | U70: 0.004960718294 | V70: 0.005744949495 | W70: 0.006411170529 | X70: 0.006979049757 | Y70: 0.007464114833 | Z70: 0.007878787879 | AA70: 0.0082331249 | AB70: 0.008535353535 | AC70: 0.008792270531 | AD70: 0.009009539843 | AE70: 0.009191919192 | AF70: 0.009343434343 | AG70: 0.009467514653 | AH70: 0.009567099567 | AI70: 0.009644723093 | AJ70: 0.009702581369 | AK70: 0.009742587162 | AL70: 0.009766414141 | AM70: 0.009775533109 | AN70: 0.00977124183 | AO70: 0.009754689755 | AP70: 0.009726898616 | AQ70: 0.009688779689 | AR70: 0.009641148325 | AS70: 0.009584736251 | AT70: 0.00952020202 | AU70: 0.009448139936 | AV70: =IFERROR((VLOOKUP($P70,$D$15:$E$60,2,FALSE)*VLOOKUP(AV$8,$B$15:$C$60,2,FALSE))/($P70+AV$58),0) -> 0.009369087702 | AW70: 0.009283533004 | AX70: 0.009191919192 | AY70: 0.009094650206 | AZ70: 0.008992094862 | BA70: 0.008884590587 | BB70: 0.008772446689 | BC70: 0.008655947227 | BD70: 0.008535353535 | BE70: 0.00841090645 | BF70: 0.008282828283 | BG70: 0.008151324566 | BH70: 0.008016585609 | BI70: 0.007878787879 | BJ70: 0.007738095238
P71: 12 | Q71: 0 | R71: 0.001595441595 | S71: 0.002929292929 | T71: 0.004053872054 | U71: 0.005008417508 | V71: 0.005822935235 | W71: 0.006520763187 | X71: 0.007120326068 | Y71: 0.007636363636 | Z71: 0.008080808081 | AA71: 0.0084634221 | AB71: 0.008792270531 | AC71: 0.009074074074 | AD71: 0.009314478114 | AE71: 0.009518259518 | AF71: 0.009689487467 | AG71: 0.009831649832 | AH71: 0.009947753396 | AI71: 0.01004040404 | AJ71: 0.0101118714 | AK71: 0.01016414141 | AL71: 0.01019895929 | AM71: 0.01021786492 | AN71: 0.01022222222 | AO71: 0.01021324355 | AP71: 0.01019201019 | AQ71: 0.01015948963 | AR71: 0.01011655012 | AS71: 0.01006397306 | AT71: 0.01000246366 | AU71: 0.009932659933 | AV71: 0.009855140553 | AW71: 0.009770431589 | AX71: 0.009679012346 | AY71: 0.009581320451 | AZ71: 0.009477756286 | BA71: 0.009368686869 | BB71: 0.009254449254 | BC71: 0.009135353535 | BD71: 0.009011685482 | BE71: 0.008883708884 | BF71: 0.00875166762 | BG71: 0.008615787505 | BH71: 0.008476277931 | BI71: 0.008333333333 | BJ71: 0.008187134503
P72: 13 | Q72: 0 | R72: 0.001584094917 | S72: 0.002923375166 | T72: 0.004063743496 | U72: 0.00504030201 | V72: 0.005880352345 | W72: 0.006605448424 | X72: 0.007232833384 | Y72: 0.007776465958 | Z72: 0.008247766925 | AA72: 0.008656170843 | AB72: 0.009009539843 | AC72: 0.009314478114 | AD72: 0.009576573819 | AE72: 0.009800587242 | AF72: 0.009990598627 | AG72: 0.01015012543 | AH72: 0.0102822161 | AI72: 0.01038952576 | AJ72: 0.01047437761 | AK72: 0.01053881329 | AL72: 0.01058463422 | AM72: 0.01061343595 | AN72: 0.01062663674 | AO72: 0.01062550153 | AP72: 0.01061116213 | AQ72: 0.01058463422 | AR72: 0.01054683196 | AS72: 0.01049858028 | AT72: 0.01044062559 | AU72: 0.01037364483 | AV72: 0.01029825342 | AW72: 0.01021501207 | AX72: 0.01012443273 | AY72: 0.01002698379 | AZ72: 0.009923094582 | BA72: 0.009813159424 | BB72: 0.009697541067 | BC72: 0.009576573819 | BD72: 0.009450566269 | BE72: 0.009319803717 | BF72: 0.009184550329 | BG72: 0.009045051062 | BH72: 0.008901533371 | BI72: 0.008754208754 | BJ72: 0.008603274121
P73: 14 | Q73: 0 | R73: 0.001571268238 | S73: 0.002912649219 | T73: 0.004064711284 | U73: 0.005059007584 | V73: 0.005920448504 | W73: 0.006668962351 | X73: 0.007320681563 | Y73: 0.007888805409 | Z73: 0.008384237633 | AA73: 0.008816064687 | AB73: 0.009191919192 | AC73: 0.009518259518 | AD73: 0.009800587242 | AE73: 0.010043618 | AF73: 0.01025141699 | AG73: 0.0104275074 | AH73: 0.01057495779 | AI73: 0.01069645317 | AJ73: 0.01079435308 | AK73: 0.01087073948 | AL73: 0.01092745638 | AM73: 0.01096614291 | AN73: 0.01098826099 | AO73: 0.01099511865 | AP73: 0.01098788978 | AQ73: 0.01096763085 | AR73: 0.0109352953 | AS73: 0.01089174574 | AT73: 0.01083776454 | AU73: 0.01077406294 | AV73: 0.01070128898 | AW73: 0.01062003434 | AX73: 0.01053084032 | AY73: 0.01043420314 | AZ73: 0.01033057851 | BA73: 0.01022038567 | BB73: 0.010104011 | BC73: 0.009981811118 | BD73: 0.009854115772 | BE73: 0.00972123026 | BF73: 0.009583437683 | BG73: 0.009441000918 | BH73: 0.009294164398 | BI73: 0.009143155695 | BJ73: 0.008988186954
P74: 15 | Q74: 0 | R74: 0.001557239057 | S74: 0.002897963593 | T74: 0.004058259361 | U74: 0.005066615114 | V74: 0.005945821855 | W74: 0.006714329442 | X74: 0.007387233214 | Y74: 0.007977003234 | Z74: 0.008494031221 | AA74: 0.00894704622 | AB74: 0.009343434343 | AC74: 0.009689487467 | AD74: 0.009990598627 | AE74: 0.01025141699 | AF74: 0.01047597184 | AG74: 0.01066777254 | AH74: 0.01082988981 | AI74: 0.01096502212 | AJ74: 0.01107555051 | AK74: 0.01116358389 | AL74: 0.01123099684 | AM74: 0.01127946128 | AN74: 0.01131047315 | AO74: 0.01132537496 | AP74: 0.01132537496 | AQ74: 0.01131156353 | AR74: 0.01128492719 | AS74: 0.01124636072 | AT74: 0.01119667752 | AU74: 0.01113661871 | AV74: 0.01106686097 | AW74: 0.01098802337 | AX74: 0.0109006734 | AY74: 0.01080533223 | AZ74: 0.01070247934 | BA74: 0.01059255658 | BB74: 0.01047597184 | BC74: 0.01035310221 | BD74: 0.01022429684 | BE74: 0.01008987951 | BF74: 0.009950150859 | BG74: 0.009805390427 | BH74: 0.00965585848 | BI74: 0.009501797637 | BJ74: 0.009343434343
P75: 16 | Q75: 0 | R75: 0.001542219581 | S75: 0.002879978234 | T75: 0.004045559261 | U75: 0.005064789307 | V75: 0.005958575656 | W75: 0.006744024265 | X75: 0.007435266144 | Y75: 0.008044077135 | Z75: 0.008580348944 | AA75: 0.009052451477 | AB75: 0.009467514653 | AC75: 0.009831649832 | AD75: 0.01015012543 | AE75: 0.0104275074 | AF75: 0.01066777254 | AG75: 0.01087440057 | AH75: 0.0110504494 | AI75: 0.01119861719 | AJ75: 0.01132129375 | AK75: 0.01142060334 | AL75: 0.01149844059 | AM75: 0.01155650068 | AN75: 0.01159630493 | AO75: 0.01161922253 | AP75: 0.01162648908 | AQ75: 0.01161922253 | AR75: 0.0115984368 | AS75: 0.01156505366 | AT75: 0.01151991293 | AU75: 0.01146378142 | AV75: 0.01139736067 | AW75: 0.01132129375 | AX75: 0.01123617124 | AY75: 0.01114253648 | AZ75: 0.01104089019 | BA75: 0.01093169457 | BB75: 0.01081537694 | BC75: 0.01069233298 | BD75: 0.01056292957 | BE75: 0.0104275074 | BF75: 0.01028638324 | BG75: 0.01013985202 | BH75: 0.009988188684 | BI75: 0.009831649832 | BJ75: 0.009670475244
P76: 17 | Q76: 0 | R76: 0.00152637486 | S76: 0.002859214151 | T76: 0.004027548209 | U76: 0.005054877782 | V76: 0.005960430754 | W76: 0.006760091029 | X76: 0.007467095194 | Y76: 0.008092561983 | Z76: 0.008645899555 | AA76: 0.009135122266 | AB76: 0.009567099567 | AC76: 0.009947753396 | AD76: 0.0102822161 | AE76: 0.01057495779 | AF76: 0.01082988981 | AG76: =IFERROR((VLOOKUP($P76,$D$15:$E$60,2,FALSE)*VLOOKUP(AG$8,$B$15:$C$60,2,FALSE))/($P76+AG$58),0) -> 0.0110504494 | AH76: 0.01123966942 | AI76: 0.01140023613 | AJ76: 0.01153453729 | AK76: 0.01164470255 | AL76: 0.01173263738 | AM76: 0.0118000518 | AN76: 0.01184848485 | AO76: 0.0118793254 | AP76: 0.01189383008 | AQ76: 0.01189313857 | AR76: 0.011878287 | AS76: 0.01185021937 | AT76: 0.01180979758 | AU76: 0.01175781021 | AV76: 0.0116949801 | AW76: 0.0116219711 | AX76: 0.01153939394 | AY76: 0.01144781145 | AZ76: 0.01134774317 | BA76: 0.01123966942 | BB76: 0.01112403496 | BC76: 0.01100125219 | BD76: 0.01087170405 | BE76: 0.01073574662 | BF76: 0.01059371141 | BG76: 0.01044590746 | BH76: 0.0102926232 | BI76: 0.01013412817 | BJ76: 0.009970674487
P77: 18 | Q77: 0 | R77: 0.001509835194 | S77: 0.002836088154 | T77: 0.004004984914 | U77: 0.005037983137 | V77: 0.00595280872 | W77: 0.006764233242 | X77: 0.00748466483 | Y77: 0.00812460267 | Z77: 0.008692990511 | AA77: 0.009197494425 | AB77: 0.009644723093 | AC77: 0.01004040404 | AD77: 0.01038952576 | AE77: 0.01069645317 | AF77: 0.01096502212 | AG77: 0.01119861719 | AH77: 0.01140023613 | AI77: 0.01157254362 | AJ77: 0.01171791626 | AK77: 0.0118384805 | AL77: 0.01193614466 | AM77: 0.01201262626 | AN77: 0.01206947524 | AO77: 0.01210809393 | AP77: 0.0121297542 | AQ77: 0.01213561232 | AR77: 0.01212672176 | AS77: 0.0121040444 | AT77: 0.01206846023 | AU77: 0.01202077594 | AV77: 0.01196173235 | AW77: 0.01189201102 | AX77: 0.01181224005 | AY77: 0.01172299922 | AZ77: 0.01162482458 | BA77: 0.01151821243 | BB77: 0.01140362301 | BC77: 0.01128148367 | BD77: 0.01115219177 | BE77: 0.01101611729 | BF77: 0.01087360508 | BG77: 0.01072497704 | BH77: 0.01057053395 | BI77: 0.01041055718 | BJ77: 0.01024531025
P78: 19 | Q78: 0 | R78: 0.001492704826 | S78: 0.002810937659 | T78: 0.003978490136 | U78: 0.005015016214 | V78: 0.005936894194 | W78: 0.006757881849 | X78: 0.007489620368 | Y78: 0.008142026324 | Z78: 0.008723599633 | AA78: 0.00924166781 | AB78: 0.009702581369 | AC78: 0.0101118714 | AD78: 0.01047437761 | AE78: 0.01079435308 | AF78: 0.01107555051 | AG78: 0.01132129375 | AH78: 0.01153453729 | AI78: 0.01171791626 | AJ78: 0.01187378839 | AK78: 0.01200426958 | AL78: 0.01211126416 | AM78: 0.01219649065 | AN78: 0.01226150393 | AO78: 0.01230771421 | AP78: 0.01233640352 | AQ78: 0.01234873992 | AR78: 0.01234578991 | AS78: 0.01232852922 | AT78: 0.01229785226 | AU78: 0.01225458044 | AV78: 0.01219946944 | AW78: 0.0121332157 | AX78: 0.01205646206 | AY78: 0.01196980285 | AZ78: 0.01187378839 | BA78: 0.01176892896 | BB78: 0.0116556984 | BC78: 0.01153453729 | BD78: 0.01140585584 | BE78: 0.01127003644 | BF78: 0.01112743598 | BG78: 0.01097838795 | BH78: 0.01082320435 | BI78: 0.01066217733 | BJ78: 0.01049558081
P79: 20 | Q79: 0 | R79: 0.001475068142 | S79: 0.002784038734 | T79: 0.003948576676 | U79: 0.004986736047 | V79: 0.005913682277 | W79: 0.006742247651 | X79: 0.007483363376 | Y79: 0.008146399055 | Z79: 0.008739431937 | AA79: 0.0092694623 | AB79: 0.009742587162 | AC79: 0.01016414141 | AD79: 0.01053881329 | AE79: 0.01087073948 | AF79: 0.01116358389 | AG79: 0.01142060334 | AH79: 0.01164470255 | AI79: 0.0118384805 | AJ79: 0.01200426958 | AK79: 0.01214416896 | AL79: 0.01226007301 | AM79: 0.01235369569 | AN79: 0.0124265915 | AO79: 0.01248017364 | AP79: 0.01251572969 | AQ79: 0.01253443526 | AR79: 0.01253736592 | AS79: 0.0125255076 | AT79: 0.01249976575 | AU79: 0.01246097337 | AV79: 0.01240989815 | AW79: 0.01234724871 | AX79: 0.0122736802 | AY79: 0.01218979923 | AZ79: 0.01209616829 | BA79: 0.01199330972 | BB79: 0.01188170917 | BC79: 0.01176181882 | BD79: 0.01163406017 | BE79: 0.01149882665 | BF79: 0.01135648587 | BG79: 0.01120738174 | BH79: 0.0110518363 | BI79: 0.01089015152 | BJ79: 0.01072261072
P80: 21 | Q80: 0 | R80: 0.001456994184 | S80: 0.002755619435 | T80: 0.00391567187 | U80: 0.004953780227 | V80: 0.005884014975 | W80: 0.006718362072 | X80: 0.007467095194 | Y80: 0.00813907096 | Z80: 0.008741965106 | AA80: 0.009282462948 | AB80: 0.009766414141 | AC80: 0.01019895929 | AD80: 0.01058463422 | AE80: 0.01092745638 | AF80: 0.01123099684 | AG80: 0.01149844059 | AH80: 0.01173263738 | AI80: 0.01193614466 | AJ80: 0.01211126416 | AK80: 0.01226007301 | AL80: 0.01238445057 | AM80: 0.01248610132 | AN80: 0.01256657484 | AO80: 0.01262728293 | AP80: 0.01266951465 | AQ80: 0.01269444933 | AR80: 0.01270316804 | AS80: 0.01269666361 | AT80: 0.0126758494 | AU80: 0.01264156719 | AV80: 0.01259459396 | AW80: 0.01253564808 | AX80: 0.01246539469 | AY80: 0.01238445057 | AZ80: 0.01229338843 | BA80: 0.01219274081 | BB80: 0.01208300349 | BC80: 0.01196463868 | BD80: 0.01183807775 | BE80: 0.01170372378 | BF80: 0.01156195385 | BG80: 0.01141312111 | BH80: 0.01125755663 | BI80: 0.0110955711 | BJ80: 0.01092745638
P81: 22 | Q81: 0 | R81: 0.001438539989 | S81: 0.002725869809 | T81: 0.00388013468 | U81: 0.00491668825 | V81: 0.005848609552 | W81: 0.006687109187 | X81: 0.007441851465 | Y81: 0.008121212121 | Z81: 0.008732486152 | AA81: 0.009282056678 | AB81: 0.009775533109 | AC81: 0.01021786492 | AD81: 0.01061343595 | AE81: 0.01096614291 | AF81: 0.01127946128 | AG81: 0.01155650068 | AH81: 0.0118000518 | AI81: 0.01201262626 | AJ81: 0.01219649065 | AK81: 0.01235369569 | AL81: 0.01248610132 | AM81: 0.01259539843 | AN81: 0.01268312757 | AO81: 0.01275069536 | AP81: 0.01279938869 | AQ81: 0.01283038721 | AR81: 0.01284477427 | AS81: 0.01284354658 | AT81: 0.01282762263 | AU81: 0.0127978503 | AV81: 0.01275501345 | AW81: 0.01269983789 | AX81: 0.01263299663 | AY81: 0.01255511464 | AZ81: 0.01246677299 | BA81: 0.01236851271 | BB81: 0.01226083814 | BC81: 0.01214421998 | BD81: 0.01201909808 | BE81: 0.01188588393 | BF81: 0.01174496286 | BG81: 0.01159669613 | BH81: 0.01144142277 | BI81: 0.01127946128 | BJ81: 0.01111111111
P82: 23 | Q82: 0 | R82: =IFERROR((VLOOKUP($P82,$D$15:$E$60,2,FALSE)*VLOOKUP(R$8,$B$15:$C$60,2,FALSE))/($P82+R$58),0) -> 0.001419753086 | S82: 0.002694949495 | T82: 0.003842268842 | U82: 0.004875919691 | V82: 0.005808080808 | W82: 0.006649251132 | X82: 0.007408529742 | Y82: 0.008093841642 | Z82: 0.008712121212 | AA82: 0.0092694623 | AB82: 0.00977124183 | AC82: 0.01022222222 | AD82: 0.01062663674 | AE82: 0.01098826099 | AF82: 0.01131047315 | AG82: 0.01159630493 | AH82: 0.01184848485 | AI82: 0.01206947524 | AJ82: 0.01226150393 | AK82: 0.0124265915 | AL82: 0.01256657484 | AM82: 0.01268312757 | AN82: 0.01277777778 | AO82: 0.01285192349 | AP82: 0.01290684624 | AQ82: 0.01294372294 | AR82: 0.01296363636 | AS82: 0.01296758434 | AT82: 0.01295648796 | AU82: 0.01293119878 | AV82: 0.0128925053 | AW82: 0.01284113866 | AX82: 0.01277777778 | AY82: 0.01270305393 | AZ82: 0.01261755486 | BA82: 0.01252182845 | BB82: 0.01241638608 | BC82: 0.01230170558 | BD82: 0.01217823395 | BE82: 0.01204638982 | BF82: 0.01190656566 | BG82: 0.01175912976 | BH82: 0.01160442812 | BI82: 0.01144278607 | BJ82: 0.0112745098
P83: 24 | Q83: 0 | R83: 0.001400673401 | S83: 0.002662993572 | T83: 0.003802333095 | U83: 0.004831868468 | V83: 0.005762958741 | W83: 0.006605448424 | X83: 0.007367911767 | Y83: 0.00805785124 | Z83: 0.008681859922 | AA83: 0.009245755235 | AB83: 0.009754689755 | AC83: 0.01021324355 | AD83: 0.01062550153 | AE83: 0.01099511865 | AF83: 0.01132537496 | AG83: 0.01161922253 | AH83: 0.0118793254 | AI83: 0.01210809393 | AJ83: 0.01230771421 | AK83: 0.01248017364 | AL83: 0.01262728293 | AM83: 0.01275069536 | AN83: 0.01285192349 | AO83: 0.01293235384 | AP83: 0.01299325975 | AQ83: 0.01303581267 | AR83: 0.01306109221 | AS83: 0.01307009489 | AT83: 0.01306374205 | AU83: 0.01304288678 | AV83: 0.01300832012 | AW83: 0.0129607766 | AX83: 0.01290093922 | AY83: 0.01282944386 | AZ83: 0.01274688332 | BA83: 0.01265381084 | BB83: 0.0125507434 | BC83: 0.01243816464 | BD83: 0.01231652747 | BE83: 0.0121862565 | BF83: 0.01204775023 | BG83: 0.01190138298 | BH83: 0.01174750673 | BI83: 0.01158645276 | BJ83: 0.01141853316
P84: 25 | Q84: 0 | R84: 0.001381334715 | S84: 0.002630117108 | T84: 0.003760549215 | U84: 0.004784874168 | V84: 0.005713702683 | W84: 0.006556276351 | X84: 0.007320681563 | Y84: 0.008014024543 | Z84: 0.008642575487 | AA84: 0.009211888 | AB84: 0.009726898616 | AC84: 0.01019201019 | AD84: 0.01061116213 | AE84: 0.01098788978 | AF84: 0.01132537496 | AG84: 0.01162648908 | AH84: 0.01189383008 | AI84: 0.0121297542 | AJ84: 0.01233640352 | AK84: 0.01251572969 | AL84: 0.01266951465 | AM84: 0.01279938869 | AN84: 0.01290684624 | AO84: 0.01299325975 | AP84: 0.01305989185 | AQ84: 0.01310790616 | AR84: 0.01313837677 | AS84: 0.01315229674 | AT84: 0.01315058554 | AU84: 0.01313409578 | AV84: 0.01310361916 | AW84: 0.01305989185 | AX84: 0.01300359921 | AY84: 0.01293538017 | AZ84: 0.01285583104 | BA84: 0.01276550904 | BB84: 0.01266493544 | BC84: 0.01255459841 | BD84: 0.01243495562 | BE84: 0.01230643655 | BF84: 0.01216944468 | BG84: 0.01202435938 | BH84: 0.01187153772 | BI84: 0.01171131606 | BJ84: 0.01154401154
P85: 26 | Q85: 0 | R85: 0.001361765806 | S85: 0.002596418733 | T85: 0.003717108388 | U85: 0.004735231099 | V85: 0.005660712699 | W85: 0.006502238292 | X85: 0.007267440243 | Y85: 0.00796305299 | Z85: 0.008595041322 | AA85: 0.009168707275 | AB85: 0.009688779689 | AC85: 0.01015948963 | AD85: 0.01058463422 | AE85: 0.01096763085 | AF85: 0.01131156353 | AG85: 0.01161922253 | AH85: 0.01189313857 | AI85: 0.01213561232 | AJ85: 0.01234873992 | AK85: 0.01253443526 | AL85: 0.01269444933 | AM85: 0.01283038721 | AN85: 0.01294372294 | AO85: 0.01303581267 | AP85: 0.01310790616 | AQ85: 0.01316115702 | AR85: 0.01319663184 | AS85: 0.01321531816 | AT85: 0.01321813173 | AU85: 0.01320592287 | AV85: 0.01317948222 | AW85: 0.01313954593 | AX85: 0.01308680021 | AY85: 0.01302188552 | AZ85: 0.01294540035 | BA85: 0.01285790456 | BB85: 0.01275992246 | BC85: 0.01265194559 | BD85: 0.01253443526 | BE85: 0.0124078248 | BF85: 0.01227252169 | BG85: 0.01212890942 | BH85: 0.01197734925 | BI85: 0.01181818182 | BJ85: 0.01165172855
P86: 27 | Q86: 0 | R86: 0.001341991342 | S86: 0.002561983471 | T86: 0.003672176309 | U86: 0.004683195592 | V86: 0.005604338843 | W86: 0.006443776609 | X86: 0.007208718198 | Y86: 0.007905548996 | Z86: 0.008539944904 | AA86: 0.009116968208 | AB86: 0.009641148325 | AC86: 0.01011655012 | AD86: 0.01054683196 | AE86: 0.0109352953 | AF86: 0.01128492719 | AG86: 0.0115984368 | AH86: 0.011878287 | AI86: 0.01212672176 | AJ86: 0.01234578991 | AK86: 0.01253736592 | AL86: 0.01270316804 | AM86: 0.01284477427 | AN86: 0.01296363636 | AO86: 0.01306109221 | AP86: 0.01313837677 | AQ86: 0.01319663184 | AR86: 0.0132369146 | AS86: 0.01326020536 | AT86: 0.0132674144 | AU86: 0.01325938814 | AV86: 0.0132369146 | AW86: 0.01320072839 | AX86: 0.01315151515 | AY86: 0.01308991555 | AZ86: 0.01301652893 | BA86: 0.01293191657 | BB86: 0.01283660468 | BC86: 0.01273108709 | BD86: 0.0126158277 | BE86: 0.01249126269 | BF86: 0.01235780263 | BG86: 0.01221583423 | BH86: 0.01206572216 | BI86: 0.0119078105 | BJ86: 0.01174242424
P87: 28 | Q87: 0 | R87: 0.001322032586 | S87: 0.002526885012 | T87: 0.003625897292 | U87: 0.00462899194 | V87: 0.00554488874 | W87: 0.006381281622 | X87: 0.007144985206 | Y87: 0.007842056933 | Z87: 0.008477899387 | AA87: 0.009057346458 | AB87: 0.009584736251 | AC87: 0.01006397306 | AD87: 0.01049858028 | AE87: 0.01089174574 | AF87: 0.01124636072 | AG87: 0.01156505366 | AH87: 0.01185021937 | AI87: 0.0121040444 | AJ87: 0.01232852922 | AK87: 0.0125255076 | AL87: 0.01269666361 | AM87: 0.01284354658 | AN87: 0.01296758434 | AO87: 0.01307009489 | AP87: 0.01315229674 | AQ87: 0.01321531816 | AR87: 0.01326020536 | AS87: 0.0132879298 | AT87: 0.0132993948 | AU87: 0.01329544135 | AV87: =IFERROR((VLOOKUP($P87,$D$15:$E$60,2,FALSE)*VLOOKUP(AV$8,$B$15:$C$60,2,FALSE))/($P87+AV$58),0) -> 0.01327685345 | AW87: 0.01324436282 | AX87: 0.0131986532 | AY87: 0.01314036422 | AZ87: 0.01307009489 | BA87: 0.0129884068 | BB87: 0.01289582696 | BC87: 0.01279285045 | BD87: 0.0126799428 | BE87: 0.01255754215 | BF87: 0.01242606123 | BG87: 0.01228588919 | BH87: 0.01213739328 | BI87: 0.01198092031 | BJ87: 0.01181679812
P88: 29 | Q88: 0 | R88: 0.001301907969 | S88: 0.002491187535 | T88: 0.003578397612 | U88: 0.004572817245 | V88: 0.005482633825 | W88: 0.006315099042 | X88: 0.007076658844 | Y88: 0.007773062319 | Z88: 0.008409453386 | AA88: 0.008990448384 | AB88: 0.00952020202 | AC88: 0.01000246366 | AD88: 0.01044062559 | AE88: 0.01083776454 | AF88: 0.01119667752 | AG88: 0.01151991293 | AH88: 0.01180979758 | AI88: 0.01206846023 | AJ88: 0.01229785226 | AK88: 0.01249976575 | AL88: 0.0126758494 | AM88: 0.01282762263 | AN88: 0.01295648796 | AO88: 0.01306374205 | AP88: 0.01315058554 | AQ88: 0.01321813173 | AR88: 0.0132674144 | AS88: 0.0132993948 | AT88: 0.01331496786 | AU88: 0.01331496786 | AV88: 0.01330017345 | AW88: 0.01327131223 | AX88: 0.01322906484 | AY88: 0.01317406873 | AZ88: 0.01310692149 | BA88: 0.01302818394 | BB88: 0.01293838291 | BC88: 0.01283801379 | BD88: 0.01272754281 | BE88: 0.01260740918 | BF88: 0.01247802702 | BG88: 0.01233978712 | BH88: 0.01219305853 | BI88: 0.01203819012 | BJ88: 0.01187551188
P89: 30 | Q89: 0 | R89: 0.00128163354 | S89: 0.002454947199 | T89: 0.003529788241 | U89: 0.004514845424 | V89: 0.005417814509 | W89: 0.00624553617 | X89: 0.00700411155 | Y89: 0.007698999565 | Z89: 0.008335099244 | AA89: 0.008916819712 | AB89: 0.009448139936 | AC89: 0.009932659933 | AD89: 0.01037364483 | AE89: 0.01077406294 | AF89: 0.01113661871 | AG89: 0.01146378142 | AH89: 0.01175781021 | AI89: 0.01202077594 | AJ89: 0.01225458044 | AK89: 0.01246097337 | AL89: 0.01264156719 | AM89: 0.0127978503 | AN89: 0.01293119878 | AO89: 0.01304288678 | AP89: 0.01313409578 | AQ89: 0.01320592287 | AR89: 0.01325938814 | AS89: 0.01329544135 | AT89: 0.01331496786 | AU89: 0.013318794 | AV89: 0.01330769192 | AW89: 0.01328238396 | AX89: 0.01324354658 | AY89: 0.01319181397 | AZ89: 0.01312778131 | BA89: 0.01305200768 | BB89: 0.0129650188 | BC89: 0.01286730946 | BD89: 0.01275934576 | BE89: 0.01264156719 | BF89: 0.01251438844 | BG89: 0.0123782012 | BH89: 0.01223337568 | BI89: 0.01208026208 | BJ89: 0.01191919192
P90: 31 | Q90: 0 | R90: 0.001261223345 | S90: 0.002418213355 | T90: 0.00348016709 | U90: 0.004455230516 | V90: 0.005350644492 | W90: 0.006172867082 | X90: 0.006927676553 | Y90: 0.007620258529 | Z90: 0.008255280073 | AA90: 0.008836952924 | AB90: 0.009369087702 | AC90: 0.009855140553 | AD90: 0.01029825342 | AE90: 0.01070128898 | AF90: 0.01106686097 | AG90: 0.01139736067 | AH90: 0.0116949801 | AI90: 0.01196173235 | AJ90: 0.01219946944 | AK90: 0.01240989815 | AL90: 0.01259459396 | AM90: 0.01275501345 | AN90: 0.0128925053 | AO90: 0.01300832012 | AP90: 0.01310361916 | AQ90: 0.01317948222 | AR90: 0.0132369146 | AS90: 0.01327685345 | AT90: 0.01330017345 | AU90: 0.01330769192 | AV90: 0.01330017345 | AW90: 0.01327833409 | AX90: 0.01324284512 | AY90: 0.01319433653 | AZ90: 0.01313340012 | BA90: 0.01306059236 | BB90: 0.01297643698 | BC90: 0.01288142736 | BD90: 0.01277602869 | BE90: 0.01266067992 | BF90: 0.01253579567 | BG90: 0.01240176778 | BH90: 0.01225896696 | BI90: 0.01210774411 | BJ90: 0.01194843169
P91: 32 | Q91: 0 | R91: 0.001240689726 | S91: 0.002381029547 | T91: 0.003429620884 | U91: 0.004394109445 | V91: 0.005281314372 | W91: 0.006097337006 | X91: 0.006847652908 | Y91: 0.007537190083 | Z91: 0.008170395754 | AA91: 0.0087512936 | AB91: 0.009283533004 | AC91: 0.009770431589 | AD91: 0.01021501207 | AE91: 0.01062003434 | AF91: 0.01098802337 | AG91: 0.01132129375 | AH91: 0.0116219711 | AI91: 0.01189201102 | AJ91: 0.0121332157 | AK91: 0.01234724871 | AL91: 0.01253564808 | AM91: 0.01269983789 | AN91: 0.01284113866 | AO91: 0.0129607766 | AP91: 0.01305989185 | AQ91: 0.01313954593 | AR91: 0.01320072839 | AS91: 0.01324436282 | AT91: 0.01327131223 | AU91: 0.01328238396 | AV91: 0.01327833409 | AW91: 0.01325987144 | AX91: 0.01322766123 | AY91: 0.01318232833 | AZ91: 0.01312446034 | BA91: 0.01305461027 | BB91: 0.01297329909 | BC91: 0.01288101797 | BD91: 0.01277823045 | BE91: 0.01266537428 | BF91: 0.01254286325 | BG91: 0.01241108877 | BH91: 0.01227042139 | BI91: 0.01212121212 | BJ91: 0.01196379378
P92: 33 | Q92: 0 | R92: 0.001220043573 | S92: 0.002343434343 | T92: 0.003378226712 | U92: 0.004331604332 | V92: 0.005209994684 | W92: 0.006019166019 | X92: 0.006764309764 | Y92: 0.007450110865 | Z92: 0.008080808081 | AA92: 0.00866024587 | AB92: 0.009191919192 | AC92: 0.009679012346 | AD92: 0.01012443273 | AE92: 0.01053084032 | AF92: 0.0109006734 | AG92: 0.01123617124 | AH92: 0.01153939394 | AI92: 0.01181224005 | AJ92: 0.01205646206 | AK92: 0.0122736802 | AL92: 0.01246539469 | AM92: 0.01263299663 | AN92: 0.01277777778 | AO92: 0.01290093922 | AP92: 0.01300359921 | AQ92: 0.01308680021 | AR92: 0.01315151515 | AS92: 0.0131986532 | AT92: 0.01322906484 | AU92: 0.01324354658 | AV92: 0.01324284512 | AW92: 0.01322766123 | AX92: 0.0131986532 | AY92: 0.01315644002 | AZ92: 0.01310160428 | BA92: 0.01303469477 | BB92: 0.01295622896 | BC92: 0.01286669512 | BD92: 0.01276655443 | BE92: 0.01265624279 | BF92: 0.01253617254 | BG92: 0.01240673401 | BH92: 0.01226829701 | BI92: 0.01212121212 | BJ92: 0.01196581197
P93: 34 | Q93: 0 | R93: 0.001199294533 | S93: 0.002305462028 | T93: 0.003326053326 | U93: 0.004267824443 | V93: 0.00513683847 | W93: 0.005938552189 | X93: 0.006677890011 | Y93: 0.007359307359 | Z93: 0.007986845196 | AA93: 0.008564177125 | AB93: 0.009094650206 | AC93: 0.009581320451 | AD93: 0.01002698379 | AE93: 0.01043420314 | AF93: 0.01080533223 | AG93: =IFERROR((VLOOKUP($P93,$D$15:$E$60,2,FALSE)*VLOOKUP(AG$8,$B$15:$C$60,2,FALSE))/($P93+AG$58),0) -> 0.01114253648 | AH93: 0.01144781145 | AI93: 0.01172299922 | AJ93: 0.01196980285 | AK93: 0.01218979923 | AL93: 0.01238445057 | AM93: 0.01255511464 | AN93: 0.01270305393 | AO93: 0.01282944386 | AP93: 0.01293538017 | AQ93: 0.01302188552 | AR93: 0.01308991555 | AS93: 0.01314036422 | AT93: 0.01317406873 | AU93: 0.01319181397 | AV93: 0.01319433653 | AW93: 0.01318232833 | AX93: 0.01315644002 | AY93: 0.01311728395 | AZ93: 0.01306543698 | BA93: 0.013001443 | BB93: 0.01292581527 | BC93: 0.01283903853 | BD93: 0.01274157096 | BE93: 0.01263384597 | BF93: 0.01251627385 | BG93: 0.01238924331 | BH93: 0.01225312286 | BI93: 0.01210826211 | BJ93: 0.01195499297
P94: 35 | Q94: 0 | R94: 0.001178451178 | S94: 0.002267143176 | T94: 0.003273162244 | U94: 0.004202867839 | V94: 0.005061983471 | W94: 0.005855674259 | X94: 0.006588613407 | Y94: 0.0072650394 | Z94: 0.007888805409 | AA94: 0.0084634221 | AB94: 0.008992094862 | AC94: 0.009477756286 | AD94: 0.009923094582 | AE94: 0.01033057851 | AF94: 0.01070247934 | AG94: 0.01104089019 | AH94: 0.01134774317 | AI94: 0.01162482458 | AJ94: 0.01187378839 | AK94: 0.01209616829 | AL94: 0.01229338843 | AM94: 0.01246677299 | AN94: 0.01261755486 | AO94: 0.01274688332 | AP94: 0.01285583104 | AQ94: 0.01294540035 | AR94: 0.01301652893 | AS94: 0.01307009489 | AT94: 0.01310692149 | AU94: 0.01312778131 | AV94: 0.01313340012 | AW94: 0.01312446034 | AX94: 0.01310160428 | AY94: 0.01306543698 | AZ94: 0.01301652893 | BA94: 0.01295541846 | BB94: 0.01288261402 | BC94: 0.01279859617 | BD94: 0.01270381952 | BE94: 0.01259871442 | BF94: 0.01248368856 | BG94: 0.01235912847 | BH94: 0.01222540086 | BI94: 0.01208285386 | BJ94: 0.01193181818
P95: 36 | Q95: 0 | R95: 0.001157521158 | S95: 0.002228505147 | T95: 0.003219608674 | U95: 0.004136822773 | V95: 0.004985553988 | W95: 0.005770693953 | X95: 0.006496679266 | Y95: 0.007167543201 | Z95: 0.007786960514 | AA95: 0.008358286422 | AB95: 0.008884590587 | AC95: 0.009368686869 | AD95: 0.009813159424 | AE95: 0.01022038567 | AF95: 0.01059255658 | AG95: 0.01093169457 | AH95: 0.01123966942 | AI95: 0.01151821243 | AJ95: 0.01176892896 | AK95: 0.01199330972 | AL95: 0.01219274081 | AM95: 0.01236851271 | AN95: 0.01252182845 | AO95: 0.01265381084 | AP95: 0.01276550904 | AQ95: 0.01285790456 | AR95: 0.01293191657 | AS95: 0.0129884068 | AT95: 0.01302818394 | AU95: 0.01305200768 | AV95: 0.01306059236 | AW95: 0.01305461027 | AX95: 0.01303469477 | AY95: 0.013001443 | AZ95: 0.01295541846 | BA95: 0.01289715335 | BB95: 0.01282715071 | BC95: 0.01274588638 | BD95: 0.01265381084 | BE95: 0.01255135083 | BF95: 0.01243891095 | BG95: 0.01231687504 | BH95: 0.01218560751 | BI95: 0.01204545455 | BJ95: 0.01189674523
P96: 37 | Q96: 0 | R96: 0.001136511312 | S96: 0.002189572493 | T96: 0.003165442302 | U96: 0.004069768889 | V96: 0.004907662483 | W96: 0.005683757946 | X96: 0.006402268785 | Y96: 0.007067033976 | Z96: 0.00768155867 | AA96: 0.008249049706 | AB96: 0.008772446689 | AC96: 0.009254449254 | AD96: 0.009697541067 | AE96: 0.010104011 | AF96: 0.01047597184 | AG96: 0.01081537694 | AH96: 0.01112403496 | AI96: 0.01140362301 | AJ96: 0.0116556984 | AK96: 0.01188170917 | AL96: 0.01208300349 | AM96: 0.01226083814 | AN96: 0.01241638608 | AO96: 0.0125507434 | AP96: 0.01266493544 | AQ96: 0.01275992246 | AR96: 0.01283660468 | AS96: 0.01289582696 | AT96: 0.01293838291 | AU96: 0.0129650188 | AV96: 0.01297643698 | AW96: 0.01297329909 | AX96: 0.01295622896 | AY96: 0.01292581527 | AZ96: 0.01288261402 | BA96: 0.01282715071 | BB96: 0.01275992246 | BC96: 0.01268139986 | BD96: 0.01259202874 | BE96: 0.01249223178 | BF96: 0.01238240996 | BG96: 0.01226294398 | BH96: 0.01213419549 | BI96: 0.01199650829 | BJ96: 0.01185020941
P97: 38 | Q97: 0 | R97: 0.001115427782 | S97: 0.002150367309 | T97: 0.003110707967 | U97: 0.004001778244 | V97: 0.004828410959 | W97: 0.005594999583 | X97: 0.006305547053 | Y97: 0.006963708229 | Z97: 0.007572826915 | AA97: 0.008135968269 | AB97: 0.008655947227 | AC97: 0.009135353535 | AD97: 0.009576573819 | AE97: 0.009981811118 | AF97: 0.01035310221 | AG97: 0.01069233298 | AH97: 0.01100125219 | AI97: 0.01128148367 | AJ97: 0.01153453729 | AK97: 0.01176181882 | AL97: 0.01196463868 | AM97: 0.01214421998 | AN97: 0.01230170558 | AO97: 0.01243816464 | AP97: 0.01255459841 | AQ97: 0.01265194559 | AR97: 0.01273108709 | AS97: 0.01279285045 | AT97: 0.01283801379 | AU97: 0.01286730946 | AV97: 0.01288142736 | AW97: 0.01288101797 | AX97: 0.01286669512 | AY97: 0.01283903853 | AZ97: 0.01279859617 | BA97: 0.01274588638 | BB97: 0.01268139986 | BC97: 0.01260560147 | BD97: 0.01251893194 | BE97: 0.01242180939 | BF97: 0.01231463077 | BG97: 0.01219777319 | BH97: 0.01207159511 | BI97: 0.01193643755 | BJ97: 0.01179262505
P98: 39 | Q98: 0 | R98: 0.001094276094 | S98: 0.002110909539 | T98: 0.003055446237 | U98: 0.003932916195 | V98: 0.004747892145 | W98: 0.005504540353 | X98: 0.006206664804 | Y98: 0.006857745736 | Z98: 0.00746097337 | AA98: 0.0080192775 | AB98: 0.008535353535 | AC98: 0.009011685482 | AD98: 0.009450566269 | AE98: 0.009854115772 | AF98: 0.01022429684 | AG98: 0.01056292957 | AH98: 0.01087170405 | AI98: 0.01115219177 | AJ98: 0.01140585584 | AK98: 0.01163406017 | AL98: 0.01183807775 | AM98: 0.01201909808 | AN98: 0.01217823395 | AO98: 0.01231652747 | AP98: 0.01243495562 | AQ98: 0.01253443526 | AR98: 0.0126158277 | AS98: 0.0126799428 | AT98: 0.01272754281 | AU98: 0.01275934576 | AV98: 0.01277602869 | AW98: 0.01277823045 | AX98: 0.01276655443 | AY98: 0.01274157096 | AZ98: 0.01270381952 | BA98: 0.01265381084 | BB98: 0.01259202874 | BC98: 0.01251893194 | BD98: 0.01243495562 | BE98: 0.01234051292 | BF98: 0.01223599633 | BG98: 0.01212177896 | BH98: 0.01199821571 | BI98: 0.0118656444 | BJ98: 0.01172438672
P99: 40 | Q99: 0 | R99: =IFERROR((VLOOKUP($P99,$D$15:$E$60,2,FALSE)*VLOOKUP(R$8,$B$15:$C$60,2,FALSE))/($P99+R$58),0) -> 0.001073061236 | S99: 0.002071217223 | T99: 0.002999693909 | U99: 0.003863242155 | V99: 0.004666190525 | W99: 0.005412491183 | X99: 0.006105759942 | Y99: 0.006749311295 | Z99: 0.007346189164 | AA99: 0.00789919396 | AB99: 0.00841090645 | AC99: 0.008883708884 | AD99: 0.009319803717 | AE99: 0.00972123026 | AF99: 0.01008987951 | AG99: 0.0104275074 | AH99: 0.01073574662 | AI99: 0.01101611729 | AJ99: 0.01127003644 | AK99: 0.01149882665 | AL99: 0.01170372378 | AM99: 0.01188588393 | AN99: 0.01204638982 | AO99: 0.0121862565 | AP99: 0.01230643655 | AQ99: 0.0124078248 | AR99: 0.01249126269 | AS99: 0.01255754215 | AT99: 0.01260740918 | AU99: 0.01264156719 | AV99: 0.01266067992 | AW99: 0.01266537428 | AX99: 0.01265624279 | AY99: 0.01263384597 | AZ99: 0.01259871442 | BA99: 0.01255135083 | BB99: 0.01249223178 | BC99: 0.01242180939 | BD99: 0.01234051292 | BE99: 0.01224875013 | BF99: 0.01214690867 | BG99: 0.01203535727 | BH99: 0.01191444689 | BI99: 0.01178451178 | BJ99: 0.01164587047
P100: 41 | Q100: 0 | R100: 0.001051787718 | S100: 0.002031306725 | T100: 0.002943484431 | U100: 0.003792810257 | V100: 0.00458338324 | W100: 0.005318953559 | X100: 0.006002958882 | Y100: 0.006638556249 | Z100: 0.007228650138 | AA100: 0.007775917223 | AB100: 0.008282828283 | AC100: 0.00875166762 | AD100: 0.009184550329 | AE100: 0.009583437683 | AF100: 0.009950150859 | AG100: 0.01028638324 | AH100: 0.01059371141 | AI100: 0.01087360508 | AJ100: 0.01112743598 | AK100: 0.01135648587 | AL100: 0.01156195385 | AM100: 0.01174496286 | AN100: 0.01190656566 | AO100: 0.01204775023 | AP100: 0.01216944468 | AQ100: 0.01227252169 | AR100: 0.01235780263 | AS100: 0.01242606123 | AT100: 0.01247802702 | AU100: 0.01251438844 | AV100: 0.01253579567 | AW100: 0.01254286325 | AX100: 0.01253617254 | AY100: 0.01251627385 | AZ100: 0.01248368856 | BA100: 0.01243891095 | BB100: 0.01238240996 | BC100: 0.01231463077 | BD100: 0.01223599633 | BE100: 0.01214690867 | BF100: 0.01204775023 | BG100: 0.01193888502 | BH100: 0.0118206597 | BI100: 0.01169340463 | BJ100: 0.01155743481
P101: 42 | Q101: 0 | R101: 0.001030459635 | S101: 0.001991192921 | T101: 0.002886848281 | U101: 0.003721669927 | V101: 0.004499540863 | W101: 0.005224020508 | X101: 0.005898377717 | Y101: 0.006525619835 | Z101: 0.007108518338 | AA101: 0.007649631513 | AB101: 0.008151324566 | AC101: 0.008615787505 | AD101: 0.009045051062 | AE101: 0.009441000918 | AF101: 0.009805390427 | AG101: 0.01013985202 | AH101: 0.01044590746 | AI101: 0.01072497704 | AJ101: 0.01097838795 | AK101: 0.01120738174 | AL101: 0.01141312111 | AM101: 0.01159669613 | AN101: 0.01175912976 | AO101: 0.01190138298 | AP101: 0.01202435938 | AQ101: 0.01212890942 | AR101: 0.01221583423 | AS101: 0.01228588919 | AT101: 0.01233978712 | AU101: 0.0123782012 | AV101: 0.01240176778 | AW101: 0.01241108877 | AX101: 0.01240673401 | AY101: 0.01238924331 | AZ101: 0.01235912847 | BA101: 0.01231687504 | BB101: 0.01226294398 | BC101: 0.01219777319 | BD101: 0.01212177896 | BE101: 0.01203535727 | BF101: 0.01193888502 | BG101: 0.01183272115 | BH101: 0.01171720773 | BI101: 0.01159267089 | BJ101: 0.0114594218
P102: 43 | Q102: 0 | R102: 0.001009080706 | S102: 0.001950889365 | T102: 0.002829813284 | U102: 0.003649866384 | V102: 0.004414728089 | W102: 0.005127777465 | X102: 0.005792123253 | Y102: 0.006410630368 | Z102: 0.00698594335 | AA102: 0.007520507149 | AB102: 0.008016585609 | AC102: 0.008476277931 | AD102: 0.008901533371 | AE102: 0.009294164398 | AF102: 0.00965585848 | AG102: 0.009988188684 | AH102: 0.0102926232 | AI102: 0.01057053395 | AJ102: 0.01082320435 | AK102: 0.0110518363 | AL102: 0.01125755663 | AM102: 0.01144142277 | AN102: 0.01160442812 | AO102: 0.01174750673 | AP102: 0.01187153772 | AQ102: 0.01197734925 | AR102: 0.01206572216 | AS102: 0.01213739328 | AT102: 0.01219305853 | AU102: 0.01223337568 | AV102: 0.01225896696 | AW102: 0.01227042139 | AX102: 0.01226829701 | AY102: 0.01225312286 | AZ102: 0.01222540086 | BA102: 0.01218560751 | BB102: 0.01213419549 | BC102: 0.01207159511 | BD102: 0.01199821571 | BE102: 0.01191444689 | BF102: 0.0118206597 | BG102: 0.01171720773 | BH102: 0.01160442812 | BI102: 0.01148264252 | BJ102: 0.01135215794
P103: 44 | Q103: 0 | R103: 0.000987654321 | S103: 0.001910408432 | T103: 0.0027724049 | U103: 0.003577441077 | V103: 0.004329004329 | W103: 0.00503030303 | X103: 0.00568429392 | Y103: 0.006293706294 | Z103: 0.006861063465 | AA103: 0.007388701833 | AB103: 0.007878787879 | AC103: 0.008333333333 | AD103: 0.008754208754 | AE103: 0.009143155695 | AF103: 0.009501797637 | AG103: 0.009831649832 | AH103: 0.01013412817 | AI103: 0.01041055718 | AJ103: 0.01066217733 | AK103: 0.01089015152 | AL103: 0.0110955711 | AM103: 0.01127946128 | AN103: 0.01144278607 | AO103: 0.01158645276 | AP103: 0.01171131606 | AQ103: 0.01181818182 | AR103: 0.0119078105 | AS103: 0.01198092031 | AT103: 0.01203819012 | AU103: 0.01208026208 | AV103: 0.01210774411 | AW103: 0.01212121212 | AX103: 0.01212121212 | AY103: 0.01210826211 | AZ103: 0.01208285386 | BA103: 0.01204545455 | BB103: 0.01199650829 | BC103: 0.01193643755 | BD103: 0.0118656444 | BE103: 0.01178451178 | BF103: 0.01169340463 | BG103: 0.01159267089 | BH103: 0.01148264252 | BI103: 0.01136363636 | BJ103: 0.01123595506
P104: 45 | Q104: 0 | R104: 0.0009661835749 | S104: 0.001869761444 | T104: 0.002714646465 | U104: 0.003504432076 | V104: 0.004242424242 | W104: 0.004931669638 | X104: 0.005574980575 | Y104: 0.006174957118 | Z104: 0.006734006734 | AA104: 0.0072543618 | AB104: 0.007738095238 | AC104: 0.008187134503 | AD104: 0.008603274121 | AE104: 0.008988186954 | AF104: 0.009343434343 | AG104: 0.009670475244 | AH104: 0.009970674487 | AI104: 0.01024531025 | AJ104: 0.01049558081 | AK104: 0.01072261072 | AL104: 0.01092745638 | AM104: 0.01111111111 | AN104: 0.0112745098 | AO104: 0.01141853316 | AP104: 0.01154401154 | AQ104: 0.01165172855 | AR104: 0.01174242424 | AS104: 0.01181679812 | AT104: 0.01187551188 | AU104: 0.01191919192 | AV104: =IFERROR((VLOOKUP($P104,$D$15:$E$60,2,FALSE)*VLOOKUP(AV$8,$B$15:$C$60,2,FALSE))/($P104+AV$58),0) -> 0.01194843169 | AW104: 0.01196379378 | AX104: 0.01196581197 | AY104: 0.01195499297 | AZ104: 0.01193181818 | BA104: 0.01189674523 | BB104: 0.01185020941 | BC104: 0.01179262505 | BD104: 0.01172438672 | BE104: 0.01164587047 | BF104: 0.01155743481 | BG104: 0.0114594218 | BH104: 0.01135215794 | BI104: 0.01123595506 | BJ104: 0.01111111111

Sheet Ej. 4
B1: Posibilidades de que te salga un tema que te sepas dependiendo del número de ellos que te sabes | G1: Simulador de sorteo
B2: Temas parte A | C2: 19 | D2: Temas parte B | E2: 17 | G2: Temas parte A | H2: =_xlfn.RANK.EQ(AX7,$AX$7:$AX$36) -> 21 | I2: =_xlfn.CONCAT("4.A.",H2) -> 4.A.21 | J2: =VLOOKUP(I2,ListadoDeTemas1[[Tema]:[Nombre del tema]],2,FALSE) -> Análisis de la evolución de la balanza de pagos y de la Posición de Inversión Internacional de España desde la adopción del euro. Posición neta del Banco de España frente al Eurosistema. La sostenibilidad externa.
H3: =_xlfn.RANK.EQ(AX8,$AX$7:$AX$36) -> 9 | I3: =_xlfn.CONCAT("4.A.",H3) -> 4.A.9 | J3: =VLOOKUP(I3,ListadoDeTemas1[[Tema]:[Nombre del tema]],2,FALSE) -> Análisis de la industria en España. Características y situación actual. Los retos de la industria y la política industrial en España en el contexto de las economías desarrolladas. La estrategia de la UE.
C4: Probabilidad total | G4: Temas parte B | H4: =_xlfn.RANK.EQ(AZ7,$AZ$7:$AZ$32) -> 18 | I4: =_xlfn.CONCAT("4.B.",H4) -> 4.B.18 | J4: =VLOOKUP(I4,ListadoDeTemas1[[Tema]:[Nombre del tema]],2,FALSE) -> Fiscalidad internacional. El Impuesto sobre la Renta de no Residentes en España. Convenios de doble imposición, con especial referencia al modelo de la OCDE. El problema de la erosión de bases imponibles y propuestas de solución.
C5: =VLOOKUP($E$2,$P$6:$AU$33,$C$2+2,FALSE) -> 0.7767992927 | H5: =_xlfn.RANK.EQ(AZ8,$AZ$7:$AZ$32) -> 14 | I5: =_xlfn.CONCAT("4.B.",H5) -> 4.B.14 | J5: =VLOOKUP(I5,ListadoDeTemas1[[Tema]:[Nombre del tema]],2,FALSE) -> La teoría del federalismo fiscal: la asignación óptima de las funciones entre los distintos niveles de gobierno para alcanzar el bienestar máximo. La financiación de las haciendas territoriales: impuestos, transferencias y deuda. | O5: Probabilidad total
C6: =IFERROR(_xlfn.IFS(IFERROR(VLOOKUP($E$2,$P$6:$AU$35,$C$2+2,FALSE)<VLOOKUP($E$2+1,$P$6:$AU$35,$C$2+1,FALSE),1=0),"Cambiar un tema de la parte A por un tema de la parte B",VLOOKUP($E$2,$P$6:$AU$35,$C$2+2,FALSE)<VLOOKUP($E$2-1,$P$6:$AU$35,$C$2+3,FALSE),"Cambiar un tema de la parte B por un tema de la parte A"),"") ->  | Q6: 0 | R6: 1 | S6: 2 | T6: 3 | U6: 4 | V6: 5 | W6: 6 | X6: 7 | Y6: 8 | Z6: 9 | AA6: 10 | AB6: 11 | AC6: 12 | AD6: 13 | AE6: 14 | AF6: 15 | AG6: 16 | AH6: 17 | AI6: 18 | AJ6: 19 | AK6: 20 | AL6: 21 | AM6: 22 | AN6: 23 | AO6: 24 | AP6: 25 | AQ6: 26 | AR6: 27 | AS6: 28 | AT6: 29 | AU6: 30 | AX6: #A | AZ6: #B
C7: Probabilidad por número de temas | O7: Temas que te sabes parte B | P7: 0 | Q7: =VLOOKUP($P7,$D$15:$E$41,2,FALSE)*VLOOKUP(Q$6,$B$15:$C$45,2,FALSE) -> 0 | R7: =VLOOKUP($P7,$D$15:$E$41,2,FALSE)*VLOOKUP(R$6,$B$15:$C$45,2,FALSE) -> 0 | S7: 0 | T7: 0 | U7: 0 | V7: 0 | W7: 0 | X7: 0 | Y7: 0 | Z7: 0 | AA7: 0 | AB7: 0 | AC7: 0 | AD7: 0 | AE7: 0 | AF7: 0 | AG7: 0 | AH7: 0 | AI7: 0 | AJ7: 0 | AK7: 0 | AL7: 0 | AM7: 0 | AN7: 0 | AO7: 0 | AP7: 0 | AQ7: 0 | AR7: 0 | AS7: 0 | AT7: 0 | AU7: 0 | AW7: 1 | AX7: =RAND() -> 0.37528969 | AY7: 1 | AZ7: =RAND() -> 0.4690213122
C8: =VLOOKUP($E$2,$P$38:$AU$65,$C$2+2,FALSE) -> 0.02157775813 | P8: 1 | Q8: =VLOOKUP($P8,$D$15:$E$41,2,FALSE)*VLOOKUP(Q$6,$B$15:$C$45,2,FALSE) -> 0 | R8: 0.005128205128 | S8: 0.0100795756 | T8: 0.01485411141 | U8: 0.01945181256 | V8: 0.02387267905 | W8: 0.02811671088 | X8: 0.03218390805 | Y8: 0.03607427056 | Z8: 0.03978779841 | AA8: 0.0433244916 | AB8: 0.04668435013 | AC8: 0.04986737401 | AD8: 0.05287356322 | AE8: 0.05570291777 | AF8: 0.05835543767 | AG8: 0.0608311229 | AH8: 0.06312997347 | AI8: 0.06525198939 | AJ8: 0.06719717065 | AK8: 0.06896551724 | AL8: 0.07055702918 | AM8: 0.07197170645 | AN8: 0.07320954907 | AO8: 0.07427055703 | AP8: 0.07515473033 | AQ8: 0.07586206897 | AR8: 0.07639257294 | AS8: 0.07674624226 | AT8: 0.07692307692 | AU8: 0.07692307692 | AW8: 2 | AX8: =RAND() -> 0.7292824248 | AY8: 2 | AZ8: 0.6233434205
P9: 2 | Q9: 0 | R9: 0.01005128205 | S9: 0.01975596817 | T9: 0.02911405836 | U9: 0.03812555261 | V9: 0.04679045093 | W9: 0.05510875332 | X9: 0.06308045977 | Y9: 0.07070557029 | Z9: 0.07798408488 | AA9: 0.08491600354 | AB9: 0.09150132626 | AC9: 0.09774005305 | AD9: 0.1036321839 | AE9: 0.1091777188 | AF9: 0.1143766578 | AG9: 0.1192290009 | AH9: 0.123734748 | AI9: 0.1278938992 | AJ9: 0.1317064545 | AK9: 0.1351724138 | AL9: 0.1382917772 | AM9: 0.1410645447 | AN9: 0.1434907162 | AO9: 0.1455702918 | AP9: 0.1473032714 | AQ9: 0.1486896552 | AR9: 0.149729443 | AS9: 0.1504226348 | AT9: 0.1507692308 | AU9: 0.1507692308 | AW9: 3 | AX9: 0.4253420936 | AY9: 3 | AZ9: 0.9607171133
C10: Nivel de eficiencia | P10: 3 | Q10: 0 | R10: 0.01476923077 | S10: 0.02902917772 | T10: 0.04277984085 | U10: 0.05602122016 | V10: 0.06875331565 | W10: 0.08097612732 | X10: 0.09268965517 | Y10: 0.1038938992 | Z10: 0.1145888594 | AA10: 0.1247745358 | AB10: 0.1344509284 | AC10: 0.1436180371 | AD10: 0.1522758621 | AE10: 0.1604244032 | AF10: 0.1680636605 | AG10: 0.175193634 | AH10: 0.1818143236 | AI10: 0.1879257294 | AJ10: 0.1935278515 | AK10: 0.1986206897 | AL10: 0.203204244 | AM10: 0.2072785146 | AN10: 0.2108435013 | AO10: 0.2138992042 | AP10: 0.2164456233 | AQ10: 0.2184827586 | AR10: 0.2200106101 | AS10: 0.2210291777 | AT10: 0.2215384615 | AU10: 0.2215384615 | AW10: 4 | AX10: 0.09119718973 | AY10: 4 | AZ10: 0.2514889718
C11: =C8/MAX(Q39:AU65) -> 1 | P11: 4 | Q11: 0 | R11: 0.01928205128 | S11: 0.03789920424 | T11: 0.05585145889 | U11: 0.07313881521 | V11: 0.08976127321 | W11: 0.1057188329 | X11: 0.1210114943 | Y11: 0.1356392573 | Z11: 0.149602122 | AA11: 0.1629000884 | AB11: 0.1755331565 | AC11: 0.1875013263 | AD11: 0.1988045977 | AE11: 0.2094429708 | AF11: 0.2194164456 | AG11: 0.2287250221 | AH11: 0.2373687003 | AI11: 0.2453474801 | AJ11: 0.2526613616 | AK11: 0.2593103448 | AL11: 0.2652944297 | AM11: 0.2706136163 | AN11: 0.2752679045 | AO11: 0.2792572944 | AP11: 0.282581786 | AQ11: 0.2852413793 | AR11: 0.2872360743 | AS11: 0.2885658709 | AT11: 0.2892307692 | AU11: 0.2892307692 | AW11: 5 | AX11: 0.8552346599 | AY11: 5 | AZ11: 0.917289317
P12: 5 | Q12: 0 | R12: 0.02358974359 | S12: 0.04636604775 | T12: 0.06832891247 | U12: 0.08947833775 | V12: 0.1098143236 | W12: 0.12933687 | X12: 0.148045977 | Y12: 0.1659416446 | Z12: 0.1830238727 | AA12: 0.1992926614 | AB12: 0.2147480106 | AC12: 0.2293899204 | AD12: 0.2432183908 | AE12: 0.2562334218 | AF12: 0.2684350133 | AG12: 0.2798231653 | AH12: 0.290397878 | AI12: 0.3001591512 | AJ12: 0.309106985 | AK12: 0.3172413793 | AL12: 0.3245623342 | AM12: 0.3310698497 | AN12: 0.3367639257 | AO12: 0.3416445623 | AP12: 0.3457117595 | AQ12: 0.3489655172 | AR12: 0.3514058355 | AS12: 0.3530327144 | AT12: 0.3538461538 | AU12: 0.3538461538 | AW12: 6 | AX12: 0.7024436562 | AY12: 6 | AZ12: 0.4092651107
B13: Parte A | D13: Parte B | P13: 6 | Q13: 0 | R13: 0.02769230769 | S13: 0.05442970822 | T13: 0.08021220159 | U13: 0.1050397878 | V13: 0.1289124668 | W13: 0.1518302387 | X13: 0.1737931034 | Y13: 0.194801061 | Z13: 0.2148541114 | AA13: 0.2339522546 | AB13: 0.2520954907 | AC13: 0.2692838196 | AD13: 0.2855172414 | AE13: 0.300795756 | AF13: 0.3151193634 | AG13: 0.3284880637 | AH13: 0.3409018568 | AI13: 0.3523607427 | AJ13: 0.3628647215 | AK13: 0.3724137931 | AL13: 0.3810079576 | AM13: 0.3886472149 | AN13: 0.395331565 | AO13: 0.401061008 | AP13: 0.4058355438 | AQ13: 0.4096551724 | AR13: 0.4125198939 | AS13: 0.4144297082 | AT13: 0.4153846154 | AU13: 0.4153846154 | AW13: 7 | AX13: 0.9250823908 | AY13: 7 | AZ13: 0.498692692
B14: Temas que sabes | C14: Posibilidades | D14: Temas que sabes | E14: Posibilidades | P14: 7 | Q14: 0 | R14: 0.03158974359 | S14: 0.06209018568 | T14: 0.09150132626 | U14: 0.1198231653 | V14: 0.1470557029 | W14: 0.173198939 | X14: 0.1982528736 | Y14: 0.2222175066 | Z14: 0.2450928382 | AA14: 0.2668788683 | AB14: 0.2875755968 | AC14: 0.3071830239 | AD14: 0.3257011494 | AE14: 0.3431299735 | AF14: 0.359469496 | AG14: 0.3747197171 | AH14: 0.3888806366 | AI14: 0.4019522546 | AJ14: 0.4139345712 | AK14: 0.4248275862 | AL14: 0.4346312997 | AM14: 0.4433457118 | AN14: 0.4509708223 | AO14: 0.4575066313 | AP14: 0.4629531388 | AQ14: 0.4673103448 | AR14: 0.4705782493 | AS14: 0.4727568523 | AT14: 0.4738461538 | AU14: 0.4738461538 | AW14: 8 | AX14: 0.4149602833 | AY14: 8 | AZ14: 0.9085763856
B15: 30 | C15: =(B15/30)+(((30-B15)/30)*(B15/29)) -> 1 | D15: 26 | E15: =(D15/26)+(((26-D15)/26)*(D15/25)) -> 1 | P15: 8 | Q15: 0 | R15: 0.03528205128 | S15: 0.06934748011 | T15: 0.1021962865 | U15: 0.1338284704 | V15: 0.1642440318 | W15: 0.1934429708 | X15: 0.2214252874 | Y15: 0.2481909814 | Z15: 0.2737400531 | AA15: 0.2980725022 | AB15: 0.3211883289 | AC15: 0.3430875332 | AD15: 0.3637701149 | AE15: 0.3832360743 | AF15: 0.4014854111 | AG15: 0.4185181256 | AH15: 0.4343342175 | AI15: 0.448933687 | AJ15: 0.462316534 | AK15: 0.4744827586 | AL15: 0.4854323607 | AM15: 0.4951653404 | AN15: 0.5036816976 | AO15: 0.5109814324 | AP15: 0.5170645447 | AQ15: 0.5219310345 | AR15: 0.5255809019 | AS15: 0.5280141468 | AT15: 0.5292307692 | AU15: 0.5292307692 | AW15: 9 | AX15: 0.5846656477 | AY15: 9 | AZ15: 0.4601612781
B16: 29 | C16: =(B16/30)+(((30-B16)/30)*(B16/29)) -> 1 | D16: 25 | E16: =(D16/26)+(((26-D16)/26)*(D16/25)) -> 1 | P16: 9 | Q16: 0 | R16: =VLOOKUP($P16,$D$15:$E$41,2,FALSE)*VLOOKUP(R$6,$B$15:$C$45,2,FALSE) -> 0.03876923077 | S16: 0.07620159151 | T16: 0.1122970822 | U16: 0.1470557029 | V16: 0.1804774536 | W16: 0.2125623342 | X16: 0.2433103448 | Y16: 0.2727214854 | Z16: 0.300795756 | AA16: 0.3275331565 | AB16: 0.352933687 | AC16: 0.3769973475 | AD16: 0.3997241379 | AE16: 0.4211140584 | AF16: 0.4411671088 | AG16: 0.4598832891 | AH16: 0.4772625995 | AI16: 0.4933050398 | AJ16: 0.5080106101 | AK16: 0.5213793103 | AL16: 0.5334111406 | AM16: 0.5441061008 | AN16: 0.553464191 | AO16: 0.5614854111 | AP16: 0.5681697613 | AQ16: 0.5735172414 | AR16: 0.5775278515 | AS16: 0.5802015915 | AT16: 0.5815384615 | AU16: 0.5815384615 | AW16: 10 | AX16: 0.9812165052 | AY16: 10 | AZ16: 0.5255574805
B17: 28 | C17: 0.9977011494 | D17: 24 | E17: 0.9969230769 | P17: 10 | Q17: 0 | R17: 0.04205128205 | S17: 0.08265251989 | T17: 0.1218037135 | U17: 0.159504863 | V17: 0.1957559682 | W17: 0.2305570292 | X17: 0.263908046 | Y17: 0.2958090186 | Z17: 0.3262599469 | AA17: 0.3552608311 | AB17: 0.3828116711 | AC17: 0.4089124668 | AD17: 0.4335632184 | AE17: 0.4567639257 | AF17: 0.4785145889 | AG17: 0.4988152078 | AH17: 0.5176657825 | AI17: 0.535066313 | AJ17: 0.5510167993 | AK17: 0.5655172414 | AL17: 0.5785676393 | AM17: 0.5901679929 | AN17: 0.6003183024 | AO17: 0.6090185676 | AP17: 0.6162687887 | AQ17: 0.6220689655 | AR17: 0.6264190981 | AS17: 0.6293191866 | AT17: 0.6307692308 | AU17: 0.6307692308 | AW17: 11 | AX17: 0.1216008475 | AY17: 11 | AZ17: 0.9442936908
B18: 27 | C18: 0.9931034483 | D18: 23 | E18: 0.9907692308 | P18: 11 | Q18: 0 | R18: 0.04512820513 | S18: 0.08870026525 | T18: 0.1307161804 | U18: 0.1711759505 | V18: 0.2100795756 | W18: 0.2474270557 | X18: 0.2832183908 | Y18: 0.3174535809 | Z18: 0.350132626 | AA18: 0.3812555261 | AB18: 0.4108222812 | AC18: 0.4388328912 | AD18: 0.4652873563 | AE18: 0.4901856764 | AF18: 0.5135278515 | AG18: 0.5353138815 | AH18: 0.5555437666 | AI18: 0.5742175066 | AJ18: 0.5913351017 | AK18: 0.6068965517 | AL18: 0.6209018568 | AM18: 0.6333510168 | AN18: 0.6442440318 | AO18: 0.6535809019 | AP18: 0.6613616269 | AQ18: 0.6675862069 | AR18: 0.6722546419 | AS18: 0.6753669319 | AT18: 0.6769230769 | AU18: 0.6769230769 | AW18: 12 | AX18: 0.8491456451 | AY18: 12 | AZ18: 0.8581930982
B19: 26 | C19: 0.9862068966 | D19: 22 | E19: 0.9815384615 | P19: 12 | Q19: 0 | R19: 0.048 | S19: 0.09434482759 | T19: 0.1390344828 | U19: 0.1820689655 | V19: 0.2234482759 | W19: 0.2631724138 | X19: 0.3012413793 | Y19: 0.3376551724 | Z19: 0.3724137931 | AA19: 0.4055172414 | AB19: 0.4369655172 | AC19: 0.4667586207 | AD19: 0.4948965517 | AE19: 0.5213793103 | AF19: 0.5462068966 | AG19: 0.5693793103 | AH19: 0.5908965517 | AI19: 0.6107586207 | AJ19: 0.6289655172 | AK19: 0.6455172414 | AL19: 0.6604137931 | AM19: 0.6736551724 | AN19: 0.6852413793 | AO19: 0.6951724138 | AP19: 0.7034482759 | AQ19: 0.7100689655 | AR19: 0.7150344828 | AS19: 0.7183448276 | AT19: 0.72 | AU19: 0.72 | AW19: 13 | AX19: 0.4555343574 | AY19: 13 | AZ19: 0.8046973357
B20: 25 | C20: 0.9770114943 | D20: 21 | E20: 0.9692307692 | P20: 13 | Q20: 0 | R20: 0.05066666667 | S20: 0.0995862069 | T20: 0.1467586207 | U20: 0.192183908 | V20: 0.235862069 | W20: 0.2777931034 | X20: 0.3179770115 | Y20: 0.3564137931 | Z20: 0.3931034483 | AA20: 0.428045977 | AB20: 0.4612413793 | AC20: 0.4926896552 | AD20: 0.5223908046 | AE20: 0.5503448276 | AF20: 0.5765517241 | AG20: 0.6010114943 | AH20: 0.6237241379 | AI20: 0.6446896552 | AJ20: 0.663908046 | AK20: 0.6813793103 | AL20: 0.6971034483 | AM20: 0.7110804598 | AN20: 0.7233103448 | AO20: 0.7337931034 | AP20: 0.7425287356 | AQ20: 0.7495172414 | AR20: 0.7547586207 | AS20: 0.7582528736 | AT20: 0.76 | AU20: 0.76 | AW20: 14 | AX20: 0.5434014267 | AY20: 14 | AZ20: 0.1396410964
B21: 24 | C21: 0.9655172414 | D21: 20 | E21: 0.9538461538 | P21: 14 | Q21: 0 | R21: 0.05312820513 | S21: 0.1044244032 | T21: 0.1538885942 | U21: 0.2015207781 | V21: 0.2473209549 | W21: 0.2912891247 | X21: 0.3334252874 | Y21: 0.373729443 | Z21: 0.4122015915 | AA21: 0.448841733 | AB21: 0.4836498674 | AC21: 0.5166259947 | AD21: 0.5477701149 | AE21: 0.5770822281 | AF21: 0.6045623342 | AG21: 0.6302104332 | AH21: 0.6540265252 | AI21: 0.6760106101 | AJ21: 0.6961626879 | AK21: 0.7144827586 | AL21: 0.7309708223 | AM21: 0.7456268789 | AN21: 0.7584509284 | AO21: 0.7694429708 | AP21: 0.7786030062 | AQ21: 0.7859310345 | AR21: 0.7914270557 | AS21: 0.7950910698 | AT21: 0.7969230769 | AU21: 0.7969230769 | AW21: 15 | AX21: 0.3423329648 | AY21: 15 | AZ21: 0.9609996808
B22: 23 | C22: 0.9517241379 | D22: 19 | E22: 0.9353846154 | P22: 15 | Q22: 0 | R22: 0.05538461538 | S22: 0.1088594164 | T22: 0.1604244032 | U22: 0.2100795756 | V22: 0.2578249337 | W22: 0.3036604775 | X22: 0.3475862069 | Y22: 0.389602122 | Z22: 0.4297082228 | AA22: 0.4679045093 | AB22: 0.5041909814 | AC22: 0.5385676393 | AD22: 0.5710344828 | AE22: 0.6015915119 | AF22: 0.6302387268 | AG22: 0.6569761273 | AH22: 0.6818037135 | AI22: 0.7047214854 | AJ22: 0.725729443 | AK22: 0.7448275862 | AL22: 0.7620159151 | AM22: 0.7772944297 | AN22: 0.79066313 | AO22: 0.8021220159 | AP22: 0.8116710875 | AQ22: 0.8193103448 | AR22: 0.8250397878 | AS22: 0.8288594164 | AT22: 0.8307692308 | AU22: 0.8307692308 | AW22: 16 | AX22: 0.4022884876 | AY22: 16 | AZ22: 0.3107141531
B23: 22 | C23: 0.9356321839 | D23: 18 | E23: 0.9138461538 | P23: 16 | Q23: 0 | R23: 0.05743589744 | S23: 0.1128912467 | T23: 0.1663660477 | U23: 0.2178603006 | V23: 0.2673740053 | W23: 0.3149071618 | X23: 0.3604597701 | Y23: 0.4040318302 | Z23: 0.4456233422 | AA23: 0.4852343059 | AB23: 0.5228647215 | AC23: 0.5585145889 | AD23: 0.592183908 | AE23: 0.623872679 | AF23: 0.6535809019 | AG23: 0.6813085765 | AH23: 0.7070557029 | AI23: 0.7308222812 | AJ23: 0.7526083112 | AK23: 0.7724137931 | AL23: 0.7902387268 | AM23: 0.8060831123 | AN23: 0.8199469496 | AO23: 0.8318302387 | AP23: 0.8417329797 | AQ23: 0.8496551724 | AR23: 0.855596817 | AS23: 0.8595579134 | AT23: 0.8615384615 | AU23: 0.8615384615 | AW23: 17 | AX23: 0.9216156169 | AY23: 17 | AZ23: 0.7667854405
B24: 21 | C24: 0.9172413793 | D24: 17 | E24: 0.8892307692 | P24: 17 | Q24: 0 | R24: 0.05928205128 | S24: 0.1165198939 | T24: 0.1717135279 | U24: 0.2248629531 | V24: 0.2759681698 | W24: 0.3250291777 | X24: 0.372045977 | Y24: 0.4170185676 | Z24: 0.4599469496 | AA24: 0.5008311229 | AB24: 0.5396710875 | AC24: 0.5764668435 | AD24: 0.6112183908 | AE24: 0.6439257294 | AF24: 0.6745888594 | AG24: =VLOOKUP($P24,$D$15:$E$41,2,FALSE)*VLOOKUP(AG$6,$B$15:$C$45,2,FALSE) -> 0.7032077807 | AH24: 0.7297824934 | AI24: 0.7543129973 | AJ24: 0.7767992927 | AK24: 0.7972413793 | AL24: 0.8156392573 | AM24: 0.8319929266 | AN24: 0.8463023873 | AO24: 0.8585676393 | AP24: 0.8687886826 | AQ24: 0.8769655172 | AR24: 0.8830981432 | AS24: 0.8871865606 | AT24: 0.8892307692 | AU24: 0.8892307692 | AW24: 18 | AX24: 0.1323222869 | AY24: 18 | AZ24: 0.2591891403
B25: 20 | C25: 0.8965517241 | D25: 16 | E25: 0.8615384615 | P25: 18 | Q25: 0 | R25: 0.06092307692 | S25: 0.1197453581 | T25: 0.1764668435 | U25: 0.2310875332 | V25: 0.2836074271 | W25: 0.3340265252 | X25: 0.3823448276 | Y25: 0.4285623342 | Z25: 0.4726790451 | AA25: 0.5146949602 | AB25: 0.5546100796 | AC25: 0.5924244032 | AD25: 0.628137931 | AE25: 0.6617506631 | AF25: 0.6932625995 | AG25: 0.7226737401 | AH25: 0.7499840849 | AI25: 0.775193634 | AJ25: 0.7983023873 | AK25: 0.8193103448 | AL25: 0.8382175066 | AM25: 0.8550238727 | AN25: 0.869729443 | AO25: 0.8823342175 | AP25: 0.8928381963 | AQ25: 0.9012413793 | AR25: 0.9075437666 | AS25: 0.9117453581 | AT25: 0.9138461538 | AU25: 0.9138461538 | AW25: 19 | AX25: 0.3757148812 | AY25: 19 | AZ25: 0.7059346723
B26: 19 | C26: 0.8735632184 | D26: 15 | E26: 0.8307692308 | P26: 19 | Q26: 0 | R26: 0.06235897436 | S26: 0.1225676393 | T26: 0.1806259947 | U26: 0.2365340407 | V26: 0.2902917772 | W26: 0.3418992042 | X26: 0.3913563218 | Y26: 0.43866313 | Z26: 0.4838196286 | AA26: 0.5268258179 | AB26: 0.5676816976 | AC26: 0.6063872679 | AD26: 0.6429425287 | AE26: 0.6773474801 | AF26: 0.709602122 | AG26: 0.7397064545 | AH26: 0.7676604775 | AI26: 0.793464191 | AJ26: 0.817117595 | AK26: 0.8386206897 | AL26: 0.8579734748 | AM26: 0.8751759505 | AN26: 0.8902281167 | AO26: 0.9031299735 | AP26: 0.9138815208 | AQ26: 0.9224827586 | AR26: 0.928933687 | AS26: 0.9332343059 | AT26: 0.9353846154 | AU26: 0.9353846154 | AW26: 20 | AX26: 0.1632685797 | AY26: 20 | AZ26: 0.8962412617
B27: 18 | C27: 0.8482758621 | D27: 14 | E27: 0.7969230769 | P27: 20 | Q27: 0 | R27: 0.06358974359 | S27: 0.1249867374 | T27: 0.1841909814 | U27: 0.2412024757 | V27: 0.2960212202 | W27: 0.3486472149 | X27: 0.3990804598 | Y27: 0.4473209549 | Z27: 0.4933687003 | AA27: 0.5372236958 | AB27: 0.5788859416 | AC27: 0.6183554377 | AD27: 0.6556321839 | AE27: 0.6907161804 | AF27: 0.7236074271 | AG27: 0.754305924 | AH27: 0.7828116711 | AI27: 0.8091246684 | AJ27: 0.833244916 | AK27: 0.8551724138 | AL27: 0.8749071618 | AM27: 0.89244916 | AN27: 0.9077984085 | AO27: 0.9209549072 | AP27: 0.9319186561 | AQ27: 0.9406896552 | AR27: 0.9472679045 | AS27: 0.9516534041 | AT27: 0.9538461538 | AU27: 0.9538461538 | AW27: 21 | AX27: 0.03231717208 | AY27: 21 | AZ27: 0.01793466638
B28: 17 | C28: 0.8206896552 | D28: 13 | E28: 0.76 | P28: 21 | Q28: 0 | R28: 0.06461538462 | S28: 0.1270026525 | T28: 0.1871618037 | U28: 0.2450928382 | V28: 0.300795756 | W28: 0.354270557 | X28: 0.4055172414 | Y28: 0.454535809 | Z28: 0.5013262599 | AA28: 0.5458885942 | AB28: 0.5882228117 | AC28: 0.6283289125 | AD28: 0.6662068966 | AE28: 0.7018567639 | AF28: 0.7352785146 | AG28: 0.7664721485 | AH28: 0.7954376658 | AI28: 0.8221750663 | AJ28: 0.8466843501 | AK28: 0.8689655172 | AL28: 0.8890185676 | AM28: 0.9068435013 | AN28: 0.9224403183 | AO28: 0.9358090186 | AP28: 0.9469496021 | AQ28: 0.955862069 | AR28: 0.9625464191 | AS28: 0.9670026525 | AT28: 0.9692307692 | AU28: 0.9692307692 | AW28: 22 | AX28: 0.7046703261 | AY28: 22 | AZ28: 0.8049683887
B29: 16 | C29: 0.7908045977 | D29: 12 | E29: 0.72 | P29: 22 | Q29: 0 | R29: 0.06543589744 | S29: 0.1286153846 | T29: 0.1895384615 | U29: 0.2482051282 | V29: 0.3046153846 | W29: 0.3587692308 | X29: 0.4106666667 | Y29: 0.4603076923 | Z29: 0.5076923077 | AA29: 0.5528205128 | AB29: 0.5956923077 | AC29: 0.6363076923 | AD29: 0.6746666667 | AE29: 0.7107692308 | AF29: 0.7446153846 | AG29: 0.7762051282 | AH29: 0.8055384615 | AI29: 0.8326153846 | AJ29: 0.8574358974 | AK29: 0.88 | AL29: 0.9003076923 | AM29: 0.9183589744 | AN29: 0.9341538462 | AO29: 0.9476923077 | AP29: 0.958974359 | AQ29: 0.968 | AR29: 0.9747692308 | AS29: 0.9792820513 | AT29: 0.9815384615 | AU29: 0.9815384615 | AW29: 23 | AX29: 0.5591472871 | AY29: 23 | AZ29: 0.6033428429
B30: 15 | C30: 0.7586206897 | D30: 11 | E30: 0.6769230769 | P30: 23 | Q30: =VLOOKUP($P30,$D$15:$E$41,2,FALSE)*VLOOKUP(Q$6,$B$15:$C$45,2,FALSE) -> 0 | R30: 0.06605128205 | S30: 0.1298249337 | T30: 0.1913209549 | U30: 0.2505393457 | V30: 0.3074801061 | W30: 0.3621432361 | X30: 0.4145287356 | Y30: 0.4646366048 | Z30: 0.5124668435 | AA30: 0.5580194518 | AB30: 0.6012944297 | AC30: 0.6422917772 | AD30: 0.6810114943 | AE30: 0.7174535809 | AF30: 0.7516180371 | AG30: 0.783504863 | AH30: 0.8131140584 | AI30: 0.8404456233 | AJ30: 0.8654995579 | AK30: 0.8882758621 | AL30: 0.9087745358 | AM30: 0.9269955791 | AN30: 0.942938992 | AO30: 0.9566047745 | AP30: 0.9679929266 | AQ30: 0.9771034483 | AR30: 0.9839363395 | AS30: 0.9884916004 | AT30: 0.9907692308 | AU30: 0.9907692308 | AW30: 24 | AX30: 0.2283717863 | AY30: 24 | AZ30: 0.7057406091
B31: 14 | C31: 0.724137931 | D31: 10 | E31: 0.6307692308 | P31: 24 | Q31: 0 | R31: 0.06646153846 | S31: 0.1306312997 | T31: 0.1925092838 | U31: 0.2520954907 | V31: 0.3093899204 | W31: 0.3643925729 | X31: 0.4171034483 | Y31: 0.4675225464 | Z31: 0.5156498674 | AA31: 0.5614854111 | AB31: 0.6050291777 | AC31: 0.6462811671 | AD31: 0.6852413793 | AE31: 0.7219098143 | AF31: 0.7562864721 | AG31: 0.7883713528 | AH31: 0.8181644562 | AI31: 0.8456657825 | AJ31: 0.8708753316 | AK31: 0.8937931034 | AL31: 0.9144190981 | AM31: 0.9327533156 | AN31: 0.948795756 | AO31: 0.9625464191 | AP31: 0.974005305 | AQ31: 0.9831724138 | AR31: 0.9900477454 | AS31: 0.9946312997 | AT31: 0.9969230769 | AU31: 0.9969230769 | AW31: 25 | AX31: 0.1929677415 | AY31: 25 | AZ31: 0.028257164
B32: 13 | C32: 0.6873563218 | D32: 9 | E32: 0.5815384615 | P32: 25 | Q32: 0 | R32: 0.06666666667 | S32: 0.1310344828 | T32: 0.1931034483 | U32: 0.2528735632 | V32: 0.3103448276 | W32: 0.3655172414 | X32: 0.4183908046 | Y32: 0.4689655172 | Z32: 0.5172413793 | AA32: 0.5632183908 | AB32: 0.6068965517 | AC32: 0.6482758621 | AD32: 0.6873563218 | AE32: 0.724137931 | AF32: 0.7586206897 | AG32: 0.7908045977 | AH32: 0.8206896552 | AI32: 0.8482758621 | AJ32: 0.8735632184 | AK32: 0.8965517241 | AL32: 0.9172413793 | AM32: 0.9356321839 | AN32: 0.9517241379 | AO32: 0.9655172414 | AP32: 0.9770114943 | AQ32: 0.9862068966 | AR32: 0.9931034483 | AS32: 0.9977011494 | AT32: 1 | AU32: 1 | AW32: 26 | AX32: 0.7396477857 | AY32: 26 | AZ32: 0.7832066169
B33: 12 | C33: 0.6482758621 | D33: 8 | E33: 0.5292307692 | P33: 26 | Q33: 0 | R33: =VLOOKUP($P33,$D$15:$E$41,2,FALSE)*VLOOKUP(R$6,$B$15:$C$45,2,FALSE) -> 0.06666666667 | S33: 0.1310344828 | T33: 0.1931034483 | U33: 0.2528735632 | V33: 0.3103448276 | W33: 0.3655172414 | X33: 0.4183908046 | Y33: 0.4689655172 | Z33: 0.5172413793 | AA33: 0.5632183908 | AB33: 0.6068965517 | AC33: 0.6482758621 | AD33: 0.6873563218 | AE33: 0.724137931 | AF33: 0.7586206897 | AG33: 0.7908045977 | AH33: 0.8206896552 | AI33: 0.8482758621 | AJ33: 0.8735632184 | AK33: 0.8965517241 | AL33: 0.9172413793 | AM33: 0.9356321839 | AN33: 0.9517241379 | AO33: 0.9655172414 | AP33: 0.9770114943 | AQ33: 0.9862068966 | AR33: 0.9931034483 | AS33: 0.9977011494 | AT33: 1 | AU33: 1 | AW33: 27 | AX33: 0.9653838229
B34: 11 | C34: 0.6068965517 | D34: 7 | E34: 0.4738461538 | AW34: 28 | AX34: 0.4447987191
B35: 10 | C35: 0.5632183908 | D35: 6 | E35: 0.4153846154 | AW35: 29 | AX35: 0.7765451441
B36: 9 | C36: 0.5172413793 | D36: 5 | E36: 0.3538461538 | O36: Probabilidad de aprobar por tema estudiado | AW36: 30 | AX36: 0.3107462108
B37: 8 | C37: 0.4689655172 | D37: 4 | E37: 0.2892307692 | Q37: Temas que te sabes parte A
B38: 7 | C38: 0.4183908046 | D38: 3 | E38: 0.2215384615 | Q38: 0 | R38: 1 | S38: 2 | T38: 3 | U38: 4 | V38: 5 | W38: 6 | X38: 7 | Y38: 8 | Z38: 9 | AA38: 10 | AB38: 11 | AC38: 12 | AD38: 13 | AE38: 14 | AF38: 15 | AG38: 16 | AH38: 17 | AI38: 18 | AJ38: 19 | AK38: 20 | AL38: 21 | AM38: 22 | AN38: 23 | AO38: 24 | AP38: 25 | AQ38: 26 | AR38: 27 | AS38: 28 | AT38: 29 | AU38: 30
B39: 6 | C39: 0.3655172414 | D39: 2 | E39: 0.1507692308 | O39: Temas que te sabes parte B | P39: 0 | Q39: =IFERROR(VLOOKUP($P39,$D$15:$E$41,2,FALSE)*VLOOKUP(Q$6,$B$15:$C$45,2,FALSE)/($P39+Q$38),0) -> 0 | R39: =IFERROR(VLOOKUP($P39,$D$15:$E$41,2,FALSE)*VLOOKUP(R$6,$B$15:$C$45,2,FALSE)/($P39+R$38),0) -> 0 | S39: 0 | T39: 0 | U39: 0 | V39: 0 | W39: 0 | X39: 0 | Y39: 0 | Z39: 0 | AA39: 0 | AB39: 0 | AC39: 0 | AD39: 0 | AE39: 0 | AF39: 0 | AG39: 0 | AH39: 0 | AI39: 0 | AJ39: 0 | AK39: 0 | AL39: 0 | AM39: 0 | AN39: 0 | AO39: 0 | AP39: 0 | AQ39: 0 | AR39: 0 | AS39: 0 | AT39: 0 | AU39: 0
B40: 5 | C40: 0.3103448276 | D40: 1 | E40: 0.07692307692 | P40: 1 | Q40: =IFERROR(VLOOKUP($P40,$D$15:$E$41,2,FALSE)*VLOOKUP(Q$6,$B$15:$C$45,2,FALSE)/($P40+Q$38),0) -> 0 | R40: 0.002564102564 | S40: 0.003359858532 | T40: 0.003713527851 | U40: 0.003890362511 | V40: 0.003978779841 | W40: 0.004016672982 | X40: 0.004022988506 | Y40: 0.004008252284 | Z40: 0.003978779841 | AA40: 0.003938590145 | AB40: 0.003890362511 | AC40: 0.003835951847 | AD40: 0.003776683087 | AE40: 0.003713527851 | AF40: 0.003647214854 | AG40: 0.003578301347 | AH40: 0.003507220749 | AI40: 0.003434315231 | AJ40: 0.003359858532 | AK40: 0.00328407225 | AL40: 0.00320713769 | AM40: 0.003129204628 | AN40: 0.003050397878 | AO40: 0.002970822281 | AP40: 0.002890566551 | AQ40: 0.002809706258 | AR40: 0.002728306177 | AS40: 0.002646422147 | AT40: 0.002564102564 | AU40: 0.002481389578
B41: 4 | C41: 0.2528735632 | D41: 0 | E41: 0 | P41: 2 | Q41: 0 | R41: 0.00335042735 | S41: 0.004938992042 | T41: 0.005822811671 | U41: 0.006354258768 | V41: 0.006684350133 | W41: 0.006888594164 | X41: 0.007008939974 | Y41: 0.007070557029 | Z41: 0.007089462262 | AA41: 0.007076333628 | AB41: 0.007038563558 | AC41: 0.006981432361 | AD41: 0.006908812261 | AE41: 0.006823607427 | AF41: 0.006728038696 | AG41: 0.006623833382 | AH41: 0.006512355158 | AI41: 0.00639469496 | AJ41: 0.006271735927 | AK41: 0.006144200627 | AL41: 0.006012685965 | AM41: 0.00587768936 | AN41: 0.005739628647 | AO41: 0.005598857376 | AP41: 0.00545567672 | AQ41: 0.005310344828 | AR41: 0.00516308424 | AS41: 0.005014087828 | AT41: 0.004863523573 | AU41: 0.004711538462
B42: 3 | C42: 0.1931034483 | P42: 3 | Q42: 0 | R42: 0.003692307692 | S42: 0.005805835544 | T42: 0.007129973475 | U42: 0.008003031451 | V42: 0.008594164456 | W42: 0.00899734748 | X42: 0.009268965517 | Y42: 0.009444899928 | Z42: 0.009549071618 | AA42: 0.009598041216 | AB42: 0.009603637742 | AC42: 0.009574535809 | AD42: 0.009517241379 | AE42: 0.009436729599 | AF42: 0.009336870027 | AG42: 0.009220717576 | AH42: 0.00909071618 | AI42: 0.008948844259 | AJ42: 0.008796720521 | AK42: 0.008635682159 | AL42: 0.008466843501 | AM42: 0.008291140584 | AN42: 0.008109365436 | AO42: 0.00792219275 | AP42: 0.007730200834 | AQ42: 0.007533888228 | AR42: 0.007333687003 | AS42: 0.007129973475 | AT42: 0.006923076923 | AU42: 0.006713286713
B43: 2 | C43: 0.1310344828 | P43: 4 | Q43: 0 | R43: 0.003856410256 | S43: 0.006316534041 | T43: 0.007978779841 | U43: 0.009142351901 | V43: 0.009973474801 | W43: 0.01057188329 | X43: 0.01100104493 | Y43: 0.01130327144 | Z43: 0.01150785554 | AA43: 0.0116357206 | AB43: 0.01170221043 | AC43: 0.01171883289 | AD43: 0.0116943881 | AE43: 0.0116357206 | AF43: 0.01154823398 | AG43: 0.01143625111 | AH43: 0.01130327144 | AI43: 0.01115215819 | AJ43: 0.01098527659 | AK43: 0.0108045977 | AL43: 0.01061177719 | AM43: 0.01040821601 | AN43: 0.01019510757 | AO43: 0.009973474801 | AP43: 0.009744199518 | AQ43: 0.009508045977 | AR43: 0.009265679815 | AS43: 0.009017683466 | AT43: 0.008764568765 | AU43: 0.00850678733
B44: 1 | C44: 0.06666666667 | P44: 5 | Q44: 0 | R44: 0.003931623932 | S44: 0.006623721106 | T44: 0.008541114058 | U44: 0.009942037528 | V44: 0.01098143236 | W44: 0.01175789728 | X44: 0.01233716475 | Y44: 0.01276474189 | Z44: 0.01307313376 | AA44: 0.01328617742 | AB44: 0.01342175066 | AC44: 0.01349352473 | AD44: 0.01351213282 | AE44: 0.01348596957 | AF44: 0.01342175066 | AG44: 0.01332491264 | AH44: 0.01319990354 | AI44: 0.01305039788 | AJ44: 0.01287945771 | AK44: 0.01268965517 | AL44: 0.0124831667 | AM44: 0.01226184628 | AN44: 0.01202728306 | AO44: 0.01178084698 | AP44: 0.01152372532 | AQ44: 0.01125695217 | AR44: 0.01098143236 | AS44: 0.01069796104 | AT44: 0.01040723982 | AU44: 0.01010989011
B45: 0 | C45: 0 | P45: 6 | Q45: 0 | R45: 0.003956043956 | S45: 0.006803713528 | T45: 0.008912466844 | U45: 0.01050397878 | V45: 0.01171931517 | W45: 0.01265251989 | X45: 0.01336870027 | Y45: 0.0139143615 | Z45: 0.01432360743 | AA45: 0.01462201592 | AB45: 0.01482914651 | AC45: 0.0149602122 | AD45: 0.01502722323 | AE45: 0.0150397878 | AF45: 0.01500568397 | AG45: 0.01493127562 | AH45: 0.01482181986 | AI45: 0.01468169761 | AJ45: 0.01451458886 | AK45: 0.01432360743 | AL45: 0.01411140584 | AM45: 0.01388025767 | AN45: 0.01363212293 | AO45: 0.01336870027 | AP45: 0.01309146915 | AQ45: 0.01280172414 | AR45: 0.01250060285 | AS45: 0.01218910907 | AT45: 0.01186813187 | AU45: 0.01153846154
P46: 7 | Q46: 0 | R46: 0.003948717949 | S46: 0.00689890952 | T46: 0.009150132626 | U46: 0.01089301503 | V46: 0.01225464191 | W46: 0.01332299531 | X46: 0.01416091954 | Y46: 0.01481450044 | Z46: 0.01531830239 | AA46: 0.01569875696 | AB46: 0.01597642205 | AC46: 0.01616752757 | AD46: 0.01628505747 | AE46: 0.01633952255 | AF46: 0.01633952255 | AG46: 0.01629216161 | AH46: 0.01620335986 | AI46: 0.01607809019 | AJ46: 0.01592056043 | AK46: 0.01573435504 | AL46: 0.01552254642 | AM46: 0.01528778316 | AN46: 0.01503236074 | AO46: 0.01475827843 | AP46: 0.01446728559 | AQ46: 0.01416091954 | AR46: 0.01384053675 | AS46: 0.01350733864 | AT46: 0.01316239316 | AU46: 0.01280665281
P47: 8 | Q47: 0 | R47: 0.00392022792 | S47: 0.006934748011 | T47: 0.009290571497 | U47: 0.01115237253 | V47: 0.01263415629 | W47: 0.01381735506 | X47: 0.01476168582 | Y47: 0.01551193634 | Z47: 0.01610235606 | AA47: 0.01655958346 | AB47: 0.01690464889 | AC47: 0.01715437666 | AD47: 0.01732238643 | AE47: 0.01741982156 | AF47: 0.01745588744 | AG47: 0.01743825523 | AH47: 0.0173733687 | AI47: 0.01726668027 | AJ47: 0.01712283459 | AK47: 0.01694581281 | AL47: 0.01673904692 | AM47: 0.01650551135 | AN47: 0.0162477967 | AO47: 0.01596816976 | AP47: 0.01566862257 | AQ47: 0.01535091278 | AR47: 0.0150165972 | AS47: 0.01466705963 | AT47: 0.0143035343 | AU47: 0.01392712551
P48: 9 | Q48: 0 | R48: =IFERROR(VLOOKUP($P48,$D$15:$E$41,2,FALSE)*VLOOKUP(R$6,$B$15:$C$45,2,FALSE)/($P48+R$38),0) -> 0.003876923077 | S48: 0.00692741741 | T48: 0.009358090186 | U48: 0.01131197715 | V48: 0.01289124668 | W48: 0.01417082228 | X48: 0.01520689655 | Y48: 0.01604244032 | Z48: 0.01671087533 | AA48: 0.01723858718 | AB48: 0.01764668435 | AC48: 0.01795225464 | AD48: 0.018169279 | AE48: 0.01830930689 | AF48: 0.01838196286 | AG48: 0.01839533156 | AH48: 0.01835625383 | AI48: 0.01827055703 | AJ48: 0.01814323607 | AK48: 0.01797859691 | AL48: 0.01778037135 | AM48: 0.0175518097 | AN48: 0.01729575597 | AO48: 0.01701470943 | AP48: 0.01671087533 | AQ48: 0.0163862069 | AR48: 0.01604244032 | AS48: 0.01568112409 | AT48: 0.01530364372 | AU48: 0.0149112426
P49: 10 | Q49: 0 | R49: 0.003822843823 | S49: 0.006887709991 | T49: 0.009369516425 | U49: 0.0113932045 | V49: 0.01305039788 | W49: 0.01440981432 | X49: 0.0155240027 | Y49: 0.01643383436 | Z49: 0.01717157616 | AA49: 0.01776304156 | AB49: 0.01822912719 | AC49: 0.01858693031 | AD49: 0.01885057471 | AE49: 0.01903183024 | AF49: 0.01914058355 | AG49: 0.0191852003 | AH49: 0.01917280676 | AI49: 0.01910951118 | AJ49: 0.01900057929 | AK49: 0.01885057471 | AL49: 0.01866347223 | AM49: 0.01844274978 | AN49: 0.01819146371 | AO49: 0.01791231081 | AP49: 0.01760767968 | AQ49: 0.01727969349 | AR49: 0.0169302459 | AS49: 0.01656103123 | AT49: 0.01617357002 | AU49: 0.01576923077
P50: 11 | Q50: 0 | R50: 0.003760683761 | S50: 0.006823097327 | T50: 0.009336870027 | U50: 0.01141173003 | V50: 0.01312997347 | W50: 0.01455453269 | X50: 0.01573435504 | Y50: 0.01670808321 | Z50: 0.0175066313 | AA50: 0.01815502505 | AB50: 0.01867374005 | AC50: 0.01907969092 | AD50: 0.01938697318 | AE50: 0.01960742706 | AF50: 0.01975107121 | AG50: 0.01982644006 | AH50: 0.01984084881 | AI50: 0.01980060368 | AJ50: 0.01971117006 | AK50: 0.01957730812 | AL50: 0.01940318302 | AM50: 0.01919245505 | AN50: 0.01894835388 | AO50: 0.01867374005 | AP50: 0.0183711563 | AQ50: 0.01804287046 | AR50: 0.01769091163 | AS50: 0.01731710082 | AT50: 0.01692307692 | AU50: 0.01651031895
P51: 12 | Q51: 0 | R51: 0.003692307692 | S51: 0.006738916256 | T51: 0.009268965517 | U51: 0.01137931034 | V51: 0.01314401623 | W51: 0.01462068966 | X51: 0.01585480944 | Y51: 0.01688275862 | Z51: 0.01773399015 | AA51: 0.01843260188 | AB51: 0.01899850075 | AC51: 0.01944827586 | AD51: 0.01979586207 | AE51: 0.0200530504 | AF51: 0.02022988506 | AG51: 0.02033497537 | AH51: 0.02037574316 | AI51: 0.02035862069 | AJ51: 0.02028921023 | AK51: 0.02017241379 | AL51: 0.02001253918 | AM51: 0.01981338742 | AN51: 0.01957832512 | AO51: 0.01931034483 | AP51: 0.01901211556 | AQ51: 0.01868602541 | AR51: 0.01833421751 | AS51: 0.01795862069 | AT51: 0.01756097561 | AU51: 0.01714285714
P52: 13 | Q52: 0 | R52: 0.003619047619 | S52: 0.00663908046 | T52: 0.009172413793 | U52: 0.01130493577 | V52: 0.01310344828 | W52: 0.01462068966 | X52: 0.01589885057 | Y52: 0.01697208539 | Z52: 0.01786833856 | AA52: 0.01861069465 | AB52: 0.0192183908 | AC52: 0.01970758621 | AD52: 0.02009195402 | AE52: 0.02038314176 | AF52: 0.020591133 | AG52: 0.02072453428 | AH52: 0.0207908046 | AI52: 0.02079644049 | AJ52: 0.02074712644 | AK52: 0.02064785789 | AL52: 0.0205030426 | AM52: 0.02031658456 | AN52: 0.02009195402 | AO52: 0.01983224604 | AP52: 0.01954022989 | AQ52: 0.0192183908 | AR52: 0.01886896552 | AS52: 0.01849397253 | AT52: 0.0180952381 | AU52: 0.0176744186
P53: 14 | Q53: 0 | R53: 0.003541880342 | S53: 0.006526525199 | T53: 0.009052270245 | U53: 0.01119559878 | V53: 0.01301689236 | W53: 0.01456445623 | X53: 0.01587739464 | Y53: 0.01698770195 | Z53: 0.01792180833 | AA53: 0.01870173887 | AB53: 0.01934599469 | AC53: 0.01987023057 | AD53: 0.02028778203 | AE53: 0.02061007958 | AF53: 0.02084697704 | AG53: 0.02100701444 | AH53: 0.02109762985 | AI53: 0.02112533156 | AJ53: 0.02109583903 | AK53: 0.02101419878 | AL53: 0.02088488064 | AM53: 0.02071185775 | AN53: 0.02049867374 | AO53: 0.02024849923 | AP53: 0.01996417965 | AQ53: 0.01964827586 | AR53: 0.01930309892 | AS53: 0.01893073976 | AT53: 0.01853309481 | AU53: 0.01811188811
P54: 15 | Q54: 0 | R54: 0.003461538462 | S54: 0.006403495085 | T54: 0.008912466844 | U54: 0.01105681977 | V54: 0.01289124668 | W54: 0.01446002274 | X54: 0.01579937304 | Y54: 0.0169392227 | Z54: 0.01790450928 | AA54: 0.01871618037 | AB54: 0.01939196082 | AC54: 0.0199469496 | AD54: 0.02039408867 | AE54: 0.02074453489 | AF54: 0.02100795756 | AG54: 0.0211927783 | AH54: 0.02130636605 | AI54: 0.02135519653 | AJ54: 0.02134498362 | AK54: 0.02128078818 | AL54: 0.02116710875 | AM54: 0.02100795756 | AN54: 0.02080692447 | AO54: 0.02056723118 | AP54: 0.02029177719 | AQ54: 0.01998317914 | AR54: 0.01964380447 | AS54: 0.01927580038 | AT54: 0.01888111888 | AU54: 0.01846153846
P55: 16 | Q55: 0 | R55: 0.003378582202 | S55: 0.006271735927 | T55: 0.008756107776 | U55: 0.01089301503 | V55: 0.01273209549 | W55: 0.0143139619 | X55: 0.01567216392 | Y55: 0.01683465959 | Z55: 0.01782493369 | AA55: 0.01866285792 | AB55: 0.01936536006 | AC55: 0.0199469496 | AD55: 0.02042013476 | AE55: 0.02079575597 | AF55: 0.0210832549 | AG55: 0.02129089302 | AH55: 0.02142593039 | AI55: 0.02149477298 | AJ55: 0.02150309461 | AK55: 0.0214559387 | AL55: 0.02135780343 | AM55: 0.02121271348 | AN55: 0.02102428076 | AO55: 0.02079575597 | AP55: 0.02053007267 | AQ55: 0.02022988506 | AR55: 0.01989760039 | AS55: 0.01953540712 | AT55: 0.01914529915 | AU55: 0.01872909699
P56: 17 | Q56: 0 | R56: 0.003293447293 | S56: 0.006132625995 | T56: 0.008585676393 | U56: 0.01070775967 | V56: 0.01254400772 | W56: 0.01413170338 | X56: 0.01550191571 | Y56: 0.01668074271 | Z56: 0.01769026729 | AA56: 0.01854930085 | AB56: 0.01927396741 | AC56: 0.01987816702 | AD56: 0.02037394636 | AE56: 0.02077179772 | AF56: 0.02108090186 | AG56: =IFERROR(VLOOKUP($P56,$D$15:$E$41,2,FALSE)*VLOOKUP(AG$6,$B$15:$C$45,2,FALSE)/($P56+AG$38),0) -> 0.02130932669 | AH56: 0.02146419098 | AI56: 0.02155179992 | AJ56: 0.02157775813 | AK56: 0.02154706431 | AL56: 0.02146419098 | AM56: 0.02133315196 | AN56: 0.02115755968 | AO56: 0.02094067413 | AP56: 0.02068544482 | AQ56: 0.02039454691 | AR56: 0.02007041235 | AS56: 0.0197152569 | AT56: 0.01933110368 | AU56: 0.0189198036
P57: 18 | Q57: 0 | R57: 0.003206477733 | S57: 0.005987267905 | T57: 0.008403183024 | U57: 0.01050397878 | V57: 0.0123307577 | W57: 0.01391777188 | X57: 0.0152937931 | Y57: 0.0164831667 | Z57: 0.0175066313 | AA57: 0.01838196286 | AB57: 0.0191244855 | AC57: 0.01974748011 | AD57: 0.0202625139 | AE57: 0.02067970822 | AF57: 0.02100795756 | AG57: 0.02125511 | AH57: 0.02142811671 | AI57: 0.0215331565 | AJ57: 0.0215757402 | AK57: 0.02156079855 | AL57: 0.02149275658 | AM57: 0.02137559682 | AN57: 0.02121291324 | AO57: 0.02100795756 | AP57: 0.02076367898 | AQ57: 0.02048275862 | AR57: 0.02016763926 | AS57: 0.01982055126 | AT57: 0.01944353519 | AU57: 0.01903846154
P58: 19 | Q58: 0 | R58: 0.003117948718 | S58: 0.00583655425 | T58: 0.008210272486 | U58: 0.01028408872 | V58: 0.01209549072 | W58: 0.01367596817 | X58: 0.01505216622 | Y58: 0.01624678259 | Z58: 0.01727927245 | AA58: 0.01816640751 | AB58: 0.01892272325 | AC58: 0.01956087961 | AD58: 0.02009195402 | AE58: 0.02052568122 | AF58: 0.02087065065 | AG58: 0.02113447013 | AH58: 0.02132390215 | AI58: 0.02144497813 | AJ58: 0.02150309461 | AK58: 0.02150309461 | AL58: 0.02144933687 | AM58: 0.02134575489 | AN58: 0.02119590754 | AO58: 0.02100302264 | AP58: 0.02077003456 | AQ58: 0.02049961686 | AR58: 0.02019421059 | AS58: 0.01985604906 | AT58: 0.01948717949 | AU58: 0.01908948195
P59: 20 | Q59: 0 | R59: 0.003028083028 | S59: 0.005681215336 | T59: 0.008008303541 | U59: 0.01005010315 | V59: 0.01184084881 | W59: 0.01340950826 | X59: 0.01478075777 | Y59: 0.01597574839 | Z59: 0.0170127138 | AA59: 0.01790745653 | AB59: 0.01867374005 | AC59: 0.01932360743 | AD59: 0.01986764194 | AE59: 0.02031518178 | AF59: 0.02067449792 | AG59: 0.02095294233 | AH59: 0.02115707219 | AI59: 0.02129275443 | AJ59: 0.02136525426 | AK59: 0.02137931034 | AL59: 0.02133919907 | AM59: 0.02124878952 | AN59: 0.0211115909 | AO59: 0.02093079334 | AP59: 0.02070930347 | AQ59: 0.02044977511 | AR59: 0.02015463627 | AS59: 0.01982611258 | AT59: 0.01946624804 | AU59: 0.01907692308
P60: 21 | Q60: 0 | R60: 0.002937062937 | S60: 0.005521854457 | T60: 0.007798408488 | U60: 0.009803713528 | V60: 0.01156906754 | W60: 0.01312113174 | X60: 0.01448275862 | Y60: 0.01567364859 | Z60: 0.01671087533 | AA60: 0.01760930949 | AB60: 0.01838196286 | AC60: 0.01904027007 | AD60: 0.01959432049 | AE60: 0.0200530504 | AF60: 0.02042440318 | AG60: 0.02071546347 | AH60: 0.02093257015 | AI60: 0.02108141196 | AJ60: 0.02116710875 | AK60: 0.02119428091 | AL60: 0.02116710875 | AM60: 0.02108938375 | AN60: 0.02096455269 | AO60: 0.02079575597 | AP60: 0.02058586092 | AQ60: 0.02033749083 | AR60: 0.0200530504 | AS60: 0.01973474801 | AT60: 0.01938461538 | AU60: 0.01900452489
P61: 22 | Q61: 0 | R61: 0.002845039019 | S61: 0.005358974359 | T61: 0.007581538462 | U61: 0.009546351085 | V61: 0.01128205128 | W61: 0.01281318681 | X61: 0.01416091954 | Y61: 0.01534358974 | Z61: 0.01637717122 | AA61: 0.01727564103 | AB61: 0.01805128205 | AC61: 0.01871493213 | AD61: 0.01927619048 | AE61: 0.01974358974 | AF61: 0.02012474012 | AG61: 0.02042645074 | AH61: 0.02065483235 | AI61: 0.02081538462 | AJ61: 0.02091307067 | AK61: 0.02095238095 | AL61: 0.02093738819 | AM61: 0.02087179487 | AN61: 0.02075897436 | AO61: 0.02060200669 | AP61: 0.02040370977 | AQ61: 0.02016666667 | AR61: 0.01989324961 | AS61: 0.01958564103 | AT61: 0.01924585219 | AU61: 0.01887573964
P62: 23 | Q62: 0 | R62: 0.002752136752 | S62: 0.005192997347 | T62: 0.007358498266 | U62: 0.009279235026 | V62: 0.01098143236 | W62: 0.0124876978 | X62: 0.01381762452 | Y62: 0.01498827757 | Z62: 0.01601458886 | AA62: 0.01690968036 | AB62: 0.01768513029 | AC62: 0.01835119363 | AD62: 0.01891698595 | AE62: 0.01939063732 | AF62: 0.01977942203 | AG62: 0.02008986828 | AH62: 0.02032785146 | AI62: 0.02049867374 | AJ62: 0.02060713233 | AK62: 0.02065757819 | AL62: 0.02065396672 | AM62: 0.02059990176 | AN62: 0.02049867374 | AO62: 0.02035329308 | AP62: 0.0201665193 | AQ62: 0.0199408867 | AR62: 0.01967872679 | AS62: 0.01938218824 | AT62: 0.01905325444 | AU62: 0.01869375907
P63: 24 | Q63: 0 | R63: 0.002658461538 | S63: 0.005024280759 | T63: 0.007129973475 | U63: 0.009003410383 | V63: 0.01066861795 | W63: 0.0121464191 | X63: 0.01345494994 | Y63: 0.01461007958 | Z63: 0.01562575356 | AA63: 0.0165142768 | AB63: 0.01728654793 | AC63: 0.01795225464 | AD63: 0.01852003728 | AE63: 0.01899762669 | AF63: 0.01939196082 | AG63: 0.01970928382 | AH63: 0.01995523064 | AI63: 0.02013489958 | AJ63: 0.02025291469 | AK63: 0.02031347962 | AL63: 0.0203204244 | AM63: 0.02027724599 | AN63: 0.02018714374 | AO63: 0.0200530504 | AP63: 0.01987765929 | AQ63: 0.01966344828 | AR63: 0.01941270089 | AS63: 0.01912752499 | AT63: 0.01880986938 | AU63: 0.01846153846
P64: 25 | Q64: 0 | R64: 0.002564102564 | S64: 0.004853128991 | T64: 0.006896551724 | U64: 0.008719778042 | V64: 0.01034482759 | W64: 0.01179087875 | X64: 0.01307471264 | Y64: 0.01421107628 | Z64: 0.01521298174 | AA64: 0.01609195402 | AB64: 0.01685823755 | AC64: 0.01752096925 | AD64: 0.01808832426 | AE64: 0.01856763926 | AF64: 0.01896551724 | AG64: 0.01928791702 | AH64: 0.01954022989 | AI64: 0.01972734563 | AJ64: 0.01985370951 | AK64: 0.01992337165 | AL64: 0.01994002999 | AM64: 0.01990706774 | AN64: 0.01982758621 | AO64: 0.0197044335 | AP64: 0.01954022989 | AQ64: 0.01933739013 | AR64: 0.01909814324 | AS64: 0.01882454999 | AT64: 0.01851851852 | AU64: 0.01818181818
P65: 26 | Q65: 0 | R65: =IFERROR(VLOOKUP($P65,$D$15:$E$41,2,FALSE)*VLOOKUP(R$6,$B$15:$C$45,2,FALSE)/($P65+R$38),0) -> 0.002469135802 | S65: 0.004679802956 | T65: 0.006658739596 | U65: 0.008429118774 | V65: 0.01001112347 | W65: 0.01142241379 | X65: 0.01267850923 | Y65: 0.01379310345 | Z65: 0.01477832512 | AA65: 0.0156449553 | AB65: 0.01640260951 | AC65: 0.01705989111 | AD65: 0.01762452107 | AE65: 0.01810344828 | AF65: 0.01850294365 | AG65: 0.0188286809 | AH65: 0.01908580593 | AI65: 0.01927899687 | AJ65: 0.01941251596 | AK65: 0.01949025487 | AL65: 0.01951577403 | AM65: 0.01949233716 | AN65: 0.01942294159 | AO65: 0.01931034483 | AP65: 0.01915708812 | AQ65: 0.01896551724 | AR65: 0.01873780091 | AS65: 0.01847594721 | AT65: 0.01818181818 | AU65: 0.01785714286

Sheet Ej. 5
B1: Posibilidades de que te salga un tema que te sepas dependiendo del número de ellos que te sabes | I1: Simulador de sorteo
B2: Parte A | D2: Parte B | F2: Parte C | I2: Tema parte A | J2: =_xlfn.CONCAT("5.A.",RANDBETWEEN(1,10)) -> 5.A.1 | K2: =VLOOKUP(J2,ListadoDeTemas1[[Tema]:[Nombre del tema]],2,FALSE) -> Los regímenes de comercio exterior.
B3: Temas que sabes | C3: Posibilidades | D3: Temas que sabes | E3: Posibilidades | F3: Temas que sabes | G3: Posibilidades | I3: Tema parte B | J3: =_xlfn.CONCAT("5.B.",RANDBETWEEN(1,6)) -> 5.B.6 | K3: =VLOOKUP(J3,ListadoDeTemas1[[Tema]:[Nombre del tema]],2,FALSE) -> Datos de panel. Descripción del problema. El modelo de efectos fijos y de efectos aleatorios. Estimación.
B4: 10 | C4: =B4/10 -> 1 | D4: 6 | E4: =D4/6 -> 1 | F4: 15 | G4: =F4/15 -> 1 | I4: Tema parte B | J4: =_xlfn.CONCAT("5.C.",RANDBETWEEN(1,15)) -> 5.C.11 | K4: =VLOOKUP(J4,ListadoDeTemas1[[Tema]:[Nombre del tema]],2,FALSE) -> El Gobierno, su Presidente y el Consejo de Ministros. La Ley de Régimen Jurídico del Sector Público. Objeto y ámbito de aplicación. Principios generales. Organización y funcionamiento de la Administración General del Estado. Organización Central. Órganos Superiores y Directivos. Los Ministerios y su estructura interna. La Organización territorial de la Administración General del Estado. Las Delegaciones y Subdelegaciones del Gobierno.
B5: 9 | C5: =B5/10 -> 0.9 | D5: 5 | E5: =D5/6 -> 0.8333333333 | F5: 14 | G5: =F5/15 -> 0.9333333333
B6: 8 | C6: 0.8 | D6: 4 | E6: 0.6666666667 | F6: 13 | G6: 0.8666666667
B7: 7 | C7: 0.7 | D7: 3 | E7: 0.5 | F7: 12 | G7: 0.8
B8: 6 | C8: 0.6 | D8: 2 | E8: 0.3333333333 | F8: 11 | G8: 0.7333333333
B9: 5 | C9: 0.5 | D9: 1 | E9: 0.1666666667 | F9: 10 | G9: 0.6666666667
B10: 4 | C10: 0.4 | D10: 0 | E10: 0 | F10: 9 | G10: 0.6
B11: 3 | C11: 0.3 | F11: 8 | G11: 0.5333333333
B12: 2 | C12: 0.2 | F12: 7 | G12: 0.4666666667
B13: 1 | C13: 0.1 | F13: 6 | G13: 0.4
B14: 0 | C14: 0 | F14: 5 | G14: 0.3333333333
F15: 4 | G15: 0.2666666667
F16: 3 | G16: 0.2
F17: 2 | G17: 0.1333333333
F18: 1 | G18: 0.06666666667
F19: 0 | G19: 0
B20: * Se elige una bola de cada parte y hay que redactar dos de los tres temas, por lo que lo más eficiente será estudiar dos partes completas.
D22: Temas parte A | E22: 10
D23: Temas parte B | E23: 6
D24: Temas parte C | E24: 0
D26: Probabilidad total | E26: =MAX((VLOOKUP($E$22,$B$4:$C$14,2,FALSE)*VLOOKUP($E$23,$D$4:$E$12,2,FALSE)),(VLOOKUP($E$22,$B$4:$C$14,2,FALSE)*VLOOKUP($E$24,$F$4:$G$19,2,FALSE)),(VLOOKUP($E$23,$D$4:$E$12,2,FALSE)*VLOOKUP($E$24,$F$4:$G$19,2,FALSE))) -> 1

Sheet Probabilidad de aprobar
C2: Temas que sé | F2: % de aprobar el ejercicio por tema estudiado | G2: Eficiencia en el ejercicio
B3: Tercer ejercicio. Parte A | C3: 38 | F3: =$D$5/SUM($C$3:$C$4) -> 0.01260560147 | G3: =$D$5/SUM($C$3:$C$4)/MAX('Ej. 3'!$Q$59:$BI$105) -> 0.9464521689
B4: Tercer ejercicio. Parte B | C4: 38
B5: Posibilidades de aprobar el Tercer ejercicio | D5: =VLOOKUP($C$4,'Ej. 3'!$P$8:$BI$55,$C$3+2,FALSE) -> 0.9580257117
B6: Cuarto ejercicio. Parte A | C6: 26 | F6: =$D$8/SUM($C$6:$C$7) -> 0.0199408867 | G6: =$D$8/SUM($C$6:$C$7)/MAX('Ej. 4'!$Q$39:$AU$67) -> 0.9241408018
B7: Cuarto ejercicio. Parte B | C7: 23
B8: Posibilidades de aprobar el Cuarto ejercicio | D8: =VLOOKUP($C$7,'Ej. 4'!$P$6:'Ej. 4'!$AU$35,$C$6+2,FALSE) -> 0.9771034483
B9: Quinto ejercicio. Parte A | C9: 10 | F9: =$D$12/SUM($C$9:$C$11) -> 0.0625 | G9: =$D$12/SUM($C$9:$C$11)/0.0625 -> 1
B10: Quinto ejercicio. Parte B | C10: 6
B11: Quinto ejercicio. Parte C | C11: 0
B12: Posibilidades de aprobar el Quinto ejercicio | D12: =MAX((VLOOKUP($C$9,'Ej. 5'!$B$4:$C$14,2,FALSE)*VLOOKUP($C$10,'Ej. 5'!$D$4:$E$12,2,FALSE)),(VLOOKUP($C$9,'Ej. 5'!$B$4:$C$14,2,FALSE)*VLOOKUP($C$11,'Ej. 5'!$F$4:$G$19,2,FALSE)),(VLOOKUP($C$10,'Ej. 5'!$D$4:$E$12,2,FALSE)*VLOOKUP($C$11,'Ej. 5'!$F$4:$G$19,2,FALSE))) -> 1
B13: Probabilidad total de aprobar pasando el test, la coyuntura y los idiomas | E13: =D5*D8*D12 -> 0.9360902264 | F13: =E13/SUM(C3:C4,C6:C7,C9:C11) -> 0.006638937776 | G13: =F13/0.00663893777590036 -> 1

Sheet Sorteos
B1: Sorteos

Sheet Simulador de sorteos
C2: Simulador de sorteos
C3: Tercer ejercicio | G3: Cuarto ejercicio | K3: Quinto ejercicio
C4: ='Ej. 3'!$I$2 -> 3.A.11 | D4: ='Ej. 3'!I3 -> 3.A.14 | E4: ='Ej. 3'!I4 -> 3.B.12 | F4: ='Ej. 3'!$I$5 -> 3.B.4 | G4: ='Ej. 4'!$I$2 -> 4.A.21 | H4: ='Ej. 4'!$I$3 -> 4.A.9 | I4: ='Ej. 4'!$I$4 -> 4.B.18 | J4: ='Ej. 4'!$I$5 -> 4.B.14 | K4: ='Ej. 5'!J2 -> 5.A.1 | L4: ='Ej. 5'!J3 -> 5.B.6 | M4: ='Ej. 5'!J4 -> 5.C.11
C7: Tercer ejercicio | D7: =C4 -> 3.A.11 | E7: =IF(VLOOKUP(D7,'Listado de temas'!$E$3:$F$179,2,FALSE)=0,"",VLOOKUP(D7,'Listado de temas'!$E$3:$F$179,2,FALSE)) -> Teoría de la producción. Caracterización de la tecnología de la empresa a corto y largo plazo. El conjunto de posibilidades de producción. La función de producción. Rendimientos locales y globales a escala. Elasticidad de sustitución. Producción conjunta.
D8: =D4 -> 3.A.14 | E8: =IF(VLOOKUP(D8,'Listado de temas'!$E$3:$F$179,2,FALSE)=0,"",VLOOKUP(D8,'Listado de temas'!$E$3:$F$179,2,FALSE)) -> Teoría de juegos. Principales conceptos. Aplicaciones, con especial referencia a las subastas.
D9: =E4 -> 3.B.12 | E9: =IF(VLOOKUP(D9,'Listado de temas'!$E$3:$F$179,2,FALSE)=0,"",VLOOKUP(D9,'Listado de temas'!$E$3:$F$179,2,FALSE)) -> Mecanismos de ajuste de la balanza de pagos. Especial referencia al enfoque intertemporal de balanza de pagos. Análisis de sostenibilidad del déficit y de la deuda exterior.
D10: ='Ej. 3'!$I$5 -> 3.B.4 | E10: =IF(VLOOKUP(D10,'Listado de temas'!$E$3:$F$179,2,FALSE)=0,"",VLOOKUP(D10,'Listado de temas'!$E$3:$F$179,2,FALSE)) -> Análisis del crecimiento de la empresa. Métodos de valoración de empresas. Especial referencia a los procesos de fusión, adquisición y alianzas estratégicas.
C11: Cuarto ejercicio | D11: =G4 -> 4.A.21 | E11: =IF(VLOOKUP(D11,'Listado de temas'!$E$3:$F$179,2,FALSE)=0,"",VLOOKUP(D11,'Listado de temas'!$E$3:$F$179,2,FALSE)) -> Análisis de la evolución de la balanza de pagos y de la Posición de Inversión Internacional de España desde la adopción del euro. Posición neta del Banco de España frente al Eurosistema. La sostenibilidad externa.
D12: =H4 -> 4.A.9 | E12: =IF(VLOOKUP(D12,'Listado de temas'!$E$3:$F$179,2,FALSE)=0,"",VLOOKUP(D12,'Listado de temas'!$E$3:$F$179,2,FALSE)) -> Análisis de la industria en España. Características y situación actual. Los retos de la industria y la política industrial en España en el contexto de las economías desarrolladas. La estrategia de la UE.
D13: =I4 -> 4.B.18 | E13: =IF(VLOOKUP(D13,'Listado de temas'!$E$3:$F$179,2,FALSE)=0,"",VLOOKUP(D13,'Listado de temas'!$E$3:$F$179,2,FALSE)) -> Fiscalidad internacional. El Impuesto sobre la Renta de no Residentes en España. Convenios de doble imposición, con especial referencia al modelo de la OCDE. El problema de la erosión de bases imponibles y propuestas de solución.
D14: =J4 -> 4.B.14 | E14: =IF(VLOOKUP(D14,'Listado de temas'!$E$3:$F$179,2,FALSE)=0,"",VLOOKUP(D14,'Listado de temas'!$E$3:$F$179,2,FALSE)) -> La teoría del federalismo fiscal: la asignación óptima de las funciones entre los distintos niveles de gobierno para alcanzar el bienestar máximo. La financiación de las haciendas territoriales: impuestos, transferencias y deuda.
C15: Quinto ejercicio | D15: =K4 -> 5.A.1 | E15: =IF(VLOOKUP(D15,'Listado de temas'!$E$3:$F$179,2,FALSE)=0,"",VLOOKUP(D15,'Listado de temas'!$E$3:$F$179,2,FALSE)) -> Los regímenes de comercio exterior.
D16: =L4 -> 5.B.6 | E16: =IF(VLOOKUP(D16,'Listado de temas'!$E$3:$F$179,2,FALSE)=0,"",VLOOKUP(D16,'Listado de temas'!$E$3:$F$179,2,FALSE)) -> Datos de panel. Descripción del problema. El modelo de efectos fijos y de efectos aleatorios. Estimación.
D17: =M4 -> 5.C.11 | E17: =IF(VLOOKUP(D17,'Listado de temas'!$E$3:$F$179,2,FALSE)=0,"",VLOOKUP(D17,'Listado de temas'!$E$3:$F$179,2,FALSE)) -> El Gobierno, su Presidente y el Consejo de Ministros. La Ley de Régimen Jurídico del Sector Público. Objeto y ámbito de aplicación. Principios generales. Organización y funcionamiento de la Administración General del Estado. Organización Central. Órganos Superiores y Directivos. Los Ministerios y su estructura interna. La Organización territorial de la Administración General del Estado. Las Delegaciones y Subdelegaciones del Gobierno.

Sheet Sorteo de temas predefinidos
C2: Buscar título del tema: | I2: 3.A.25 | J2: =IF(VLOOKUP(I2,'Listado de temas'!$E$3:$F$179,2,FALSE)=0,"",VLOOKUP(I2,'Listado de temas'!$E$3:$F$179,2,FALSE)) -> La teoría neoclásica del mercado de trabajo. Análisis intertemporal de la oferta de trabajo. Teoría del capital humano. Función de ingresos de capital humano y evidencia empírica.
C4: Sorteo de temas predefinidos
C5: # | E5: Temas a incluir en el sorteo: | H5: Cuántos temas obtener como resultado | I5: RESULTADO
C6: 1 | D6: =RAND() -> 0.7554996348 | E6: 3.B.3 | F6: 0 | G6: =CELL("fila",G6)-1 -> 5 | H6: 2 | I6: =VLOOKUP(RANDBETWEEN(1,(VLOOKUP("-",$E$6:$G$95,2,FALSE))),$C$6:$E$95,3,FALSE) -> 3.A.21 | J6: =IF(VLOOKUP(I6,'Listado de temas'!$E$3:$F$179,2,FALSE)=0,"",VLOOKUP(I6,'Listado de temas'!$E$3:$F$179,2,FALSE)) -> La teoría del equilibrio general.
C7: 2 | D7: =RAND() -> 0.3054632849 | E7: 3.B.4 | F7: 1 | G7: =CELL("fila",G7)-1 -> 6 | I7: 3.A.44 | J7: =IF(VLOOKUP(I7,'Listado de temas'!$E$3:$F$179,2,FALSE)=0,"",VLOOKUP(I7,'Listado de temas'!$E$3:$F$179,2,FALSE)) -> Crecimiento económico (II). Modelos de crecimiento endógeno: rendimientos crecientes, capital humano e innovación tecnológica.
C8: 3 | D8: =RAND() -> 0.2656314756 | E8: 3.B.6 | F8: 2 | G8: =CELL("fila",G8)-1 -> 7 | I8: 3.A.42 | J8: =IF(VLOOKUP(I8,'Listado de temas'!$E$3:$F$179,2,FALSE)=0,"",VLOOKUP(I8,'Listado de temas'!$E$3:$F$179,2,FALSE)) -> Teorías de los ciclos económicos: ciclos nominales y reales. Referencia al ciclo financiero y sus interrelaciones con el ciclo real.
C9: 4 | D9: 0.5166606294 | E9: 3.B.8 | F9: 3 | G9: =CELL("fila",G9)-1 -> 8 | I9: 3.A.17 | J9: =IF(VLOOKUP(I9,'Listado de temas'!$E$3:$F$179,2,FALSE)=0,"",VLOOKUP(I9,'Listado de temas'!$E$3:$F$179,2,FALSE)) -> Análisis de mercados (II). Teoría del monopolio. Discriminación de precios. Monopolio natural. Producción conjunta. Análisis de eficiencia y bienestar. Monopsonio. Monopolio bilateral.
C10: 5 | D10: 0.4234859523 | E10: 3.A.7 | F10: 4 | G10: =CELL("fila",G10)-1 -> 9 | I10: 3.B.7 | J10: =IF(VLOOKUP(I10,'Listado de temas'!$E$3:$F$179,2,FALSE)=0,"",VLOOKUP(I10,'Listado de temas'!$E$3:$F$179,2,FALSE)) -> La política comercial (I). Instrumentos y efectos. Barreras arancelarias y no arancelarias. Otros instrumentos tradicionales.
C11: 6 | D11: 0.4569760222 | E11: 3.A.14 | F11: 5 | G11: =CELL("fila",G11)-1 -> 10 | I11: 3.A.9 | J11: =IF(VLOOKUP(I11,'Listado de temas'!$E$3:$F$179,2,FALSE)=0,"",VLOOKUP(I11,'Listado de temas'!$E$3:$F$179,2,FALSE)) -> Teoría de la demanda del consumidor (II). Dualidad e integrabilidad de las preferencias. Sistemas de demanda utilizados en estudios empíricos. Medidas de cambio en el bienestar.
C12: 7 | D12: 0.4540766962 | E12: 3.A.21 | F12: 6 | G12: =CELL("fila",G12)-1 -> 11 | I12: 3.A.14 | J12: =IF(VLOOKUP(I12,'Listado de temas'!$E$3:$F$179,2,FALSE)=0,"",VLOOKUP(I12,'Listado de temas'!$E$3:$F$179,2,FALSE)) -> Teoría de juegos. Principales conceptos. Aplicaciones, con especial referencia a las subastas.
C13: 8 | D13: 0.8880388502 | E13: 3.A.42 | F13: 7 | G13: =CELL("fila",G13)-1 -> 12 | I13: 3.B.7 | J13: =IF(VLOOKUP(I13,'Listado de temas'!$E$3:$F$179,2,FALSE)=0,"",VLOOKUP(I13,'Listado de temas'!$E$3:$F$179,2,FALSE)) -> La política comercial (I). Instrumentos y efectos. Barreras arancelarias y no arancelarias. Otros instrumentos tradicionales.
C14: 9 | D14: 0.1986619444 | E14: 3.B.34 | F14: 8 | G14: =CELL("fila",G14)-1 -> 13 | I14: 3.A.22 | J14: =IF(VLOOKUP(I14,'Listado de temas'!$E$3:$F$179,2,FALSE)=0,"",VLOOKUP(I14,'Listado de temas'!$E$3:$F$179,2,FALSE)) -> Economía del bienestar (I). Los teoremas fundamentales del bienestar. Óptimo económico y «second best».
C15: 10 | D15: 0.3325317479 | E15: 3.B.35 | F15: 9 | G15: =CELL("fila",G15)-1 -> 14 | I15: 3.B.7 | J15: =IF(VLOOKUP(I15,'Listado de temas'!$E$3:$F$179,2,FALSE)=0,"",VLOOKUP(I15,'Listado de temas'!$E$3:$F$179,2,FALSE)) -> La política comercial (I). Instrumentos y efectos. Barreras arancelarias y no arancelarias. Otros instrumentos tradicionales.
C16: 11 | D16: 0.3080615157 | E16: 3.B.5 | F16: 10 | G16: =CELL("fila",G16)-1 -> 15
C17: 12 | D17: 0.5660066414 | E17: 3.A.15 | F17: 11 | G17: =CELL("fila",G17)-1 -> 16
C18: 13 | D18: 0.2903114023 | E18: 3.B.7 | F18: 12 | G18: =CELL("fila",G18)-1 -> 17
C19: 14 | D19: 0.201666803 | E19: 3.A.16 | F19: 13 | G19: =CELL("fila",G19)-1 -> 18
C20: 15 | D20: 0.4724850267 | E20: 3.B.9 | F20: 14 | G20: =CELL("fila",G20)-1 -> 19
C21: 16 | D21: 0.827979274 | E21: 3.B.10 | F21: 15 | G21: =CELL("fila",G21)-1 -> 20
C22: 17 | D22: 0.3888100104 | E22: 3.A.12 | F22: 16 | G22: =CELL("fila",G22)-1 -> 21
C23: 18 | D23: 0.4203857822 | E23: 3.A.17 | F23: 17 | G23: =CELL("fila",G23)-1 -> 22
C24: 19 | D24: 0.5625307765 | E24: 3.A.43 | F24: 18 | G24: =CELL("fila",G24)-1 -> 23
C25: 20 | D25: 0.9639002767 | E25: 3.A.44 | F25: 19 | G25: =CELL("fila",G25)-1 -> 24
C26: 21 | D26: 0.5588698374 | E26: 3.A.6 | F26: 20 | G26: =CELL("fila",G26)-1 -> 25
C27: 22 | D27: 0.9880213395 | E27: 3.A.8 | F27: 21 | G27: =CELL("fila",G27)-1 -> 26
C28: 23 | D28: 0.3272147475 | E28: 3.A.22 | F28: 22 | G28: =CELL("fila",G28)-1 -> 27
C29: 24 | D29: 0.7713253506 | E29: 3.A.13 | F29: 23 | G29: =CELL("fila",G29)-1 -> 28
C30: 25 | D30: 0.4797421942 | E30: 3.A.9 | F30: 24 | G30: =CELL("fila",G30)-1 -> 29
C31: 26 | D31: 0.7768988693 | E31: 3.A.10 | F31: 25 | G31: =CELL("fila",G31)-1 -> 30
C32: 27 | D32: 0.8425191941 | E32: 3.A.23 | F32: 26 | G32: =CELL("fila",G32)-1 -> 31
C33: 28 | D33: 0.8579097178 | E33: 3.B.2 | F33: 27 | G33: =CELL("fila",G33)-1 -> 32
C34: 29 | D34: 0.1403251453 | E34: 3.B.21 | F34: 28 | G34: =CELL("fila",G34)-1 -> 33
C35: 30 | D35: 0.7049266493 | E35: 3.B.22 | F35: 29 | G35: =CELL("fila",G35)-1 -> 34
C36: 31 | D36: 0.5539033655 | E36: - | F36: 30 | G36: =CELL("fila",G36)-1 -> 35
C37: 32 | D37: 0.5924100461 | E37: - | F37: 31 | G37: =CELL("fila",G37)-1 -> 36
C38: 33 | D38: 0.8521859579 | E38: - | F38: 32 | G38: =CELL("fila",G38)-1 -> 37
C39: 34 | D39: 0.321287364 | E39: - | F39: 33 | G39: =CELL("fila",G39)-1 -> 38
C40: 35 | D40: 0.4561312539 | E40: - | F40: 34 | G40: =CELL("fila",G40)-1 -> 39
C41: 36 | D41: 0.7718379204 | E41: - | F41: 35 | G41: =CELL("fila",G41)-1 -> 40
C42: 37 | D42: 0.352948322 | E42: - | F42: 36 | G42: =CELL("fila",G42)-1 -> 41
C43: 38 | D43: 0.48863007 | E43: - | F43: 37 | G43: =CELL("fila",G43)-1 -> 42
C44: 39 | D44: 0.003600178652 | E44: - | F44: 38 | G44: =CELL("fila",G44)-1 -> 43
C45: 40 | D45: 0.3976065903 | E45: - | F45: 39 | G45: =CELL("fila",G45)-1 -> 44
C46: 41 | D46: 0.9330699645 | E46: - | F46: 40 | G46: =CELL("fila",G46)-1 -> 45
C47: 42 | D47: 0.5622961738 | E47: - | F47: 41 | G47: =CELL("fila",G47)-1 -> 46
C48: 43 | D48: 0.9753088189 | E48: - | F48: 42 | G48: =CELL("fila",G48)-1 -> 47
C49: 44 | D49: 0.659484395 | E49: - | F49: 43 | G49: =CELL("fila",G49)-1 -> 48
C50: 45 | D50: 0.8214306679 | E50: - | F50: 44 | G50: =CELL("fila",G50)-1 -> 49
C51: 46 | D51: 0.9163076334 | E51: - | F51: 45 | G51: =CELL("fila",G51)-1 -> 50
C52: 47 | D52: 0.91089229 | E52: - | F52: 46 | G52: =CELL("fila",G52)-1 -> 51
C53: 48 | D53: 0.664644303 | E53: - | F53: 47 | G53: =CELL("fila",G53)-1 -> 52
C54: 49 | D54: 0.9126977587 | E54: - | F54: 48 | G54: =CELL("fila",G54)-1 -> 53
C55: 50 | D55: 0.2718430316 | E55: - | F55: 49 | G55: =CELL("fila",G55)-1 -> 54
C56: 51 | D56: 0.2891012044 | E56: - | F56: 50 | G56: =CELL("fila",G56)-1 -> 55
C57: 52 | D57: 0.3197497118 | E57: - | F57: 51 | G57: =CELL("fila",G57)-1 -> 56
C58: 53 | D58: 0.4644553338 | E58: - | F58: 52 | G58: =CELL("fila",G58)-1 -> 57
C59: 54 | D59: 0.8113704341 | E59: - | F59: 53 | G59: =CELL("fila",G59)-1 -> 58
C60: 55 | D60: 0.5135612655 | E60: - | F60: 54 | G60: =CELL("fila",G60)-1 -> 59
C61: 56 | D61: 0.3690790705 | E61: - | F61: 55 | G61: =CELL("fila",G61)-1 -> 60
C62: 57 | D62: 0.9444985917 | E62: - | F62: 56 | G62: =CELL("fila",G62)-1 -> 61
C63: 58 | D63: 0.708488489 | E63: - | F63: 57 | G63: =CELL("fila",G63)-1 -> 62
C64: 59 | D64: 0.8051676439 | E64: - | F64: 58 | G64: =CELL("fila",G64)-1 -> 63
C65: 60 | D65: 0.1330003339 | E65: - | F65: 59 | G65: =CELL("fila",G65)-1 -> 64
C66: 61 | D66: 0.1145402145 | E66: - | F66: 60 | G66: =CELL("fila",G66)-1 -> 65
C67: 62 | D67: 0.9999861067 | E67: - | F67: 61 | G67: =CELL("fila",G67)-1 -> 66
C68: 63 | D68: 0.4852225276 | E68: - | F68: 62 | G68: =CELL("fila",G68)-1 -> 67
C69: 64 | D69: 0.6893634244 | E69: - | F69: 63 | G69: =CELL("fila",G69)-1 -> 68
C70: 65 | D70: 0.4292902481 | E70: - | F70: 64 | G70: =CELL("fila",G70)-1 -> 69
C71: 66 | D71: 0.303128135 | E71: - | F71: 65 | G71: =CELL("fila",G71)-1 -> 70
C72: 67 | D72: =RAND() -> 0.8743548556 | E72: - | F72: 66 | G72: =CELL("fila",G72)-1 -> 71
C73: 68 | D73: 0.2885285837 | E73: - | F73: 67 | G73: =CELL("fila",G73)-1 -> 72
C74: 69 | D74: 0.3944292558 | E74: - | F74: 68 | G74: =CELL("fila",G74)-1 -> 73
C75: 70 | D75: 0.9928608389 | E75: - | F75: 69 | G75: =CELL("fila",G75)-1 -> 74
C76: 71 | D76: 0.2302545429 | E76: - | F76: 70 | G76: =CELL("fila",G76)-1 -> 75
C77: 72 | D77: 0.4684047008 | E77: - | F77: 71 | G77: =CELL("fila",G77)-1 -> 76
C78: 73 | D78: 0.03516972908 | E78: - | F78: 72 | G78: =CELL("fila",G78)-1 -> 77
C79: 74 | D79: 0.008512807279 | E79: - | F79: 73 | G79: =CELL("fila",G79)-1 -> 78
C80: 75 | D80: 0.2162326832 | E80: - | F80: 74 | G80: =CELL("fila",G80)-1 -> 79
C81: 76 | D81: 0.05689164739 | E81: - | F81: 75 | G81: =CELL("fila",G81)-1 -> 80
C82: 77 | D82: 0.09573886586 | E82: - | F82: 76 | G82: =CELL("fila",G82)-1 -> 81
C83: 78 | D83: 0.422201705 | E83: - | F83: 77 | G83: =CELL("fila",G83)-1 -> 82
C84: 79 | D84: 0.9164978284 | E84: - | F84: 78 | G84: =CELL("fila",G84)-1 -> 83
C85: 80 | D85: 0.3306470355 | E85: - | F85: 79 | G85: =CELL("fila",G85)-1 -> 84
C86: 81 | D86: 0.7468846589 | E86: - | F86: 80 | G86: =CELL("fila",G86)-1 -> 85
C87: 82 | D87: 0.656448365 | E87: - | F87: 81 | G87: =CELL("fila",G87)-1 -> 86
C88: 83 | D88: 0.2170080831 | E88: - | F88: 82 | G88: =CELL("fila",G88)-1 -> 87
C89: 84 | D89: 0.4967372933 | E89: - | F89: 83 | G89: =CELL("fila",G89)-1 -> 88
C90: 85 | D90: 0.4804916411 | E90: - | F90: 84 | G90: =CELL("fila",G90)-1 -> 89
C91: 86 | D91: 0.8293178275 | E91: - | F91: 85 | G91: =CELL("fila",G91)-1 -> 90
C92: 87 | D92: 0.1961252283 | E92: - | F92: 86 | G92: =CELL("fila",G92)-1 -> 91
C93: 88 | D93: 0.5907311426 | E93: - | F93: 87 | G93: =CELL("fila",G93)-1 -> 92
C94: 89 | D94: 0.3575197578 | E94: - | F94: 88 | G94: =CELL("fila",G94)-1 -> 93
C95: 90 | D95: =RAND() -> 0.5628062672 | E95: - | F95: 89 | G95: =CELL("fila",G95)-1 -> 94

Sheet Temario
B1: Temario

Sheet Listado de temas
A1: Listado de temas
B2: Ejercicio | C2: Parte | D2: Número | E2: Tema | F2: Nombre del tema | G2: Categoría | H2: Bloque
B3: 3 | C3: A | D3: 1 | E3: =_xlfn.CONCAT(B3,".",C3,".",D3) -> 3.A.1 | F3: Objeto y métodos de la ciencia económica. Cuestiones y debates actuales, con especial referencia a la economía conductual. | G3: Mixto | H3: Pensamiento económico
B4: 3 | C4: A | D4: 2 | E4: 3.A.2 | F4: Los economistas clásicos y Marx. | G4: Mixto | H4: Pensamiento económico
B5: 3 | C5: A | D5: 3 | E5: 3.A.3 | F5: Los economistas neoclásicos. | G5: Mixto | H5: Pensamiento económico
B6: 3 | C6: A | D6: 4 | E6: 3.A.4 | F6: El pensamiento económico de Keynes. Referencia a la economía post-keynesiana y el desequilibrio. | G6: Mixto | H6: Pensamiento económico
B7: 3 | C7: A | D7: 5 | E7: 3.A.5 | F7: La síntesis neoclásica. El monetarismo. | G7: Mixto | H7: Pensamiento económico
B8: 3 | C8: A | D8: 6 | E8: 3.A.6 | F8: La nueva macroeconomía clásica. La hipótesis de las expectativas racionales; la crítica de Lucas; el surgimiento de los modelos dinámicos estocásticos de equilibrio general. | G8: Mixto | H8: Pensamiento económico
B9: 3 | C9: A | D9: 7 | E9: 3.A.7 | F9: La nueva economía keynesiana. Primera y segunda generación. | G9: Mixto | H9: Pensamiento económico
B10: 3 | C10: A | D10: 8 | E10: 3.A.8 | F10: Teoría de la demanda del consumidor (I). Axiomas sobre las preferencias, función de utilidad y función de demanda marshalliana. La teoría de la preferencia revelada. Precios hedónicos. | G10: Microeconomía | H10: Modelo neoclásico básico
B11: 3 | C11: A | D11: 9 | E11: 3.A.9 | F11: Teoría de la demanda del consumidor (II). Dualidad e integrabilidad de las preferencias. Sistemas de demanda utilizados en estudios empíricos. Medidas de cambio en el bienestar. | G11: Microeconomía | H11: Modelo neoclásico básico
B12: 3 | C12: A | D12: 10 | E12: 3.A.10 | F12: Teoría de la demanda del consumidor (III). Elección del consumidor en situaciones de riesgo e incertidumbre. | G12: Microeconomía | H12: Información y poder de mercado
B13: 3 | C13: A | D13: 11 | E13: 3.A.11 | F13: Teoría de la producción. Caracterización de la tecnología de la empresa a corto y largo plazo. El conjunto de posibilidades de producción. La función de producción. Rendimientos locales y globales a escala. Elasticidad de sustitución. Producción conjunta. | G13: Microeconomía | H13: Modelo neoclásico básico
B14: 3 | C14: A | D14: 12 | E14: 3.A.12 | F14: Teoría de los costes. Análisis de dualidad en el ámbito de la empresa. Aplicaciones empíricas. | G14: Microeconomía | H14: Modelo neoclásico básico
B15: 3 | C15: A | D15: 13 | E15: 3.A.13 | F15: Economía de la información y teoría de la agencia: selección adversa y riesgo moral. | G15: Microeconomía | H15: Información y poder de mercado
B16: 3 | C16: A | D16: 14 | E16: 3.A.14 | F16: Teoría de juegos. Principales conceptos. Aplicaciones, con especial referencia a las subastas. | G16: Microeconomía | H16: Información y poder de mercado
B17: 3 | C17: A | D17: 15 | E17: 3.A.15 | F17: La empresa: el tamaño eficiente y sus límites. Mención especial de la economía de los costes de transacción. La Teoría de la Organización Industrial: barreras a la entrada y mercados impugnables. | G17: Microeconomía | H17: Información y poder de mercado
B18: 3 | C18: A | D18: 16 | E18: 3.A.16 | F18: Análisis de mercados (I). El modelo de competencia perfecta. Análisis de equilibrio parcial: corto y largo plazo; dinámicas de ajuste y estabilidad del equilibrio. Análisis de eficiencia y bienestar. | G18: Microeconomía | H18: Modelo neoclásico básico
B19: 3 | C19: A | D19: 17 | E19: 3.A.17 | F19: Análisis de mercados (II). Teoría del monopolio. Discriminación de precios. Monopolio natural. Producción conjunta. Análisis de eficiencia y bienestar. Monopsonio. Monopolio bilateral. | G19: Microeconomía | H19: Información y poder de mercado
B20: 3 | C20: A | D20: 18 | E20: 3.A.18 | F20: Análisis de mercados (III). Diferenciación de productos: la teoría de la competencia monopolística y otros desarrollos. | G20: Microeconomía | H20: Información y poder de mercado
B21: 3 | C21: A | D21: 19 | E21: 3.A.19 | F21: Análisis de mercados (IV). Teoría del oligopolio: soluciones no cooperativas y soluciones cooperativas. | G21: Microeconomía | H21: Información y poder de mercado
B22: 3 | C22: A | D22: 20 | E22: 3.A.20 | F22: Poder de mercado y regulación óptima. Definición del mercado relevante. Desarrollos en presencia de información asimétrica. Aplicaciones prácticas. | G22: Microeconomía | H22: Información y poder de mercado
B23: 3 | C23: A | D23: 21 | E23: 3.A.21 | F23: La teoría del equilibrio general. | G23: Microeconomía | H23: Modelo neoclásico básico
B24: 3 | C24: A | D24: 22 | E24: 3.A.22 | F24: Economía del bienestar (I). Los teoremas fundamentales del bienestar. Óptimo económico y «second best». | G24: Microeconomía | H24: Economía del Bienestar e Intervención del Sector Público
B25: 3 | C25: A | D25: 23 | E25: 3.A.23 | F25: Economía del bienestar (II). Fallos de mercado: externalidades y bienes públicos. Intervención y fallos del sector público. | G25: Microeconomía | H25: Economía del Bienestar e Intervención del Sector Público
B26: 3 | C26: A | D26: 24 | E26: 3.A.24 | F26: Economía del bienestar (III). Las funciones de bienestar social. Teoría de la elección colectiva. El teorema de la imposibilidad de Arrow y desarrollos posteriores. | G26: Microeconomía | H26: Economía del Bienestar e Intervención del Sector Público
B27: 3 | C27: A | D27: 25 | E27: 3.A.25 | F27: La teoría neoclásica del mercado de trabajo. Análisis intertemporal de la oferta de trabajo. Teoría del capital humano. Función de ingresos de capital humano y evidencia empírica. | G27: Macroeconomía | H27: Demanda Agregada y Oferta Agregada
B28: 3 | C28: A | D28: 26 | E28: 3.A.26 | F28: Desempleo friccional. La curva de Beveridge, el modelo de búsqueda y emparejamiento de Diamond, Mortensen y Pissarides. Costes de ajuste y dinámica de la demanda de trabajo. | G28: Macroeconomía | H28: Demanda Agregada y Oferta Agregada
B29: 3 | C29: A | D29: 27 | E29: 3.A.27 | F29: Determinación de salarios: modelos de negociación, salarios de eficiencia y contratos implícitos. | G29: Macroeconomía | H29: Demanda Agregada y Oferta Agregada
B30: 3 | C30: A | D30: 28 | E30: 3.A.28 | F30: La tasa natural de paro y la NAIRU. La persistencia del desempleo. | G30: Macroeconomía | H30: Demanda Agregada y Oferta Agregada
B31: 3 | C31: A | D31: 29 | E31: 3.A.29 | F31: Modelización dinámica de las tomas de decisiones. Modelos de horizonte infinito y modelos de generaciones solapadas. | G31: Macroeconomía | H31: Crecimiento económico
B32: 3 | C32: A | D32: 30 | E32: 3.A.30 | F32: Magnitudes macroeconómicas y contabilidad nacional. | G32: Macroeconomía | H32: Contabilidad Nacional
B33: 3 | C33: A | D33: 31 | E33: 3.A.31 | F33: Análisis de las tablas «input-output». | G33: Macroeconomía | H33: Contabilidad Nacional
B34: 3 | C34: A | D34: 32 | E34: 3.A.32 | F34: El modelo de oferta y demanda agregada: determinación de renta e inflación en una economía abierta. Análisis de las políticas monetaria y fiscal, y de los shocks y políticas de oferta. | G34: Macroeconomía | H34: Demanda Agregada y Oferta Agregada
B35: 3 | C35: A | D35: 33 | E35: =_xlfn.CONCAT(B35,".",C35,".",D35) -> 3.A.33 | F35: Teorías de la demanda de consumo corriente: ciclo vital y renta permanente. La demanda de bienes de consumo duradero. Evidencia empírica e implicaciones de política económica. | G35: Macroeconomía | H35: Demanda Agregada y Oferta Agregada
B36: 3 | C36: A | D36: 34 | E36: 3.A.34 | F36: Teorías de la inversión en bienes de equipo. Incertidumbre e irreversibilidad de la inversión. Implicaciones de política económica. | G36: Macroeconomía | H36: Demanda Agregada y Oferta Agregada
B37: 3 | C37: A | D37: 35 | E37: 3.A.35 | F37: Teorías de la demanda de dinero. Implicaciones de política económica. | G37: Macroeconomía | H37: Ciclo económico y políticas de demanda
B38: 3 | C38: A | D38: 36 | E38: 3.A.36 | F38: La política monetaria (I). El diseño y la instrumentación de la política monetaria. | G38: Macroeconomía | H38: Ciclo económico y políticas de demanda
B39: 3 | C39: A | D39: 37 | E39: 3.A.37 | F39: La política monetaria (II). Los mecanismos de transmisión de la política monetaria convencional. Rigideces de precios, rigideces de salarios y fricciones financieras. Los mecanismos de transmisión de la política monetaria no convencional. | G39: Macroeconomía | H39: Ciclo económico y políticas de demanda
B40: 3 | C40: A | D40: 38 | E40: 3.A.38 | F40: La política fiscal: efectos sobre el crecimiento económico y el ahorro. | G40: Macroeconomía | H40: Ciclo económico y políticas de demanda
B41: 3 | C41: A | D41: 39 | E41: 3.A.39 | F41: Déficit público. Conceptos. Financiación y sus consecuencias macroeconómicas. Dominación monetaria y dominación fiscal. La dinámica de la deuda pública y su sostenibilidad. | G41: Macroeconomía | H41: Ciclo económico y políticas de demanda
B42: 3 | C42: A | D42: 40 | E42: 3.A.40 | F42: Efectividad e interrelación de las políticas monetaria y fiscal en las principales economías desarrolladas desde la Gran Recesión de 2008. El valor de los multiplicadores fiscales. | G42: Macroeconomía | H42: Ciclo económico y políticas de demanda
B43: 3 | C43: A | D43: 41 | E43: 3.A.41 | F43: La inflación: causas y sus efectos sobre la eficiencia económica y el bienestar. Hiperinflación y deflación. | G43: Macroeconomía | H43: Ciclo económico y políticas de demanda
B44: 3 | C44: A | D44: 42 | E44: 3.A.42 | F44: Teorías de los ciclos económicos: ciclos nominales y reales. Referencia al ciclo financiero y sus interrelaciones con el ciclo real. | G44: Macroeconomía | H44: Ciclo económico y políticas de demanda
B45: 3 | C45: A | D45: 43 | E45: 3.A.43 | F45: Crecimiento económico (I). Acumulación de capital y progreso técnico exógeno. El modelo de Solow. El modelo de Solow aumentado con acumulación de capital humano. El modelo de Ramsey-Cass-Koopmans. | G45: Macroeconomía | H45: Crecimiento económico
B46: 3 | C46: A | D46: 44 | E46: 3.A.44 | F46: Crecimiento económico (II). Modelos de crecimiento endógeno: rendimientos crecientes, capital humano e innovación tecnológica. | G46: Macroeconomía | H46: Crecimiento económico
B47: 3 | C47: A | D47: 45 | E47: 3.A.45 | F47: Evidencia empírica sobre el crecimiento económico y la distribución de la renta entre los factores de producción. Contabilidad del crecimiento, con especial referencia a la productividad total de los factores. Convergencia económica internacional. | G47: Macroeconomía | H47: Crecimiento económico
B48: 3 | C48: B | D48: 1 | E48: 3.B.1 | F48: La información financiera de las empresas: estados de situación y de circulación. Métodos de análisis económico y financiero de la empresa. | G48: Microeconomía | H48: Economía financiera y corporativa
B49: 3 | C49: B | D49: 2 | E49: 3.B.2 | F49: La empresa y las decisiones de inversión. Diferentes criterios de valoración de proyectos. Rentabilidad, riesgo y coste del capital. | G49: Microeconomía | H49: Economía financiera y corporativa
B50: 3 | C50: B | D50: 3 | E50: 3.B.3 | F50: La empresa y las decisiones de financiación: Financiación propia frente a financiación ajena. Política de dividendos y estructura del capital. | G50: Microeconomía | H50: Economía financiera y corporativa
B51: 3 | C51: B | D51: 4 | E51: 3.B.4 | F51: Análisis del crecimiento de la empresa. Métodos de valoración de empresas. Especial referencia a los procesos de fusión, adquisición y alianzas estratégicas. | G51: Microeconomía | H51: Economía financiera y corporativa
B52: 3 | C52: B | D52: 5 | E52: 3.B.5 | F52: Teoría del comercio internacional (I). La teoría ricardiana de la ventaja comparativa. Determinación de la relación real de intercambio. El modelo de factores específicos. El Modelo Hecksher-Ohlin-Samuelson (H-O-S); teoremas derivados del modelo y extensiones. | G52: Microeconomía | H52: Comercio Internacional
B53: 3 | C53: B | D53: 6 | E53: 3.B.6 | F53: Teoría del comercio internacional (II). Desarrollos recientes. Nueva teoría del comercio internacional. Especial referencia a la competencia imperfecta, los rendimientos crecientes y la heterogeneidad empresarial. | G53: Microeconomía | H53: Comercio Internacional
B54: 3 | C54: B | D54: 7 | E54: 3.B.7 | F54: La política comercial (I). Instrumentos y efectos. Barreras arancelarias y no arancelarias. Otros instrumentos tradicionales. | G54: Microeconomía | H54: Comercio Internacional
B55: 3 | C55: B | D55: 8 | E55: 3.B.8 | F55: La política comercial (II). La política comercial estratégica. La política de promoción exterior: justificación, instrumentos y objetivos. | G55: Microeconomía | H55: Comercio Internacional
B56: 3 | C56: B | D56: 9 | E56: 3.B.9 | F56: Comercio internacional y crecimiento económico. Especial referencia a los efectos del comercio sobre el crecimiento. | G56: Microeconomía | H56: Comercio Internacional
B57: 3 | C57: B | D57: 10 | E57: 3.B.10 | F57: Teoría de la integración económica. | G57: Microeconomía | H57: Comercio Internacional
B58: 3 | C58: B | D58: 11 | E58: 3.B.11 | F58: Balanza de pagos: concepto, medición e interpretación. | G58: Macroeconomía | H58: Contabilidad Nacional
B59: 3 | C59: B | D59: 12 | E59: 3.B.12 | F59: Mecanismos de ajuste de la balanza de pagos. Especial referencia al enfoque intertemporal de balanza de pagos. Análisis de sostenibilidad del déficit y de la deuda exterior. | G59: Macroeconomía | H59: Economía abierta
B60: 3 | C60: B | D60: 13 | E60: 3.B.13 | F60: Mercado de divisas. Operaciones e instrumentos. | G60: Microeconomía | H60: Economía financiera y corporativa
B61: 3 | C61: B | D61: 14 | E61: 3.B.14 | F61: Teorías de la determinación del tipo de cambio. | G61: Macroeconomía | H61: Economía abierta
B62: 3 | C62: B | D62: 15 | E62: 3.B.15 | F62: Análisis comparado de los distintos regímenes cambiarios. Intervención y regulación en los mercados de cambio. | G62: Macroeconomía | H62: Economía abierta
B63: 3 | C63: B | D63: 16 | E63: 3.B.16 | F63: Teoría de la integración monetaria. | G63: Macroeconomía | H63: Economía abierta
B64: 3 | C64: B | D64: 17 | E64: 3.B.17 | F64: Teorías explicativas de las crisis de balanza de pagos. | G64: Macroeconomía | H64: Economía abierta
B65: 3 | C65: B | D65: 18 | E65: 3.B.18 | F65: La nueva globalización económica y financiera. Determinantes y efectos de los movimientos internacionales de factores productivos: movilidad de trabajadores, inversión de cartera e inversión directa, con especial referencia a las cadenas globales de valor. | G65: Macroeconomía | H65: Economía abierta
B66: 3 | C66: B | D66: 19 | E66: 3.B.19 | F66: La coordinación internacional de políticas económicas. Aspectos teóricos y prácticos. El G-20, la OCDE y otros foros internacionales. | G66: Macroeconomía | H66: Economía abierta
B67: 3 | C67: B | D67: 20 | E67: 3.B.20 | F67: El sistema económico internacional desde el siglo XIX hasta la ruptura del sistema de Bretton-Woods. | G67: Mixto | H67: Historia económica
B68: 3 | C68: B | D68: 21 | E68: =_xlfn.CONCAT(B68,".",C68,".",D68) -> 3.B.21 | F68: El sistema económico internacional desde la desaparición del sistema de Bretton-Woods. | G68: Mixto | H68: Historia económica
B69: 3 | C69: B | D69: 22 | E69: 3.B.22 | F69: El Fondo Monetario Internacional. Estructura y políticas. La prevención y solución de crisis. | G69: Mixto | H69: Organismos internacionales
B70: 3 | C70: B | D70: 23 | E70: 3.B.23 | F70: Análisis de los instrumentos financieros de renta variable. Análisis fundamental. Teoría de la elección de cartera. El modelo de valoración de activos de capital (CAPM). La teoría de valoración de activos por arbitraje (APT). Análisis técnico. | G70: Microeconomía | H70: Economía financiera y corporativa
B71: 3 | C71: B | D71: 24 | E71: 3.B.24 | F71: Análisis de los instrumentos financieros de renta fija. Determinación del precio y rendimiento de los bonos. La estructura temporal de los tipos de interés. Valoración del riesgo y del rendimiento de los bonos: duración y convexidad. | G71: Microeconomía | H71: Economía financiera y corporativa
B72: 3 | C72: B | D72: 25 | E72: 3.B.25 | F72: Análisis de los instrumentos y de los mercados de derivados. | G72: Microeconomía | H72: Economía financiera y corporativa
B73: 3 | C73: B | D73: 26 | E73: 3.B.26 | F73: Crisis financieras y pánicos bancarios; especial referencia a la crisis financiera internacional iniciada en 2007-2008. Gestión de riesgos de las instituciones financieras. | G73: Microeconomía | H73: Economía financiera y corporativa
B74: 3 | C74: B | D74: 27 | E74: 3.B.27 | F74: Regulación financiera bancaria y no-bancaria. Fundamentos teóricos y evidencia empírica. | G74: Microeconomía | H74: Economía financiera y corporativa
B75: 3 | C75: B | D75: 28 | E75: 3.B.28 | F75: Economía de los países en desarrollo. Teorías recientes del desarrollo económico. Evidencia empírica, con especial referencia a la aproximación experimental, e implicaciones para el diseño de políticas. | G75: Macroeconomía | H75: Crecimiento económico
B76: 3 | C76: B | D76: 29 | E76: 3.B.29 | F76: La financiación exterior del desarrollo económico. El problema de la deuda externa. La ayuda al desarrollo. | G76: Macroeconomía | H76: Economía abierta
B77: 3 | C77: B | D77: 30 | E77: 3.B.30 | F77: El Grupo del Banco Mundial, los Bancos Regionales de Desarrollo y otras instituciones multilaterales de desarrollo. | G77: Mixto | H77: Organismos internacionales
B78: 3 | C78: B | D78: 31 | E78: 3.B.31 | F78: El cambio climático y su impacto en la economía. Evidencia y modelos integrados de evaluación. Acuerdos internacionales y principales medidas adoptadas para hacer frente al cambio climático. | G78: Macroeconomía | H78: Crecimiento económico
B79: 3 | C79: B | D79: 32 | E79: 3.B.32 | F79: Perspectivas económicas mundiales. Estructura sectorial y geográfica de los flujos comerciales y financieros internacionales. Las nuevas áreas emergentes. | G79: Mixto | H79: Historia económica
B80: 3 | C80: B | D80: 33 | E80: 3.B.33 | F80: La OMC. Antecedentes y Organización actual. El GATT y los Acuerdos sobre el comercio de mercancías. Situación actual. | G80: Mixto | H80: Organismos internacionales
B81: 3 | C81: B | D81: 34 | E81: 3.B.34 | F81: La OMC. Los acuerdos distintos de los de mercancías. | G81: Mixto | H81: Organismos internacionales
B82: 3 | C82: B | D82: 35 | E82: 3.B.35 | F82: Procesos de integración no comunitarios. | G82: Mixto | H82: Organismos internacionales
B83: 3 | C83: B | D83: 36 | E83: 3.B.36 | F83: Tratados, orden jurídico e instituciones de la Unión Europea. | G83: Mixto | H83: Unión Europea
B84: 3 | C84: B | D84: 37 | E84: 3.B.37 | F84: Las finanzas de la Unión Europea y el presupuesto comunitario. El marco financiero plurianual actual. | G84: Mixto | H84: Unión Europea
B85: 3 | C85: B | D85: 38 | E85: 3.B.38 | F85: La política agrícola de la Unión Europea. Problemas económicos y procesos de reforma. La política pesquera común. | G85: Mixto | H85: Unión Europea
B86: 3 | C86: B | D86: 39 | E86: 3.B.39 | F86: El mercado único de la Unión Europea. El principio de libre circulación de mercancías, servicios, personas y capitales. La política de competencia. | G86: Mixto | H86: Unión Europea
B87: 3 | C87: B | D87: 40 | E87: 3.B.40 | F87: La Cohesión Económica y Social en la Unión Europea: política regional e instrumentos presupuestarios y financieros. Política social y de empleo. El proceso de convergencia real en la Unión Europea. | G87: Mixto | H87: Unión Europea
B88: 3 | C88: B | D88: 41 | E88: 3.B.41 | F88: La política comercial de la Unión Europea. | G88: Mixto | H88: Unión Europea
B89: 3 | C89: B | D89: 42 | E89: 3.B.42 | F89: Las relaciones económicas exteriores de la Unión Europea. La política de cooperación al desarrollo de la Unión Europea. | G89: Mixto | H89: Unión Europea
B90: 3 | C90: B | D90: 43 | E90: 3.B.43 | F90: El origen del euro: funcionamiento y evolución del Sistema Monetario Europeo. Los criterios de convergencia nominal. El Sistema Europeo de Bancos Centrales: objetivos e instrumentos. La política monetaria en la Eurozona desde 2009. | G90: Mixto | H90: Unión Europea
B91: 3 | C91: B | D91: 44 | E91: 3.B.44 | F91: La Unión Bancaria: Pilares y Código normativo único. La Unión de Mercados de Capitales. | G91: Mixto | H91: Unión Europea
B92: 3 | C92: B | D92: 45 | E92: 3.B.45 | F92: La gobernanza económica de la Unión Europea y de la zona euro. El Semestre Europeo. Las reglas fiscales y el Procedimiento de Desequilibrios Macroeconómicos. El Mecanismo Europeo de Estabilidad. La respuesta común de la política fiscal a partir de la covid-19. | G92: Mixto | H92: Unión Europea
B93: 4 | C93: A | D93: 1 | E93: 4.A.1 | F93: Fuentes estadísticas españolas. Metodologías y limitaciones. | G93: Economía española | H93: Fuentes estadísticas
B94: 4 | C94: A | D94: 2 | E94: 4.A.2 | F94: Los recursos humanos en España: estructura demográfica y capital humano. Proyecciones de población a medio y largo plazo: implicaciones para el crecimiento económico. | G94: Economía española | H94: Mercado de trabajo
B95: 4 | C95: A | D95: 3 | E95: 4.A.3 | F95: La distribución personal y entre factores productivos de la renta en España. La desigualdad de la renta, la riqueza y el consumo. El efecto redistributivo del sector público español. | G95: Economía española | H95: Desigualdad
B96: 4 | C96: A | D96: 4 | E96: 4.A.4 | F96: Los sectores agrario y pesquero en España. | G96: Economía española | H96: Sector primario
B97: 4 | C97: A | D97: 5 | E97: 4.A.5 | F97: Estructura del sector energético y sus subsectores: sistema eléctrico, sistema gasista y productos petrolíferos. Nuevas tecnologías y retos del sector. | G97: Economía española | H97: Sector extractivo y energía
B98: 4 | C98: A | D98: 6 | E98: 4.A.6 | F98: La política española de energía y clima: mitigación y adaptación al cambio climático. Vinculación con la política de energía y clima de la UE. Políticas sectoriales de medioambiente. | G98: Economía española | H98: Política medioambiental
B99: 4 | C99: A | D99: 7 | E99: =_xlfn.CONCAT(B99,".",C99,".",D99) -> 4.A.7 | F99: El sistema y la política de ciencia y tecnología en España. Vinculación con la política de I+D de la Unión Europea. La actividad de investigación, desarrollo e innovación (I+D+i) en los sectores público y privado. Comparación con buenas prácticas internacionales. | G99: Economía española | H99: Política de ciencia y tecnología
B100: 4 | C100: A | D100: 8 | E100: 4.A.8 | F100: La empresa en España. Características principales: productividad, internacionalización, tamaño y financiación. Comparación entre la empresa industrial y la empresa de servicios. El clima de negocio en España. El sector público empresarial. | G100: Economía española | H100: Empresa
B101: 4 | C101: A | D101: 9 | E101: 4.A.9 | F101: Análisis de la industria en España. Características y situación actual. Los retos de la industria y la política industrial en España en el contexto de las economías desarrolladas. La estrategia de la UE. | G101: Economía española | H101: Industria y política industrial
B102: 4 | C102: A | D102: 10 | E102: 4.A.10 | F102: Estructura sectorial de la industria en España. Clasificación de sectores según nivel de contenido tecnológico y de demanda. Análisis de los principales sectores: industria agroalimentaria, industria automovilística, industria química y farmacéutica, e industria de fabricación de bienes de equipo y de alta tecnología. | G102: Economía española | H102: Industria y política industrial
B103: 4 | C103: A | D103: 11 | E103: 4.A.11 | F103: El sector de la construcción en España. El mercado de la vivienda. Problemas y política de vivienda y suelo. | G103: Economía española | H103: Construcción
B104: 4 | C104: A | D104: 12 | E104: 4.A.12 | F104: Estructura y política del sector de los transportes y telecomunicaciones en España. | G104: Economía española | H104: Servicios
B105: 4 | C105: A | D105: 13 | E105: 4.A.13 | F105: El turismo en España: evolución, retos y política turística. | G105: Economía española | H105: Servicios
B106: 4 | C106: A | D106: 14 | E106: 4.A.14 | F106: Estructura, políticas y retos de la distribución comercial, con especial referencia al comercio electrónico. | G106: Economía española | H106: Servicios
B107: 4 | C107: A | D107: 15 | E107: 4.A.15 | F107: La defensa y la promoción de la competencia en España. Principios de regulación económica eficiente. Garantía de unidad de mercado. | G107: Economía española | H107: Políticas de liberalización
B108: 4 | C108: A | D108: 16 | E108: 4.A.16 | F108: Mercado de trabajo en España. Características, funcionamiento y problemas. Las políticas de empleo. | G108: Economía española | H108: Mercado de trabajo
B109: 4 | C109: A | D109: 17 | E109: 4.A.17 | F109: Economía de las regiones españolas: especialización regional, convergencia real y política de desarrollo regional. | G109: Economía española | H109: Política regional
B110: 4 | C110: A | D110: 18 | E110: 4.A.18 | F110: El sistema financiero español (I). Evolución reciente del sistema financiero. Génesis y desarrollo de la crisis del sistema financiero español iniciada en 2008. La reestructuración de las entidades de crédito. El Programa de Asistencia Financiera. | G110: Economía española | H110: Sector financiero y política monetaria
B111: 4 | C111: A | D111: 19 | E111: 4.A.19 | F111: El sistema financiero español (II). Las entidades de crédito en España: Configuración actual del sector bancario español y principales indicadores. El marco de regulación, supervisión y gestión de crisis. | G111: Economía española | H111: Sector financiero y política monetaria
B112: 4 | C112: A | D112: 20 | E112: 4.A.20 | F112: El sistema financiero español (III). Mercados de valores y otras formas de financiación no bancaria, agentes e instrumentos. Innovación financiera. | G112: Economía española | H112: Sector financiero y política monetaria
B113: 4 | C113: A | D113: 21 | E113: 4.A.21 | F113: Análisis de la evolución de la balanza de pagos y de la Posición de Inversión Internacional de España desde la adopción del euro. Posición neta del Banco de España frente al Eurosistema. La sostenibilidad externa. | G113: Economía española | H113: Sector exterior
B114: 4 | C114: A | D114: 22 | E114: 4.A.22 | F114: La internacionalización de la economía española (I). Estructura sectorial y geográfica de la balanza de bienes y de servicios en España en la actualidad. Indicadores de competitividad. La integración de España en las cadenas globales de valor. | G114: Economía española | H114: Sector exterior
B115: 4 | C115: A | D115: 23 | E115: 4.A.23 | F115: La internacionalización de la economía española (II). Estructura sectorial y geográfica de la inversión extranjera en España y de la inversión española en el exterior en la actualidad. | G115: Economía española | H115: Sector exterior
B116: 4 | C116: A | D116: 24 | E116: 4.A.24 | F116: La política española de internacionalización (I). Instrumentos financieros de ayuda a la exportación y a la inversión exterior. Evaluación y comparación con buenas prácticas internacionales. | G116: Economía española | H116: Sector exterior
B117: 4 | C117: A | D117: 25 | E117: 4.A.25 | F117: La política española de internacionalización (II). La promoción comercial. Organismos e instrumentos. Evaluación y comparación con buenas prácticas internacionales. | G117: Economía española | H117: Sector exterior
B118: 4 | C118: A | D118: 26 | E118: 4.A.26 | F118: La política de cooperación al desarrollo en España. Instrumentos de cooperación técnica y financiera. Evaluación del diseño de la política y análisis de impacto económico. | G118: Economía española | H118: Sector exterior
B119: 4 | C119: A | D119: 27 | E119: 4.A.27 | F119: La economía española en el período 1959-1999. El Plan de Estabilización de 1959. La economía española en la década de 1960. Las crisis energéticas de los años 70. La adhesión a las Comunidades Europeas. El proceso de ajuste macroeconómico para la entrada en la zona euro. | G119: Economía española | H119: Historia económica
B120: 4 | C120: A | D120: 28 | E120: 4.A.28 | F120: Evolución de la economía y de la política económica en España desde la constitución de la zona euro hasta 2019. Especial referencia a la crisis económica y financiera iniciada en 2008. | G120: Economía española | H120: Historia económica
B121: 4 | C121: A | D121: 29 | E121: 4.A.29 | F121: Evolución de la economía y de la política económica española desde la crisis de la Covid-19. Situación actual de la economía española y perspectivas. Los desequilibrios macroeconómicos de España, según el Procedimiento de Desequilibrios Macroeconómicos de la UE. | G121: Economía española | H121: Historia económica
B122: 4 | C122: A | D122: 30 | E122: 4.A.30 | F122: Las relaciones financieras de España con la Unión Europea: flujos presupuestarios y extra-presupuestarios, y saldo financiero España-Unión Europea. Evolución reciente y situación actual. España en el Marco Financiero Plurianual 2021-2027. La convergencia real de España con la Unión Europea. | G122: Economía española | H122: Historia económica
B123: 4 | C123: B | D123: 1 | E123: 4.B.1 | F123: El sector público: delimitación, operaciones y cuentas principales según el Sistema Europeo de Cuentas. | G123: Economía del sector público | H123: Contabilidad pública y fuentes estadísticas
B124: 4 | C124: B | D124: 2 | E124: 4.B.2 | F124: Los mecanismos de decisión del sector público. Reglas de votación. La democracia representativa. La producción pública y la burocracia. Justificación de la existencia de límites normativos a la actividad del sector público. | G124: Economía del sector público | H124: Economía política
B125: 4 | C125: B | D125: 3 | E125: 4.B.3 | F125: El presupuesto como elemento de redistribución. El Estado de Bienestar: instrumentos, problemas y reformas. Medición e indicadores del impacto redistributivo. | G125: Economía del sector público | H125: Gastos y presupuestos
B126: 4 | C126: B | D126: 4 | E126: 4.B.4 | F126: El presupuesto como elemento compensador de la actividad económica. Componentes discrecionales y automáticos del presupuesto: saldo cíclico, saldo estructural y esfuerzo fiscal. | G126: Economía del sector público | H126: Política fiscal y estabilización
B127: 4 | C127: B | D127: 5 | E127: 4.B.5 | F127: El gasto público. Razones de su crecimiento. El debate sobre el tamaño del sector público, en lo referente al gasto. Comparaciones internacionales. | G127: Economía del sector público | H127: Gastos y presupuestos
B128: 4 | C128: B | D128: 6 | E128: 4.B.6 | F128: Evaluación de las políticas públicas. Técnicas de evaluación de impacto. Análisis coste-beneficio, análisis coste-eficacia y otras técnicas de evaluación. | G128: Economía del sector público | H128: Inversión pública
B129: 4 | C129: B | D129: 7 | E129: 4.B.7 | F129: Ingresos públicos. Elementos definidores y clases de impuestos. Principios impositivos. | G129: Economía del sector público | H129: Impuestos
B130: 4 | C130: B | D130: 8 | E130: 4.B.8 | F130: Traslación e incidencia de los impuestos en mercados competitivos y monopolistas. Enfoques de equilibrio parcial y general. | G130: Economía del sector público | H130: Impuestos
B131: 4 | C131: B | D131: 9 | E131: =_xlfn.CONCAT(B131,".",C131,".",D131) -> 4.B.9 | F131: Efecto renta y efecto sustitución de los impuestos. Concepto y medición del exceso de gravamen. Medidas de progresividad impositiva. | G131: Economía del sector público | H131: Impuestos
B132: 4 | C132: B | D132: 10 | E132: 4.B.10 | F132: Imposición y oferta. Efectos incentivo de los impuestos. | G132: Economía del sector público | H132: Impuestos
B133: 4 | C133: B | D133: 11 | E133: 4.B.11 | F133: La imposición óptima. Tipo impositivo óptimo. Regla de Ramsey. El compromiso entre eficiencia y equidad de la política tributaria. | G133: Economía del sector público | H133: Impuestos
B134: 4 | C134: B | D134: 12 | E134: 4.B.12 | F134: La imposición directa: teoría y comparaciones internacionales. | G134: Economía del sector público | H134: Impuestos
B135: 4 | C135: B | D135: 13 | E135: 4.B.13 | F135: La imposición indirecta: teoría y comparaciones internacionales. | G135: Economía del sector público | H135: Impuestos
B136: 4 | C136: B | D136: 14 | E136: 4.B.14 | F136: La teoría del federalismo fiscal: la asignación óptima de las funciones entre los distintos niveles de gobierno para alcanzar el bienestar máximo. La financiación de las haciendas territoriales: impuestos, transferencias y deuda. | G136: Economía del sector público | H136: Federalismo fiscal y haciendas territoriales
B137: 4 | C137: B | D137: 15 | E137: 4.B.15 | F137: La empresa pública. Razones de su existencia. La política de privatizaciones. Comparaciones internacionales. | G137: Economía del sector público | H137: Empresas públicas
B138: 4 | C138: B | D138: 16 | E138: 4.B.16 | F138: El impuesto sobre la renta de las personas físicas en España. | G138: Economía del sector público | H138: Impuestos
B139: 4 | C139: B | D139: 17 | E139: 4.B.17 | F139: El impuesto sobre sociedades en España. | G139: Economía del sector público | H139: Impuestos
B140: 4 | C140: B | D140: 18 | E140: 4.B.18 | F140: Fiscalidad internacional. El Impuesto sobre la Renta de no Residentes en España. Convenios de doble imposición, con especial referencia al modelo de la OCDE. El problema de la erosión de bases imponibles y propuestas de solución. | G140: Economía del sector público | H140: Impuestos
B141: 4 | C141: B | D141: 19 | E141: 4.B.19 | F141: La imposición patrimonial en España: el impuesto sobre el patrimonio, el impuesto sobre sucesiones y donaciones, el impuesto sobre transmisiones patrimoniales y actos jurídicos documentados, y el impuesto sobre bienes inmuebles. | G141: Economía del sector público | H141: Impuestos
B142: 4 | C142: B | D142: 20 | E142: 4.B.20 | F142: La imposición indirecta en España: el IVA y los impuestos especiales. | G142: Economía del sector público | H142: Impuestos
B143: 4 | C143: B | D143: 21 | E143: 4.B.21 | F143: Marco legal e institucional de los presupuestos en España. Principios presupuestarios, con especial referencia a la estabilidad y la sostenibilidad. Los Presupuestos Generales del Estado: elaboración, aprobación, ejecución y control. Clasificaciones de ingresos y gastos. Modificaciones presupuestarias. | G143: Economía del sector público | H143: Gastos y presupuestos
B144: 4 | C144: B | D144: 22 | E144: 4.B.22 | F144: Las grandes cifras de los Presupuestos Generales del Estado (PGE). Clasificación económica, orgánica y por políticas de gasto. Visión consolidada de los PGE. | G144: Economía del sector público | H144: Gastos y presupuestos
B145: 4 | C145: B | D145: 23 | E145: 4.B.23 | F145: Las finanzas de las Administraciones Públicas en España en términos de contabilidad nacional. Situación actual y perspectivas según el Programa de Estabilidad. Estructura de ingresos y presión fiscal. Gasto por funciones según la clasificación COFOG. Distribución de gastos e ingresos públicos por subsectores de las Administraciones Públicas. | G145: Economía del sector público | H145: Gastos y presupuestos
B146: 4 | C146: B | D146: 24 | E146: 4.B.24 | F146: El Sistema de la Seguridad Social en España. Prestaciones y su financiación. La sostenibilidad del sistema público de pensiones. | G146: Economía del sector público | H146: Gastos y presupuestos
B147: 4 | C147: B | D147: 25 | E147: 4.B.25 | F147: Las Administraciones Territoriales en España. Competencias y sistemas de financiación. El endeudamiento de las Administraciones Territoriales. | G147: Economía del sector público | H147: Federalismo fiscal y haciendas territoriales
B148: 4 | C148: B | D148: 26 | E148: 4.B.26 | F148: El saldo presupuestario y la deuda de las Administraciones Públicas en España: análisis de su evolución reciente y comparación internacional. Política de financiación del Tesoro en la actualidad. | G148: Economía del sector público | H148: Gastos y presupuestos
B149: 5 | C149: A | D149: 1 | E149: 5.A.1 | F149: Los regímenes de comercio exterior. | G149: Marketing internacional y técnicas comerciales
B150: 5 | C150: A | D150: 2 | E150: 5.A.2 | F150: Los instrumentos de defensa comercial. | G150: Marketing internacional y técnicas comerciales
B151: 5 | C151: A | D151: 3 | E151: 5.A.3 | F151: Los instrumentos de atracción de inversiones exteriores. | G151: Marketing internacional y técnicas comerciales
B152: 5 | C152: A | D152: 4 | E152: 5.A.4 | F152: Los instrumentos de promoción del turismo en España. | G152: Marketing internacional y técnicas comerciales
B153: 5 | C153: A | D153: 5 | E153: 5.A.5 | F153: La regulación de las inversiones extranjeras en España y de las españolas en el exterior. | G153: Marketing internacional y técnicas comerciales
B154: 5 | C154: A | D154: 6 | E154: 5.A.6 | F154: Formas de penetración e implantación en los mercados. El estudio de los mercados exteriores y la prospección. | G154: Marketing internacional y técnicas comerciales
B155: 5 | C155: A | D155: 7 | E155: 5.A.7 | F155: Los canales de distribución y las redes de venta. | G155: Marketing internacional y técnicas comerciales
B156: 5 | C156: A | D156: 8 | E156: 5.A.8 | F156: La oferta internacional: el producto y el precio. La comunicación en el comercio internacional. | G156: Marketing internacional y técnicas comerciales
B157: 5 | C157: A | D157: 9 | E157: 5.A.9 | F157: El cuadro jurídico de las operaciones de comercio exterior: el contrato de venta internacional y la resolución de litigios. | G157: Marketing internacional y técnicas comerciales
B158: 5 | C158: A | D158: 10 | E158: 5.A.10 | F158: Las políticas logísticas y financieras de la empresa exportadora. Los medios de pago en el comercio internacional. | G158: Marketing internacional y técnicas comerciales
B159: 5 | C159: B | D159: 1 | E159: 5.B.1 | F159: Supuestos clásicos del modelo de regresión lineal. Aproximación lineal al modelo no lineal. Método de mínimos cuadrados ordinarios y método de máxima verosimilitud. Medidas de bondad de ajuste del modelo. | G159: Econometría
B160: 5 | C160: B | D160: 2 | E160: 5.B.2 | F160: Propiedades de los estimadores de mínimos cuadrados ordinarios para muestras finitas y muestras grandes en el modelo de regresión lineal. Contraste de hipótesis e intervalos de confianza. | G160: Econometría
B161: 5 | C161: B | D161: 3 | E161: =_xlfn.CONCAT(B161,".",C161,".",D161) -> 5.B.3 | F161: Heterocedasticidad y autocorrelación: origen, consecuencias, detección y soluciones. Estimación por mínimos cuadrados generalizados. | G161: Econometría
B162: 5 | C162: B | D162: 4 | E162: 5.B.4 | F162: La causalidad en los modelos de regresión. Problema de la variable omitida y estimación por variables instrumentales. Otras soluciones: diseños experimentales, regresión en discontinuidad y diferencias en diferencias. | G162: Econometría
B163: 5 | C163: B | D163: 5 | E163: 5.B.5 | F163: Procesos estocásticos. Ruido blanco, AR, MA, ARMA y ARIMA: identificación, estimación, verificación y predicción. | G163: Econometría
B164: 5 | C164: B | D164: 6 | E164: 5.B.6 | F164: Datos de panel. Descripción del problema. El modelo de efectos fijos y de efectos aleatorios. Estimación. | G164: Econometría
B165: 5 | C165: C | D165: 1 | E165: 5.C.1 | F165: Las fuentes del Derecho Administrativo. La Constitución. La ley. Los decretos-leyes. La delegación legislativa. | G165: Derecho administrativo y organización del Estado
B166: 5 | C166: C | D166: 2 | E166: 5.C.2 | F166: El reglamento. La potestad reglamentaria. Los reglamentos ilegales. Actos administrativos generales, circulares e instrucciones. | G166: Derecho administrativo y organización del Estado
B167: 5 | C167: C | D167: 3 | E167: 5.C.3 | F167: El acto administrativo: concepto, clases y elementos. Su motivación y notificación. Eficacia y validez de los actos administrativos. Revisión, anulación y revocación. | G167: Derecho administrativo y organización del Estado
B168: 5 | C168: C | D168: 4 | E168: 5.C.4 | F168: Los recursos administrativos. | G168: Derecho administrativo y organización del Estado
B169: 5 | C169: C | D169: 5 | E169: 5.C.5 | F169: La jurisdicción contencioso-administrativa. Extensión y límites. Las partes del procedimiento. La sentencia. Recursos. | G169: Derecho administrativo y organización del Estado
B170: 5 | C170: C | D170: 6 | E170: 5.C.6 | F170: Los contratos del sector público: concepto y clases. Estudio de sus elementos. Su cumplimiento. La revisión de precios y otras alteraciones contractuales. Incumplimiento de los contratos. | G170: Derecho administrativo y organización del Estado
B171: 5 | C171: C | D171: 7 | E171: 5.C.7 | F171: El servicio público: concepto y clases. Forma de gestión de los servicios públicos. Examen especial de la gestión directa. La gestión indirecta: modalidades. La concesión. Régimen jurídico. | G171: Derecho administrativo y organización del Estado
B172: 5 | C172: C | D172: 8 | E172: 5.C.8 | F172: Procedimiento administrativo común de las administraciones públicas: objeto y ámbito de aplicación. El procedimiento administrativo: concepto y naturaleza. Las garantías del procedimiento. Iniciación, ordenación, instrucción y terminación del procedimiento administrativo común. Los procedimientos especiales. | G172: Derecho administrativo y organización del Estado
B173: 5 | C173: C | D173: 9 | E173: 5.C.9 | F173: Régimen jurídico del personal al servicio de las administraciones públicas. Ley del Estatuto Básico del Empleado Público. La Ley de Medidas para la Reforma de la Función Pública. Órganos superiores de la Función Pública. Oferta de empleo público. | G173: Derecho administrativo y organización del Estado
B174: 5 | C174: C | D174: 10 | E174: 5.C.10 | F174: La Constitución española de 1978: estructura y contenido. Derechos y deberes fundamentales. Su garantía y suspensión. El Defensor del Pueblo. El Tribunal de Cuentas. El Tribunal Constitucional. Reforma de la Constitución. | G174: Derecho administrativo y organización del Estado
B175: 5 | C175: C | D175: 11 | E175: 5.C.11 | F175: El Gobierno, su Presidente y el Consejo de Ministros. La Ley de Régimen Jurídico del Sector Público. Objeto y ámbito de aplicación. Principios generales. Organización y funcionamiento de la Administración General del Estado. Organización Central. Órganos Superiores y Directivos. Los Ministerios y su estructura interna. La Organización territorial de la Administración General del Estado. Las Delegaciones y Subdelegaciones del Gobierno. | G175: Derecho administrativo y organización del Estado
B176: 5 | C176: C | D176: 12 | E176: 5.C.12 | F176: Organización y competencias del Ministerio de Asuntos Económicos y Transformación Digital, y del Ministerio de Industria, Comercio y Turismo. Especial mención a la Secretaría de Estado de Economía y Apoyo a la Empresa, y a la Secretaría de Estado de Comercio. Otros Ministerios económicos. La Administración Territorial del Ministerio de Industria, Comercio y Turismo. Su administración institucional. ICEX España Exportación e Inversiones. | G176: Derecho administrativo y organización del Estado
B177: 5 | C177: C | D177: 13 | E177: 5.C.13 | F177: Organización territorial del Estado. Las Comunidades Autónomas: constitución, competencias, Estatutos de autonomía. El sistema institucional de las Comunidades Autónomas. La Administración Local. | G177: Derecho administrativo y organización del Estado
B178: 5 | C178: C | D178: 14 | E178: 5.C.14 | F178: Políticas de igualdad de género. La Ley Orgánica 3/2007, de 22 de marzo, para la igualdad efectiva de mujeres y hombres. Políticas contra la violencia de género. La Ley Orgánica 1/2004, de 28 de diciembre, de Medidas de Protección Integral contra la Violencia de Género. Políticas dirigidas a la atención de personas discapacitadas y/o dependientes: la Ley 39/2006, de 14 de diciembre, de Promoción de la Autonomía Personal y atención a las personas en situación de dependencia. | G178: Derecho administrativo y organización del Estado
B179: 5 | C179: C | D179: 15 | E179: 5.C.15 | F179: La gobernanza pública y el gobierno abierto. Concepto y principios informadores del gobierno abierto: colaboración, participación, transparencia y rendición de cuentas. Datos abiertos y reutilización. El marco jurídico y los planes de gobierno abierto en España. | G179: Derecho administrativo y organización del Estado

Sheet Tabla dinámica temas
B2: Ejercicio | C2: 3
B4: Etiquetas de fila | C4: Cuenta de Nombre del tema
B5: A | C5: 45
B6: Mixto | C6: 7
B7: Pensamiento económico | C7: 7
B8: Microeconomía | C8: 17
B9: Economía del Bienestar e Intervención del Sector Público | C9: 3
B10: Información y poder de mercado | C10: 8
B11: Modelo neoclásico básico | C11: 6
B12: Macroeconomía | C12: 21
B13: Ciclo económico y políticas de demanda | C13: 8
B14: Contabilidad Nacional | C14: 2
B15: Crecimiento económico | C15: 4
B16: Demanda Agregada y Oferta Agregada | C16: 7
B17: B | C17: 45
B18: Mixto | C18: 18
B19: Historia económica | C19: 3
B20: Organismos internacionales | C20: 5
B21: Unión Europea | C21: 10
B22: Microeconomía | C22: 16
B23: Comercio Internacional | C23: 6
B24: Economía financiera y corporativa | C24: 10
B25: Macroeconomía | C25: 11
B26: Contabilidad Nacional | C26: 1
B27: Crecimiento económico | C27: 2
B28: Economía abierta | C28: 8
B29: Total general | C29: 90

Sheet Organización del estudio
B1: Organización del estudio

Sheet Cronograma
C1: Semana | D1: Día (opc.) | E1: Tema | F1: Nombre del tema | G1: Categoría | H1: Bloque | I1: Comentario
C2: 1 | D2: Lunes | E2: 3.A.8 | F2: =IFERROR(VLOOKUP('Cronograma'!$E2,ListadoDeTemas1[[Tema]:[Bloque]],COLUMNS('Cronograma'!$E2:F2),FALSE),"") -> Teoría de la demanda del consumidor (I). Axiomas sobre las preferencias, función de utilidad y función de demanda marshalliana. La teoría de la preferencia revelada. Precios hedónicos. | G2: =IFERROR(VLOOKUP('Cronograma'!$E2,ListadoDeTemas1[[Tema]:[Bloque]],COLUMNS('Cronograma'!$E2:G2),FALSE),"") -> Microeconomía | H2: =IFERROR(VLOOKUP('Cronograma'!$E2,ListadoDeTemas1[[Tema]:[Bloque]],COLUMNS('Cronograma'!$E2:H2),FALSE),"") -> Modelo neoclásico básico
E3: 3.A.10 | F3: =IFERROR(VLOOKUP('Cronograma'!$E3,ListadoDeTemas1[[Tema]:[Bloque]],COLUMNS('Cronograma'!$E3:F3),FALSE),"") -> Teoría de la demanda del consumidor (III). Elección del consumidor en situaciones de riesgo e incertidumbre. | G3: =IFERROR(VLOOKUP('Cronograma'!$E3,ListadoDeTemas1[[Tema]:[Bloque]],COLUMNS('Cronograma'!$E3:G3),FALSE),"") -> Microeconomía | H3: =IFERROR(VLOOKUP('Cronograma'!$E3,ListadoDeTemas1[[Tema]:[Bloque]],COLUMNS('Cronograma'!$E3:H3),FALSE),"") -> Información y poder de mercado
F4: =IFERROR(VLOOKUP('Cronograma'!$E4,ListadoDeTemas1[[Tema]:[Bloque]],COLUMNS('Cronograma'!$E4:F4),FALSE),"") ->  | G4: =IFERROR(VLOOKUP('Cronograma'!$E4,ListadoDeTemas1[[Tema]:[Bloque]],COLUMNS('Cronograma'!$E4:G4),FALSE),"") ->  | H4: =IFERROR(VLOOKUP('Cronograma'!$E4,ListadoDeTemas1[[Tema]:[Bloque]],COLUMNS('Cronograma'!$E4:H4),FALSE),"") -> 
F5: =IFERROR(VLOOKUP('Cronograma'!$E5,ListadoDeTemas1[[Tema]:[Bloque]],COLUMNS('Cronograma'!$E5:F5),FALSE),"") ->  | G5: =IFERROR(VLOOKUP('Cronograma'!$E5,ListadoDeTemas1[[Tema]:[Bloque]],COLUMNS('Cronograma'!$E5:G5),FALSE),"") ->  | H5: =IFERROR(VLOOKUP('Cronograma'!$E5,ListadoDeTemas1[[Tema]:[Bloque]],COLUMNS('Cronograma'!$E5:H5),FALSE),"") -> 
F6: =IFERROR(VLOOKUP('Cronograma'!$E6,ListadoDeTemas1[[Tema]:[Bloque]],COLUMNS('Cronograma'!$E6:F6),FALSE),"") ->  | G6: =IFERROR(VLOOKUP('Cronograma'!$E6,ListadoDeTemas1[[Tema]:[Bloque]],COLUMNS('Cronograma'!$E6:G6),FALSE),"") ->  | H6: =IFERROR(VLOOKUP('Cronograma'!$E6,ListadoDeTemas1[[Tema]:[Bloque]],COLUMNS('Cronograma'!$E6:H6),FALSE),"") -> 
F7: =IFERROR(VLOOKUP('Cronograma'!$E7,ListadoDeTemas1[[Tema]:[Bloque]],COLUMNS('Cronograma'!$E7:F7),FALSE),"") ->  | G7: =IFERROR(VLOOKUP('Cronograma'!$E7,ListadoDeTemas1[[Tema]:[Bloque]],COLUMNS('Cronograma'!$E7:G7),FALSE),"") ->  | H7: =IFERROR(VLOOKUP('Cronograma'!$E7,ListadoDeTemas1[[Tema]:[Bloque]],COLUMNS('Cronograma'!$E7:H7),FALSE),"") -> 
F8: =IFERROR(VLOOKUP('Cronograma'!$E8,ListadoDeTemas1[[Tema]:[Bloque]],COLUMNS('Cronograma'!$E8:F8),FALSE),"") ->  | G8: =IFERROR(VLOOKUP('Cronograma'!$E8,ListadoDeTemas1[[Tema]:[Bloque]],COLUMNS('Cronograma'!$E8:G8),FALSE),"") ->  | H8: =IFERROR(VLOOKUP('Cronograma'!$E8,ListadoDeTemas1[[Tema]:[Bloque]],COLUMNS('Cronograma'!$E8:H8),FALSE),"") -> 
F9: =IFERROR(VLOOKUP('Cronograma'!$E9,ListadoDeTemas1[[Tema]:[Bloque]],COLUMNS('Cronograma'!$E9:F9),FALSE),"") ->  | G9: =IFERROR(VLOOKUP('Cronograma'!$E9,ListadoDeTemas1[[Tema]:[Bloque]],COLUMNS('Cronograma'!$E9:G9),FALSE),"") ->  | H9: =IFERROR(VLOOKUP('Cronograma'!$E9,ListadoDeTemas1[[Tema]:[Bloque]],COLUMNS('Cronograma'!$E9:H9),FALSE),"") -> 
F10: =IFERROR(VLOOKUP('Cronograma'!$E10,ListadoDeTemas1[[Tema]:[Bloque]],COLUMNS('Cronograma'!$E10:F10),FALSE),"") ->  | G10: =IFERROR(VLOOKUP('Cronograma'!$E10,ListadoDeTemas1[[Tema]:[Bloque]],COLUMNS('Cronograma'!$E10:G10),FALSE),"") ->  | H10: =IFERROR(VLOOKUP('Cronograma'!$E10,ListadoDeTemas1[[Tema]:[Bloque]],COLUMNS('Cronograma'!$E10:H10),FALSE),"") -> 
F11: =IFERROR(VLOOKUP('Cronograma'!$E11,ListadoDeTemas1[[Tema]:[Bloque]],COLUMNS('Cronograma'!$E11:F11),FALSE),"") ->  | G11: =IFERROR(VLOOKUP('Cronograma'!$E11,ListadoDeTemas1[[Tema]:[Bloque]],COLUMNS('Cronograma'!$E11:G11),FALSE),"") ->  | H11: =IFERROR(VLOOKUP('Cronograma'!$E11,ListadoDeTemas1[[Tema]:[Bloque]],COLUMNS('Cronograma'!$E11:H11),FALSE),"") -> 
F12: =IFERROR(VLOOKUP('Cronograma'!$E12,ListadoDeTemas1[[Tema]:[Bloque]],COLUMNS('Cronograma'!$E12:F12),FALSE),"") ->  | G12: =IFERROR(VLOOKUP('Cronograma'!$E12,ListadoDeTemas1[[Tema]:[Bloque]],COLUMNS('Cronograma'!$E12:G12),FALSE),"") ->  | H12: =IFERROR(VLOOKUP('Cronograma'!$E12,ListadoDeTemas1[[Tema]:[Bloque]],COLUMNS('Cronograma'!$E12:H12),FALSE),"") -> 
F13: =IFERROR(VLOOKUP('Cronograma'!$E13,ListadoDeTemas1[[Tema]:[Bloque]],COLUMNS('Cronograma'!$E13:F13),FALSE),"") ->  | G13: =IFERROR(VLOOKUP('Cronograma'!$E13,ListadoDeTemas1[[Tema]:[Bloque]],COLUMNS('Cronograma'!$E13:G13),FALSE),"") ->  | H13: =IFERROR(VLOOKUP('Cronograma'!$E13,ListadoDeTemas1[[Tema]:[Bloque]],COLUMNS('Cronograma'!$E13:H13),FALSE),"") -> 
F14: =IFERROR(VLOOKUP('Cronograma'!$E14,ListadoDeTemas1[[Tema]:[Bloque]],COLUMNS('Cronograma'!$E14:F14),FALSE),"") ->  | G14: =IFERROR(VLOOKUP('Cronograma'!$E14,ListadoDeTemas1[[Tema]:[Bloque]],COLUMNS('Cronograma'!$E14:G14),FALSE),"") ->  | H14: =IFERROR(VLOOKUP('Cronograma'!$E14,ListadoDeTemas1[[Tema]:[Bloque]],COLUMNS('Cronograma'!$E14:H14),FALSE),"") -> 
F15: =IFERROR(VLOOKUP('Cronograma'!$E15,ListadoDeTemas1[[Tema]:[Bloque]],COLUMNS('Cronograma'!$E15:F15),FALSE),"") ->  | G15: =IFERROR(VLOOKUP('Cronograma'!$E15,ListadoDeTemas1[[Tema]:[Bloque]],COLUMNS('Cronograma'!$E15:G15),FALSE),"") ->  | H15: =IFERROR(VLOOKUP('Cronograma'!$E15,ListadoDeTemas1[[Tema]:[Bloque]],COLUMNS('Cronograma'!$E15:H15),FALSE),"") -> 
F16: =IFERROR(VLOOKUP('Cronograma'!$E16,ListadoDeTemas1[[Tema]:[Bloque]],COLUMNS('Cronograma'!$E16:F16),FALSE),"") ->  | G16: =IFERROR(VLOOKUP('Cronograma'!$E16,ListadoDeTemas1[[Tema]:[Bloque]],COLUMNS('Cronograma'!$E16:G16),FALSE),"") ->  | H16: =IFERROR(VLOOKUP('Cronograma'!$E16,ListadoDeTemas1[[Tema]:[Bloque]],COLUMNS('Cronograma'!$E16:H16),FALSE),"") -> 
F17: =IFERROR(VLOOKUP('Cronograma'!$E17,ListadoDeTemas1[[Tema]:[Bloque]],COLUMNS('Cronograma'!$E17:F17),FALSE),"") ->  | G17: =IFERROR(VLOOKUP('Cronograma'!$E17,ListadoDeTemas1[[Tema]:[Bloque]],COLUMNS('Cronograma'!$E17:G17),FALSE),"") ->  | H17: =IFERROR(VLOOKUP('Cronograma'!$E17,ListadoDeTemas1[[Tema]:[Bloque]],COLUMNS('Cronograma'!$E17:H17),FALSE),"") -> 
F18: =IFERROR(VLOOKUP('Cronograma'!$E18,ListadoDeTemas1[[Tema]:[Bloque]],COLUMNS('Cronograma'!$E18:F18),FALSE),"") ->  | G18: =IFERROR(VLOOKUP('Cronograma'!$E18,ListadoDeTemas1[[Tema]:[Bloque]],COLUMNS('Cronograma'!$E18:G18),FALSE),"") ->  | H18: =IFERROR(VLOOKUP('Cronograma'!$E18,ListadoDeTemas1[[Tema]:[Bloque]],COLUMNS('Cronograma'!$E18:H18),FALSE),"") -> 
F19: =IFERROR(VLOOKUP('Cronograma'!$E19,ListadoDeTemas1[[Tema]:[Bloque]],COLUMNS('Cronograma'!$E19:F19),FALSE),"") ->  | G19: =IFERROR(VLOOKUP('Cronograma'!$E19,ListadoDeTemas1[[Tema]:[Bloque]],COLUMNS('Cronograma'!$E19:G19),FALSE),"") ->  | H19: =IFERROR(VLOOKUP('Cronograma'!$E19,ListadoDeTemas1[[Tema]:[Bloque]],COLUMNS('Cronograma'!$E19:H19),FALSE),"") -> 
F20: =IFERROR(VLOOKUP('Cronograma'!$E20,ListadoDeTemas1[[Tema]:[Bloque]],COLUMNS('Cronograma'!$E20:F20),FALSE),"") ->  | G20: =IFERROR(VLOOKUP('Cronograma'!$E20,ListadoDeTemas1[[Tema]:[Bloque]],COLUMNS('Cronograma'!$E20:G20),FALSE),"") ->  | H20: =IFERROR(VLOOKUP('Cronograma'!$E20,ListadoDeTemas1[[Tema]:[Bloque]],COLUMNS('Cronograma'!$E20:H20),FALSE),"") -> 
F21: =IFERROR(VLOOKUP('Cronograma'!$E21,ListadoDeTemas1[[Tema]:[Bloque]],COLUMNS('Cronograma'!$E21:F21),FALSE),"") ->  | G21: =IFERROR(VLOOKUP('Cronograma'!$E21,ListadoDeTemas1[[Tema]:[Bloque]],COLUMNS('Cronograma'!$E21:G21),FALSE),"") ->  | H21: =IFERROR(VLOOKUP('Cronograma'!$E21,ListadoDeTemas1[[Tema]:[Bloque]],COLUMNS('Cronograma'!$E21:H21),FALSE),"") -> 
F22: =IFERROR(VLOOKUP('Cronograma'!$E22,ListadoDeTemas1[[Tema]:[Bloque]],COLUMNS('Cronograma'!$E22:F22),FALSE),"") ->  | G22: =IFERROR(VLOOKUP('Cronograma'!$E22,ListadoDeTemas1[[Tema]:[Bloque]],COLUMNS('Cronograma'!$E22:G22),FALSE),"") ->  | H22: =IFERROR(VLOOKUP('Cronograma'!$E22,ListadoDeTemas1[[Tema]:[Bloque]],COLUMNS('Cronograma'!$E22:H22),FALSE),"") -> 
F23: =IFERROR(VLOOKUP('Cronograma'!$E23,ListadoDeTemas1[[Tema]:[Bloque]],COLUMNS('Cronograma'!$E23:F23),FALSE),"") ->  | G23: =IFERROR(VLOOKUP('Cronograma'!$E23,ListadoDeTemas1[[Tema]:[Bloque]],COLUMNS('Cronograma'!$E23:G23),FALSE),"") ->  | H23: =IFERROR(VLOOKUP('Cronograma'!$E23,ListadoDeTemas1[[Tema]:[Bloque]],COLUMNS('Cronograma'!$E23:H23),FALSE),"") -> 
F24: =IFERROR(VLOOKUP('Cronograma'!$E24,ListadoDeTemas1[[Tema]:[Bloque]],COLUMNS('Cronograma'!$E24:F24),FALSE),"") ->  | G24: =IFERROR(VLOOKUP('Cronograma'!$E24,ListadoDeTemas1[[Tema]:[Bloque]],COLUMNS('Cronograma'!$E24:G24),FALSE),"") ->  | H24: =IFERROR(VLOOKUP('Cronograma'!$E24,ListadoDeTemas1[[Tema]:[Bloque]],COLUMNS('Cronograma'!$E24:H24),FALSE),"") -> 
F25: =IFERROR(VLOOKUP('Cronograma'!$E25,ListadoDeTemas1[[Tema]:[Bloque]],COLUMNS('Cronograma'!$E25:F25),FALSE),"") ->  | G25: =IFERROR(VLOOKUP('Cronograma'!$E25,ListadoDeTemas1[[Tema]:[Bloque]],COLUMNS('Cronograma'!$E25:G25),FALSE),"") ->  | H25: =IFERROR(VLOOKUP('Cronograma'!$E25,ListadoDeTemas1[[Tema]:[Bloque]],COLUMNS('Cronograma'!$E25:H25),FALSE),"") -> 
F26: =IFERROR(VLOOKUP('Cronograma'!$E26,ListadoDeTemas1[[Tema]:[Bloque]],COLUMNS('Cronograma'!$E26:F26),FALSE),"") ->  | G26: =IFERROR(VLOOKUP('Cronograma'!$E26,ListadoDeTemas1[[Tema]:[Bloque]],COLUMNS('Cronograma'!$E26:G26),FALSE),"") ->  | H26: =IFERROR(VLOOKUP('Cronograma'!$E26,ListadoDeTemas1[[Tema]:[Bloque]],COLUMNS('Cronograma'!$E26:H26),FALSE),"") -> 
F27: =IFERROR(VLOOKUP('Cronograma'!$E27,ListadoDeTemas1[[Tema]:[Bloque]],COLUMNS('Cronograma'!$E27:F27),FALSE),"") ->  | G27: =IFERROR(VLOOKUP('Cronograma'!$E27,ListadoDeTemas1[[Tema]:[Bloque]],COLUMNS('Cronograma'!$E27:G27),FALSE),"") ->  | H27: =IFERROR(VLOOKUP('Cronograma'!$E27,ListadoDeTemas1[[Tema]:[Bloque]],COLUMNS('Cronograma'!$E27:H27),FALSE),"") -> 
F28: =IFERROR(VLOOKUP('Cronograma'!$E28,ListadoDeTemas1[[Tema]:[Bloque]],COLUMNS('Cronograma'!$E28:F28),FALSE),"") ->  | G28: =IFERROR(VLOOKUP('Cronograma'!$E28,ListadoDeTemas1[[Tema]:[Bloque]],COLUMNS('Cronograma'!$E28:G28),FALSE),"") ->  | H28: =IFERROR(VLOOKUP('Cronograma'!$E28,ListadoDeTemas1[[Tema]:[Bloque]],COLUMNS('Cronograma'!$E28:H28),FALSE),"") -> 
F29: =IFERROR(VLOOKUP('Cronograma'!$E29,ListadoDeTemas1[[Tema]:[Bloque]],COLUMNS('Cronograma'!$E29:F29),FALSE),"") ->  | G29: =IFERROR(VLOOKUP('Cronograma'!$E29,ListadoDeTemas1[[Tema]:[Bloque]],COLUMNS('Cronograma'!$E29:G29),FALSE),"") ->  | H29: =IFERROR(VLOOKUP('Cronograma'!$E29,ListadoDeTemas1[[Tema]:[Bloque]],COLUMNS('Cronograma'!$E29:H29),FALSE),"") -> 
F30: =IFERROR(VLOOKUP('Cronograma'!$E30,ListadoDeTemas1[[Tema]:[Bloque]],COLUMNS('Cronograma'!$E30:F30),FALSE),"") ->  | G30: =IFERROR(VLOOKUP('Cronograma'!$E30,ListadoDeTemas1[[Tema]:[Bloque]],COLUMNS('Cronograma'!$E30:G30),FALSE),"") ->  | H30: =IFERROR(VLOOKUP('Cronograma'!$E30,ListadoDeTemas1[[Tema]:[Bloque]],COLUMNS('Cronograma'!$E30:H30),FALSE),"") -> 
F31: =IFERROR(VLOOKUP('Cronograma'!$E31,ListadoDeTemas1[[Tema]:[Bloque]],COLUMNS('Cronograma'!$E31:F31),FALSE),"") ->  | G31: =IFERROR(VLOOKUP('Cronograma'!$E31,ListadoDeTemas1[[Tema]:[Bloque]],COLUMNS('Cronograma'!$E31:G31),FALSE),"") ->  | H31: =IFERROR(VLOOKUP('Cronograma'!$E31,ListadoDeTemas1[[Tema]:[Bloque]],COLUMNS('Cronograma'!$E31:H31),FALSE),"") -> 
F32: =IFERROR(VLOOKUP('Cronograma'!$E32,ListadoDeTemas1[[Tema]:[Bloque]],COLUMNS('Cronograma'!$E32:F32),FALSE),"") ->  | G32: =IFERROR(VLOOKUP('Cronograma'!$E32,ListadoDeTemas1[[Tema]:[Bloque]],COLUMNS('Cronograma'!$E32:G32),FALSE),"") ->  | H32: =IFERROR(VLOOKUP('Cronograma'!$E32,ListadoDeTemas1[[Tema]:[Bloque]],COLUMNS('Cronograma'!$E32:H32),FALSE),"") -> 
F33: =IFERROR(VLOOKUP('Cronograma'!$E33,ListadoDeTemas1[[Tema]:[Bloque]],COLUMNS('Cronograma'!$E33:F33),FALSE),"") ->  | G33: =IFERROR(VLOOKUP('Cronograma'!$E33,ListadoDeTemas1[[Tema]:[Bloque]],COLUMNS('Cronograma'!$E33:G33),FALSE),"") ->  | H33: =IFERROR(VLOOKUP('Cronograma'!$E33,ListadoDeTemas1[[Tema]:[Bloque]],COLUMNS('Cronograma'!$E33:H33),FALSE),"") -> 
F34: =IFERROR(VLOOKUP('Cronograma'!$E34,ListadoDeTemas1[[Tema]:[Bloque]],COLUMNS('Cronograma'!$E34:F34),FALSE),"") ->  | G34: =IFERROR(VLOOKUP('Cronograma'!$E34,ListadoDeTemas1[[Tema]:[Bloque]],COLUMNS('Cronograma'!$E34:G34),FALSE),"") ->  | H34: =IFERROR(VLOOKUP('Cronograma'!$E34,ListadoDeTemas1[[Tema]:[Bloque]],COLUMNS('Cronograma'!$E34:H34),FALSE),"") -> 
F35: =IFERROR(VLOOKUP('Cronograma'!$E35,ListadoDeTemas1[[Tema]:[Bloque]],COLUMNS('Cronograma'!$E35:F35),FALSE),"") ->  | G35: =IFERROR(VLOOKUP('Cronograma'!$E35,ListadoDeTemas1[[Tema]:[Bloque]],COLUMNS('Cronograma'!$E35:G35),FALSE),"") ->  | H35: =IFERROR(VLOOKUP('Cronograma'!$E35,ListadoDeTemas1[[Tema]:[Bloque]],COLUMNS('Cronograma'!$E35:H35),FALSE),"") -> 
F36: =IFERROR(VLOOKUP('Cronograma'!$E36,ListadoDeTemas1[[Tema]:[Bloque]],COLUMNS('Cronograma'!$E36:F36),FALSE),"") ->  | G36: =IFERROR(VLOOKUP('Cronograma'!$E36,ListadoDeTemas1[[Tema]:[Bloque]],COLUMNS('Cronograma'!$E36:G36),FALSE),"") ->  | H36: =IFERROR(VLOOKUP('Cronograma'!$E36,ListadoDeTemas1[[Tema]:[Bloque]],COLUMNS('Cronograma'!$E36:H36),FALSE),"") -> 
F37: =IFERROR(VLOOKUP('Cronograma'!$E37,ListadoDeTemas1[[Tema]:[Bloque]],COLUMNS('Cronograma'!$E37:F37),FALSE),"") ->  | G37: =IFERROR(VLOOKUP('Cronograma'!$E37,ListadoDeTemas1[[Tema]:[Bloque]],COLUMNS('Cronograma'!$E37:G37),FALSE),"") ->  | H37: =IFERROR(VLOOKUP('Cronograma'!$E37,ListadoDeTemas1[[Tema]:[Bloque]],COLUMNS('Cronograma'!$E37:H37),FALSE),"") -> 
F38: =IFERROR(VLOOKUP('Cronograma'!$E38,ListadoDeTemas1[[Tema]:[Bloque]],COLUMNS('Cronograma'!$E38:F38),FALSE),"") ->  | G38: =IFERROR(VLOOKUP('Cronograma'!$E38,ListadoDeTemas1[[Tema]:[Bloque]],COLUMNS('Cronograma'!$E38:G38),FALSE),"") ->  | H38: =IFERROR(VLOOKUP('Cronograma'!$E38,ListadoDeTemas1[[Tema]:[Bloque]],COLUMNS('Cronograma'!$E38:H38),FALSE),"") -> 
F39: =IFERROR(VLOOKUP('Cronograma'!$E39,ListadoDeTemas1[[Tema]:[Bloque]],COLUMNS('Cronograma'!$E39:F39),FALSE),"") ->  | G39: =IFERROR(VLOOKUP('Cronograma'!$E39,ListadoDeTemas1[[Tema]:[Bloque]],COLUMNS('Cronograma'!$E39:G39),FALSE),"") ->  | H39: =IFERROR(VLOOKUP('Cronograma'!$E39,ListadoDeTemas1[[Tema]:[Bloque]],COLUMNS('Cronograma'!$E39:H39),FALSE),"") -> 
F40: =IFERROR(VLOOKUP('Cronograma'!$E40,ListadoDeTemas1[[Tema]:[Bloque]],COLUMNS('Cronograma'!$E40:F40),FALSE),"") ->  | G40: =IFERROR(VLOOKUP('Cronograma'!$E40,ListadoDeTemas1[[Tema]:[Bloque]],COLUMNS('Cronograma'!$E40:G40),FALSE),"") ->  | H40: =IFERROR(VLOOKUP('Cronograma'!$E40,ListadoDeTemas1[[Tema]:[Bloque]],COLUMNS('Cronograma'!$E40:H40),FALSE),"") -> 
F41: =IFERROR(VLOOKUP('Cronograma'!$E41,ListadoDeTemas1[[Tema]:[Bloque]],COLUMNS('Cronograma'!$E41:F41),FALSE),"") ->  | G41: =IFERROR(VLOOKUP('Cronograma'!$E41,ListadoDeTemas1[[Tema]:[Bloque]],COLUMNS('Cronograma'!$E41:G41),FALSE),"") ->  | H41: =IFERROR(VLOOKUP('Cronograma'!$E41,ListadoDeTemas1[[Tema]:[Bloque]],COLUMNS('Cronograma'!$E41:H41),FALSE),"") -> 
F42: =IFERROR(VLOOKUP('Cronograma'!$E42,ListadoDeTemas1[[Tema]:[Bloque]],COLUMNS('Cronograma'!$E42:F42),FALSE),"") ->  | G42: =IFERROR(VLOOKUP('Cronograma'!$E42,ListadoDeTemas1[[Tema]:[Bloque]],COLUMNS('Cronograma'!$E42:G42),FALSE),"") ->  | H42: =IFERROR(VLOOKUP('Cronograma'!$E42,ListadoDeTemas1[[Tema]:[Bloque]],COLUMNS('Cronograma'!$E42:H42),FALSE),"") -> 
F43: =IFERROR(VLOOKUP('Cronograma'!$E43,ListadoDeTemas1[[Tema]:[Bloque]],COLUMNS('Cronograma'!$E43:F43),FALSE),"") ->  | G43: =IFERROR(VLOOKUP('Cronograma'!$E43,ListadoDeTemas1[[Tema]:[Bloque]],COLUMNS('Cronograma'!$E43:G43),FALSE),"") ->  | H43: =IFERROR(VLOOKUP('Cronograma'!$E43,ListadoDeTemas1[[Tema]:[Bloque]],COLUMNS('Cronograma'!$E43:H43),FALSE),"") -> 
F44: =IFERROR(VLOOKUP('Cronograma'!$E44,ListadoDeTemas1[[Tema]:[Bloque]],COLUMNS('Cronograma'!$E44:F44),FALSE),"") ->  | G44: =IFERROR(VLOOKUP('Cronograma'!$E44,ListadoDeTemas1[[Tema]:[Bloque]],COLUMNS('Cronograma'!$E44:G44),FALSE),"") ->  | H44: =IFERROR(VLOOKUP('Cronograma'!$E44,ListadoDeTemas1[[Tema]:[Bloque]],COLUMNS('Cronograma'!$E44:H44),FALSE),"") -> 
F45: =IFERROR(VLOOKUP('Cronograma'!$E45,ListadoDeTemas1[[Tema]:[Bloque]],COLUMNS('Cronograma'!$E45:F45),FALSE),"") ->  | G45: =IFERROR(VLOOKUP('Cronograma'!$E45,ListadoDeTemas1[[Tema]:[Bloque]],COLUMNS('Cronograma'!$E45:G45),FALSE),"") ->  | H45: =IFERROR(VLOOKUP('Cronograma'!$E45,ListadoDeTemas1[[Tema]:[Bloque]],COLUMNS('Cronograma'!$E45:H45),FALSE),"") -> 
F46: =IFERROR(VLOOKUP('Cronograma'!$E46,ListadoDeTemas1[[Tema]:[Bloque]],COLUMNS('Cronograma'!$E46:F46),FALSE),"") ->  | G46: =IFERROR(VLOOKUP('Cronograma'!$E46,ListadoDeTemas1[[Tema]:[Bloque]],COLUMNS('Cronograma'!$E46:G46),FALSE),"") ->  | H46: =IFERROR(VLOOKUP('Cronograma'!$E46,ListadoDeTemas1[[Tema]:[Bloque]],COLUMNS('Cronograma'!$E46:H46),FALSE),"") -> 
F47: =IFERROR(VLOOKUP('Cronograma'!$E47,ListadoDeTemas1[[Tema]:[Bloque]],COLUMNS('Cronograma'!$E47:F47),FALSE),"") ->  | G47: =IFERROR(VLOOKUP('Cronograma'!$E47,ListadoDeTemas1[[Tema]:[Bloque]],COLUMNS('Cronograma'!$E47:G47),FALSE),"") ->  | H47: =IFERROR(VLOOKUP('Cronograma'!$E47,ListadoDeTemas1[[Tema]:[Bloque]],COLUMNS('Cronograma'!$E47:H47),FALSE),"") -> 
F48: =IFERROR(VLOOKUP('Cronograma'!$E48,ListadoDeTemas1[[Tema]:[Bloque]],COLUMNS('Cronograma'!$E48:F48),FALSE),"") ->  | G48: =IFERROR(VLOOKUP('Cronograma'!$E48,ListadoDeTemas1[[Tema]:[Bloque]],COLUMNS('Cronograma'!$E48:G48),FALSE),"") ->  | H48: =IFERROR(VLOOKUP('Cronograma'!$E48,ListadoDeTemas1[[Tema]:[Bloque]],COLUMNS('Cronograma'!$E48:H48),FALSE),"") -> 
F49: =IFERROR(VLOOKUP('Cronograma'!$E49,ListadoDeTemas1[[Tema]:[Bloque]],COLUMNS('Cronograma'!$E49:F49),FALSE),"") ->  | G49: =IFERROR(VLOOKUP('Cronograma'!$E49,ListadoDeTemas1[[Tema]:[Bloque]],COLUMNS('Cronograma'!$E49:G49),FALSE),"") ->  | H49: =IFERROR(VLOOKUP('Cronograma'!$E49,ListadoDeTemas1[[Tema]:[Bloque]],COLUMNS('Cronograma'!$E49:H49),FALSE),"") -> 
F50: =IFERROR(VLOOKUP('Cronograma'!$E50,ListadoDeTemas1[[Tema]:[Bloque]],COLUMNS('Cronograma'!$E50:F50),FALSE),"") ->  | G50: =IFERROR(VLOOKUP('Cronograma'!$E50,ListadoDeTemas1[[Tema]:[Bloque]],COLUMNS('Cronograma'!$E50:G50),FALSE),"") ->  | H50: =IFERROR(VLOOKUP('Cronograma'!$E50,ListadoDeTemas1[[Tema]:[Bloque]],COLUMNS('Cronograma'!$E50:H50),FALSE),"") -> 
F51: =IFERROR(VLOOKUP('Cronograma'!$E51,ListadoDeTemas1[[Tema]:[Bloque]],COLUMNS('Cronograma'!$E51:F51),FALSE),"") ->  | G51: =IFERROR(VLOOKUP('Cronograma'!$E51,ListadoDeTemas1[[Tema]:[Bloque]],COLUMNS('Cronograma'!$E51:G51),FALSE),"") ->  | H51: =IFERROR(VLOOKUP('Cronograma'!$E51,ListadoDeTemas1[[Tema]:[Bloque]],COLUMNS('Cronograma'!$E51:H51),FALSE),"") -> 
F52: =IFERROR(VLOOKUP('Cronograma'!$E52,ListadoDeTemas1[[Tema]:[Bloque]],COLUMNS('Cronograma'!$E52:F52),FALSE),"") ->  | G52: =IFERROR(VLOOKUP('Cronograma'!$E52,ListadoDeTemas1[[Tema]:[Bloque]],COLUMNS('Cronograma'!$E52:G52),FALSE),"") ->  | H52: =IFERROR(VLOOKUP('Cronograma'!$E52,ListadoDeTemas1[[Tema]:[Bloque]],COLUMNS('Cronograma'!$E52:H52),FALSE),"") -> 
F53: =IFERROR(VLOOKUP('Cronograma'!$E53,ListadoDeTemas1[[Tema]:[Bloque]],COLUMNS('Cronograma'!$E53:F53),FALSE),"") ->  | G53: =IFERROR(VLOOKUP('Cronograma'!$E53,ListadoDeTemas1[[Tema]:[Bloque]],COLUMNS('Cronograma'!$E53:G53),FALSE),"") ->  | H53: =IFERROR(VLOOKUP('Cronograma'!$E53,ListadoDeTemas1[[Tema]:[Bloque]],COLUMNS('Cronograma'!$E53:H53),FALSE),"") -> 
F54: =IFERROR(VLOOKUP('Cronograma'!$E54,ListadoDeTemas1[[Tema]:[Bloque]],COLUMNS('Cronograma'!$E54:F54),FALSE),"") ->  | G54: =IFERROR(VLOOKUP('Cronograma'!$E54,ListadoDeTemas1[[Tema]:[Bloque]],COLUMNS('Cronograma'!$E54:G54),FALSE),"") ->  | H54: =IFERROR(VLOOKUP('Cronograma'!$E54,ListadoDeTemas1[[Tema]:[Bloque]],COLUMNS('Cronograma'!$E54:H54),FALSE),"") -> 
F55: =IFERROR(VLOOKUP('Cronograma'!$E55,ListadoDeTemas1[[Tema]:[Bloque]],COLUMNS('Cronograma'!$E55:F55),FALSE),"") ->  | G55: =IFERROR(VLOOKUP('Cronograma'!$E55,ListadoDeTemas1[[Tema]:[Bloque]],COLUMNS('Cronograma'!$E55:G55),FALSE),"") ->  | H55: =IFERROR(VLOOKUP('Cronograma'!$E55,ListadoDeTemas1[[Tema]:[Bloque]],COLUMNS('Cronograma'!$E55:H55),FALSE),"") -> 
F56: =IFERROR(VLOOKUP('Cronograma'!$E56,ListadoDeTemas1[[Tema]:[Bloque]],COLUMNS('Cronograma'!$E56:F56),FALSE),"") ->  | G56: =IFERROR(VLOOKUP('Cronograma'!$E56,ListadoDeTemas1[[Tema]:[Bloque]],COLUMNS('Cronograma'!$E56:G56),FALSE),"") ->  | H56: =IFERROR(VLOOKUP('Cronograma'!$E56,ListadoDeTemas1[[Tema]:[Bloque]],COLUMNS('Cronograma'!$E56:H56),FALSE),"") -> 
F57: =IFERROR(VLOOKUP('Cronograma'!$E57,ListadoDeTemas1[[Tema]:[Bloque]],COLUMNS('Cronograma'!$E57:F57),FALSE),"") ->  | G57: =IFERROR(VLOOKUP('Cronograma'!$E57,ListadoDeTemas1[[Tema]:[Bloque]],COLUMNS('Cronograma'!$E57:G57),FALSE),"") ->  | H57: =IFERROR(VLOOKUP('Cronograma'!$E57,ListadoDeTemas1[[Tema]:[Bloque]],COLUMNS('Cronograma'!$E57:H57),FALSE),"") -> 
F58: =IFERROR(VLOOKUP('Cronograma'!$E58,ListadoDeTemas1[[Tema]:[Bloque]],COLUMNS('Cronograma'!$E58:F58),FALSE),"") ->  | G58: =IFERROR(VLOOKUP('Cronograma'!$E58,ListadoDeTemas1[[Tema]:[Bloque]],COLUMNS('Cronograma'!$E58:G58),FALSE),"") ->  | H58: =IFERROR(VLOOKUP('Cronograma'!$E58,ListadoDeTemas1[[Tema]:[Bloque]],COLUMNS('Cronograma'!$E58:H58),FALSE),"") -> 
F59: =IFERROR(VLOOKUP('Cronograma'!$E59,ListadoDeTemas1[[Tema]:[Bloque]],COLUMNS('Cronograma'!$E59:F59),FALSE),"") ->  | G59: =IFERROR(VLOOKUP('Cronograma'!$E59,ListadoDeTemas1[[Tema]:[Bloque]],COLUMNS('Cronograma'!$E59:G59),FALSE),"") ->  | H59: =IFERROR(VLOOKUP('Cronograma'!$E59,ListadoDeTemas1[[Tema]:[Bloque]],COLUMNS('Cronograma'!$E59:H59),FALSE),"") -> 
F60: =IFERROR(VLOOKUP('Cronograma'!$E60,ListadoDeTemas1[[Tema]:[Bloque]],COLUMNS('Cronograma'!$E60:F60),FALSE),"") ->  | G60: =IFERROR(VLOOKUP('Cronograma'!$E60,ListadoDeTemas1[[Tema]:[Bloque]],COLUMNS('Cronograma'!$E60:G60),FALSE),"") ->  | H60: =IFERROR(VLOOKUP('Cronograma'!$E60,ListadoDeTemas1[[Tema]:[Bloque]],COLUMNS('Cronograma'!$E60:H60),FALSE),"") -> 
F61: =IFERROR(VLOOKUP('Cronograma'!$E61,ListadoDeTemas1[[Tema]:[Bloque]],COLUMNS('Cronograma'!$E61:F61),FALSE),"") ->  | G61: =IFERROR(VLOOKUP('Cronograma'!$E61,ListadoDeTemas1[[Tema]:[Bloque]],COLUMNS('Cronograma'!$E61:G61),FALSE),"") ->  | H61: =IFERROR(VLOOKUP('Cronograma'!$E61,ListadoDeTemas1[[Tema]:[Bloque]],COLUMNS('Cronograma'!$E61:H61),FALSE),"") -> 
F62: =IFERROR(VLOOKUP('Cronograma'!$E62,ListadoDeTemas1[[Tema]:[Bloque]],COLUMNS('Cronograma'!$E62:F62),FALSE),"") ->  | G62: =IFERROR(VLOOKUP('Cronograma'!$E62,ListadoDeTemas1[[Tema]:[Bloque]],COLUMNS('Cronograma'!$E62:G62),FALSE),"") ->  | H62: =IFERROR(VLOOKUP('Cronograma'!$E62,ListadoDeTemas1[[Tema]:[Bloque]],COLUMNS('Cronograma'!$E62:H62),FALSE),"") -> 
F63: =IFERROR(VLOOKUP('Cronograma'!$E63,ListadoDeTemas1[[Tema]:[Bloque]],COLUMNS('Cronograma'!$E63:F63),FALSE),"") ->  | G63: =IFERROR(VLOOKUP('Cronograma'!$E63,ListadoDeTemas1[[Tema]:[Bloque]],COLUMNS('Cronograma'!$E63:G63),FALSE),"") ->  | H63: =IFERROR(VLOOKUP('Cronograma'!$E63,ListadoDeTemas1[[Tema]:[Bloque]],COLUMNS('Cronograma'!$E63:H63),FALSE),"") -> 
F64: =IFERROR(VLOOKUP('Cronograma'!$E64,ListadoDeTemas1[[Tema]:[Bloque]],COLUMNS('Cronograma'!$E64:F64),FALSE),"") ->  | G64: =IFERROR(VLOOKUP('Cronograma'!$E64,ListadoDeTemas1[[Tema]:[Bloque]],COLUMNS('Cronograma'!$E64:G64),FALSE),"") ->  | H64: =IFERROR(VLOOKUP('Cronograma'!$E64,ListadoDeTemas1[[Tema]:[Bloque]],COLUMNS('Cronograma'!$E64:H64),FALSE),"") -> 
F65: =IFERROR(VLOOKUP('Cronograma'!$E65,ListadoDeTemas1[[Tema]:[Bloque]],COLUMNS('Cronograma'!$E65:F65),FALSE),"") ->  | G65: =IFERROR(VLOOKUP('Cronograma'!$E65,ListadoDeTemas1[[Tema]:[Bloque]],COLUMNS('Cronograma'!$E65:G65),FALSE),"") ->  | H65: =IFERROR(VLOOKUP('Cronograma'!$E65,ListadoDeTemas1[[Tema]:[Bloque]],COLUMNS('Cronograma'!$E65:H65),FALSE),"") -> 
F66: =IFERROR(VLOOKUP('Cronograma'!$E66,ListadoDeTemas1[[Tema]:[Bloque]],COLUMNS('Cronograma'!$E66:F66),FALSE),"") ->  | G66: =IFERROR(VLOOKUP('Cronograma'!$E66,ListadoDeTemas1[[Tema]:[Bloque]],COLUMNS('Cronograma'!$E66:G66),FALSE),"") ->  | H66: =IFERROR(VLOOKUP('Cronograma'!$E66,ListadoDeTemas1[[Tema]:[Bloque]],COLUMNS('Cronograma'!$E66:H66),FALSE),"") -> 
F67: =IFERROR(VLOOKUP('Cronograma'!$E67,ListadoDeTemas1[[Tema]:[Bloque]],COLUMNS('Cronograma'!$E67:F67),FALSE),"") ->  | G67: =IFERROR(VLOOKUP('Cronograma'!$E67,ListadoDeTemas1[[Tema]:[Bloque]],COLUMNS('Cronograma'!$E67:G67),FALSE),"") ->  | H67: =IFERROR(VLOOKUP('Cronograma'!$E67,ListadoDeTemas1[[Tema]:[Bloque]],COLUMNS('Cronograma'!$E67:H67),FALSE),"") -> 
F68: =IFERROR(VLOOKUP('Cronograma'!$E68,ListadoDeTemas1[[Tema]:[Bloque]],COLUMNS('Cronograma'!$E68:F68),FALSE),"") ->  | G68: =IFERROR(VLOOKUP('Cronograma'!$E68,ListadoDeTemas1[[Tema]:[Bloque]],COLUMNS('Cronograma'!$E68:G68),FALSE),"") ->  | H68: =IFERROR(VLOOKUP('Cronograma'!$E68,ListadoDeTemas1[[Tema]:[Bloque]],COLUMNS('Cronograma'!$E68:H68),FALSE),"") -> 
F69: =IFERROR(VLOOKUP('Cronograma'!$E69,ListadoDeTemas1[[Tema]:[Bloque]],COLUMNS('Cronograma'!$E69:F69),FALSE),"") ->  | G69: =IFERROR(VLOOKUP('Cronograma'!$E69,ListadoDeTemas1[[Tema]:[Bloque]],COLUMNS('Cronograma'!$E69:G69),FALSE),"") ->  | H69: =IFERROR(VLOOKUP('Cronograma'!$E69,ListadoDeTemas1[[Tema]:[Bloque]],COLUMNS('Cronograma'!$E69:H69),FALSE),"") -> 
F70: =IFERROR(VLOOKUP('Cronograma'!$E70,ListadoDeTemas1[[Tema]:[Bloque]],COLUMNS('Cronograma'!$E70:F70),FALSE),"") ->  | G70: =IFERROR(VLOOKUP('Cronograma'!$E70,ListadoDeTemas1[[Tema]:[Bloque]],COLUMNS('Cronograma'!$E70:G70),FALSE),"") ->  | H70: =IFERROR(VLOOKUP('Cronograma'!$E70,ListadoDeTemas1[[Tema]:[Bloque]],COLUMNS('Cronograma'!$E70:H70),FALSE),"") -> 
F71: =IFERROR(VLOOKUP('Cronograma'!$E71,ListadoDeTemas1[[Tema]:[Bloque]],COLUMNS('Cronograma'!$E71:F71),FALSE),"") ->  | G71: =IFERROR(VLOOKUP('Cronograma'!$E71,ListadoDeTemas1[[Tema]:[Bloque]],COLUMNS('Cronograma'!$E71:G71),FALSE),"") ->  | H71: =IFERROR(VLOOKUP('Cronograma'!$E71,ListadoDeTemas1[[Tema]:[Bloque]],COLUMNS('Cronograma'!$E71:H71),FALSE),"") -> 
F72: =IFERROR(VLOOKUP('Cronograma'!$E72,ListadoDeTemas1[[Tema]:[Bloque]],COLUMNS('Cronograma'!$E72:F72),FALSE),"") ->  | G72: =IFERROR(VLOOKUP('Cronograma'!$E72,ListadoDeTemas1[[Tema]:[Bloque]],COLUMNS('Cronograma'!$E72:G72),FALSE),"") ->  | H72: =IFERROR(VLOOKUP('Cronograma'!$E72,ListadoDeTemas1[[Tema]:[Bloque]],COLUMNS('Cronograma'!$E72:H72),FALSE),"") -> 
F73: =IFERROR(VLOOKUP('Cronograma'!$E73,ListadoDeTemas1[[Tema]:[Bloque]],COLUMNS('Cronograma'!$E73:F73),FALSE),"") ->  | G73: =IFERROR(VLOOKUP('Cronograma'!$E73,ListadoDeTemas1[[Tema]:[Bloque]],COLUMNS('Cronograma'!$E73:G73),FALSE),"") ->  | H73: =IFERROR(VLOOKUP('Cronograma'!$E73,ListadoDeTemas1[[Tema]:[Bloque]],COLUMNS('Cronograma'!$E73:H73),FALSE),"") -> 
F74: =IFERROR(VLOOKUP('Cronograma'!$E74,ListadoDeTemas1[[Tema]:[Bloque]],COLUMNS('Cronograma'!$E74:F74),FALSE),"") ->  | G74: =IFERROR(VLOOKUP('Cronograma'!$E74,ListadoDeTemas1[[Tema]:[Bloque]],COLUMNS('Cronograma'!$E74:G74),FALSE),"") ->  | H74: =IFERROR(VLOOKUP('Cronograma'!$E74,ListadoDeTemas1[[Tema]:[Bloque]],COLUMNS('Cronograma'!$E74:H74),FALSE),"") -> 
F75: =IFERROR(VLOOKUP('Cronograma'!$E75,ListadoDeTemas1[[Tema]:[Bloque]],COLUMNS('Cronograma'!$E75:F75),FALSE),"") ->  | G75: =IFERROR(VLOOKUP('Cronograma'!$E75,ListadoDeTemas1[[Tema]:[Bloque]],COLUMNS('Cronograma'!$E75:G75),FALSE),"") ->  | H75: =IFERROR(VLOOKUP('Cronograma'!$E75,ListadoDeTemas1[[Tema]:[Bloque]],COLUMNS('Cronograma'!$E75:H75),FALSE),"") -> 
F76: =IFERROR(VLOOKUP('Cronograma'!$E76,ListadoDeTemas1[[Tema]:[Bloque]],COLUMNS('Cronograma'!$E76:F76),FALSE),"") ->  | G76: =IFERROR(VLOOKUP('Cronograma'!$E76,ListadoDeTemas1[[Tema]:[Bloque]],COLUMNS('Cronograma'!$E76:G76),FALSE),"") ->  | H76: =IFERROR(VLOOKUP('Cronograma'!$E76,ListadoDeTemas1[[Tema]:[Bloque]],COLUMNS('Cronograma'!$E76:H76),FALSE),"") -> 
F77: =IFERROR(VLOOKUP('Cronograma'!$E77,ListadoDeTemas1[[Tema]:[Bloque]],COLUMNS('Cronograma'!$E77:F77),FALSE),"") ->  | G77: =IFERROR(VLOOKUP('Cronograma'!$E77,ListadoDeTemas1[[Tema]:[Bloque]],COLUMNS('Cronograma'!$E77:G77),FALSE),"") ->  | H77: =IFERROR(VLOOKUP('Cronograma'!$E77,ListadoDeTemas1[[Tema]:[Bloque]],COLUMNS('Cronograma'!$E77:H77),FALSE),"") -> 
F78: =IFERROR(VLOOKUP('Cronograma'!$E78,ListadoDeTemas1[[Tema]:[Bloque]],COLUMNS('Cronograma'!$E78:F78),FALSE),"") ->  | G78: =IFERROR(VLOOKUP('Cronograma'!$E78,ListadoDeTemas1[[Tema]:[Bloque]],COLUMNS('Cronograma'!$E78:G78),FALSE),"") ->  | H78: =IFERROR(VLOOKUP('Cronograma'!$E78,ListadoDeTemas1[[Tema]:[Bloque]],COLUMNS('Cronograma'!$E78:H78),FALSE),"") -> 
F79: =IFERROR(VLOOKUP('Cronograma'!$E79,ListadoDeTemas1[[Tema]:[Bloque]],COLUMNS('Cronograma'!$E79:F79),FALSE),"") ->  | G79: =IFERROR(VLOOKUP('Cronograma'!$E79,ListadoDeTemas1[[Tema]:[Bloque]],COLUMNS('Cronograma'!$E79:G79),FALSE),"") ->  | H79: =IFERROR(VLOOKUP('Cronograma'!$E79,ListadoDeTemas1[[Tema]:[Bloque]],COLUMNS('Cronograma'!$E79:H79),FALSE),"") -> 
F80: =IFERROR(VLOOKUP('Cronograma'!$E80,ListadoDeTemas1[[Tema]:[Bloque]],COLUMNS('Cronograma'!$E80:F80),FALSE),"") ->  | G80: =IFERROR(VLOOKUP('Cronograma'!$E80,ListadoDeTemas1[[Tema]:[Bloque]],COLUMNS('Cronograma'!$E80:G80),FALSE),"") ->  | H80: =IFERROR(VLOOKUP('Cronograma'!$E80,ListadoDeTemas1[[Tema]:[Bloque]],COLUMNS('Cronograma'!$E80:H80),FALSE),"") -> 
F81: =IFERROR(VLOOKUP('Cronograma'!$E81,ListadoDeTemas1[[Tema]:[Bloque]],COLUMNS('Cronograma'!$E81:F81),FALSE),"") ->  | G81: =IFERROR(VLOOKUP('Cronograma'!$E81,ListadoDeTemas1[[Tema]:[Bloque]],COLUMNS('Cronograma'!$E81:G81),FALSE),"") ->  | H81: =IFERROR(VLOOKUP('Cronograma'!$E81,ListadoDeTemas1[[Tema]:[Bloque]],COLUMNS('Cronograma'!$E81:H81),FALSE),"") -> 
F82: =IFERROR(VLOOKUP('Cronograma'!$E82,ListadoDeTemas1[[Tema]:[Bloque]],COLUMNS('Cronograma'!$E82:F82),FALSE),"") ->  | G82: =IFERROR(VLOOKUP('Cronograma'!$E82,ListadoDeTemas1[[Tema]:[Bloque]],COLUMNS('Cronograma'!$E82:G82),FALSE),"") ->  | H82: =IFERROR(VLOOKUP('Cronograma'!$E82,ListadoDeTemas1[[Tema]:[Bloque]],COLUMNS('Cronograma'!$E82:H82),FALSE),"") -> 
F83: =IFERROR(VLOOKUP('Cronograma'!$E83,ListadoDeTemas1[[Tema]:[Bloque]],COLUMNS('Cronograma'!$E83:F83),FALSE),"") ->  | G83: =IFERROR(VLOOKUP('Cronograma'!$E83,ListadoDeTemas1[[Tema]:[Bloque]],COLUMNS('Cronograma'!$E83:G83),FALSE),"") ->  | H83: =IFERROR(VLOOKUP('Cronograma'!$E83,ListadoDeTemas1[[Tema]:[Bloque]],COLUMNS('Cronograma'!$E83:H83),FALSE),"") -> 
F84: =IFERROR(VLOOKUP('Cronograma'!$E84,ListadoDeTemas1[[Tema]:[Bloque]],COLUMNS('Cronograma'!$E84:F84),FALSE),"") ->  | G84: =IFERROR(VLOOKUP('Cronograma'!$E84,ListadoDeTemas1[[Tema]:[Bloque]],COLUMNS('Cronograma'!$E84:G84),FALSE),"") ->  | H84: =IFERROR(VLOOKUP('Cronograma'!$E84,ListadoDeTemas1[[Tema]:[Bloque]],COLUMNS('Cronograma'!$E84:H84),FALSE),"") -> 
F85: =IFERROR(VLOOKUP('Cronograma'!$E85,ListadoDeTemas1[[Tema]:[Bloque]],COLUMNS('Cronograma'!$E85:F85),FALSE),"") ->  | G85: =IFERROR(VLOOKUP('Cronograma'!$E85,ListadoDeTemas1[[Tema]:[Bloque]],COLUMNS('Cronograma'!$E85:G85),FALSE),"") ->  | H85: =IFERROR(VLOOKUP('Cronograma'!$E85,ListadoDeTemas1[[Tema]:[Bloque]],COLUMNS('Cronograma'!$E85:H85),FALSE),"") -> 
F86: =IFERROR(VLOOKUP('Cronograma'!$E86,ListadoDeTemas1[[Tema]:[Bloque]],COLUMNS('Cronograma'!$E86:F86),FALSE),"") ->  | G86: =IFERROR(VLOOKUP('Cronograma'!$E86,ListadoDeTemas1[[Tema]:[Bloque]],COLUMNS('Cronograma'!$E86:G86),FALSE),"") ->  | H86: =IFERROR(VLOOKUP('Cronograma'!$E86,ListadoDeTemas1[[Tema]:[Bloque]],COLUMNS('Cronograma'!$E86:H86),FALSE),"") -> 
F87: =IFERROR(VLOOKUP('Cronograma'!$E87,ListadoDeTemas1[[Tema]:[Bloque]],COLUMNS('Cronograma'!$E87:F87),FALSE),"") ->  | G87: =IFERROR(VLOOKUP('Cronograma'!$E87,ListadoDeTemas1[[Tema]:[Bloque]],COLUMNS('Cronograma'!$E87:G87),FALSE),"") ->  | H87: =IFERROR(VLOOKUP('Cronograma'!$E87,ListadoDeTemas1[[Tema]:[Bloque]],COLUMNS('Cronograma'!$E87:H87),FALSE),"") -> 
F88: =IFERROR(VLOOKUP('Cronograma'!$E88,ListadoDeTemas1[[Tema]:[Bloque]],COLUMNS('Cronograma'!$E88:F88),FALSE),"") ->  | G88: =IFERROR(VLOOKUP('Cronograma'!$E88,ListadoDeTemas1[[Tema]:[Bloque]],COLUMNS('Cronograma'!$E88:G88),FALSE),"") ->  | H88: =IFERROR(VLOOKUP('Cronograma'!$E88,ListadoDeTemas1[[Tema]:[Bloque]],COLUMNS('Cronograma'!$E88:H88),FALSE),"") -> 
F89: =IFERROR(VLOOKUP('Cronograma'!$E89,ListadoDeTemas1[[Tema]:[Bloque]],COLUMNS('Cronograma'!$E89:F89),FALSE),"") ->  | G89: =IFERROR(VLOOKUP('Cronograma'!$E89,ListadoDeTemas1[[Tema]:[Bloque]],COLUMNS('Cronograma'!$E89:G89),FALSE),"") ->  | H89: =IFERROR(VLOOKUP('Cronograma'!$E89,ListadoDeTemas1[[Tema]:[Bloque]],COLUMNS('Cronograma'!$E89:H89),FALSE),"") -> 
F90: =IFERROR(VLOOKUP('Cronograma'!$E90,ListadoDeTemas1[[Tema]:[Bloque]],COLUMNS('Cronograma'!$E90:F90),FALSE),"") ->  | G90: =IFERROR(VLOOKUP('Cronograma'!$E90,ListadoDeTemas1[[Tema]:[Bloque]],COLUMNS('Cronograma'!$E90:G90),FALSE),"") ->  | H90: =IFERROR(VLOOKUP('Cronograma'!$E90,ListadoDeTemas1[[Tema]:[Bloque]],COLUMNS('Cronograma'!$E90:H90),FALSE),"") -> 
F91: =IFERROR(VLOOKUP('Cronograma'!$E91,ListadoDeTemas1[[Tema]:[Bloque]],COLUMNS('Cronograma'!$E91:F91),FALSE),"") ->  | G91: =IFERROR(VLOOKUP('Cronograma'!$E91,ListadoDeTemas1[[Tema]:[Bloque]],COLUMNS('Cronograma'!$E91:G91),FALSE),"") ->  | H91: =IFERROR(VLOOKUP('Cronograma'!$E91,ListadoDeTemas1[[Tema]:[Bloque]],COLUMNS('Cronograma'!$E91:H91),FALSE),"") -> 
F92: =IFERROR(VLOOKUP('Cronograma'!$E92,ListadoDeTemas1[[Tema]:[Bloque]],COLUMNS('Cronograma'!$E92:F92),FALSE),"") ->  | G92: =IFERROR(VLOOKUP('Cronograma'!$E92,ListadoDeTemas1[[Tema]:[Bloque]],COLUMNS('Cronograma'!$E92:G92),FALSE),"") ->  | H92: =IFERROR(VLOOKUP('Cronograma'!$E92,ListadoDeTemas1[[Tema]:[Bloque]],COLUMNS('Cronograma'!$E92:H92),FALSE),"") -> 
F93: =IFERROR(VLOOKUP('Cronograma'!$E93,ListadoDeTemas1[[Tema]:[Bloque]],COLUMNS('Cronograma'!$E93:F93),FALSE),"") ->  | G93: =IFERROR(VLOOKUP('Cronograma'!$E93,ListadoDeTemas1[[Tema]:[Bloque]],COLUMNS('Cronograma'!$E93:G93),FALSE),"") ->  | H93: =IFERROR(VLOOKUP('Cronograma'!$E93,ListadoDeTemas1[[Tema]:[Bloque]],COLUMNS('Cronograma'!$E93:H93),FALSE),"") -> 
F94: =IFERROR(VLOOKUP('Cronograma'!$E94,ListadoDeTemas1[[Tema]:[Bloque]],COLUMNS('Cronograma'!$E94:F94),FALSE),"") ->  | G94: =IFERROR(VLOOKUP('Cronograma'!$E94,ListadoDeTemas1[[Tema]:[Bloque]],COLUMNS('Cronograma'!$E94:G94),FALSE),"") ->  | H94: =IFERROR(VLOOKUP('Cronograma'!$E94,ListadoDeTemas1[[Tema]:[Bloque]],COLUMNS('Cronograma'!$E94:H94),FALSE),"") -> 
F95: =IFERROR(VLOOKUP('Cronograma'!$E95,ListadoDeTemas1[[Tema]:[Bloque]],COLUMNS('Cronograma'!$E95:F95),FALSE),"") ->  | G95: =IFERROR(VLOOKUP('Cronograma'!$E95,ListadoDeTemas1[[Tema]:[Bloque]],COLUMNS('Cronograma'!$E95:G95),FALSE),"") ->  | H95: =IFERROR(VLOOKUP('Cronograma'!$E95,ListadoDeTemas1[[Tema]:[Bloque]],COLUMNS('Cronograma'!$E95:H95),FALSE),"") -> 
F96: =IFERROR(VLOOKUP('Cronograma'!$E96,ListadoDeTemas1[[Tema]:[Bloque]],COLUMNS('Cronograma'!$E96:F96),FALSE),"") ->  | G96: =IFERROR(VLOOKUP('Cronograma'!$E96,ListadoDeTemas1[[Tema]:[Bloque]],COLUMNS('Cronograma'!$E96:G96),FALSE),"") ->  | H96: =IFERROR(VLOOKUP('Cronograma'!$E96,ListadoDeTemas1[[Tema]:[Bloque]],COLUMNS('Cronograma'!$E96:H96),FALSE),"") -> 
F97: =IFERROR(VLOOKUP('Cronograma'!$E97,ListadoDeTemas1[[Tema]:[Bloque]],COLUMNS('Cronograma'!$E97:F97),FALSE),"") ->  | G97: =IFERROR(VLOOKUP('Cronograma'!$E97,ListadoDeTemas1[[Tema]:[Bloque]],COLUMNS('Cronograma'!$E97:G97),FALSE),"") ->  | H97: =IFERROR(VLOOKUP('Cronograma'!$E97,ListadoDeTemas1[[Tema]:[Bloque]],COLUMNS('Cronograma'!$E97:H97),FALSE),"") -> 
F98: =IFERROR(VLOOKUP('Cronograma'!$E98,ListadoDeTemas1[[Tema]:[Bloque]],COLUMNS('Cronograma'!$E98:F98),FALSE),"") ->  | G98: =IFERROR(VLOOKUP('Cronograma'!$E98,ListadoDeTemas1[[Tema]:[Bloque]],COLUMNS('Cronograma'!$E98:G98),FALSE),"") ->  | H98: =IFERROR(VLOOKUP('Cronograma'!$E98,ListadoDeTemas1[[Tema]:[Bloque]],COLUMNS('Cronograma'!$E98:H98),FALSE),"") -> 
F99: =IFERROR(VLOOKUP('Cronograma'!$E99,ListadoDeTemas1[[Tema]:[Bloque]],COLUMNS('Cronograma'!$E99:F99),FALSE),"") ->  | G99: =IFERROR(VLOOKUP('Cronograma'!$E99,ListadoDeTemas1[[Tema]:[Bloque]],COLUMNS('Cronograma'!$E99:G99),FALSE),"") ->  | H99: =IFERROR(VLOOKUP('Cronograma'!$E99,ListadoDeTemas1[[Tema]:[Bloque]],COLUMNS('Cronograma'!$E99:H99),FALSE),"") -> 
F100: =IFERROR(VLOOKUP('Cronograma'!$E100,ListadoDeTemas1[[Tema]:[Bloque]],COLUMNS('Cronograma'!$E100:F100),FALSE),"") ->  | G100: =IFERROR(VLOOKUP('Cronograma'!$E100,ListadoDeTemas1[[Tema]:[Bloque]],COLUMNS('Cronograma'!$E100:G100),FALSE),"") ->  | H100: =IFERROR(VLOOKUP('Cronograma'!$E100,ListadoDeTemas1[[Tema]:[Bloque]],COLUMNS('Cronograma'!$E100:H100),FALSE),"") -> 
F101: =IFERROR(VLOOKUP('Cronograma'!$E101,ListadoDeTemas1[[Tema]:[Bloque]],COLUMNS('Cronograma'!$E101:F101),FALSE),"") ->  | G101: =IFERROR(VLOOKUP('Cronograma'!$E101,ListadoDeTemas1[[Tema]:[Bloque]],COLUMNS('Cronograma'!$E101:G101),FALSE),"") ->  | H101: =IFERROR(VLOOKUP('Cronograma'!$E101,ListadoDeTemas1[[Tema]:[Bloque]],COLUMNS('Cronograma'!$E101:H101),FALSE),"") -> 
F102: =IFERROR(VLOOKUP('Cronograma'!$E102,ListadoDeTemas1[[Tema]:[Bloque]],COLUMNS('Cronograma'!$E102:F102),FALSE),"") ->  | G102: =IFERROR(VLOOKUP('Cronograma'!$E102,ListadoDeTemas1[[Tema]:[Bloque]],COLUMNS('Cronograma'!$E102:G102),FALSE),"") ->  | H102: =IFERROR(VLOOKUP('Cronograma'!$E102,ListadoDeTemas1[[Tema]:[Bloque]],COLUMNS('Cronograma'!$E102:H102),FALSE),"") -> 
F103: =IFERROR(VLOOKUP('Cronograma'!$E103,ListadoDeTemas1[[Tema]:[Bloque]],COLUMNS('Cronograma'!$E103:F103),FALSE),"") ->  | G103: =IFERROR(VLOOKUP('Cronograma'!$E103,ListadoDeTemas1[[Tema]:[Bloque]],COLUMNS('Cronograma'!$E103:G103),FALSE),"") ->  | H103: =IFERROR(VLOOKUP('Cronograma'!$E103,ListadoDeTemas1[[Tema]:[Bloque]],COLUMNS('Cronograma'!$E103:H103),FALSE),"") -> 
F104: =IFERROR(VLOOKUP('Cronograma'!$E104,ListadoDeTemas1[[Tema]:[Bloque]],COLUMNS('Cronograma'!$E104:F104),FALSE),"") ->  | G104: =IFERROR(VLOOKUP('Cronograma'!$E104,ListadoDeTemas1[[Tema]:[Bloque]],COLUMNS('Cronograma'!$E104:G104),FALSE),"") ->  | H104: =IFERROR(VLOOKUP('Cronograma'!$E104,ListadoDeTemas1[[Tema]:[Bloque]],COLUMNS('Cronograma'!$E104:H104),FALSE),"") -> 
F105: =IFERROR(VLOOKUP('Cronograma'!$E105,ListadoDeTemas1[[Tema]:[Bloque]],COLUMNS('Cronograma'!$E105:F105),FALSE),"") ->  | G105: =IFERROR(VLOOKUP('Cronograma'!$E105,ListadoDeTemas1[[Tema]:[Bloque]],COLUMNS('Cronograma'!$E105:G105),FALSE),"") ->  | H105: =IFERROR(VLOOKUP('Cronograma'!$E105,ListadoDeTemas1[[Tema]:[Bloque]],COLUMNS('Cronograma'!$E105:H105),FALSE),"") -> 
F106: =IFERROR(VLOOKUP('Cronograma'!$E106,ListadoDeTemas1[[Tema]:[Bloque]],COLUMNS('Cronograma'!$E106:F106),FALSE),"") ->  | G106: =IFERROR(VLOOKUP('Cronograma'!$E106,ListadoDeTemas1[[Tema]:[Bloque]],COLUMNS('Cronograma'!$E106:G106),FALSE),"") ->  | H106: =IFERROR(VLOOKUP('Cronograma'!$E106,ListadoDeTemas1[[Tema]:[Bloque]],COLUMNS('Cronograma'!$E106:H106),FALSE),"") -> 
F107: =IFERROR(VLOOKUP('Cronograma'!$E107,ListadoDeTemas1[[Tema]:[Bloque]],COLUMNS('Cronograma'!$E107:F107),FALSE),"") ->  | G107: =IFERROR(VLOOKUP('Cronograma'!$E107,ListadoDeTemas1[[Tema]:[Bloque]],COLUMNS('Cronograma'!$E107:G107),FALSE),"") ->  | H107: =IFERROR(VLOOKUP('Cronograma'!$E107,ListadoDeTemas1[[Tema]:[Bloque]],COLUMNS('Cronograma'!$E107:H107),FALSE),"") -> 
F108: =IFERROR(VLOOKUP('Cronograma'!$E108,ListadoDeTemas1[[Tema]:[Bloque]],COLUMNS('Cronograma'!$E108:F108),FALSE),"") ->  | G108: =IFERROR(VLOOKUP('Cronograma'!$E108,ListadoDeTemas1[[Tema]:[Bloque]],COLUMNS('Cronograma'!$E108:G108),FALSE),"") ->  | H108: =IFERROR(VLOOKUP('Cronograma'!$E108,ListadoDeTemas1[[Tema]:[Bloque]],COLUMNS('Cronograma'!$E108:H108),FALSE),"") -> 
F109: =IFERROR(VLOOKUP('Cronograma'!$E109,ListadoDeTemas1[[Tema]:[Bloque]],COLUMNS('Cronograma'!$E109:F109),FALSE),"") ->  | G109: =IFERROR(VLOOKUP('Cronograma'!$E109,ListadoDeTemas1[[Tema]:[Bloque]],COLUMNS('Cronograma'!$E109:G109),FALSE),"") ->  | H109: =IFERROR(VLOOKUP('Cronograma'!$E109,ListadoDeTemas1[[Tema]:[Bloque]],COLUMNS('Cronograma'!$E109:H109),FALSE),"") -> 
F110: =IFERROR(VLOOKUP('Cronograma'!$E110,ListadoDeTemas1[[Tema]:[Bloque]],COLUMNS('Cronograma'!$E110:F110),FALSE),"") ->  | G110: =IFERROR(VLOOKUP('Cronograma'!$E110,ListadoDeTemas1[[Tema]:[Bloque]],COLUMNS('Cronograma'!$E110:G110),FALSE),"") ->  | H110: =IFERROR(VLOOKUP('Cronograma'!$E110,ListadoDeTemas1[[Tema]:[Bloque]],COLUMNS('Cronograma'!$E110:H110),FALSE),"") -> 
F111: =IFERROR(VLOOKUP('Cronograma'!$E111,ListadoDeTemas1[[Tema]:[Bloque]],COLUMNS('Cronograma'!$E111:F111),FALSE),"") ->  | G111: =IFERROR(VLOOKUP('Cronograma'!$E111,ListadoDeTemas1[[Tema]:[Bloque]],COLUMNS('Cronograma'!$E111:G111),FALSE),"") ->  | H111: =IFERROR(VLOOKUP('Cronograma'!$E111,ListadoDeTemas1[[Tema]:[Bloque]],COLUMNS('Cronograma'!$E111:H111),FALSE),"") -> 
F112: =IFERROR(VLOOKUP('Cronograma'!$E112,ListadoDeTemas1[[Tema]:[Bloque]],COLUMNS('Cronograma'!$E112:F112),FALSE),"") ->  | G112: =IFERROR(VLOOKUP('Cronograma'!$E112,ListadoDeTemas1[[Tema]:[Bloque]],COLUMNS('Cronograma'!$E112:G112),FALSE),"") ->  | H112: =IFERROR(VLOOKUP('Cronograma'!$E112,ListadoDeTemas1[[Tema]:[Bloque]],COLUMNS('Cronograma'!$E112:H112),FALSE),"") -> 
F113: =IFERROR(VLOOKUP('Cronograma'!$E113,ListadoDeTemas1[[Tema]:[Bloque]],COLUMNS('Cronograma'!$E113:F113),FALSE),"") ->  | G113: =IFERROR(VLOOKUP('Cronograma'!$E113,ListadoDeTemas1[[Tema]:[Bloque]],COLUMNS('Cronograma'!$E113:G113),FALSE),"") ->  | H113: =IFERROR(VLOOKUP('Cronograma'!$E113,ListadoDeTemas1[[Tema]:[Bloque]],COLUMNS('Cronograma'!$E113:H113),FALSE),"") -> 
F114: =IFERROR(VLOOKUP('Cronograma'!$E114,ListadoDeTemas1[[Tema]:[Bloque]],COLUMNS('Cronograma'!$E114:F114),FALSE),"") ->  | G114: =IFERROR(VLOOKUP('Cronograma'!$E114,ListadoDeTemas1[[Tema]:[Bloque]],COLUMNS('Cronograma'!$E114:G114),FALSE),"") ->  | H114: =IFERROR(VLOOKUP('Cronograma'!$E114,ListadoDeTemas1[[Tema]:[Bloque]],COLUMNS('Cronograma'!$E114:H114),FALSE),"") -> 
F115: =IFERROR(VLOOKUP('Cronograma'!$E115,ListadoDeTemas1[[Tema]:[Bloque]],COLUMNS('Cronograma'!$E115:F115),FALSE),"") ->  | G115: =IFERROR(VLOOKUP('Cronograma'!$E115,ListadoDeTemas1[[Tema]:[Bloque]],COLUMNS('Cronograma'!$E115:G115),FALSE),"") ->  | H115: =IFERROR(VLOOKUP('Cronograma'!$E115,ListadoDeTemas1[[Tema]:[Bloque]],COLUMNS('Cronograma'!$E115:H115),FALSE),"") -> 
F116: =IFERROR(VLOOKUP('Cronograma'!$E116,ListadoDeTemas1[[Tema]:[Bloque]],COLUMNS('Cronograma'!$E116:F116),FALSE),"") ->  | G116: =IFERROR(VLOOKUP('Cronograma'!$E116,ListadoDeTemas1[[Tema]:[Bloque]],COLUMNS('Cronograma'!$E116:G116),FALSE),"") ->  | H116: =IFERROR(VLOOKUP('Cronograma'!$E116,ListadoDeTemas1[[Tema]:[Bloque]],COLUMNS('Cronograma'!$E116:H116),FALSE),"") -> 
F117: =IFERROR(VLOOKUP('Cronograma'!$E117,ListadoDeTemas1[[Tema]:[Bloque]],COLUMNS('Cronograma'!$E117:F117),FALSE),"") ->  | G117: =IFERROR(VLOOKUP('Cronograma'!$E117,ListadoDeTemas1[[Tema]:[Bloque]],COLUMNS('Cronograma'!$E117:G117),FALSE),"") ->  | H117: =IFERROR(VLOOKUP('Cronograma'!$E117,ListadoDeTemas1[[Tema]:[Bloque]],COLUMNS('Cronograma'!$E117:H117),FALSE),"") -> 
F118: =IFERROR(VLOOKUP('Cronograma'!$E118,ListadoDeTemas1[[Tema]:[Bloque]],COLUMNS('Cronograma'!$E118:F118),FALSE),"") ->  | G118: =IFERROR(VLOOKUP('Cronograma'!$E118,ListadoDeTemas1[[Tema]:[Bloque]],COLUMNS('Cronograma'!$E118:G118),FALSE),"") ->  | H118: =IFERROR(VLOOKUP('Cronograma'!$E118,ListadoDeTemas1[[Tema]:[Bloque]],COLUMNS('Cronograma'!$E118:H118),FALSE),"") -> 
F119: =IFERROR(VLOOKUP('Cronograma'!$E119,ListadoDeTemas1[[Tema]:[Bloque]],COLUMNS('Cronograma'!$E119:F119),FALSE),"") ->  | G119: =IFERROR(VLOOKUP('Cronograma'!$E119,ListadoDeTemas1[[Tema]:[Bloque]],COLUMNS('Cronograma'!$E119:G119),FALSE),"") ->  | H119: =IFERROR(VLOOKUP('Cronograma'!$E119,ListadoDeTemas1[[Tema]:[Bloque]],COLUMNS('Cronograma'!$E119:H119),FALSE),"") -> 
F120: =IFERROR(VLOOKUP('Cronograma'!$E120,ListadoDeTemas1[[Tema]:[Bloque]],COLUMNS('Cronograma'!$E120:F120),FALSE),"") ->  | G120: =IFERROR(VLOOKUP('Cronograma'!$E120,ListadoDeTemas1[[Tema]:[Bloque]],COLUMNS('Cronograma'!$E120:G120),FALSE),"") ->  | H120: =IFERROR(VLOOKUP('Cronograma'!$E120,ListadoDeTemas1[[Tema]:[Bloque]],COLUMNS('Cronograma'!$E120:H120),FALSE),"") -> 
F121: =IFERROR(VLOOKUP('Cronograma'!$E121,ListadoDeTemas1[[Tema]:[Bloque]],COLUMNS('Cronograma'!$E121:F121),FALSE),"") ->  | G121: =IFERROR(VLOOKUP('Cronograma'!$E121,ListadoDeTemas1[[Tema]:[Bloque]],COLUMNS('Cronograma'!$E121:G121),FALSE),"") ->  | H121: =IFERROR(VLOOKUP('Cronograma'!$E121,ListadoDeTemas1[[Tema]:[Bloque]],COLUMNS('Cronograma'!$E121:H121),FALSE),"") -> 
F122: =IFERROR(VLOOKUP('Cronograma'!$E122,ListadoDeTemas1[[Tema]:[Bloque]],COLUMNS('Cronograma'!$E122:F122),FALSE),"") ->  | G122: =IFERROR(VLOOKUP('Cronograma'!$E122,ListadoDeTemas1[[Tema]:[Bloque]],COLUMNS('Cronograma'!$E122:G122),FALSE),"") ->  | H122: =IFERROR(VLOOKUP('Cronograma'!$E122,ListadoDeTemas1[[Tema]:[Bloque]],COLUMNS('Cronograma'!$E122:H122),FALSE),"") -> 
F123: =IFERROR(VLOOKUP('Cronograma'!$E123,ListadoDeTemas1[[Tema]:[Bloque]],COLUMNS('Cronograma'!$E123:F123),FALSE),"") ->  | G123: =IFERROR(VLOOKUP('Cronograma'!$E123,ListadoDeTemas1[[Tema]:[Bloque]],COLUMNS('Cronograma'!$E123:G123),FALSE),"") ->  | H123: =IFERROR(VLOOKUP('Cronograma'!$E123,ListadoDeTemas1[[Tema]:[Bloque]],COLUMNS('Cronograma'!$E123:H123),FALSE),"") -> 
F124: =IFERROR(VLOOKUP('Cronograma'!$E124,ListadoDeTemas1[[Tema]:[Bloque]],COLUMNS('Cronograma'!$E124:F124),FALSE),"") ->  | G124: =IFERROR(VLOOKUP('Cronograma'!$E124,ListadoDeTemas1[[Tema]:[Bloque]],COLUMNS('Cronograma'!$E124:G124),FALSE),"") ->  | H124: =IFERROR(VLOOKUP('Cronograma'!$E124,ListadoDeTemas1[[Tema]:[Bloque]],COLUMNS('Cronograma'!$E124:H124),FALSE),"") -> 
F125: =IFERROR(VLOOKUP('Cronograma'!$E125,ListadoDeTemas1[[Tema]:[Bloque]],COLUMNS('Cronograma'!$E125:F125),FALSE),"") ->  | G125: =IFERROR(VLOOKUP('Cronograma'!$E125,ListadoDeTemas1[[Tema]:[Bloque]],COLUMNS('Cronograma'!$E125:G125),FALSE),"") ->  | H125: =IFERROR(VLOOKUP('Cronograma'!$E125,ListadoDeTemas1[[Tema]:[Bloque]],COLUMNS('Cronograma'!$E125:H125),FALSE),"") -> 
F126: =IFERROR(VLOOKUP('Cronograma'!$E126,ListadoDeTemas1[[Tema]:[Bloque]],COLUMNS('Cronograma'!$E126:F126),FALSE),"") ->  | G126: =IFERROR(VLOOKUP('Cronograma'!$E126,ListadoDeTemas1[[Tema]:[Bloque]],COLUMNS('Cronograma'!$E126:G126),FALSE),"") ->  | H126: =IFERROR(VLOOKUP('Cronograma'!$E126,ListadoDeTemas1[[Tema]:[Bloque]],COLUMNS('Cronograma'!$E126:H126),FALSE),"") -> 
F127: =IFERROR(VLOOKUP('Cronograma'!$E127,ListadoDeTemas1[[Tema]:[Bloque]],COLUMNS('Cronograma'!$E127:F127),FALSE),"") ->  | G127: =IFERROR(VLOOKUP('Cronograma'!$E127,ListadoDeTemas1[[Tema]:[Bloque]],COLUMNS('Cronograma'!$E127:G127),FALSE),"") ->  | H127: =IFERROR(VLOOKUP('Cronograma'!$E127,ListadoDeTemas1[[Tema]:[Bloque]],COLUMNS('Cronograma'!$E127:H127),FALSE),"") -> 
F128: =IFERROR(VLOOKUP('Cronograma'!$E128,ListadoDeTemas1[[Tema]:[Bloque]],COLUMNS('Cronograma'!$E128:F128),FALSE),"") ->  | G128: =IFERROR(VLOOKUP('Cronograma'!$E128,ListadoDeTemas1[[Tema]:[Bloque]],COLUMNS('Cronograma'!$E128:G128),FALSE),"") ->  | H128: =IFERROR(VLOOKUP('Cronograma'!$E128,ListadoDeTemas1[[Tema]:[Bloque]],COLUMNS('Cronograma'!$E128:H128),FALSE),"") -> 
F129: =IFERROR(VLOOKUP('Cronograma'!$E129,ListadoDeTemas1[[Tema]:[Bloque]],COLUMNS('Cronograma'!$E129:F129),FALSE),"") ->  | G129: =IFERROR(VLOOKUP('Cronograma'!$E129,ListadoDeTemas1[[Tema]:[Bloque]],COLUMNS('Cronograma'!$E129:G129),FALSE),"") ->  | H129: =IFERROR(VLOOKUP('Cronograma'!$E129,ListadoDeTemas1[[Tema]:[Bloque]],COLUMNS('Cronograma'!$E129:H129),FALSE),"") -> 
F130: =IFERROR(VLOOKUP('Cronograma'!$E130,ListadoDeTemas1[[Tema]:[Bloque]],COLUMNS('Cronograma'!$E130:F130),FALSE),"") ->  | G130: =IFERROR(VLOOKUP('Cronograma'!$E130,ListadoDeTemas1[[Tema]:[Bloque]],COLUMNS('Cronograma'!$E130:G130),FALSE),"") ->  | H130: =IFERROR(VLOOKUP('Cronograma'!$E130,ListadoDeTemas1[[Tema]:[Bloque]],COLUMNS('Cronograma'!$E130:H130),FALSE),"") -> 
F131: =IFERROR(VLOOKUP('Cronograma'!$E131,ListadoDeTemas1[[Tema]:[Bloque]],COLUMNS('Cronograma'!$E131:F131),FALSE),"") ->  | G131: =IFERROR(VLOOKUP('Cronograma'!$E131,ListadoDeTemas1[[Tema]:[Bloque]],COLUMNS('Cronograma'!$E131:G131),FALSE),"") ->  | H131: =IFERROR(VLOOKUP('Cronograma'!$E131,ListadoDeTemas1[[Tema]:[Bloque]],COLUMNS('Cronograma'!$E131:H131),FALSE),"") -> 
F132: =IFERROR(VLOOKUP('Cronograma'!$E132,ListadoDeTemas1[[Tema]:[Bloque]],COLUMNS('Cronograma'!$E132:F132),FALSE),"") ->  | G132: =IFERROR(VLOOKUP('Cronograma'!$E132,ListadoDeTemas1[[Tema]:[Bloque]],COLUMNS('Cronograma'!$E132:G132),FALSE),"") ->  | H132: =IFERROR(VLOOKUP('Cronograma'!$E132,ListadoDeTemas1[[Tema]:[Bloque]],COLUMNS('Cronograma'!$E132:H132),FALSE),"") -> 
F133: =IFERROR(VLOOKUP('Cronograma'!$E133,ListadoDeTemas1[[Tema]:[Bloque]],COLUMNS('Cronograma'!$E133:F133),FALSE),"") ->  | G133: =IFERROR(VLOOKUP('Cronograma'!$E133,ListadoDeTemas1[[Tema]:[Bloque]],COLUMNS('Cronograma'!$E133:G133),FALSE),"") ->  | H133: =IFERROR(VLOOKUP('Cronograma'!$E133,ListadoDeTemas1[[Tema]:[Bloque]],COLUMNS('Cronograma'!$E133:H133),FALSE),"") -> 
F134: =IFERROR(VLOOKUP('Cronograma'!$E134,ListadoDeTemas1[[Tema]:[Bloque]],COLUMNS('Cronograma'!$E134:F134),FALSE),"") ->  | G134: =IFERROR(VLOOKUP('Cronograma'!$E134,ListadoDeTemas1[[Tema]:[Bloque]],COLUMNS('Cronograma'!$E134:G134),FALSE),"") ->  | H134: =IFERROR(VLOOKUP('Cronograma'!$E134,ListadoDeTemas1[[Tema]:[Bloque]],COLUMNS('Cronograma'!$E134:H134),FALSE),"") -> 
F135: =IFERROR(VLOOKUP('Cronograma'!$E135,ListadoDeTemas1[[Tema]:[Bloque]],COLUMNS('Cronograma'!$E135:F135),FALSE),"") ->  | G135: =IFERROR(VLOOKUP('Cronograma'!$E135,ListadoDeTemas1[[Tema]:[Bloque]],COLUMNS('Cronograma'!$E135:G135),FALSE),"") ->  | H135: =IFERROR(VLOOKUP('Cronograma'!$E135,ListadoDeTemas1[[Tema]:[Bloque]],COLUMNS('Cronograma'!$E135:H135),FALSE),"") -> 
F136: =IFERROR(VLOOKUP('Cronograma'!$E136,ListadoDeTemas1[[Tema]:[Bloque]],COLUMNS('Cronograma'!$E136:F136),FALSE),"") ->  | G136: =IFERROR(VLOOKUP('Cronograma'!$E136,ListadoDeTemas1[[Tema]:[Bloque]],COLUMNS('Cronograma'!$E136:G136),FALSE),"") ->  | H136: =IFERROR(VLOOKUP('Cronograma'!$E136,ListadoDeTemas1[[Tema]:[Bloque]],COLUMNS('Cronograma'!$E136:H136),FALSE),"") -> 
F137: =IFERROR(VLOOKUP('Cronograma'!$E137,ListadoDeTemas1[[Tema]:[Bloque]],COLUMNS('Cronograma'!$E137:F137),FALSE),"") ->  | G137: =IFERROR(VLOOKUP('Cronograma'!$E137,ListadoDeTemas1[[Tema]:[Bloque]],COLUMNS('Cronograma'!$E137:G137),FALSE),"") ->  | H137: =IFERROR(VLOOKUP('Cronograma'!$E137,ListadoDeTemas1[[Tema]:[Bloque]],COLUMNS('Cronograma'!$E137:H137),FALSE),"") -> 
F138: =IFERROR(VLOOKUP('Cronograma'!$E138,ListadoDeTemas1[[Tema]:[Bloque]],COLUMNS('Cronograma'!$E138:F138),FALSE),"") ->  | G138: =IFERROR(VLOOKUP('Cronograma'!$E138,ListadoDeTemas1[[Tema]:[Bloque]],COLUMNS('Cronograma'!$E138:G138),FALSE),"") ->  | H138: =IFERROR(VLOOKUP('Cronograma'!$E138,ListadoDeTemas1[[Tema]:[Bloque]],COLUMNS('Cronograma'!$E138:H138),FALSE),"") -> 
F139: =IFERROR(VLOOKUP('Cronograma'!$E139,ListadoDeTemas1[[Tema]:[Bloque]],COLUMNS('Cronograma'!$E139:F139),FALSE),"") ->  | G139: =IFERROR(VLOOKUP('Cronograma'!$E139,ListadoDeTemas1[[Tema]:[Bloque]],COLUMNS('Cronograma'!$E139:G139),FALSE),"") ->  | H139: =IFERROR(VLOOKUP('Cronograma'!$E139,ListadoDeTemas1[[Tema]:[Bloque]],COLUMNS('Cronograma'!$E139:H139),FALSE),"") -> 
F140: =IFERROR(VLOOKUP('Cronograma'!$E140,ListadoDeTemas1[[Tema]:[Bloque]],COLUMNS('Cronograma'!$E140:F140),FALSE),"") ->  | G140: =IFERROR(VLOOKUP('Cronograma'!$E140,ListadoDeTemas1[[Tema]:[Bloque]],COLUMNS('Cronograma'!$E140:G140),FALSE),"") ->  | H140: =IFERROR(VLOOKUP('Cronograma'!$E140,ListadoDeTemas1[[Tema]:[Bloque]],COLUMNS('Cronograma'!$E140:H140),FALSE),"") -> 
F141: =IFERROR(VLOOKUP('Cronograma'!$E141,ListadoDeTemas1[[Tema]:[Bloque]],COLUMNS('Cronograma'!$E141:F141),FALSE),"") ->  | G141: =IFERROR(VLOOKUP('Cronograma'!$E141,ListadoDeTemas1[[Tema]:[Bloque]],COLUMNS('Cronograma'!$E141:G141),FALSE),"") ->  | H141: =IFERROR(VLOOKUP('Cronograma'!$E141,ListadoDeTemas1[[Tema]:[Bloque]],COLUMNS('Cronograma'!$E141:H141),FALSE),"") -> 
F142: =IFERROR(VLOOKUP('Cronograma'!$E142,ListadoDeTemas1[[Tema]:[Bloque]],COLUMNS('Cronograma'!$E142:F142),FALSE),"") ->  | G142: =IFERROR(VLOOKUP('Cronograma'!$E142,ListadoDeTemas1[[Tema]:[Bloque]],COLUMNS('Cronograma'!$E142:G142),FALSE),"") ->  | H142: =IFERROR(VLOOKUP('Cronograma'!$E142,ListadoDeTemas1[[Tema]:[Bloque]],COLUMNS('Cronograma'!$E142:H142),FALSE),"") -> 
F143: =IFERROR(VLOOKUP('Cronograma'!$E143,ListadoDeTemas1[[Tema]:[Bloque]],COLUMNS('Cronograma'!$E143:F143),FALSE),"") ->  | G143: =IFERROR(VLOOKUP('Cronograma'!$E143,ListadoDeTemas1[[Tema]:[Bloque]],COLUMNS('Cronograma'!$E143:G143),FALSE),"") ->  | H143: =IFERROR(VLOOKUP('Cronograma'!$E143,ListadoDeTemas1[[Tema]:[Bloque]],COLUMNS('Cronograma'!$E143:H143),FALSE),"") -> 
F144: =IFERROR(VLOOKUP('Cronograma'!$E144,ListadoDeTemas1[[Tema]:[Bloque]],COLUMNS('Cronograma'!$E144:F144),FALSE),"") ->  | G144: =IFERROR(VLOOKUP('Cronograma'!$E144,ListadoDeTemas1[[Tema]:[Bloque]],COLUMNS('Cronograma'!$E144:G144),FALSE),"") ->  | H144: =IFERROR(VLOOKUP('Cronograma'!$E144,ListadoDeTemas1[[Tema]:[Bloque]],COLUMNS('Cronograma'!$E144:H144),FALSE),"") -> 
F145: =IFERROR(VLOOKUP('Cronograma'!$E145,ListadoDeTemas1[[Tema]:[Bloque]],COLUMNS('Cronograma'!$E145:F145),FALSE),"") ->  | G145: =IFERROR(VLOOKUP('Cronograma'!$E145,ListadoDeTemas1[[Tema]:[Bloque]],COLUMNS('Cronograma'!$E145:G145),FALSE),"") ->  | H145: =IFERROR(VLOOKUP('Cronograma'!$E145,ListadoDeTemas1[[Tema]:[Bloque]],COLUMNS('Cronograma'!$E145:H145),FALSE),"") -> 
F146: =IFERROR(VLOOKUP('Cronograma'!$E146,ListadoDeTemas1[[Tema]:[Bloque]],COLUMNS('Cronograma'!$E146:F146),FALSE),"") ->  | G146: =IFERROR(VLOOKUP('Cronograma'!$E146,ListadoDeTemas1[[Tema]:[Bloque]],COLUMNS('Cronograma'!$E146:G146),FALSE),"") ->  | H146: =IFERROR(VLOOKUP('Cronograma'!$E146,ListadoDeTemas1[[Tema]:[Bloque]],COLUMNS('Cronograma'!$E146:H146),FALSE),"") -> 
F147: =IFERROR(VLOOKUP('Cronograma'!$E147,ListadoDeTemas1[[Tema]:[Bloque]],COLUMNS('Cronograma'!$E147:F147),FALSE),"") ->  | G147: =IFERROR(VLOOKUP('Cronograma'!$E147,ListadoDeTemas1[[Tema]:[Bloque]],COLUMNS('Cronograma'!$E147:G147),FALSE),"") ->  | H147: =IFERROR(VLOOKUP('Cronograma'!$E147,ListadoDeTemas1[[Tema]:[Bloque]],COLUMNS('Cronograma'!$E147:H147),FALSE),"") -> 
F148: =IFERROR(VLOOKUP('Cronograma'!$E148,ListadoDeTemas1[[Tema]:[Bloque]],COLUMNS('Cronograma'!$E148:F148),FALSE),"") ->  | G148: =IFERROR(VLOOKUP('Cronograma'!$E148,ListadoDeTemas1[[Tema]:[Bloque]],COLUMNS('Cronograma'!$E148:G148),FALSE),"") ->  | H148: =IFERROR(VLOOKUP('Cronograma'!$E148,ListadoDeTemas1[[Tema]:[Bloque]],COLUMNS('Cronograma'!$E148:H148),FALSE),"") -> 
F149: =IFERROR(VLOOKUP('Cronograma'!$E149,ListadoDeTemas1[[Tema]:[Bloque]],COLUMNS('Cronograma'!$E149:F149),FALSE),"") ->  | G149: =IFERROR(VLOOKUP('Cronograma'!$E149,ListadoDeTemas1[[Tema]:[Bloque]],COLUMNS('Cronograma'!$E149:G149),FALSE),"") ->  | H149: =IFERROR(VLOOKUP('Cronograma'!$E149,ListadoDeTemas1[[Tema]:[Bloque]],COLUMNS('Cronograma'!$E149:H149),FALSE),"") -> 
F150: =IFERROR(VLOOKUP('Cronograma'!$E150,ListadoDeTemas1[[Tema]:[Bloque]],COLUMNS('Cronograma'!$E150:F150),FALSE),"") ->  | G150: =IFERROR(VLOOKUP('Cronograma'!$E150,ListadoDeTemas1[[Tema]:[Bloque]],COLUMNS('Cronograma'!$E150:G150),FALSE),"") ->  | H150: =IFERROR(VLOOKUP('Cronograma'!$E150,ListadoDeTemas1[[Tema]:[Bloque]],COLUMNS('Cronograma'!$E150:H150),FALSE),"") -> 
F151: =IFERROR(VLOOKUP('Cronograma'!$E151,ListadoDeTemas1[[Tema]:[Bloque]],COLUMNS('Cronograma'!$E151:F151),FALSE),"") ->  | G151: =IFERROR(VLOOKUP('Cronograma'!$E151,ListadoDeTemas1[[Tema]:[Bloque]],COLUMNS('Cronograma'!$E151:G151),FALSE),"") ->  | H151: =IFERROR(VLOOKUP('Cronograma'!$E151,ListadoDeTemas1[[Tema]:[Bloque]],COLUMNS('Cronograma'!$E151:H151),FALSE),"") -> 
F152: =IFERROR(VLOOKUP('Cronograma'!$E152,ListadoDeTemas1[[Tema]:[Bloque]],COLUMNS('Cronograma'!$E152:F152),FALSE),"") ->  | G152: =IFERROR(VLOOKUP('Cronograma'!$E152,ListadoDeTemas1[[Tema]:[Bloque]],COLUMNS('Cronograma'!$E152:G152),FALSE),"") ->  | H152: =IFERROR(VLOOKUP('Cronograma'!$E152,ListadoDeTemas1[[Tema]:[Bloque]],COLUMNS('Cronograma'!$E152:H152),FALSE),"") -> 
F153: =IFERROR(VLOOKUP('Cronograma'!$E153,ListadoDeTemas1[[Tema]:[Bloque]],COLUMNS('Cronograma'!$E153:F153),FALSE),"") ->  | G153: =IFERROR(VLOOKUP('Cronograma'!$E153,ListadoDeTemas1[[Tema]:[Bloque]],COLUMNS('Cronograma'!$E153:G153),FALSE),"") ->  | H153: =IFERROR(VLOOKUP('Cronograma'!$E153,ListadoDeTemas1[[Tema]:[Bloque]],COLUMNS('Cronograma'!$E153:H153),FALSE),"") -> 
F154: =IFERROR(VLOOKUP('Cronograma'!$E154,ListadoDeTemas1[[Tema]:[Bloque]],COLUMNS('Cronograma'!$E154:F154),FALSE),"") ->  | G154: =IFERROR(VLOOKUP('Cronograma'!$E154,ListadoDeTemas1[[Tema]:[Bloque]],COLUMNS('Cronograma'!$E154:G154),FALSE),"") ->  | H154: =IFERROR(VLOOKUP('Cronograma'!$E154,ListadoDeTemas1[[Tema]:[Bloque]],COLUMNS('Cronograma'!$E154:H154),FALSE),"") -> 
F155: =IFERROR(VLOOKUP('Cronograma'!$E155,ListadoDeTemas1[[Tema]:[Bloque]],COLUMNS('Cronograma'!$E155:F155),FALSE),"") ->  | G155: =IFERROR(VLOOKUP('Cronograma'!$E155,ListadoDeTemas1[[Tema]:[Bloque]],COLUMNS('Cronograma'!$E155:G155),FALSE),"") ->  | H155: =IFERROR(VLOOKUP('Cronograma'!$E155,ListadoDeTemas1[[Tema]:[Bloque]],COLUMNS('Cronograma'!$E155:H155),FALSE),"") -> 
F156: =IFERROR(VLOOKUP('Cronograma'!$E156,ListadoDeTemas1[[Tema]:[Bloque]],COLUMNS('Cronograma'!$E156:F156),FALSE),"") ->  | G156: =IFERROR(VLOOKUP('Cronograma'!$E156,ListadoDeTemas1[[Tema]:[Bloque]],COLUMNS('Cronograma'!$E156:G156),FALSE),"") ->  | H156: =IFERROR(VLOOKUP('Cronograma'!$E156,ListadoDeTemas1[[Tema]:[Bloque]],COLUMNS('Cronograma'!$E156:H156),FALSE),"") -> 
F157: =IFERROR(VLOOKUP('Cronograma'!$E157,ListadoDeTemas1[[Tema]:[Bloque]],COLUMNS('Cronograma'!$E157:F157),FALSE),"") ->  | G157: =IFERROR(VLOOKUP('Cronograma'!$E157,ListadoDeTemas1[[Tema]:[Bloque]],COLUMNS('Cronograma'!$E157:G157),FALSE),"") ->  | H157: =IFERROR(VLOOKUP('Cronograma'!$E157,ListadoDeTemas1[[Tema]:[Bloque]],COLUMNS('Cronograma'!$E157:H157),FALSE),"") -> 
F158: =IFERROR(VLOOKUP('Cronograma'!$E158,ListadoDeTemas1[[Tema]:[Bloque]],COLUMNS('Cronograma'!$E158:F158),FALSE),"") ->  | G158: =IFERROR(VLOOKUP('Cronograma'!$E158,ListadoDeTemas1[[Tema]:[Bloque]],COLUMNS('Cronograma'!$E158:G158),FALSE),"") ->  | H158: =IFERROR(VLOOKUP('Cronograma'!$E158,ListadoDeTemas1[[Tema]:[Bloque]],COLUMNS('Cronograma'!$E158:H158),FALSE),"") -> 
F159: =IFERROR(VLOOKUP('Cronograma'!$E159,ListadoDeTemas1[[Tema]:[Bloque]],COLUMNS('Cronograma'!$E159:F159),FALSE),"") ->  | G159: =IFERROR(VLOOKUP('Cronograma'!$E159,ListadoDeTemas1[[Tema]:[Bloque]],COLUMNS('Cronograma'!$E159:G159),FALSE),"") ->  | H159: =IFERROR(VLOOKUP('Cronograma'!$E159,ListadoDeTemas1[[Tema]:[Bloque]],COLUMNS('Cronograma'!$E159:H159),FALSE),"") -> 
F160: =IFERROR(VLOOKUP('Cronograma'!$E160,ListadoDeTemas1[[Tema]:[Bloque]],COLUMNS('Cronograma'!$E160:F160),FALSE),"") ->  | G160: =IFERROR(VLOOKUP('Cronograma'!$E160,ListadoDeTemas1[[Tema]:[Bloque]],COLUMNS('Cronograma'!$E160:G160),FALSE),"") ->  | H160: =IFERROR(VLOOKUP('Cronograma'!$E160,ListadoDeTemas1[[Tema]:[Bloque]],COLUMNS('Cronograma'!$E160:H160),FALSE),"") -> 
F161: =IFERROR(VLOOKUP('Cronograma'!$E161,ListadoDeTemas1[[Tema]:[Bloque]],COLUMNS('Cronograma'!$E161:F161),FALSE),"") ->  | G161: =IFERROR(VLOOKUP('Cronograma'!$E161,ListadoDeTemas1[[Tema]:[Bloque]],COLUMNS('Cronograma'!$E161:G161),FALSE),"") ->  | H161: =IFERROR(VLOOKUP('Cronograma'!$E161,ListadoDeTemas1[[Tema]:[Bloque]],COLUMNS('Cronograma'!$E161:H161),FALSE),"") -> 
F162: =IFERROR(VLOOKUP('Cronograma'!$E162,ListadoDeTemas1[[Tema]:[Bloque]],COLUMNS('Cronograma'!$E162:F162),FALSE),"") ->  | G162: =IFERROR(VLOOKUP('Cronograma'!$E162,ListadoDeTemas1[[Tema]:[Bloque]],COLUMNS('Cronograma'!$E162:G162),FALSE),"") ->  | H162: =IFERROR(VLOOKUP('Cronograma'!$E162,ListadoDeTemas1[[Tema]:[Bloque]],COLUMNS('Cronograma'!$E162:H162),FALSE),"") -> 
F163: =IFERROR(VLOOKUP('Cronograma'!$E163,ListadoDeTemas1[[Tema]:[Bloque]],COLUMNS('Cronograma'!$E163:F163),FALSE),"") ->  | G163: =IFERROR(VLOOKUP('Cronograma'!$E163,ListadoDeTemas1[[Tema]:[Bloque]],COLUMNS('Cronograma'!$E163:G163),FALSE),"") ->  | H163: =IFERROR(VLOOKUP('Cronograma'!$E163,ListadoDeTemas1[[Tema]:[Bloque]],COLUMNS('Cronograma'!$E163:H163),FALSE),"") -> 
F164: =IFERROR(VLOOKUP('Cronograma'!$E164,ListadoDeTemas1[[Tema]:[Bloque]],COLUMNS('Cronograma'!$E164:F164),FALSE),"") ->  | G164: =IFERROR(VLOOKUP('Cronograma'!$E164,ListadoDeTemas1[[Tema]:[Bloque]],COLUMNS('Cronograma'!$E164:G164),FALSE),"") ->  | H164: =IFERROR(VLOOKUP('Cronograma'!$E164,ListadoDeTemas1[[Tema]:[Bloque]],COLUMNS('Cronograma'!$E164:H164),FALSE),"") -> 
F165: =IFERROR(VLOOKUP('Cronograma'!$E165,ListadoDeTemas1[[Tema]:[Bloque]],COLUMNS('Cronograma'!$E165:F165),FALSE),"") ->  | G165: =IFERROR(VLOOKUP('Cronograma'!$E165,ListadoDeTemas1[[Tema]:[Bloque]],COLUMNS('Cronograma'!$E165:G165),FALSE),"") ->  | H165: =IFERROR(VLOOKUP('Cronograma'!$E165,ListadoDeTemas1[[Tema]:[Bloque]],COLUMNS('Cronograma'!$E165:H165),FALSE),"") -> 
F166: =IFERROR(VLOOKUP('Cronograma'!$E166,ListadoDeTemas1[[Tema]:[Bloque]],COLUMNS('Cronograma'!$E166:F166),FALSE),"") ->  | G166: =IFERROR(VLOOKUP('Cronograma'!$E166,ListadoDeTemas1[[Tema]:[Bloque]],COLUMNS('Cronograma'!$E166:G166),FALSE),"") ->  | H166: =IFERROR(VLOOKUP('Cronograma'!$E166,ListadoDeTemas1[[Tema]:[Bloque]],COLUMNS('Cronograma'!$E166:H166),FALSE),"") -> 
F167: =IFERROR(VLOOKUP('Cronograma'!$E167,ListadoDeTemas1[[Tema]:[Bloque]],COLUMNS('Cronograma'!$E167:F167),FALSE),"") ->  | G167: =IFERROR(VLOOKUP('Cronograma'!$E167,ListadoDeTemas1[[Tema]:[Bloque]],COLUMNS('Cronograma'!$E167:G167),FALSE),"") ->  | H167: =IFERROR(VLOOKUP('Cronograma'!$E167,ListadoDeTemas1[[Tema]:[Bloque]],COLUMNS('Cronograma'!$E167:H167),FALSE),"") -> 
F168: =IFERROR(VLOOKUP('Cronograma'!$E168,ListadoDeTemas1[[Tema]:[Bloque]],COLUMNS('Cronograma'!$E168:F168),FALSE),"") ->  | G168: =IFERROR(VLOOKUP('Cronograma'!$E168,ListadoDeTemas1[[Tema]:[Bloque]],COLUMNS('Cronograma'!$E168:G168),FALSE),"") ->  | H168: =IFERROR(VLOOKUP('Cronograma'!$E168,ListadoDeTemas1[[Tema]:[Bloque]],COLUMNS('Cronograma'!$E168:H168),FALSE),"") -> 
F169: =IFERROR(VLOOKUP('Cronograma'!$E169,ListadoDeTemas1[[Tema]:[Bloque]],COLUMNS('Cronograma'!$E169:F169),FALSE),"") ->  | G169: =IFERROR(VLOOKUP('Cronograma'!$E169,ListadoDeTemas1[[Tema]:[Bloque]],COLUMNS('Cronograma'!$E169:G169),FALSE),"") ->  | H169: =IFERROR(VLOOKUP('Cronograma'!$E169,ListadoDeTemas1[[Tema]:[Bloque]],COLUMNS('Cronograma'!$E169:H169),FALSE),"") -> 
F170: =IFERROR(VLOOKUP('Cronograma'!$E170,ListadoDeTemas1[[Tema]:[Bloque]],COLUMNS('Cronograma'!$E170:F170),FALSE),"") ->  | G170: =IFERROR(VLOOKUP('Cronograma'!$E170,ListadoDeTemas1[[Tema]:[Bloque]],COLUMNS('Cronograma'!$E170:G170),FALSE),"") ->  | H170: =IFERROR(VLOOKUP('Cronograma'!$E170,ListadoDeTemas1[[Tema]:[Bloque]],COLUMNS('Cronograma'!$E170:H170),FALSE),"") -> 
F171: =IFERROR(VLOOKUP('Cronograma'!$E171,ListadoDeTemas1[[Tema]:[Bloque]],COLUMNS('Cronograma'!$E171:F171),FALSE),"") ->  | G171: =IFERROR(VLOOKUP('Cronograma'!$E171,ListadoDeTemas1[[Tema]:[Bloque]],COLUMNS('Cronograma'!$E171:G171),FALSE),"") ->  | H171: =IFERROR(VLOOKUP('Cronograma'!$E171,ListadoDeTemas1[[Tema]:[Bloque]],COLUMNS('Cronograma'!$E171:H171),FALSE),"") -> 
F172: =IFERROR(VLOOKUP('Cronograma'!$E172,ListadoDeTemas1[[Tema]:[Bloque]],COLUMNS('Cronograma'!$E172:F172),FALSE),"") ->  | G172: =IFERROR(VLOOKUP('Cronograma'!$E172,ListadoDeTemas1[[Tema]:[Bloque]],COLUMNS('Cronograma'!$E172:G172),FALSE),"") ->  | H172: =IFERROR(VLOOKUP('Cronograma'!$E172,ListadoDeTemas1[[Tema]:[Bloque]],COLUMNS('Cronograma'!$E172:H172),FALSE),"") -> 
F173: =IFERROR(VLOOKUP('Cronograma'!$E173,ListadoDeTemas1[[Tema]:[Bloque]],COLUMNS('Cronograma'!$E173:F173),FALSE),"") ->  | G173: =IFERROR(VLOOKUP('Cronograma'!$E173,ListadoDeTemas1[[Tema]:[Bloque]],COLUMNS('Cronograma'!$E173:G173),FALSE),"") ->  | H173: =IFERROR(VLOOKUP('Cronograma'!$E173,ListadoDeTemas1[[Tema]:[Bloque]],COLUMNS('Cronograma'!$E173:H173),FALSE),"") -> 
F174: =IFERROR(VLOOKUP('Cronograma'!$E174,ListadoDeTemas1[[Tema]:[Bloque]],COLUMNS('Cronograma'!$E174:F174),FALSE),"") ->  | G174: =IFERROR(VLOOKUP('Cronograma'!$E174,ListadoDeTemas1[[Tema]:[Bloque]],COLUMNS('Cronograma'!$E174:G174),FALSE),"") ->  | H174: =IFERROR(VLOOKUP('Cronograma'!$E174,ListadoDeTemas1[[Tema]:[Bloque]],COLUMNS('Cronograma'!$E174:H174),FALSE),"") -> 
F175: =IFERROR(VLOOKUP('Cronograma'!$E175,ListadoDeTemas1[[Tema]:[Bloque]],COLUMNS('Cronograma'!$E175:F175),FALSE),"") ->  | G175: =IFERROR(VLOOKUP('Cronograma'!$E175,ListadoDeTemas1[[Tema]:[Bloque]],COLUMNS('Cronograma'!$E175:G175),FALSE),"") ->  | H175: =IFERROR(VLOOKUP('Cronograma'!$E175,ListadoDeTemas1[[Tema]:[Bloque]],COLUMNS('Cronograma'!$E175:H175),FALSE),"") -> 
F176: =IFERROR(VLOOKUP('Cronograma'!$E176,ListadoDeTemas1[[Tema]:[Bloque]],COLUMNS('Cronograma'!$E176:F176),FALSE),"") ->  | G176: =IFERROR(VLOOKUP('Cronograma'!$E176,ListadoDeTemas1[[Tema]:[Bloque]],COLUMNS('Cronograma'!$E176:G176),FALSE),"") ->  | H176: =IFERROR(VLOOKUP('Cronograma'!$E176,ListadoDeTemas1[[Tema]:[Bloque]],COLUMNS('Cronograma'!$E176:H176),FALSE),"") -> 
F177: =IFERROR(VLOOKUP('Cronograma'!$E177,ListadoDeTemas1[[Tema]:[Bloque]],COLUMNS('Cronograma'!$E177:F177),FALSE),"") ->  | G177: =IFERROR(VLOOKUP('Cronograma'!$E177,ListadoDeTemas1[[Tema]:[Bloque]],COLUMNS('Cronograma'!$E177:G177),FALSE),"") ->  | H177: =IFERROR(VLOOKUP('Cronograma'!$E177,ListadoDeTemas1[[Tema]:[Bloque]],COLUMNS('Cronograma'!$E177:H177),FALSE),"") -> 
F178: =IFERROR(VLOOKUP('Cronograma'!$E178,ListadoDeTemas1[[Tema]:[Bloque]],COLUMNS('Cronograma'!$E178:F178),FALSE),"") ->  | G178: =IFERROR(VLOOKUP('Cronograma'!$E178,ListadoDeTemas1[[Tema]:[Bloque]],COLUMNS('Cronograma'!$E178:G178),FALSE),"") ->  | H178: =IFERROR(VLOOKUP('Cronograma'!$E178,ListadoDeTemas1[[Tema]:[Bloque]],COLUMNS('Cronograma'!$E178:H178),FALSE),"") -> 
F179: =IFERROR(VLOOKUP('Cronograma'!$E179,ListadoDeTemas1[[Tema]:[Bloque]],COLUMNS('Cronograma'!$E179:F179),FALSE),"") -> 

Sheet Horario de estudio
C2: Hora | D2: Sábado | E2: Domingo | F2: Lunes | G2: Martes | H2: Miércoles | I2: Jueves | J2: Viernes | L2: Estadísticas del horario
C3: 00:00:00 | D3: Dormir | E3: Dormir | F3: Dormir | G3: Dormir | H3: Dormir | I3: Dormir | J3: Dormir | L3: Horas dormir/día | M3: =COUNTIF(Horario[[Sábado]:[Viernes]],"Dormir")*0.5/7 -> 7.857142857
C4: 00:30:00 | D4: Dormir | E4: Dormir | F4: Dormir | G4: Dormir | H4: Dormir | I4: Dormir | J4: Dormir | L4: Horas descanso/día | M4: =COUNTIF(Horario[[Sábado]:[Viernes]],"Descanso")*0.5/7 -> 4.214285714
C5: 01:00:00 | D5: Dormir | E5: Dormir | F5: Dormir | G5: Dormir | H5: Dormir | I5: Dormir | J5: Dormir | L5: Horas ejercicio/día | M5: =COUNTIF(Horario[[Sábado]:[Viernes]],"Ejercicio")*0.5/7 -> 1.285714286
C6: 01:30:00 | D6: Dormir | E6: Dormir | F6: Dormir | G6: Dormir | H6: Dormir | I6: Dormir | J6: Dormir | L6: Horas comer/día | M6: =(COUNTIF(Horario[[Sábado]:[Viernes]],"Desayuno")+COUNTIF(Horario[[Sábado]:[Viernes]],"Comida")+COUNTIF(Horario[[Sábado]:[Viernes]],"Cena"))*0.5/7 -> 2.928571429
C7: 02:00:00 | D7: Dormir | E7: Dormir | F7: Dormir | G7: Dormir | H7: Dormir | I7: Dormir | J7: Dormir | L7: Horas estudiar/día | M7: =COUNTIF(Horario[[Sábado]:[Viernes]],"Estudiar")*0.5/7 -> 7.428571429
C8: 02:30:00 | D8: Dormir | E8: Dormir | F8: Dormir | G8: Dormir | H8: Dormir | I8: Dormir | J8: Dormir | L8: Horas idioma/día | M8: =COUNTIF(Horario[[Sábado]:[Viernes]],"Idioma")*0.5/7 -> 0.2857142857
C9: 03:00:00 | D9: Dormir | E9: Dormir | F9: Dormir | G9: Dormir | H9: Dormir | I9: Dormir | J9: Dormir | L9: TOTAL | M9: =SUM(M3:M8) -> 24
C10: 03:30:00 | D10: Dormir | E10: Dormir | F10: Dormir | G10: Dormir | H10: Dormir | I10: Dormir | J10: Dormir
C11: 04:00:00 | D11: Dormir | E11: Dormir | F11: Dormir | G11: Dormir | H11: Dormir | I11: Dormir | J11: Dormir | K11: Estadísticas del horario sin tener en cuenta el día de descanso
C12: 04:30:00 | D12: Dormir | E12: Dormir | F12: Dormir | G12: Dormir | H12: Dormir | I12: Dormir | J12: Dormir | L12: Horas dormir/día | M12: =COUNTIF(Horario[[Domingo]:[Viernes]],"Dormir")*0.5/6 -> 7.5
C13: 05:00:00 | D13: Dormir | E13: Dormir | F13: Dormir | G13: Dormir | H13: Dormir | I13: Dormir | J13: Dormir | L13: Horas descanso/día | M13: =COUNTIF(Horario[[Domingo]:[Viernes]],"Descanso")*0.5/6 -> 3
C14: 05:30:00 | D14: Dormir | E14: Dormir | F14: Dormir | G14: Dormir | H14: Dormir | I14: Dormir | J14: Dormir | L14: Horas ejercicio/día | M14: =COUNTIF(Horario[[Domingo]:[Viernes]],"Ejercicio")*0.5/6 -> 1.5
C15: 06:00:00 | D15: Dormir | E15: Dormir | F15: Dormir | G15: Dormir | H15: Dormir | I15: Dormir | J15: Dormir | L15: Horas comer/día | M15: =(COUNTIF(Horario[[Domingo]:[Viernes]],"Desayuno")+COUNTIF(Horario[[Domingo]:[Viernes]],"Comida")+COUNTIF(Horario[[Domingo]:[Viernes]],"Cena"))*0.5/6 -> 3
C16: 06:30:00 | D16: Dormir | E16: Dormir | F16: Dormir | G16: Dormir | H16: Dormir | I16: Dormir | J16: Dormir | L16: Horas estudiar/día | M16: =COUNTIF(Horario[[Domingo]:[Viernes]],"Estudiar")*0.5/6 -> 8.666666667
C17: 07:00:00 | D17: Dormir | E17: Dormir | F17: Dormir | G17: Dormir | H17: Dormir | I17: Dormir | J17: Dormir | L17: Horas idioma/día | M17: =COUNTIF(Horario[[Domingo]:[Viernes]],"Idioma")*0.5/6 -> 0.3333333333
C18: 07:30:00 | D18: Dormir | E18: Desayuno | F18: Desayuno | G18: Desayuno | H18: Desayuno | I18: Desayuno | J18: Desayuno | L18: TOTAL | M18: =SUM(M12:M17) -> 24
C19: 08:00:00 | D19: Dormir | E19: Desayuno | F19: Desayuno | G19: Desayuno | H19: Desayuno | I19: Desayuno | J19: Desayuno
C20: 08:30:00 | D20: Dormir | E20: Estudiar | F20: Estudiar | G20: Estudiar | H20: Estudiar | I20: Estudiar | J20: Estudiar
C21: 09:00:00 | D21: Dormir | E21: Estudiar | F21: Estudiar | G21: Estudiar | H21: Estudiar | I21: Estudiar | J21: Estudiar
C22: 09:30:00 | D22: Dormir | E22: Estudiar | F22: Estudiar | G22: Estudiar | H22: Estudiar | I22: Estudiar | J22: Estudiar
C23: 10:00:00 | D23: Desayuno | E23: Estudiar | F23: Estudiar | G23: Estudiar | H23: Estudiar | I23: Estudiar | J23: Estudiar
C24: 10:30:00 | D24: Descanso | E24: Estudiar | F24: Estudiar | G24: Estudiar | H24: Estudiar | I24: Estudiar | J24: Estudiar
C25: 11:00:00 | D25: Descanso | E25: Descanso | F25: Descanso | G25: Descanso | H25: Descanso | I25: Descanso | J25: Descanso
C26: 11:30:00 | D26: Descanso | E26: Estudiar | F26: Estudiar | G26: Estudiar | H26: Estudiar | I26: Estudiar | J26: Estudiar
C27: 12:00:00 | D27: Descanso | E27: Estudiar | F27: Estudiar | G27: Estudiar | H27: Estudiar | I27: Estudiar | J27: Estudiar
C28: 12:30:00 | D28: Descanso | E28: Estudiar | F28: Estudiar | G28: Estudiar | H28: Estudiar | I28: Estudiar | J28: Estudiar
C29: 13:00:00 | D29: Descanso | E29: Estudiar | F29: Estudiar | G29: Estudiar | H29: Estudiar | I29: Estudiar | J29: Estudiar
C30: 13:30:00 | D30: Descanso | E30: Estudiar | F30: Estudiar | G30: Estudiar | H30: Idioma | I30: Estudiar | J30: Estudiar
C31: 14:00:00 | D31: Descanso | E31: Estudiar | F31: Estudiar | G31: Estudiar | H31: Idioma | I31: Estudiar | J31: Estudiar
C32: 14:30:00 | D32: Comida | E32: Comida | F32: Comida | G32: Comida | H32: Comida | I32: Comida | J32: Comida
C33: 15:00:00 | D33: Comida | E33: Comida | F33: Comida | G33: Comida | H33: Comida | I33: Comida | J33: Comida
C34: 15:30:00 | D34: Comida | E34: Comida | F34: Comida | G34: Comida | H34: Comida | I34: Comida | J34: Comida
C35: 16:00:00 | D35: Descanso | E35: Idioma | F35: Estudiar | G35: Estudiar | H35: Estudiar | I35: Estudiar | J35: Estudiar
C36: 16:30:00 | D36: Descanso | E36: Idioma | F36: Estudiar | G36: Estudiar | H36: Estudiar | I36: Estudiar | J36: Estudiar
C37: 17:00:00 | D37: Descanso | E37: Estudiar | F37: Estudiar | G37: Estudiar | H37: Estudiar | I37: Estudiar | J37: Estudiar
C38: 17:30:00 | D38: Descanso | E38: Estudiar | F38: Estudiar | G38: Estudiar | H38: Estudiar | I38: Estudiar | J38: Estudiar
C39: 18:00:00 | D39: Descanso | E39: Descanso | F39: Descanso | G39: Descanso | H39: Descanso | I39: Descanso | J39: Descanso
C40: 18:30:00 | D40: Descanso | E40: Estudiar | F40: Estudiar | G40: Estudiar | H40: Estudiar | I40: Estudiar | J40: Estudiar
C41: 19:00:00 | D41: Descanso | E41: Estudiar | F41: Estudiar | G41: Estudiar | H41: Estudiar | I41: Estudiar | J41: Estudiar
C42: 19:30:00 | D42: Descanso | E42: Estudiar | F42: Estudiar | G42: Estudiar | H42: Estudiar | I42: Estudiar | J42: Estudiar
C43: 20:00:00 | D43: Descanso | E43: Ejercicio | F43: Ejercicio | G43: Ejercicio | H43: Ejercicio | I43: Ejercicio | J43: Ejercicio
C44: 20:30:00 | D44: Descanso | E44: Ejercicio | F44: Ejercicio | G44: Ejercicio | H44: Ejercicio | I44: Ejercicio | J44: Ejercicio
C45: 21:00:00 | D45: Descanso | E45: Ejercicio | F45: Ejercicio | G45: Ejercicio | H45: Ejercicio | I45: Ejercicio | J45: Ejercicio
C46: 21:30:00 | D46: Cena | E46: Cena | F46: Cena | G46: Cena | H46: Cena | I46: Cena | J46: Cena
C47: 22:00:00 | D47: Descanso | E47: Descanso | F47: Descanso | G47: Descanso | H47: Descanso | I47: Descanso | J47: Descanso
C48: 22:30:00 | D48: Descanso | E48: Descanso | F48: Descanso | G48: Descanso | H48: Descanso | I48: Descanso | J48: Descanso
C49: 23:00:00 | D49: Descanso | E49: Descanso | F49: Descanso | G49: Descanso | H49: Descanso | I49: Descanso | J49: Descanso
C50: 23:30:00 | D50: Descanso | E50: Descanso | F50: Descanso | G50: Descanso | H50: Descanso | I50: Descanso | J50: Descanso
